{"text_format":"1","workbook":"xlsx","n_sheets":7,"sheets":["Diagnose","Utvikling","Parametre","Registrering","AktivitetsLogg","Mal","DEMOAB78K"],"not_rendered":{"charts":2,"images":0,"macros":1,"external_links":0,"defined_names":0,"comments":0,"pivot_tables":0},"unopened":[],"bounds":{"document_bytes":16777216,"sheet_cells":100000,"rows_first":2000,"rows_last":500,"rows_between":2000,"halvings":0,"cell_chars":16384,"cell_head_chars":4096},"cells_cut":0,"cells_raw":0,"read":"whole","date_system":"1900"}

{"sheet":"Diagnose","index":0,"n_rows":17,"n_cols":3,"rows_kept":17,"cut":false,"hidden":false,"merged":[[13,2,13,6],[15,2,15,6]]}
[]
[]
[]
[]
[]
[null,null,"DIAGNOSE"]
[null,null,"Basert på Daan van Baalens diagnoseskjema 18.1"]
[]
[]
[]
[]
[]
[]
[null,null,"Daan Van Baalen: Hensikten med skjemaet er å observere det som skjer i terapeut/klient-situasjonen i ulike faser av terapien. Skjemaet inneholder både deskriptive og evaluerende spørsmål. Terapeuten tar utgangspunkt i hva terapeuten og klienten arbeider med i den enkelte terapeut/klientsituasjonen, og dokumenterer på den måten både arbeidet og eventuelle endringer over tid av relasjonen. \t\t\t\t\t\t\t\t\n\t\t\t\t\t\t\t\t\n\t\t\t\t\t\t\t\t"]
[]
[null,null,{"$f":"\"Programmet er utviklet av Excelguru.no, Ketil Melhus.\"","v":"Programmet er utviklet av Excelguru.no, Ketil Melhus."}]
[null,null,{"$f":"\"Versjon \" & Parametre!P2","v":"Versjon 8.01"}]

{"sheet":"Utvikling","index":1,"n_rows":45,"n_cols":12,"rows_kept":45,"cut":false,"hidden":false,"merged":[]}
[]
[]
[]
[]
[]
[]
[]
[]
[]
[]
[]
[]
[]
[]
[]
[]
[]
[]
[]
[]
[]
[]
[]
[]
[]
[]
[]
[]
[]
[]
[]
[]
["Dato","Hva figurerer",null,"I hvilke situasjoner er dette gjenkjennbart",null,"Tilleggsopplysninger",null,"Notat Varhet",null,"Notat Kreativ Tilpasning",null,"Notat Selv"]
[]
[]
[]
["2016-02-09","Dette er lagt inn for å teste",null,"K gjenkjenner dette mange steder",null,"Første møte"]
["2016-02-10","Testdata",null,"Dette er en ganske lang tekst, og da brytes teksten over flere linjer",null,"Mye forvirring!"]
["2016-02-11","Samboer er vanskelig",null,"Partner lager trøbbel",null,"I dag er K sint"]
["2016-02-12","Detter er testdata",null,"I relasjonen til pappa",null,"K virker roligere enn ellers"]
["2016-02-13","Ikke mye",null,"Svært mange steder",null,"Vanskelig å følge i dag"]
["14.02.2016","Mye skjer i livet hennes",null,"I de fleste relasjoner",null,"K gråter mye, fortvilet. Jeg blir trist og forteller henne at jeg blir trist fordi K sliter"]
["21.02.2016","Far og den nye kjæresten",null,"I relasjonen til kjæresten",null,"Forvirrende time!!"]
["2019-05-01","Far og den nye kjæresten",null,null,null,null,null,"Mine notater om K"]
["02.05.2019",null,null,null,null,"Dette er linje 1\r\nDette er linje 2\r\n",null,null,null,"Her holder jeg på med K"]

{"sheet":"Parametre","index":2,"n_rows":3440,"n_cols":21,"rows_kept":3440,"cut":false,"hidden":true,"merged":[]}
["Kolonne","Til kolonne",null,null,null,null,"Velg Klient","Inaktiv","Etternavn","Guttenavn","Jentenavn",null,"Aktiv klient","Lagre","Initialer","Versjon","Forrige versjon","Arkivert","Side","Sti","Advarsel om personopplysning"]
[1,{"$f":"INDIRECT($E$1 & \"!\" & C2)","v":{"$error":"#REF!"}},null,null,null,null,"DEMOAB78K",null,"Hansen","Aaron","Abigail",null,null,null,null,"8.01",null,null,0,"D:\\Users\\Ketil\\OneDrive\\OneDrive - KM\\Kunder\\NGI\\2019.06.13",true]
[2,{"$error":"#REF!"},null,null,null,null,null,null,"Johansen","Abdi","Ada"]
[3,{"$error":"#REF!"},null,null,null,null,null,null,"Olsen","Abdirahman","Adela"]
[4,{"$error":"#REF!"},null,null,null,null,null,null,"Larsen","Abdul","Adele"]
[5,{"$error":"#REF!"},null,null,null,null,null,null,"Andersen","Abdullah","Adelen"]
[6,{"$error":"#REF!"},null,null,null,null,null,null,"Pedersen","Abdullahi","Adina"]
[7,{"$error":"#REF!"},null,null,null,null,null,null,"Nilsen","Abel","Adine"]
[8,{"$error":"#REF!"},null,null,null,null,null,null,"Kristiansen","Adam","Adriana"]
[9,{"$error":"#REF!"},null,null,null,null,null,null,"Jensen","Adnan","Agathe"]
[10,{"$error":"#REF!"},null,null,null,null,null,null,"Karlsen","Adrian","Agnes"]
[11,{"$error":"#REF!"},null,null,null,null,null,null,"Johnsen","Agnar","Agnethe"]
[12,{"$error":"#REF!"},null,null,null,null,null,null,"Pettersen","Ahmad","Aida"]
[13,{"$error":"#REF!"},null,null,null,null,null,null,"Eriksen","Ahmed","Aila"]
[14,{"$error":"#REF!"},null,null,null,null,null,null,"Berg","Aiden","Ailin"]
[15,{"$error":"#REF!"},null,null,null,null,null,null,"Haugen","Ailo","Aimee"]
[16,{"$error":"#REF!"},null,null,null,null,null,null,"Hagen","Aksel","Aina"]
[17,{"$error":"#REF!"},null,null,null,null,null,null,"Johannessen","Alan","Aisha"]
[18,{"$error":"#REF!"},null,null,null,null,null,null,"Andreassen","Albert","Ajla"]
[19,{"$error":"#REF!"},null,null,null,null,null,null,"Jacobsen","Albin","Alba"]
[20,{"$error":"#REF!"},null,null,null,null,null,null,"Dahl","Aleksander","Alea"]
[21,{"$error":"#REF!"},null,null,null,null,null,null,"Jørgensen","Alex","Aleksandra"]
[22,{"$error":"#REF!"},null,null,null,null,null,null,"Halvorsen","Alexander","Alette"]
[23,{"$error":"#REF!"},null,null,null,null,null,null,"Henriksen","Alf","Alexandra"]
[24,{"$error":"#REF!"},null,null,null,null,null,null,"Lund","Alfred","Alice"]
[25,{"$error":"#REF!"},null,null,null,null,null,null,"Sørensen","Ali","Alicia"]
[26,{"$error":"#REF!"},null,null,null,null,null,null,"Jakobsen","Allan","Alicja"]
[27,{"$error":"#REF!"},null,null,null,null,null,null,"Moen","Alvar","Alida"]
[28,{"$error":"#REF!"},null,null,null,null,null,null,"Gundersen","Alvin","Alina"]
[29,{"$error":"#REF!"},null,null,null,null,null,null,"Iversen","Amadeus","Aline"]
[30,{"$error":"#REF!"},null,null,null,null,null,null,"Svendsen","Amandus","Alisa"]
[null,null,null,null,null,null,null,null,"Strand","Amar","Alise"]
[null,null,null,null,null,null,null,null,"Solberg","Amin","Alisha"]
[null,null,null,null,null,null,null,null,"Martinsen","Amir","Alma"]
[null,null,null,null,null,null,null,null,"Paulsen","Amund","Alva"]
[null,null,null,null,null,null,null,null,"Knutsen","Anas","Alvilde"]
[null,null,null,null,null,null,null,null,"Eide","Anders","Amal"]
[null,null,null,null,null,null,null,null,"Bakken","Andre","Amalia"]
[null,null,null,null,null,null,null,null,"Kristoffersen","Andreas","Amalie"]
[null,null,null,null,null,null,null,null,"Mathisen","Anthony","Amanda"]
[null,null,null,null,null,null,null,null,"Lie","Anton","Amelia"]
[null,null,null,null,null,null,null,null,"Rasmussen","Antoni","Amelie"]
[null,null,null,null,null,null,null,null,"Amundsen","Antonio","Amina"]
[null,null,null,null,null,null,null,null,"Lunde","Are","Aminda"]
[null,null,null,null,null,null,null,null,"Kristensen","Arian","Amine"]
[null,null,null,null,null,null,null,null,"Bakke","Arin","Amira"]
[null,null,null,null,null,null,null,null,"Berge","Arman","Amna"]
[null,null,null,null,null,null,null,null,"Moe","Armin","Amy"]
[null,null,null,null,null,null,null,null,"Nygård","Arn","Ana"]
[null,null,null,null,null,null,null,null,"Fredriksen","Arnas","Anastasia"]
[null,null,null,null,null,null,null,null,"Solheim","Arne","Andrea"]
[null,null,null,null,null,null,null,null,"Nguyen","Aron","Andrine"]
[null,null,null,null,null,null,null,null,"Holm","Arthur","Ane"]
[null,null,null,null,null,null,null,null,"Lien","Artur","Anea"]
[null,null,null,null,null,null,null,null,"Andresen","Arvid","Anette"]
[null,null,null,null,null,null,null,null,"Christensen","Arvin","Angela"]
[null,null,null,null,null,null,null,null,"Hauge","Aryan","Angelica"]
[null,null,null,null,null,null,null,null,"Knudsen","Asbjørn","Angelika"]
[null,null,null,null,null,null,null,null,"Nielsen","Asgeir","Angelina"]
[null,null,null,null,null,null,null,null,"Evensen","Ask","Anine"]
[null,null,null,null,null,null,null,null,"Sæther","Askil","Anisa"]
[null,null,null,null,null,null,null,null,"Aas","Aslak","Anita"]
[null,null,null,null,null,null,null,null,"Hanssen","Atle","Anja"]
[null,null,null,null,null,null,null,null,"Myhre","Audun","Ann"]
[null,null,null,null,null,null,null,null,"Haugland","August","Anna"]
[null,null,null,null,null,null,null,null,"Thomassen","Aune","Annabel"]
[null,null,null,null,null,null,null,null,"Simonsen","Axel","Annabell"]
[null,null,null,null,null,null,null,null,"Sivertsen","Ayman","Annabelle"]
[null,null,null,null,null,null,null,null,"Berntsen","Ayub","Anne"]
[null,null,null,null,null,null,null,null,"Ali","Balder","Anneli"]
[null,null,null,null,null,null,null,null,"Danielsen","Bartosz","Annie"]
[null,null,null,null,null,null,null,null,"Rønning","Bastian","Annika"]
[null,null,null,null,null,null,null,null,"Arnesen","Ben","Anniken"]
[null,null,null,null,null,null,null,null,"Sandvik","Benas","Anny"]
[null,null,null,null,null,null,null,null,"Næss","Bendik","Aria"]
[null,null,null,null,null,null,null,null,"Antonsen","Benjamin","Ariana"]
[null,null,null,null,null,null,null,null,"Haug","Bernard","Ariane"]
[null,null,null,null,null,null,null,null,"Vik","Bernhard","Ariel"]
[null,null,null,null,null,null,null,null,"Ellingsen","Bilal","Arya"]
[null,null,null,null,null,null,null,null,"Edvardsen","Birk","Asta"]
[null,null,null,null,null,null,null,null,"Thorsen","Bjørn","Astri"]
[null,null,null,null,null,null,null,null,"Ahmed","Bjørnar","Astrid"]
[null,null,null,null,null,null,null,null,"Gulbrandsen","Bo","Augusta"]
[null,null,null,null,null,null,null,null,"Birkeland","Brage","Aurora"]
[null,null,null,null,null,null,null,null,"Isaksen","Brede","Ava"]
[null,null,null,null,null,null,null,null,"Ruud","Brian","Aya"]
[null,null,null,null,null,null,null,null,"Strøm","Bror","Ayla"]
[null,null,null,null,null,null,null,null,"Aasen","Bruno","Aylin"]
[null,null,null,null,null,null,null,null,"Ødegård","Brynjar","Beatrice"]
[null,null,null,null,null,null,null,null,"Tangen","Bård","Bella"]
[null,null,null,null,null,null,null,null,"Jenssen","Carl","Benedicte"]
[null,null,null,null,null,null,null,null,"Myklebust","Carlos","Benedikte"]
[null,null,null,null,null,null,null,null,"Eliassen","Carsten","Bertine"]
[null,null,null,null,null,null,null,null,"Mikkelsen","Casper","Betina"]
[null,null,null,null,null,null,null,null,"Bøe","Caspian","Bettina"]
[null,null,null,null,null,null,null,null,"Aune","Charlie","Bianca"]
[null,null,null,null,null,null,null,null,"Helland","Chris","Birgitte"]
[null,null,null,null,null,null,null,null,"Tveit","Chrisander","Bushra"]
[null,null,null,null,null,null,null,null,"Brekke","Christer","Camilla"]
[null,null,null,null,null,null,null,null,"Abrahamsen","Christian","Carina"]
[null,null,null,null,null,null,null,null,"Engen","Christoffer","Carla"]
[null,null,null,null,null,null,null,null,"Madsen","Christopher","Carmen"]
[null,null,null,null,null,null,null,null,"Christiansen","Colin","Caroline"]
[null,null,null,null,null,null,null,null,"Sunde","Conrad","Cassandra"]
[null,null,null,null,null,null,null,null,"Mortensen","Cornelius","Cathrine"]
[null,null,null,null,null,null,null,null,"Torgersen","Dag","Cecilia"]
[null,null,null,null,null,null,null,null,"Thoresen","Damian","Cecilie"]
[null,null,null,null,null,null,null,null,"Bjerke","Dan","Celia"]
[null,null,null,null,null,null,null,null,"Hermansen","Dani","Celin"]
[null,null,null,null,null,null,null,null,"Mikalsen","Danial","Celina"]
[null,null,null,null,null,null,null,null,"Magnussen","Daniel","Celine"]
[null,null,null,null,null,null,null,null,"Nilssen","Darin","Charlotte"]
[null,null,null,null,null,null,null,null,"Gjerde","David","Chloe"]
[null,null,null,null,null,null,null,null,"Helgesen","Dawid","Christiane"]
[null,null,null,null,null,null,null,null,"Hovland","Denis","Christina"]
[null,null,null,null,null,null,null,null,"Bråthen","Dennis","Christine"]
[null,null,null,null,null,null,null,null,"Wold","Didrik","Cindy"]
[null,null,null,null,null,null,null,null,"Dahle","Domas","Clara"]
[null,null,null,null,null,null,null,null,"Dale","Dominic","Cornelia"]
[null,null,null,null,null,null,null,null,"Eilertsen","Dominik","Dania"]
[null,null,null,null,null,null,null,null,"Nygaard","Dominykas","Daniela"]
[null,null,null,null,null,null,null,null,"Steen","Dovydas","Daniella"]
[null,null,null,null,null,null,null,null,"Wilhelmsen","Edgar","Delina"]
[null,null,null,null,null,null,null,null,"Foss","Edin","Diana"]
[null,null,null,null,null,null,null,null,"Jansen","Edvald","Dina"]
[null,null,null,null,null,null,null,null,"Gabrielsen","Edvard","Dominika"]
[null,null,null,null,null,null,null,null,"Bjørnstad","Edvin","Dorthe"]
[null,null,null,null,null,null,null,null,"Håland","Edward","Dorthea"]
[null,null,null,null,null,null,null,null,"Hammer","Edwin","Ea"]
[null,null,null,null,null,null,null,null,"Sætre","Eik","Ebba"]
[null,null,null,null,null,null,null,null,"Gustavsen","Eilif","Edda"]
[null,null,null,null,null,null,null,null,"Ingebrigtsen","Einar","Edel"]
[null,null,null,null,null,null,null,null,"Hoel","Eirik","Edith"]
[null,null,null,null,null,null,null,null,"Bråten","Eivind","Eileen"]
[null,null,null,null,null,null,null,null,"Tran","Eldar","Eir"]
[null,null,null,null,null,null,null,null,"Solli","Eliah","Eira"]
[null,null,null,null,null,null,null,null,"Holmen","Elian","Eiril"]
[null,null,null,null,null,null,null,null,"Engebretsen","Elias","Eirill"]
[null,null,null,null,null,null,null,null,"Carlsen","Elijah","Eirin"]
[null,null,null,null,null,null,null,null,"Lorentzen","Elling","Eivor"]
[null,null,null,null,null,null,null,null,"Hoff","Elliot","Ela"]
[null,null,null,null,null,null,null,null,"Samuelsen","Elliott","Elea"]
[null,null,null,null,null,null,null,null,"Sveen","Emanuel","Eleah"]
[null,null,null,null,null,null,null,null,"Ludvigsen","Embrik","Elena"]
[null,null,null,null,null,null,null,null,"Sandnes","Emil","Eli"]
[null,null,null,null,null,null,null,null,"Rønningen","Emilian","Eliana"]
[null,null,null,null,null,null,null,null,"Fossum","Emilio","Elida"]
[null,null,null,null,null,null,null,null,"Breivik","Emilis","Elin"]
[null,null,null,null,null,null,null,null,"Monsen","Emin","Elina"]
[null,null,null,null,null,null,null,null,"Hassan","Emir","Eline"]
[null,null,null,null,null,null,null,null,"Mohamed","Emmanuel","Elisa"]
[null,null,null,null,null,null,null,null,"Fjeld","Emmett","Elisabeth"]
[null,null,null,null,null,null,null,null,"Solvang","Emre","Elise"]
[null,null,null,null,null,null,null,null,"Solbakken","Emrik","Eliza"]
[null,null,null,null,null,null,null,null,"Johannesen","Endre","Elizabeth"]
[null,null,null,null,null,null,null,null,"Nordby","Eren","Ella"]
[null,null,null,null,null,null,null,null,"Egeland","Eric","Elle"]
[null,null,null,null,null,null,null,null,"Jonassen","Erik","Ellen"]
[null,null,null,null,null,null,null,null,"Aase","Erlend","Ellie"]
[null,null,null,null,null,null,null,null,"Sand","Erling","Ellinor"]
[null,null,null,null,null,null,null,null,"Dalen","Eskil","Elly"]
[null,null,null,null,null,null,null,null,"Stokke","Eskild","Elsa"]
[null,null,null,null,null,null,null,null,"Bye","Espen","Else"]
[null,null,null,null,null,null,null,null,"Syversen","Evan","Elvine"]
[null,null,null,null,null,null,null,null,"Andersson","Even","Elvira"]
[null,null,null,null,null,null,null,null,"Bø","Fabian","Ema"]
[null,null,null,null,null,null,null,null,"Wiik","Falk","Embla"]
[null,null,null,null,null,null,null,null,"Løken","Felix","Emelie"]
[null,null,null,null,null,null,null,null,"Johansson","Ferdinand","Emely"]
[null,null,null,null,null,null,null,null,"Ødegaard","Filip","Emilia"]
[null,null,null,null,null,null,null,null,"Sørlie","Fillip","Emilie"]
[null,null,null,null,null,null,null,null,"Haga","Finn","Emilija"]
[null,null,null,null,null,null,null,null,"Khan","Franciszek","Emily"]
[null,null,null,null,null,null,null,null,"Sandberg","Frank","Emina"]
[null,null,null,null,null,null,null,null,"Wang","Frederik","Emine"]
[null,null,null,null,null,null,null,null,"Møller","Fredrik","Emma"]
[null,null,null,null,null,null,null,null,"Tollefsen","Gabriel","Emmeli"]
[null,null,null,null,null,null,null,null,"Viken","Gard","Emmelin"]
[null,null,null,null,null,null,null,null,"Haaland","Gaute","Emmeline"]
[null,null,null,null,null,null,null,null,"Teigen","Geir","Emmie"]
[null,null,null,null,null,null,null,null,"Hamre","Georg","Emmy"]
[null,null,null,null,null,null,null,null,"Kvam","Gjermund","Enya"]
[null,null,null,null,null,null,null,null,"Torp","Gunnar","Erica"]
[null,null,null,null,null,null,null,null,"Berger","Gustas","Erika"]
[null,null,null,null,null,null,null,null,"Ottesen","Gustav","Erle"]
[null,null,null,null,null,null,null,null,"Borge","Haakon","Ester"]
[null,null,null,null,null,null,null,null,"Kolstad","Hallvard","Esther"]
[null,null,null,null,null,null,null,null,"Sande","Halvard","Eva"]
[null,null,null,null,null,null,null,null,"Eikeland","Halvor","Evelina"]
[null,null,null,null,null,null,null,null,"Enger","Hamza","Eveline"]
[null,null,null,null,null,null,null,null,"Stene","Hans","Evelyn"]
[null,null,null,null,null,null,null,null,"Øien","Harald","Fanny"]
[null,null,null,null,null,null,null,null,"Nikolaisen","Hassan","Fatima"]
[null,null,null,null,null,null,null,null,"Holen","Hauk","Felicia"]
[null,null,null,null,null,null,null,null,"Helle","Heine","Filippa"]
[null,null,null,null,null,null,null,null,"Fosse","Helge","Fiona"]
[null,null,null,null,null,null,null,null,"Langeland","Helmer","Fredrikke"]
[null,null,null,null,null,null,null,null,"Kvamme","Henning","Freja"]
[null,null,null,null,null,null,null,null,"Borgen","Henrik","Freya"]
[null,null,null,null,null,null,null,null,"Sletten","Henry","Frida"]
[null,null,null,null,null,null,null,null,"Petersen","Herman","Fride"]
[null,null,null,null,null,null,null,null,"Haugan","Hermann","Frøya"]
[null,null,null,null,null,null,null,null,"Skoglund","Hjalmar","Frøydis"]
[null,null,null,null,null,null,null,null,"Kleven","Hugo","Gabija"]
[null,null,null,null,null,null,null,null,"Arntsen","Hussein","Gabriela"]
[null,null,null,null,null,null,null,null,"Løkken","Håkon","Gabriele"]
[null,null,null,null,null,null,null,null,"Markussen","Håvard","Gabriella"]
[null,null,null,null,null,null,null,null,"Lind","Ian","Gina"]
[null,null,null,null,null,null,null,null,"Mæland","Iben","Greta"]
[null,null,null,null,null,null,null,null,"Tønnessen","Ibrahim","Gunhild"]
[null,null,null,null,null,null,null,null,"Hole","Igor","Gunn"]
[null,null,null,null,null,null,null,null,"Arntzen","Ilyas","Guro"]
[null,null,null,null,null,null,null,null,"Stensrud","Imran","Hafsa"]
[null,null,null,null,null,null,null,null,"Lian","Imre","Hailey"]
[null,null,null,null,null,null,null,null,"Østby","Ingmar","Halima"]
[null,null,null,null,null,null,null,null,"Aamodt","Isa","Hana"]
[null,null,null,null,null,null,null,null,"Nordli","Isaac","Hanna"]
[null,null,null,null,null,null,null,null,"Solem","Isac","Hannah"]
[null,null,null,null,null,null,null,null,"Tvedt","Isak","Hanne"]
[null,null,null,null,null,null,null,null,"Røed","Ismail","Hedda"]
[null,null,null,null,null,null,null,null,"Myrvang","Ivan","Hedvig"]
[null,null,null,null,null,null,null,null,"Vold","Ivar","Heidi"]
[null,null,null,null,null,null,null,null,"Ellefsen","Iver","Helen"]
[null,null,null,null,null,null,null,null,"Husby","Ivo","Helena"]
[null,null,null,null,null,null,null,null,"Berget","Jack","Helene"]
[null,null,null,null,null,null,null,null,"Børresen","Jacob","Helin"]
[null,null,null,null,null,null,null,null,"Syvertsen","Jakob","Helle"]
[null,null,null,null,null,null,null,null,"Eggen","Jakub","Helmine"]
[null,null,null,null,null,null,null,null,"Hetland","James","Hennie"]
[null,null,null,null,null,null,null,null,"Davidsen","Jamie","Henny"]
[null,null,null,null,null,null,null,null,"Nesse","Jan","Henriette"]
[null,null,null,null,null,null,null,null,"Kleppe","Jaran","Henrikke"]
[null,null,null,null,null,null,null,null,"Skaar","Jarand","Hermine"]
[null,null,null,null,null,null,null,null,"Ness","Jarle","Hilde"]
[null,null,null,null,null,null,null,null,"Simensen","Jasper","Iben"]
[null,null,null,null,null,null,null,null,"Gran","Jayden","Ida"]
[null,null,null,null,null,null,null,null,"Marthinsen","Jens","Idun"]
[null,null,null,null,null,null,null,null,"Smith","Jeppe","Idunn"]
[null,null,null,null,null,null,null,null,"Finstad","Jesper","Iman"]
[null,null,null,null,null,null,null,null,"Stenberg","Jimmy","Ina"]
[null,null,null,null,null,null,null,null,"Sund","Jo","Inaya"]
[null,null,null,null,null,null,null,null,"Meyer","Joachim","Ine"]
[null,null,null,null,null,null,null,null,"Fjeldstad","Joakim","Ines"]
[null,null,null,null,null,null,null,null,"Olaussen","Joar","Inga"]
[null,null,null,null,null,null,null,null,"Norheim","Joel","Ingebjørg"]
[null,null,null,null,null,null,null,null,"Reitan","Johan","Ingeborg"]
[null,null,null,null,null,null,null,null,"Mohammed","Johann","Ingelin"]
[null,null,null,null,null,null,null,null,"Le","Johannes","Inger"]
[null,null,null,null,null,null,null,null,"Brevik","John","Ingrid"]
[null,null,null,null,null,null,null,null,"Hussain","Johnny","Ingunn"]
[null,null,null,null,null,null,null,null,"Bjelland","Jon","Ingvild"]
[null,null,null,null,null,null,null,null,"Holte","Jonah","Iqra"]
[null,null,null,null,null,null,null,null,"Gjertsen","Jonas","Irene"]
[null,null,null,null,null,null,null,null,"Larssen","Jonatan","Iris"]
[null,null,null,null,null,null,null,null,"Meland","Jonathan","Irmelin"]
[null,null,null,null,null,null,null,null,"Skaug","Jone","Isa"]
[null,null,null,null,null,null,null,null,"Ibrahim","Josef","Isabel"]
[null,null,null,null,null,null,null,null,"Abdi","Joseph","Isabell"]
[null,null,null,null,null,null,null,null,"Espeland","Joshua","Isabella"]
[null,null,null,null,null,null,null,null,"Krogstad","Jostein","Isabelle"]
[null,null,null,null,null,null,null,null,"Klausen","Julian","Iselin"]
[null,null,null,null,null,null,null,null,"Riise","Julius","Isra"]
[null,null,null,null,null,null,null,null,"Bolstad","Justin","Jana"]
[null,null,null,null,null,null,null,null,"Nilsson","Jøran","Janne"]
[null,null,null,null,null,null,null,null,"Solhaug","Jørgen","Jasmin"]
[null,null,null,null,null,null,null,null,"Lindberg","Kacper","Jasmine"]
[null,null,null,null,null,null,null,null,"Nordbø","Kai","Jennie"]
[null,null,null,null,null,null,null,null,"Ahmad","Kajus","Jennifer"]
[null,null,null,null,null,null,null,null,"Mo","Kamil","Jenny"]
[null,null,null,null,null,null,null,null,"Lauritzen","Karl","Jessica"]
[null,null,null,null,null,null,null,null,"Waage","Karol","Joanna"]
[null,null,null,null,null,null,null,null,"Rustad","Karsten","Johanna"]
[null,null,null,null,null,null,null,null,"Farstad","Kaspar","Johanne"]
[null,null,null,null,null,null,null,null,"Olafsen","Kasper","Josefine"]
[null,null,null,null,null,null,null,null,"Aasheim","Kaspian","Josephine"]
[null,null,null,null,null,null,null,null,"Krogh","Ken","Julia"]
[null,null,null,null,null,null,null,null,"Holt","Kenan","Juliane"]
[null,null,null,null,null,null,null,null,"Grimstad","Kenneth","Julianne"]
[null,null,null,null,null,null,null,null,"Bendiksen","Kent","Julie"]
[null,null,null,null,null,null,null,null,"Endresen","Ketil","June"]
[null,null,null,null,null,null,null,null,"Grande","Kevin","Juni"]
[null,null,null,null,null,null,null,null,"Bergersen","Khalid","Kaia"]
[null,null,null,null,null,null,null,null,"Vatne","Kian","Kaisa"]
[null,null,null,null,null,null,null,null,"Thorvaldsen","Kim","Kaja"]
[null,null,null,null,null,null,null,null,"Opsahl","Kjell","Kajsa"]
[null,null,null,null,null,null,null,null,"Myrvold","Kjetil","Kamile"]
[null,null,null,null,null,null,null,null,"Øverland","Knut","Kamilla"]
[null,null,null,null,null,null,null,null,"Gulliksen","Konrad","Karen"]
[null,null,null,null,null,null,null,null,"Larsson","Kornelius","Kari"]
[null,null,null,null,null,null,null,null,"Thorstensen","Kristian","Karianne"]
[null,null,null,null,null,null,null,null,"Nyborg","Kristoffer","Karin"]
[null,null,null,null,null,null,null,null,"Stangeland","Kristupas","Karina"]
[null,null,null,null,null,null,null,null,"Salvesen","Krystian","Karine"]
[null,null,null,null,null,null,null,null,"Sørli","Kåre","Karla"]
[null,null,null,null,null,null,null,null,"Normann","Lars","Karolina"]
[null,null,null,null,null,null,null,null,"Bredesen","Lasse","Karoline"]
[null,null,null,null,null,null,null,null,"Nordvik","Laurits","Katarina"]
[null,null,null,null,null,null,null,null,"Nyhus","Lauritz","Katharina"]
[null,null,null,null,null,null,null,null,"Rød","Lavrans","Kathrine"]
[null,null,null,null,null,null,null,null,"Thorbjørnsen","Leander","Katinka"]
[null,null,null,null,null,null,null,null,"Frantzen","Leif","Katja"]
[null,null,null,null,null,null,null,null,"Nordahl","Leo","Katrina"]
[null,null,null,null,null,null,null,null,"Steffensen","Leon","Katrine"]
[null,null,null,null,null,null,null,null,"Ringstad","Leonard","Kaya"]
[null,null,null,null,null,null,null,null,"Bjørnsen","Leonardo","Kayla"]
[null,null,null,null,null,null,null,null,"Hussein","Leonel","Khadija"]
[null,null,null,null,null,null,null,null,"Haraldsen","Levi","Kine"]
[null,null,null,null,null,null,null,null,"Lervik","Liam","Kira"]
[null,null,null,null,null,null,null,null,"Hjelle","Linus","Kjersti"]
[null,null,null,null,null,null,null,null,"Sørum","Lionel","Klara"]
[null,null,null,null,null,null,null,null,"Mork","Loke","Klaudia"]
[null,null,null,null,null,null,null,null,"Eriksson","Louis","Kornelia"]
[null,null,null,null,null,null,null,null,"Melby","Luca","Kristiane"]
[null,null,null,null,null,null,null,null,"Holter","Lucas","Kristin"]
[null,null,null,null,null,null,null,null,"Karlsson","Ludvig","Kristina"]
[null,null,null,null,null,null,null,null,"Skogen","Ludvik","Kristine"]
[null,null,null,null,null,null,null,null,"Mathiesen","Luis","Laiba"]
[null,null,null,null,null,null,null,null,"Christoffersen","Luka","Laila"]
[null,null,null,null,null,null,null,null,"Singh","Lukas","Lana"]
[null,null,null,null,null,null,null,null,"Nes","Lyder","Lara"]
[null,null,null,null,null,null,null,null,"Hovde","Maciej","Laura"]
[null,null,null,null,null,null,null,null,"Opheim","Mads","Lea"]
[null,null,null,null,null,null,null,null,"Mørk","Magne","Leah"]
[null,null,null,null,null,null,null,null,"Ramstad","Magnus","Leana"]
[null,null,null,null,null,null,null,null,"Skår","Mahamed","Leila"]
[null,null,null,null,null,null,null,null,"Håkonsen","Mahdi","Leja"]
[null,null,null,null,null,null,null,null,"Økland","Maksymilian","Lena"]
[null,null,null,null,null,null,null,null,"Stenersen","Malik","Lene"]
[null,null,null,null,null,null,null,null,"Øyen","Malvin","Leni"]
[null,null,null,null,null,null,null,null,"Lande","Marcel","Leona"]
[null,null,null,null,null,null,null,null,"Vangen","Marco","Leonora"]
[null,null,null,null,null,null,null,null,"Sundby","Marcus","Lerke"]
[null,null,null,null,null,null,null,null,"Fredheim","Mario","Lia"]
[null,null,null,null,null,null,null,null,"Erlandsen","Marius","Liana"]
[null,null,null,null,null,null,null,null,"Bugge","Markus","Liliana"]
[null,null,null,null,null,null,null,null,"Skeie","Martin","Lilja"]
[null,null,null,null,null,null,null,null,"Guttormsen","Martinius","Lilje"]
[null,null,null,null,null,null,null,null,"Braathen","Martinus","Lilli"]
[null,null,null,null,null,null,null,null,"Volden","Marvin","Lillian"]
[null,null,null,null,null,null,null,null,"Holst","Matas","Lilly"]
[null,null,null,null,null,null,null,null,"Bergan","Mateo","Lily"]
[null,null,null,null,null,null,null,null,"Ask","Mateusz","Lina"]
[null,null,null,null,null,null,null,null,"Høyland","Matheo","Linda"]
[null,null,null,null,null,null,null,null,"Bang","Matheus","Linde"]
[null,null,null,null,null,null,null,null,"Robertsen","Mathias","Line"]
[null,null,null,null,null,null,null,null,"Kaspersen","Mathis","Linea"]
[null,null,null,null,null,null,null,null,"Nymoen","Matias","Linn"]
[null,null,null,null,null,null,null,null,"Lundberg","Mats","Linnea"]
[null,null,null,null,null,null,null,null,"Hope","Matteo","Lisa"]
[null,null,null,null,null,null,null,null,"Olsson","Matteus","Lise"]
[null,null,null,null,null,null,null,null,"Martinussen","Matthew","Liv"]
[null,null,null,null,null,null,null,null,"Bjørklund","Mattias","Liva"]
[null,null,null,null,null,null,null,null,"Bjørge","Mattis","Live"]
[null,null,null,null,null,null,null,null,"Johnsrud","Max","Livia"]
[null,null,null,null,null,null,null,null,"Rørvik","Maxim","Lone"]
[null,null,null,null,null,null,null,null,"Våge","Maximilian","Lotta"]
[null,null,null,null,null,null,null,null,"Berglund","Maximillian","Lotte"]
[null,null,null,null,null,null,null,null,"Michelsen","Melvin","Louise"]
[null,null,null,null,null,null,null,null,"Aronsen","Michael","Lovise"]
[null,null,null,null,null,null,null,null,"Wiig","Michal","Luca"]
[null,null,null,null,null,null,null,null,"Omar","Mika","Lucia"]
[null,null,null,null,null,null,null,null,"Pham","Mikael","Lucy"]
[null,null,null,null,null,null,null,null,"Hovden","Mikail","Luka"]
[null,null,null,null,null,null,null,null,"Lid","Mikal","Luna"]
[null,null,null,null,null,null,null,null,"Dahlen","Mikkel","Lycke"]
[null,null,null,null,null,null,null,null,"Strømme","Mikolaj","Lydia"]
[null,null,null,null,null,null,null,null,"Grønvold","Milan","Lykke"]
[null,null,null,null,null,null,null,null,"Strømmen","Milian","Lærke"]
[null,null,null,null,null,null,null,null,"Holthe","Millian","Madeleine"]
[null,null,null,null,null,null,null,null,"Tobiassen","Milo","Madelen"]
[null,null,null,null,null,null,null,null,"Seim","Mio","Madelene"]
[null,null,null,null,null,null,null,null,"Skjæveland","Mohamed","Magdalena"]
[null,null,null,null,null,null,null,null,"Sæbø","Mohammad","Mai"]
[null,null,null,null,null,null,null,null,"Ervik","Mohammed","Maia"]
[null,null,null,null,null,null,null,null,"Kleiven","Mons","Maida"]
[null,null,null,null,null,null,null,null,"Tveiten","Morgan","Maiken"]
[null,null,null,null,null,null,null,null,"Clausen","Morten","Maja"]
[null,null,null,null,null,null,null,null,"Søvik","Muhammad","Malaika"]
[null,null,null,null,null,null,null,null,"Nicolaisen","Muhammed","Malak"]
[null,null,null,null,null,null,null,null,"Solstad","Musab","Malena"]
[null,null,null,null,null,null,null,null,"Skar","Mustafa","Malene"]
[null,null,null,null,null,null,null,null,"Meling","Natan","Mali"]
[null,null,null,null,null,null,null,null,"Engh","Nataniel","Malin"]
[null,null,null,null,null,null,null,null,"Askeland","Nathan","Maren"]
[null,null,null,null,null,null,null,null,"Skogstad","Nathaniel","Margit"]
[null,null,null,null,null,null,null,null,"Sagen","Neo","Margrete"]
[null,null,null,null,null,null,null,null,"Nyheim","Nichlas","Margrethe"]
[null,null,null,null,null,null,null,null,"Benjaminsen","Nicholas","Mari"]
[null,null,null,null,null,null,null,null,"Løland","Nicklas","Maria"]
[null,null,null,null,null,null,null,null,"Gravdal","Nickolai","Mariam"]
[null,null,null,null,null,null,null,null,"Bekkevold","Niclas","Marianne"]
[null,null,null,null,null,null,null,null,"Austad","Nico","Marie"]
[null,null,null,null,null,null,null,null,"Rogne","Nicolai","Mariel"]
[null,null,null,null,null,null,null,null,"Nyland","Nicolas","Mariell"]
[null,null,null,null,null,null,null,null,"Nordal","Nicolay","Marielle"]
[null,null,null,null,null,null,null,null,"Øvrebø","Niklas","Marina"]
[null,null,null,null,null,null,null,null,"Stensland","Nikodem","Marion"]
[null,null,null,null,null,null,null,null,"Steinsland","Nikolai","Marit"]
[null,null,null,null,null,null,null,null,"Kaur","Nikolas","Marita"]
[null,null,null,null,null,null,null,null,"Lauritsen","Nikolay","Marlene"]
[null,null,null,null,null,null,null,null,"Olstad","Nils","Marta"]
[null,null,null,null,null,null,null,null,"Bertelsen","Noa","Marte"]
[null,null,null,null,null,null,null,null,"Lyngstad","Noah","Martha"]
[null,null,null,null,null,null,null,null,"Borgersen","Noel","Marthe"]
[null,null,null,null,null,null,null,null,"Bentsen","Nojus","Marthine"]
[null,null,null,null,null,null,null,null,"Ramberg","Odd","Martina"]
[null,null,null,null,null,null,null,null,"Nordgård","Odin","Martine"]
[null,null,null,null,null,null,null,null,"Iqbal","Ola","Martyna"]
[null,null,null,null,null,null,null,null,"Vinje","Olaf","Marwa"]
[null,null,null,null,null,null,null,null,"Svensson","Olai","Mary"]
[null,null,null,null,null,null,null,null,"Didriksen","Olander","Maryam"]
[null,null,null,null,null,null,null,null,"Schei","Olav","Mathea"]
[null,null,null,null,null,null,null,null,"Ingvaldsen","Ole","Mathilda"]
[null,null,null,null,null,null,null,null,"Brenden","Oliver","Mathilde"]
[null,null,null,null,null,null,null,null,"Thorkildsen","Olivier","Matilda"]
[null,null,null,null,null,null,null,null,"Nesheim","Oliwier","Matilde"]
[null,null,null,null,null,null,null,null,"Persson","Olve","Maud"]
[null,null,null,null,null,null,null,null,"Barstad","Omar","May"]
[null,null,null,null,null,null,null,null,"Odden","Oscar","Maya"]
[null,null,null,null,null,null,null,null,"Frydenlund","Oskar","Medina"]
[null,null,null,null,null,null,null,null,"Bekken","Otto","Melina"]
[null,null,null,null,null,null,null,null,"Langseth","Patrick","Melinda"]
[null,null,null,null,null,null,null,null,"Enoksen","Patrik","Meline"]
[null,null,null,null,null,null,null,null,"Lia","Patryk","Melisa"]
[null,null,null,null,null,null,null,null,"Jørstad","Paul","Melissa"]
[null,null,null,null,null,null,null,null,"Norum","Peder","Mia"]
[null,null,null,null,null,null,null,null,"Thomsen","Pelle","Michelle"]
[null,null,null,null,null,null,null,null,"Osman","Per","Mie"]
[null,null,null,null,null,null,null,null,"Evjen","Peter","Mikaela"]
[null,null,null,null,null,null,null,null,"Winther","Petter","Mila"]
[null,null,null,null,null,null,null,null,"Tandberg","Philip","Milana"]
[null,null,null,null,null,null,null,null,"Huse","Phillip","Milena"]
[null,null,null,null,null,null,null,null,"Eidem","Piotr","Milja"]
[null,null,null,null,null,null,null,null,"Heimdal","Preben","Milla"]
[null,null,null,null,null,null,null,null,"Hoem","Pål","Mille"]
[null,null,null,null,null,null,null,null,"Haugerud","Rafael","Millie"]
[null,null,null,null,null,null,null,null,"Midtbø","Ragnar","Milly"]
[null,null,null,null,null,null,null,null,"Sæter","Rasmus","Mina"]
[null,null,null,null,null,null,null,null,"Førde","Ravn","Mira"]
[null,null,null,null,null,null,null,null,"Stenseth","Rayan","Miriam"]
[null,null,null,null,null,null,null,null,"Nordheim","Remi","Moa"]
[null,null,null,null,null,null,null,null,"Horn","Richard","Molly"]
[null,null,null,null,null,null,null,null,"Bergh","Robert","Mona"]
[null,null,null,null,null,null,null,null,"Alstad","Robin","Monica"]
[null,null,null,null,null,null,null,null,"Fagerli","Rolf","Monika"]
[null,null,null,null,null,null,null,null,"Ueland","Romeo","Muna"]
[null,null,null,null,null,null,null,null,"Handeland","Ruben","Nadia"]
[null,null,null,null,null,null,null,null,"Aasland","Runar","Najma"]
[null,null,null,null,null,null,null,null,"Lange","Rune","Nanna"]
[null,null,null,null,null,null,null,null,"Hopland","Ryan","Naomi"]
[null,null,null,null,null,null,null,null,"Huseby","Said","Natalia"]
[null,null,null,null,null,null,null,null,"Fossen","Sakarias","Natalie"]
[null,null,null,null,null,null,null,null,"Heggelund","Salman","Natasha"]
[null,null,null,null,null,null,null,null,"Aslaksen","Sam","Nathalie"]
[null,null,null,null,null,null,null,null,"Svensen","Samson","Nela"]
[null,null,null,null,null,null,null,null,"Korneliussen","Samuel","Nelia"]
[null,null,null,null,null,null,null,null,"Gjerstad","Sander","Nellie"]
[null,null,null,null,null,null,null,null,"Gilje","Scott","Nelly"]
[null,null,null,null,null,null,null,null,"Sollie","Sean","Nicole"]
[null,null,null,null,null,null,null,null,"Nicolaysen","Sebastian","Nicoline"]
[null,null,null,null,null,null,null,null,"Almås","Selmer","Nikola"]
[null,null,null,null,null,null,null,null,"Bergli","Severin","Nikoline"]
[null,null,null,null,null,null,null,null,"Westby","Shawn","Nila"]
[null,null,null,null,null,null,null,null,"Brun","Sigmund","Nina"]
[null,null,null,null,null,null,null,null,"Bruun","Sigurd","Noelle"]
[null,null,null,null,null,null,null,null,"Berntzen","Sigve","Noor"]
[null,null,null,null,null,null,null,null,"Kvalheim","Silas","Nora"]
[null,null,null,null,null,null,null,null,"Blindheim","Simen","Norah"]
[null,null,null,null,null,null,null,null,"Øye","Simon","Nova"]
[null,null,null,null,null,null,null,null,"Øverby","Sindre","Oda"]
[null,null,null,null,null,null,null,null,"Hågensen","Sivert","Olava"]
[null,null,null,null,null,null,null,null,"Myren","Sjur","Olea"]
[null,null,null,null,null,null,null,null,"Holten","Snorre","Oline"]
[null,null,null,null,null,null,null,null,"Lystad","Sofus","Olivia"]
[null,null,null,null,null,null,null,null,"Lorentsen","Solan","Oliwia"]
[null,null,null,null,null,null,null,null,"Furnes","Sondre","Othelie"]
[null,null,null,null,null,null,null,null,"Reiersen","Stefan","Othilie"]
[null,null,null,null,null,null,null,null,"Brenna","Steffen","Otilie"]
[null,null,null,null,null,null,null,null,"Tønnesen","Stein","Patrycja"]
[null,null,null,null,null,null,null,null,"Lohne","Steinar","Paula"]
[null,null,null,null,null,null,null,null,"Hustad","Stian","Paulina"]
[null,null,null,null,null,null,null,null,"Gregersen","Storm","Pauline"]
[null,null,null,null,null,null,null,null,"Skog","Sturla","Pernille"]
[null,null,null,null,null,null,null,null,"Hove","Sune","Petra"]
[null,null,null,null,null,null,null,null,"Granli","Svein","Pia"]
[null,null,null,null,null,null,null,null,"Bjørndal","Sveinung","Rachel"]
[null,null,null,null,null,null,null,null,"Selnes","Sven","Ragna"]
[null,null,null,null,null,null,null,null,"Nergård","Sverre","Ragnhild"]
[null,null,null,null,null,null,null,null,"Blom","Syed","Rakel"]
[null,null,null,null,null,null,null,null,"Bergheim","Syver","Randi"]
[null,null,null,null,null,null,null,null,"Torsvik","Sølve","Rania"]
[null,null,null,null,null,null,null,null,"Sørheim","Szymon","Rebecca"]
[null,null,null,null,null,null,null,null,"Nerland","Tage","Rebecka"]
[null,null,null,null,null,null,null,null,"Sundal","Taha","Rebekka"]
[null,null,null,null,null,null,null,null,"Liland","Tallak","Regine"]
[null,null,null,null,null,null,null,null,"Sjursen","Tarald","Renate"]
[null,null,null,null,null,null,null,null,"Åsheim","Tarik","Rikke"]
[null,null,null,null,null,null,null,null,"Totland","Tarjei","Ronja"]
[null,null,null,null,null,null,null,null,"Grindheim","Teo","Rose"]
[null,null,null,null,null,null,null,null,"Flaten","Teodor","Runa"]
[null,null,null,null,null,null,null,null,"Bergum","Terje","Ruth"]
[null,null,null,null,null,null,null,null,"Aksnes","Theo","Sabrina"]
[null,null,null,null,null,null,null,null,"Trondsen","Theodor","Safa"]
[null,null,null,null,null,null,null,null,"Østrem","Theodore","Saga"]
[null,null,null,null,null,null,null,null,"Mathiassen","Thomas","Salma"]
[null,null,null,null,null,null,null,null,"Vågen","Thor","Samantha"]
[null,null,null,null,null,null,null,null,"Kjær","Thorbjørn","Samira"]
[null,null,null,null,null,null,null,null,"Østensen","Thorvald","Sandra"]
[null,null,null,null,null,null,null,null,"Standal","Tian","Sanna"]
[null,null,null,null,null,null,null,null,"Mjelde","Tidemann","Sannah"]
[null,null,null,null,null,null,null,null,"Dybvik","Tim","Sanne"]
[null,null,null,null,null,null,null,null,"Bratland","Timian","Sara"]
[null,null,null,null,null,null,null,null,"Voll","Tinius","Sarah"]
[null,null,null,null,null,null,null,null,"Eng","Tobias","Savannah"]
[null,null,null,null,null,null,null,null,"Løvås","Tom","Selena"]
[null,null,null,null,null,null,null,null,"Hvidsten","Tomas","Selin"]
[null,null,null,null,null,null,null,null,"Akselsen","Tommy","Selina"]
[null,null,null,null,null,null,null,null,"Storvik","Tony","Seline"]
[null,null,null,null,null,null,null,null,"Nordhagen","Tor","Selma"]
[null,null,null,null,null,null,null,null,"Helgeland","Torben","Serina"]
[null,null,null,null,null,null,null,null,"Undheim","Torbjørn","Serine"]
[null,null,null,null,null,null,null,null,"Rygh","Tord","Sienna"]
[null,null,null,null,null,null,null,null,"Nyberg","Tore","Signe"]
[null,null,null,null,null,null,null,null,"Solum","Torgeir","Sigrid"]
[null,null,null,null,null,null,null,null,"Wahl","Torje","Sigrun"]
[null,null,null,null,null,null,null,null,"Toft","Torjus","Siham"]
[null,null,null,null,null,null,null,null,"Bjerknes","Tormod","Silja"]
[null,null,null,null,null,null,null,null,"Falch","Torstein","Silje"]
[null,null,null,null,null,null,null,null,"Adolfsen","Tristan","Simone"]
[null,null,null,null,null,null,null,null,"Morken","Trond","Sina"]
[null,null,null,null,null,null,null,null,"Bårdsen","Troy","Sine"]
[null,null,null,null,null,null,null,null,"Wik","Truls","Siren"]
[null,null,null,null,null,null,null,null,"Hillestad","Trygve","Siri"]
[null,null,null,null,null,null,null,null,"Einarsen","Trym","Siril"]
[null,null,null,null,null,null,null,null,"Sandal","Ulrik","Sofia"]
[null,null,null,null,null,null,null,null,"Ingebretsen","Varg","Sofie"]
[null,null,null,null,null,null,null,null,"Nystad","Vebjﾘrn","Sofija"]
[null,null,null,null,null,null,null,null,"Furuseth","Vegar","Sol"]
[null,null,null,null,null,null,null,null,"Storhaug","Vegard","Solveig"]
[null,null,null,null,null,null,null,null,"Lothe","Vemund","Sonia"]
[null,null,null,null,null,null,null,null,"Aarseth","Vetle","Sonja"]
[null,null,null,null,null,null,null,null,"Eik","Victor","Sophia"]
[null,null,null,null,null,null,null,null,"Ryen","Vidar","Sophie"]
[null,null,null,null,null,null,null,null,"Matre","Viktor","Stella"]
[null,null,null,null,null,null,null,null,"Grønli","Vilhelm","Stina"]
[null,null,null,null,null,null,null,null,"Akhtar","Viljar","Stine"]
[null,null,null,null,null,null,null,null,"Stølen","Ville","Sumaya"]
[null,null,null,null,null,null,null,null,"Hofstad","Vilmer","Sundus"]
[null,null,null,null,null,null,null,null,"Sæthre","Vincent","Sunniva"]
[null,null,null,null,null,null,null,null,"Rusten","Vinjar","Susanna"]
[null,null,null,null,null,null,null,null,"Ovesen","Walter","Susanne"]
[null,null,null,null,null,null,null,null,"Erichsen","Wiktor","Synne"]
[null,null,null,null,null,null,null,null,"Bergstrøm","Wilhelm","Synnøve"]
[null,null,null,null,null,null,null,null,"Wangen","William","Tale"]
[null,null,null,null,null,null,null,null,"Engan","Wilmer","Tara"]
[null,null,null,null,null,null,null,null,"Kaasa","Wojciech","Tea"]
[null,null,null,null,null,null,null,null,"Haldorsen","Yahya","Teja"]
[null,null,null,null,null,null,null,null,"Oftedal","Yasin","Thale"]
[null,null,null,null,null,null,null,null,"Røstad","Yngve","Thea"]
[null,null,null,null,null,null,null,null,"Reinertsen","Yosef","Thelma"]
[null,null,null,null,null,null,null,null,"Haugstad","Younes","Therese"]
[null,null,null,null,null,null,null,null,"Kvalvik","Yousef","Thilde"]
[null,null,null,null,null,null,null,null,"Straume","Yusuf","Thora"]
[null,null,null,null,null,null,null,null,"Alvestad","Ørjan","Tia"]
[null,null,null,null,null,null,null,null,"Skretting","Øystein","Tilda"]
[null,null,null,null,null,null,null,null,"Kvåle","Øyvind","Tilde"]
[null,null,null,null,null,null,null,null,"Løvik","Ådne","Tilia"]
[null,null,null,null,null,null,null,null,"Førland","Åsmund","Tilje"]
[null,null,null,null,null,null,null,null,"Olufsen","Zakaria","Tilla"]
[null,null,null,null,null,null,null,null,"Haukås","Zander","Tina"]
[null,null,null,null,null,null,null,null,"Braaten",null,"Tindra"]
[null,null,null,null,null,null,null,null,"Holstad",null,"Tine"]
[null,null,null,null,null,null,null,null,"Ulriksen",null,"Tiril"]
[null,null,null,null,null,null,null,null,"Eikrem",null,"Tirill"]
[null,null,null,null,null,null,null,null,"Herland",null,"Tomine"]
[null,null,null,null,null,null,null,null,"Moland",null,"Tone"]
[null,null,null,null,null,null,null,null,"Asbjørnsen",null,"Tonje"]
[null,null,null,null,null,null,null,null,"Skogheim",null,"Tora"]
[null,null,null,null,null,null,null,null,"Hernes",null,"Tove"]
[null,null,null,null,null,null,null,null,"Josefsen",null,"Trine"]
[null,null,null,null,null,null,null,null,"Fjellheim",null,"Tuva"]
[null,null,null,null,null,null,null,null,"Aakre",null,"Tyra"]
[null,null,null,null,null,null,null,null,"Husebø",null,"Ugne"]
[null,null,null,null,null,null,null,null,"Nesset",null,"Ulla"]
[null,null,null,null,null,null,null,null,"Espedal",null,"Ulrikke"]
[null,null,null,null,null,null,null,null,"Høvik",null,"Una"]
[null,null,null,null,null,null,null,null,"Lindseth",null,"Urte"]
[null,null,null,null,null,null,null,null,"Forsberg",null,"Valentina"]
[null,null,null,null,null,null,null,null,"Salte",null,"Vanessa"]
[null,null,null,null,null,null,null,null,"Valle",null,"Vanja"]
[null,null,null,null,null,null,null,null,"Haagensen",null,"Vega"]
[null,null,null,null,null,null,null,null,"Tellefsen",null,"Vera"]
[null,null,null,null,null,null,null,null,"Omdal",null,"Veronica"]
[null,null,null,null,null,null,null,null,"Nordstrand",null,"Veronika"]
[null,null,null,null,null,null,null,null,"Tronstad",null,"Veslemøy"]
[null,null,null,null,null,null,null,null,"Schmidt",null,"Victoria"]
[null,null,null,null,null,null,null,null,"Myhren",null,"Vida"]
[null,null,null,null,null,null,null,null,"Anderssen",null,"Viktoria"]
[null,null,null,null,null,null,null,null,"Lindgren",null,"Viktorija"]
[null,null,null,null,null,null,null,null,"Rostad",null,"Vilde"]
[null,null,null,null,null,null,null,null,"Hals",null,"Vilja"]
[null,null,null,null,null,null,null,null,"Johnson",null,"Vilje"]
[null,null,null,null,null,null,null,null,"Røe",null,"Villemo"]
[null,null,null,null,null,null,null,null,"Brustad",null,"Vilma"]
[null,null,null,null,null,null,null,null,"Bjerkan",null,"Viola"]
[null,null,null,null,null,null,null,null,"Strømsnes",null,"Vivian"]
[null,null,null,null,null,null,null,null,"Huynh",null,"Vår"]
[null,null,null,null,null,null,null,null,"Michaelsen",null,"Vårin"]
[null,null,null,null,null,null,null,null,"Fjellstad",null,"Weronika"]
[null,null,null,null,null,null,null,null,"Storli",null,"Wiktoria"]
[null,null,null,null,null,null,null,null,"Nylund",null,"Wilma"]
[null,null,null,null,null,null,null,null,"Holth",null,"Yara"]
[null,null,null,null,null,null,null,null,"Byberg",null,"Yasmin"]
[null,null,null,null,null,null,null,null,"Ravndal",null,"Ylva"]
[null,null,null,null,null,null,null,null,"Myller",null,"Yusra"]
[null,null,null,null,null,null,null,null,"Lindstad",null,"Åse"]
[null,null,null,null,null,null,null,null,"Holand",null,"Åshild"]
[null,null,null,null,null,null,null,null,"Øygarden",null,"Åsne"]
[null,null,null,null,null,null,null,null,"Malik",null,"Zahra"]
[null,null,null,null,null,null,null,null,"Stubberud",null,"Zainab"]
[null,null,null,null,null,null,null,null,"Rygg",null,"Zara"]
[null,null,null,null,null,null,null,null,"Lier",null,"Zoe"]
[null,null,null,null,null,null,null,null,"Valen",null,"Zofia"]
[null,null,null,null,null,null,null,null,"Ekeberg",null,"Zuzanna"]
[null,null,null,null,null,null,null,null,"Søberg"]
[null,null,null,null,null,null,null,null,"Vollan"]
[null,null,null,null,null,null,null,null,"Vikan"]
[null,null,null,null,null,null,null,null,"Jonsson"]
[null,null,null,null,null,null,null,null,"Egge"]
[null,null,null,null,null,null,null,null,"Grønning"]
[null,null,null,null,null,null,null,null,"Fagerheim"]
[null,null,null,null,null,null,null,null,"Kroken"]
[null,null,null,null,null,null,null,null,"Bentzen"]
[null,null,null,null,null,null,null,null,"Skare"]
[null,null,null,null,null,null,null,null,"Sanden"]
[null,null,null,null,null,null,null,null,"Butt"]
[null,null,null,null,null,null,null,null,"Bjørke"]
[null,null,null,null,null,null,null,null,"Sæle"]
[null,null,null,null,null,null,null,null,"Mørch"]
[null,null,null,null,null,null,null,null,"Ismail"]
[null,null,null,null,null,null,null,null,"Corneliussen"]
[null,null,null,null,null,null,null,null,"Sannes"]
[null,null,null,null,null,null,null,null,"Holtan"]
[null,null,null,null,null,null,null,null,"Løvdal"]
[null,null,null,null,null,null,null,null,"Kopperud"]
[null,null,null,null,null,null,null,null,"Jama"]
[null,null,null,null,null,null,null,null,"Øen"]
[null,null,null,null,null,null,null,null,"Vedvik"]
[null,null,null,null,null,null,null,null,"Juliussen"]
[null,null,null,null,null,null,null,null,"Høiland"]
[null,null,null,null,null,null,null,null,"Holme"]
[null,null,null,null,null,null,null,null,"Stokka"]
[null,null,null,null,null,null,null,null,"Steine"]
[null,null,null,null,null,null,null,null,"Riis"]
[null,null,null,null,null,null,null,null,"Sundt"]
[null,null,null,null,null,null,null,null,"Brandal"]
[null,null,null,null,null,null,null,null,"Løseth"]
[null,null,null,null,null,null,null,null,"Walle"]
[null,null,null,null,null,null,null,null,"Søyland"]
[null,null,null,null,null,null,null,null,"Beck"]
[null,null,null,null,null,null,null,null,"Omland"]
[null,null,null,null,null,null,null,null,"Amdal"]
[null,null,null,null,null,null,null,null,"Fossheim"]
[null,null,null,null,null,null,null,null,"Løberg"]
[null,null,null,null,null,null,null,null,"Fjørtoft"]
[null,null,null,null,null,null,null,null,"Brandt"]
[null,null,null,null,null,null,null,null,"Hansson"]
[null,null,null,null,null,null,null,null,"Buer"]
[null,null,null,null,null,null,null,null,"Nybø"]
[null,null,null,null,null,null,null,null,"Bekkelund"]
[null,null,null,null,null,null,null,null,"Aga"]
[null,null,null,null,null,null,null,null,"Hodne"]
[null,null,null,null,null,null,null,null,"Albertsen"]
[null,null,null,null,null,null,null,null,"Tveter"]
[null,null,null,null,null,null,null,null,"Fjell"]
[null,null,null,null,null,null,null,null,"Holtet"]
[null,null,null,null,null,null,null,null,"Gaustad"]
[null,null,null,null,null,null,null,null,"Torkildsen"]
[null,null,null,null,null,null,null,null,"Fauske"]
[null,null,null,null,null,null,null,null,"Stormo"]
[null,null,null,null,null,null,null,null,"Moberg"]
[null,null,null,null,null,null,null,null,"Stokkeland"]
[null,null,null,null,null,null,null,null,"Skaret"]
[null,null,null,null,null,null,null,null,"Begum"]
[null,null,null,null,null,null,null,null,"Li"]
[null,null,null,null,null,null,null,null,"Schjølberg"]
[null,null,null,null,null,null,null,null,"Severinsen"]
[null,null,null,null,null,null,null,null,"Roland"]
[null,null,null,null,null,null,null,null,"Persen"]
[null,null,null,null,null,null,null,null,"Hellerud"]
[null,null,null,null,null,null,null,null,"Albrigtsen"]
[null,null,null,null,null,null,null,null,"Mohammad"]
[null,null,null,null,null,null,null,null,"Mahmood"]
[null,null,null,null,null,null,null,null,"Giske"]
[null,null,null,null,null,null,null,null,"Dokken"]
[null,null,null,null,null,null,null,null,"Erstad"]
[null,null,null,null,null,null,null,null,"Bratlie"]
[null,null,null,null,null,null,null,null,"Rosland"]
[null,null,null,null,null,null,null,null,"Lillebø"]
[null,null,null,null,null,null,null,null,"Helmersen"]
[null,null,null,null,null,null,null,null,"Angell"]
[null,null,null,null,null,null,null,null,"Risa"]
[null,null,null,null,null,null,null,null,"Henden"]
[null,null,null,null,null,null,null,null,"Lea"]
[null,null,null,null,null,null,null,null,"Hegge"]
[null,null,null,null,null,null,null,null,"Farah"]
[null,null,null,null,null,null,null,null,"Kvammen"]
[null,null,null,null,null,null,null,null,"Erdal"]
[null,null,null,null,null,null,null,null,"Borg"]
[null,null,null,null,null,null,null,null,"Wathne"]
[null,null,null,null,null,null,null,null,"Melhus"]
[null,null,null,null,null,null,null,null,"Olaisen"]
[null,null,null,null,null,null,null,null,"Leirvik"]
[null,null,null,null,null,null,null,null,"Bergesen"]
[null,null,null,null,null,null,null,null,"Heggen"]
[null,null,null,null,null,null,null,null,"Granheim"]
[null,null,null,null,null,null,null,null,"Teigland"]
[null,null,null,null,null,null,null,null,"Mohamud"]
[null,null,null,null,null,null,null,null,"Hov"]
[null,null,null,null,null,null,null,null,"Yusuf"]
[null,null,null,null,null,null,null,null,"Salomonsen"]
[null,null,null,null,null,null,null,null,"Myrland"]
[null,null,null,null,null,null,null,null,"Halland"]
[null,null,null,null,null,null,null,null,"Birkelund"]
[null,null,null,null,null,null,null,null,"Høie"]
[null,null,null,null,null,null,null,null,"Bull"]
[null,null,null,null,null,null,null,null,"Øren"]
[null,null,null,null,null,null,null,null,"Richardsen"]
[null,null,null,null,null,null,null,null,"Hage"]
[null,null,null,null,null,null,null,null,"Rise"]
[null,null,null,null,null,null,null,null,"Berentsen"]
[null,null,null,null,null,null,null,null,"Brenne"]
[null,null,null,null,null,null,null,null,"Bertheussen"]
[null,null,null,null,null,null,null,null,"Nordnes"]
[null,null,null,null,null,null,null,null,"Myhr"]
[null,null,null,null,null,null,null,null,"Linnerud"]
[null,null,null,null,null,null,null,null,"Haukeland"]
[null,null,null,null,null,null,null,null,"Sundet"]
[null,null,null,null,null,null,null,null,"Rabben"]
[null,null,null,null,null,null,null,null,"Heitmann"]
[null,null,null,null,null,null,null,null,"Gjesdal"]
[null,null,null,null,null,null,null,null,"Holden"]
[null,null,null,null,null,null,null,null,"Bjordal"]
[null,null,null,null,null,null,null,null,"Sharma"]
[null,null,null,null,null,null,null,null,"Sandøy"]
[null,null,null,null,null,null,null,null,"Netland"]
[null,null,null,null,null,null,null,null,"Hauger"]
[null,null,null,null,null,null,null,null,"Ringen"]
[null,null,null,null,null,null,null,null,"Oppedal"]
[null,null,null,null,null,null,null,null,"Drange"]
[null,null,null,null,null,null,null,null,"Refsnes"]
[null,null,null,null,null,null,null,null,"Rosseland"]
[null,null,null,null,null,null,null,null,"Granum"]
[null,null,null,null,null,null,null,null,"Bøhn"]
[null,null,null,null,null,null,null,null,"Rønneberg"]
[null,null,null,null,null,null,null,null,"Ringdal"]
[null,null,null,null,null,null,null,null,"Risnes"]
[null,null,null,null,null,null,null,null,"Aaserud"]
[null,null,null,null,null,null,null,null,"Vestli"]
[null,null,null,null,null,null,null,null,"Abelsen"]
[null,null,null,null,null,null,null,null,"Rødland"]
[null,null,null,null,null,null,null,null,"Lindstrøm"]
[null,null,null,null,null,null,null,null,"Alme"]
[null,null,null,null,null,null,null,null,"Søreide"]
[null,null,null,null,null,null,null,null,"Vo"]
[null,null,null,null,null,null,null,null,"Lunden"]
[null,null,null,null,null,null,null,null,"Utne"]
[null,null,null,null,null,null,null,null,"Bech"]
[null,null,null,null,null,null,null,null,"Heggem"]
[null,null,null,null,null,null,null,null,"Gjelsvik"]
[null,null,null,null,null,null,null,null,"Nakken"]
[null,null,null,null,null,null,null,null,"Vang"]
[null,null,null,null,null,null,null,null,"Kittelsen"]
[null,null,null,null,null,null,null,null,"Schrøder"]
[null,null,null,null,null,null,null,null,"Karlstad"]
[null,null,null,null,null,null,null,null,"Skogli"]
[null,null,null,null,null,null,null,null,"Sylte"]
[null,null,null,null,null,null,null,null,"Søreng"]
[null,null,null,null,null,null,null,null,"Sandvold"]
[null,null,null,null,null,null,null,null,"Rye"]
[null,null,null,null,null,null,null,null,"Ree"]
[null,null,null,null,null,null,null,null,"Storsveen"]
[null,null,null,null,null,null,null,null,"Myrseth"]
[null,null,null,null,null,null,null,null,"Stang"]
[null,null,null,null,null,null,null,null,"Anderson"]
[null,null,null,null,null,null,null,null,"Gudmundsen"]
[null,null,null,null,null,null,null,null,"Dahlberg"]
[null,null,null,null,null,null,null,null,"Homme"]
[null,null,null,null,null,null,null,null,"Folkestad"]
[null,null,null,null,null,null,null,null,"Østli"]
[null,null,null,null,null,null,null,null,"Enge"]
[null,null,null,null,null,null,null,null,"Ulvestad"]
[null,null,null,null,null,null,null,null,"Eie"]
[null,null,null,null,null,null,null,null,"Bruland"]
[null,null,null,null,null,null,null,null,"Smedsrud"]
[null,null,null,null,null,null,null,null,"Roald"]
[null,null,null,null,null,null,null,null,"Green"]
[null,null,null,null,null,null,null,null,"Torvik"]
[null,null,null,null,null,null,null,null,"Hestnes"]
[null,null,null,null,null,null,null,null,"Sveum"]
[null,null,null,null,null,null,null,null,"Opdal"]
[null,null,null,null,null,null,null,null,"Bore"]
[null,null,null,null,null,null,null,null,"Stien"]
[null,null,null,null,null,null,null,null,"Furulund"]
[null,null,null,null,null,null,null,null,"Blix"]
[null,null,null,null,null,null,null,null,"Løvaas"]
[null,null,null,null,null,null,null,null,"Fuglestad"]
[null,null,null,null,null,null,null,null,"Åsen"]
[null,null,null,null,null,null,null,null,"Jahren"]
[null,null,null,null,null,null,null,null,"Aarnes"]
[null,null,null,null,null,null,null,null,"Skjold"]
[null,null,null,null,null,null,null,null,"Lindland"]
[null,null,null,null,null,null,null,null,"Jansson"]
[null,null,null,null,null,null,null,null,"Reistad"]
[null,null,null,null,null,null,null,null,"Odland"]
[null,null,null,null,null,null,null,null,"Grøndahl"]
[null,null,null,null,null,null,null,null,"Bogen"]
[null,null,null,null,null,null,null,null,"Melbye"]
[null,null,null,null,null,null,null,null,"Rekdal"]
[null,null,null,null,null,null,null,null,"Sørvik"]
[null,null,null,null,null,null,null,null,"Smestad"]
[null,null,null,null,null,null,null,null,"Skagen"]
[null,null,null,null,null,null,null,null,"Rognstad"]
[null,null,null,null,null,null,null,null,"Lode"]
[null,null,null,null,null,null,null,null,"Granlund"]
[null,null,null,null,null,null,null,null,"Frøyland"]
[null,null,null,null,null,null,null,null,"Moi"]
[null,null,null,null,null,null,null,null,"Hellum"]
[null,null,null,null,null,null,null,null,"Lyng"]
[null,null,null,null,null,null,null,null,"Kolberg"]
[null,null,null,null,null,null,null,null,"Haugli"]
[null,null,null,null,null,null,null,null,"Ahmadi"]
[null,null,null,null,null,null,null,null,"Heiberg"]
[null,null,null,null,null,null,null,null,"Støle"]
[null,null,null,null,null,null,null,null,"Mydland"]
[null,null,null,null,null,null,null,null,"Alnes"]
[null,null,null,null,null,null,null,null,"Rolland"]
[null,null,null,null,null,null,null,null,"Midtun"]
[null,null,null,null,null,null,null,null,"Granberg"]
[null,null,null,null,null,null,null,null,"Vatland"]
[null,null,null,null,null,null,null,null,"Rogstad"]
[null,null,null,null,null,null,null,null,"Sørbø"]
[null,null,null,null,null,null,null,null,"Myrvoll"]
[null,null,null,null,null,null,null,null,"Thune"]
[null,null,null,null,null,null,null,null,"Randen"]
[null,null,null,null,null,null,null,null,"Løvstad"]
[null,null,null,null,null,null,null,null,"Sollid"]
[null,null,null,null,null,null,null,null,"Henningsen"]
[null,null,null,null,null,null,null,null,"Hogstad"]
[null,null,null,null,null,null,null,null,"Elstad"]
[null,null,null,null,null,null,null,null,"Urdal"]
[null,null,null,null,null,null,null,null,"Skrede"]
[null,null,null,null,null,null,null,null,"Skjelbred"]
[null,null,null,null,null,null,null,null,"Kittilsen"]
[null,null,null,null,null,null,null,null,"Jahr"]
[null,null,null,null,null,null,null,null,"Karstensen"]
[null,null,null,null,null,null,null,null,"Hovda"]
[null,null,null,null,null,null,null,null,"Aanonsen"]
[null,null,null,null,null,null,null,null,"Øverås"]
[null,null,null,null,null,null,null,null,"Harstad"]
[null,null,null,null,null,null,null,null,"Gaarder"]
[null,null,null,null,null,null,null,null,"Abdullahi"]
[null,null,null,null,null,null,null,null,"Mæhlum"]
[null,null,null,null,null,null,null,null,"Engelsen"]
[null,null,null,null,null,null,null,null,"Østgård"]
[null,null,null,null,null,null,null,null,"Rudi"]
[null,null,null,null,null,null,null,null,"Marcussen"]
[null,null,null,null,null,null,null,null,"Lundby"]
[null,null,null,null,null,null,null,null,"Holberg"]
[null,null,null,null,null,null,null,null,"Hjelmeland"]
[null,null,null,null,null,null,null,null,"Aarstad"]
[null,null,null,null,null,null,null,null,"Westgaard"]
[null,null,null,null,null,null,null,null,"Sørgård"]
[null,null,null,null,null,null,null,null,"Mohammadi"]
[null,null,null,null,null,null,null,null,"Dammen"]
[null,null,null,null,null,null,null,null,"Fjelde"]
[null,null,null,null,null,null,null,null,"Zachariassen"]
[null,null,null,null,null,null,null,null,"Kildal"]
[null,null,null,null,null,null,null,null,"Eira"]
[null,null,null,null,null,null,null,null,"Øverli"]
[null,null,null,null,null,null,null,null,"Eid"]
[null,null,null,null,null,null,null,null,"Osmundsen"]
[null,null,null,null,null,null,null,null,"Ek"]
[null,null,null,null,null,null,null,null,"Lein"]
[null,null,null,null,null,null,null,null,"Bruvik"]
[null,null,null,null,null,null,null,null,"Bergmann"]
[null,null,null,null,null,null,null,null,"Skulstad"]
[null,null,null,null,null,null,null,null,"Longva"]
[null,null,null,null,null,null,null,null,"Berland"]
[null,null,null,null,null,null,null,null,"Lima"]
[null,null,null,null,null,null,null,null,"Wergeland"]
[null,null,null,null,null,null,null,null,"Myhrvold"]
[null,null,null,null,null,null,null,null,"Kvalsvik"]
[null,null,null,null,null,null,null,null,"Brynildsen"]
[null,null,null,null,null,null,null,null,"Svarstad"]
[null,null,null,null,null,null,null,null,"Vu"]
[null,null,null,null,null,null,null,null,"Reiten"]
[null,null,null,null,null,null,null,null,"Nordberg"]
[null,null,null,null,null,null,null,null,"Lillevik"]
[null,null,null,null,null,null,null,null,"Steinsvik"]
[null,null,null,null,null,null,null,null,"Håvik"]
[null,null,null,null,null,null,null,null,"Bauge"]
[null,null,null,null,null,null,null,null,"Petterson"]
[null,null,null,null,null,null,null,null,"Vestre"]
[null,null,null,null,null,null,null,null,"Haave"]
[null,null,null,null,null,null,null,null,"Bjørdal"]
[null,null,null,null,null,null,null,null,"Vestby"]
[null,null,null,null,null,null,null,null,"Kjærstad"]
[null,null,null,null,null,null,null,null,"Boge"]
[null,null,null,null,null,null,null,null,"Werner"]
[null,null,null,null,null,null,null,null,"Ofstad"]
[null,null,null,null,null,null,null,null,"Midttun"]
[null,null,null,null,null,null,null,null,"Lønning"]
[null,null,null,null,null,null,null,null,"Gudbrandsen"]
[null,null,null,null,null,null,null,null,"Fjeldheim"]
[null,null,null,null,null,null,null,null,"Sortland"]
[null,null,null,null,null,null,null,null,"Bratli"]
[null,null,null,null,null,null,null,null,"Loe"]
[null,null,null,null,null,null,null,null,"Øvergård"]
[null,null,null,null,null,null,null,null,"Heggland"]
[null,null,null,null,null,null,null,null,"Auestad"]
[null,null,null,null,null,null,null,null,"Terjesen"]
[null,null,null,null,null,null,null,null,"Sele"]
[null,null,null,null,null,null,null,null,"Marthinussen"]
[null,null,null,null,null,null,null,null,"Pettersson"]
[null,null,null,null,null,null,null,null,"Brovold"]
[null,null,null,null,null,null,null,null,"Soltvedt"]
[null,null,null,null,null,null,null,null,"Selvik"]
[null,null,null,null,null,null,null,null,"Skau"]
[null,null,null,null,null,null,null,null,"Grønås"]
[null,null,null,null,null,null,null,null,"Abdullah"]
[null,null,null,null,null,null,null,null,"Halle"]
[null,null,null,null,null,null,null,null,"Øie"]
[null,null,null,null,null,null,null,null,"Thon"]
[null,null,null,null,null,null,null,null,"Stensby"]
[null,null,null,null,null,null,null,null,"Remme"]
[null,null,null,null,null,null,null,null,"Brekken"]
[null,null,null,null,null,null,null,null,"Bjørkli"]
[null,null,null,null,null,null,null,null,"Rydland"]
[null,null,null,null,null,null,null,null,"Engelstad"]
[null,null,null,null,null,null,null,null,"Said"]
[null,null,null,null,null,null,null,null,"Myran"]
[null,null,null,null,null,null,null,null,"Leknes"]
[null,null,null,null,null,null,null,null,"Nymo"]
[null,null,null,null,null,null,null,null,"Nordås"]
[null,null,null,null,null,null,null,null,"Tjelta"]
[null,null,null,null,null,null,null,null,"Jordal"]
[null,null,null,null,null,null,null,null,"Bergseth"]
[null,null,null,null,null,null,null,null,"Fremstad"]
[null,null,null,null,null,null,null,null,"Thue"]
[null,null,null,null,null,null,null,null,"Hauan"]
[null,null,null,null,null,null,null,null,"Hem"]
[null,null,null,null,null,null,null,null,"Tofte"]
[null,null,null,null,null,null,null,null,"Høydal"]
[null,null,null,null,null,null,null,null,"Groven"]
[null,null,null,null,null,null,null,null,"Kallevik"]
[null,null,null,null,null,null,null,null,"Fagerland"]
[null,null,null,null,null,null,null,null,"Nedrebø"]
[null,null,null,null,null,null,null,null,"Sollien"]
[null,null,null,null,null,null,null,null,"Ommundsen"]
[null,null,null,null,null,null,null,null,"Løkke"]
[null,null,null,null,null,null,null,null,"Osland"]
[null,null,null,null,null,null,null,null,"Tufte"]
[null,null,null,null,null,null,null,null,"Solås"]
[null,null,null,null,null,null,null,null,"Sørby"]
[null,null,null,null,null,null,null,null,"Helseth"]
[null,null,null,null,null,null,null,null,"Hassel"]
[null,null,null,null,null,null,null,null,"Mahamed"]
[null,null,null,null,null,null,null,null,"Korsmo"]
[null,null,null,null,null,null,null,null,"Idland"]
[null,null,null,null,null,null,null,null,"Gashi"]
[null,null,null,null,null,null,null,null,"Sjøberg"]
[null,null,null,null,null,null,null,null,"Nordseth"]
[null,null,null,null,null,null,null,null,"Markhus"]
[null,null,null,null,null,null,null,null,"Jahnsen"]
[null,null,null,null,null,null,null,null,"Vindenes"]
[null,null,null,null,null,null,null,null,"Raknes"]
[null,null,null,null,null,null,null,null,"Osnes"]
[null,null,null,null,null,null,null,null,"Kjos"]
[null,null,null,null,null,null,null,null,"Taraldsen"]
[null,null,null,null,null,null,null,null,"Løvseth"]
[null,null,null,null,null,null,null,null,"Gaup"]
[null,null,null,null,null,null,null,null,"Heier"]
[null,null,null,null,null,null,null,null,"Grov"]
[null,null,null,null,null,null,null,null,"Dreyer"]
[null,null,null,null,null,null,null,null,"Aarvik"]
[null,null,null,null,null,null,null,null,"Hegna"]
[null,null,null,null,null,null,null,null,"Grimsrud"]
[null,null,null,null,null,null,null,null,"Forberg"]
[null,null,null,null,null,null,null,null,"Alexandersen"]
[null,null,null,null,null,null,null,null,"Landro"]
[null,null,null,null,null,null,null,null,"Aass"]
[null,null,null,null,null,null,null,null,"Opdahl"]
[null,null,null,null,null,null,null,null,"Gamst"]
[null,null,null,null,null,null,null,null,"Bjørsvik"]
[null,null,null,null,null,null,null,null,"Veland"]
[null,null,null,null,null,null,null,null,"Tharaldsen"]
[null,null,null,null,null,null,null,null,"Otterlei"]
[null,null,null,null,null,null,null,null,"Hætta"]
[null,null,null,null,null,null,null,null,"Bru"]
[null,null,null,null,null,null,null,null,"Seland"]
[null,null,null,null,null,null,null,null,"Reigstad"]
[null,null,null,null,null,null,null,null,"Horpestad"]
[null,null,null,null,null,null,null,null,"Heen"]
[null,null,null,null,null,null,null,null,"Strande"]
[null,null,null,null,null,null,null,null,"Skjerve"]
[null,null,null,null,null,null,null,null,"Skauge"]
[null,null,null,null,null,null,null,null,"Osen"]
[null,null,null,null,null,null,null,null,"Gustafsson"]
[null,null,null,null,null,null,null,null,"Fevang"]
[null,null,null,null,null,null,null,null,"Dyrnes"]
[null,null,null,null,null,null,null,null,"Stranden"]
[null,null,null,null,null,null,null,null,"Sandmo"]
[null,null,null,null,null,null,null,null,"Størseth"]
[null,null,null,null,null,null,null,null,"Semb"]
[null,null,null,null,null,null,null,null,"Sara"]
[null,null,null,null,null,null,null,null,"Nystuen"]
[null,null,null,null,null,null,null,null,"Fure"]
[null,null,null,null,null,null,null,null,"Røen"]
[null,null,null,null,null,null,null,null,"Nordstrøm"]
[null,null,null,null,null,null,null,null,"Hestad"]
[null,null,null,null,null,null,null,null,"Alsaker"]
[null,null,null,null,null,null,null,null,"Abbas"]
[null,null,null,null,null,null,null,null,"Risan"]
[null,null,null,null,null,null,null,null,"Fjeldberg"]
[null,null,null,null,null,null,null,null,"Bjørk"]
[null,null,null,null,null,null,null,null,"Aske"]
[null,null,null,null,null,null,null,null,"Aadland"]
[null,null,null,null,null,null,null,null,"Stenhaug"]
[null,null,null,null,null,null,null,null,"Godø"]
[null,null,null,null,null,null,null,null,"Fylling"]
[null,null,null,null,null,null,null,null,"Furu"]
[null,null,null,null,null,null,null,null,"Ulstein"]
[null,null,null,null,null,null,null,null,"Korsnes"]
[null,null,null,null,null,null,null,null,"Bernhardsen"]
[null,null,null,null,null,null,null,null,"Rosvold"]
[null,null,null,null,null,null,null,null,"Tengesdal"]
[null,null,null,null,null,null,null,null,"Steinnes"]
[null,null,null,null,null,null,null,null,"Berthelsen"]
[null,null,null,null,null,null,null,null,"Tiller"]
[null,null,null,null,null,null,null,null,"Sævik"]
[null,null,null,null,null,null,null,null,"Mjøs"]
[null,null,null,null,null,null,null,null,"Gerhardsen"]
[null,null,null,null,null,null,null,null,"Bremnes"]
[null,null,null,null,null,null,null,null,"Willumsen"]
[null,null,null,null,null,null,null,null,"Vaage"]
[null,null,null,null,null,null,null,null,"Sletvold"]
[null,null,null,null,null,null,null,null,"Ngo"]
[null,null,null,null,null,null,null,null,"Alm"]
[null,null,null,null,null,null,null,null,"Røste"]
[null,null,null,null,null,null,null,null,"Kjeldsen"]
[null,null,null,null,null,null,null,null,"Westgård"]
[null,null,null,null,null,null,null,null,"Edland"]
[null,null,null,null,null,null,null,null,"Apeland"]
[null,null,null,null,null,null,null,null,"Hårstad"]
[null,null,null,null,null,null,null,null,"Wessel"]
[null,null,null,null,null,null,null,null,"Holgersen"]
[null,null,null,null,null,null,null,null,"Haavik"]
[null,null,null,null,null,null,null,null,"Østbye"]
[null,null,null,null,null,null,null,null,"Nervik"]
[null,null,null,null,null,null,null,null,"Langås"]
[null,null,null,null,null,null,null,null,"Grytten"]
[null,null,null,null,null,null,null,null,"Frogner"]
[null,null,null,null,null,null,null,null,"Botten"]
[null,null,null,null,null,null,null,null,"Rosenlund"]
[null,null,null,null,null,null,null,null,"Nord"]
[null,null,null,null,null,null,null,null,"Hadland"]
[null,null,null,null,null,null,null,null,"Finne"]
[null,null,null,null,null,null,null,null,"Stiansen"]
[null,null,null,null,null,null,null,null,"Rian"]
[null,null,null,null,null,null,null,null,"Nordengen"]
[null,null,null,null,null,null,null,null,"Lavik"]
[null,null,null,null,null,null,null,null,"Kvale"]
[null,null,null,null,null,null,null,null,"Grinde"]
[null,null,null,null,null,null,null,null,"Fotland"]
[null,null,null,null,null,null,null,null,"Elvestad"]
[null,null,null,null,null,null,null,null,"Solsvik"]
[null,null,null,null,null,null,null,null,"Sandven"]
[null,null,null,null,null,null,null,null,"Løvold"]
[null,null,null,null,null,null,null,null,"Høyvik"]
[null,null,null,null,null,null,null,null,"Rindal"]
[null,null,null,null,null,null,null,null,"Hafstad"]
[null,null,null,null,null,null,null,null,"Valderhaug"]
[null,null,null,null,null,null,null,null,"Stamnes"]
[null,null,null,null,null,null,null,null,"Horgen"]
[null,null,null,null,null,null,null,null,"Aalberg"]
[null,null,null,null,null,null,null,null,"Østvold"]
[null,null,null,null,null,null,null,null,"Sommer"]
[null,null,null,null,null,null,null,null,"Schjelderup"]
[null,null,null,null,null,null,null,null,"Nesje"]
[null,null,null,null,null,null,null,null,"Emilsen"]
[null,null,null,null,null,null,null,null,"Aspelund"]
[null,null,null,null,null,null,null,null,"Saleh"]
[null,null,null,null,null,null,null,null,"Flåten"]
[null,null,null,null,null,null,null,null,"Østbø"]
[null,null,null,null,null,null,null,null,"Langerud"]
[null,null,null,null,null,null,null,null,"Karoliussen"]
[null,null,null,null,null,null,null,null,"Wilson"]
[null,null,null,null,null,null,null,null,"Stensen"]
[null,null,null,null,null,null,null,null,"Dybdahl"]
[null,null,null,null,null,null,null,null,"Waaler"]
[null,null,null,null,null,null,null,null,"Rasch"]
[null,null,null,null,null,null,null,null,"Hagerup"]
[null,null,null,null,null,null,null,null,"Rashid"]
[null,null,null,null,null,null,null,null,"Phan"]
[null,null,null,null,null,null,null,null,"Holmgren"]
[null,null,null,null,null,null,null,null,"Eiken"]
[null,null,null,null,null,null,null,null,"Chen"]
[null,null,null,null,null,null,null,null,"Vikse"]
[null,null,null,null,null,null,null,null,"Opstad"]
[null,null,null,null,null,null,null,null,"Malmin"]
[null,null,null,null,null,null,null,null,"Grødem"]
[null,null,null,null,null,null,null,null,"Dørum"]
[null,null,null,null,null,null,null,null,"Bach"]
[null,null,null,null,null,null,null,null,"Sørdal"]
[null,null,null,null,null,null,null,null,"Sundberg"]
[null,null,null,null,null,null,null,null,"Neset"]
[null,null,null,null,null,null,null,null,"Jæger"]
[null,null,null,null,null,null,null,null,"Røren"]
[null,null,null,null,null,null,null,null,"Torkelsen"]
[null,null,null,null,null,null,null,null,"Bjørnerud"]
[null,null,null,null,null,null,null,null,"Bergland"]
[null,null,null,null,null,null,null,null,"Aardal"]
[null,null,null,null,null,null,null,null,"Svenning"]
[null,null,null,null,null,null,null,null,"Bryn"]
[null,null,null,null,null,null,null,null,"Lindahl"]
[null,null,null,null,null,null,null,null,"Kirkeby"]
[null,null,null,null,null,null,null,null,"Horne"]
[null,null,null,null,null,null,null,null,"Friestad"]
[null,null,null,null,null,null,null,null,"Fornes"]
[null,null,null,null,null,null,null,null,"Friis"]
[null,null,null,null,null,null,null,null,"Revheim"]
[null,null,null,null,null,null,null,null,"Husøy"]
[null,null,null,null,null,null,null,null,"Krohn"]
[null,null,null,null,null,null,null,null,"Høiby"]
[null,null,null,null,null,null,null,null,"Arvesen"]
[null,null,null,null,null,null,null,null,"Aasgaard"]
[null,null,null,null,null,null,null,null,"Landsverk"]
[null,null,null,null,null,null,null,null,"Bakka"]
[null,null,null,null,null,null,null,null,"Djupvik"]
[null,null,null,null,null,null,null,null,"Østerhus"]
[null,null,null,null,null,null,null,null,"Landa"]
[null,null,null,null,null,null,null,null,"Kaland"]
[null,null,null,null,null,null,null,null,"Teige"]
[null,null,null,null,null,null,null,null,"Sharif"]
[null,null,null,null,null,null,null,null,"Reime"]
[null,null,null,null,null,null,null,null,"Nærland"]
[null,null,null,null,null,null,null,null,"Heggdal"]
[null,null,null,null,null,null,null,null,"Erga"]
[null,null,null,null,null,null,null,null,"Hammerstad"]
[null,null,null,null,null,null,null,null,"Frafjord"]
[null,null,null,null,null,null,null,null,"Finsrud"]
[null,null,null,null,null,null,null,null,"Aasbø"]
[null,null,null,null,null,null,null,null,"Aanensen"]
[null,null,null,null,null,null,null,null,"Westbye"]
[null,null,null,null,null,null,null,null,"Sandstad"]
[null,null,null,null,null,null,null,null,"Falck"]
[null,null,null,null,null,null,null,null,"Skarstein"]
[null,null,null,null,null,null,null,null,"Nergaard"]
[null,null,null,null,null,null,null,null,"Carlsson"]
[null,null,null,null,null,null,null,null,"Nowak"]
[null,null,null,null,null,null,null,null,"Kolnes"]
[null,null,null,null,null,null,null,null,"Skorpen"]
[null,null,null,null,null,null,null,null,"Nordhus"]
[null,null,null,null,null,null,null,null,"Lied"]
[null,null,null,null,null,null,null,null,"Bjørvik"]
[null,null,null,null,null,null,null,null,"Vartdal"]
[null,null,null,null,null,null,null,null,"Langnes"]
[null,null,null,null,null,null,null,null,"Hellem"]
[null,null,null,null,null,null,null,null,"Hasle"]
[null,null,null,null,null,null,null,null,"Haglund"]
[null,null,null,null,null,null,null,null,"Bergerud"]
[null,null,null,null,null,null,null,null,"Haukland"]
[null,null,null,null,null,null,null,null,"Eikenes"]
[null,null,null,null,null,null,null,null,"Bratberg"]
[null,null,null,null,null,null,null,null,"Zhang"]
[null,null,null,null,null,null,null,null,"Telle"]
[null,null,null,null,null,null,null,null,"Eidissen"]
[null,null,null,null,null,null,null,null,"By"]
[null,null,null,null,null,null,null,null,"Øksnes"]
[null,null,null,null,null,null,null,null,"Trøen"]
[null,null,null,null,null,null,null,null,"Røkke"]
[null,null,null,null,null,null,null,null,"Mundal"]
[null,null,null,null,null,null,null,null,"Klungland"]
[null,null,null,null,null,null,null,null,"Dalland"]
[null,null,null,null,null,null,null,null,"Rydningen"]
[null,null,null,null,null,null,null,null,"Opedal"]
[null,null,null,null,null,null,null,null,"Bjørnestad"]
[null,null,null,null,null,null,null,null,"Bergene"]
[null,null,null,null,null,null,null,null,"Rong"]
[null,null,null,null,null,null,null,null,"Hognestad"]
[null,null,null,null,null,null,null,null,"Eskeland"]
[null,null,null,null,null,null,null,null,"Kalland"]
[null,null,null,null,null,null,null,null,"Håheim"]
[null,null,null,null,null,null,null,null,"Holmsen"]
[null,null,null,null,null,null,null,null,"Frostad"]
[null,null,null,null,null,null,null,null,"Westad"]
[null,null,null,null,null,null,null,null,"Stave"]
[null,null,null,null,null,null,null,null,"Opsal"]
[null,null,null,null,null,null,null,null,"Holmedal"]
[null,null,null,null,null,null,null,null,"Hasan"]
[null,null,null,null,null,null,null,null,"Nordeng"]
[null,null,null,null,null,null,null,null,"Krasniqi"]
[null,null,null,null,null,null,null,null,"Irgens"]
[null,null,null,null,null,null,null,null,"Bøen"]
[null,null,null,null,null,null,null,null,"Bjørgum"]
[null,null,null,null,null,null,null,null,"Tveito"]
[null,null,null,null,null,null,null,null,"Hovind"]
[null,null,null,null,null,null,null,null,"Holmberg"]
[null,null,null,null,null,null,null,null,"Haram"]
[null,null,null,null,null,null,null,null,"Eek"]
[null,null,null,null,null,null,null,null,"Sommerseth"]
[null,null,null,null,null,null,null,null,"Schau"]
[null,null,null,null,null,null,null,null,"Juul"]
[null,null,null,null,null,null,null,null,"Øygard"]
[null,null,null,null,null,null,null,null,"Sjølie"]
[null,null,null,null,null,null,null,null,"Aziz"]
[null,null,null,null,null,null,null,null,"Stabell"]
[null,null,null,null,null,null,null,null,"Sanne"]
[null,null,null,null,null,null,null,null,"Tveten"]
[null,null,null,null,null,null,null,null,"Østebø"]
[null,null,null,null,null,null,null,null,"Wolden"]
[null,null,null,null,null,null,null,null,"Wiggen"]
[null,null,null,null,null,null,null,null,"Vestad"]
[null,null,null,null,null,null,null,null,"Taule"]
[null,null,null,null,null,null,null,null,"Heldal"]
[null,null,null,null,null,null,null,null,"Gullaksen"]
[null,null,null,null,null,null,null,null,"Valstad"]
[null,null,null,null,null,null,null,null,"Kvarme"]
[null,null,null,null,null,null,null,null,"Dalheim"]
[null,null,null,null,null,null,null,null,"Mustafa"]
[null,null,null,null,null,null,null,null,"Molvik"]
[null,null,null,null,null,null,null,null,"Moan"]
[null,null,null,null,null,null,null,null,"Kjølstad"]
[null,null,null,null,null,null,null,null,"Ho"]
[null,null,null,null,null,null,null,null,"Rødal"]
[null,null,null,null,null,null,null,null,"Hunstad"]
[null,null,null,null,null,null,null,null,"Haugseth"]
[null,null,null,null,null,null,null,null,"Egeberg"]
[null,null,null,null,null,null,null,null,"Brox"]
[null,null,null,null,null,null,null,null,"Skjønhaug"]
[null,null,null,null,null,null,null,null,"Krog"]
[null,null,null,null,null,null,null,null,"Frøland"]
[null,null,null,null,null,null,null,null,"Brakstad"]
[null,null,null,null,null,null,null,null,"Aarhus"]
[null,null,null,null,null,null,null,null,"Solvik"]
[null,null,null,null,null,null,null,null,"Shah"]
[null,null,null,null,null,null,null,null,"Thu"]
[null,null,null,null,null,null,null,null,"Reite"]
[null,null,null,null,null,null,null,null,"Kjørsvik"]
[null,null,null,null,null,null,null,null,"Grude"]
[null,null,null,null,null,null,null,null,"Baardsen"]
[null,null,null,null,null,null,null,null,"Rosenberg"]
[null,null,null,null,null,null,null,null,"Leite"]
[null,null,null,null,null,null,null,null,"Garberg"]
[null,null,null,null,null,null,null,null,"Skeide"]
[null,null,null,null,null,null,null,null,"Lægreid"]
[null,null,null,null,null,null,null,null,"Aure"]
[null,null,null,null,null,null,null,null,"Tysse"]
[null,null,null,null,null,null,null,null,"Løvli"]
[null,null,null,null,null,null,null,null,"Kjøsnes"]
[null,null,null,null,null,null,null,null,"Braut"]
[null,null,null,null,null,null,null,null,"Raaen"]
[null,null,null,null,null,null,null,null,"Poulsen"]
[null,null,null,null,null,null,null,null,"Kvinge"]
[null,null,null,null,null,null,null,null,"Christophersen"]
[null,null,null,null,null,null,null,null,"Aspen"]
[null,null,null,null,null,null,null,null,"Mjøen"]
[null,null,null,null,null,null,null,null,"Høyem"]
[null,null,null,null,null,null,null,null,"Borlaug"]
[null,null,null,null,null,null,null,null,"Hopen"]
[null,null,null,null,null,null,null,null,"Grini"]
[null,null,null,null,null,null,null,null,"Hjortland"]
[null,null,null,null,null,null,null,null,"Hegland"]
[null,null,null,null,null,null,null,null,"Hareide"]
[null,null,null,null,null,null,null,null,"Aleksandersen"]
[null,null,null,null,null,null,null,null,"Schultz"]
[null,null,null,null,null,null,null,null,"Rolfsen"]
[null,null,null,null,null,null,null,null,"Lunder"]
[null,null,null,null,null,null,null,null,"Hynne"]
[null,null,null,null,null,null,null,null,"Caspersen"]
[null,null,null,null,null,null,null,null,"Fossdal"]
[null,null,null,null,null,null,null,null,"Berisha"]
[null,null,null,null,null,null,null,null,"Ugland"]
[null,null,null,null,null,null,null,null,"Granås"]
[null,null,null,null,null,null,null,null,"Bjørgan"]
[null,null,null,null,null,null,null,null,"Ekren"]
[null,null,null,null,null,null,null,null,"Børve"]
[null,null,null,null,null,null,null,null,"Theodorsen"]
[null,null,null,null,null,null,null,null,"Ottersen"]
[null,null,null,null,null,null,null,null,"Angelsen"]
[null,null,null,null,null,null,null,null,"Ribe"]
[null,null,null,null,null,null,null,null,"Herstad"]
[null,null,null,null,null,null,null,null,"Østhus"]
[null,null,null,null,null,null,null,null,"Wilberg"]
[null,null,null,null,null,null,null,null,"Turøy"]
[null,null,null,null,null,null,null,null,"Tomren"]
[null,null,null,null,null,null,null,null,"Solbakk"]
[null,null,null,null,null,null,null,null,"Nybakk"]
[null,null,null,null,null,null,null,null,"Minde"]
[null,null,null,null,null,null,null,null,"Skogmo"]
[null,null,null,null,null,null,null,null,"Helleland"]
[null,null,null,null,null,null,null,null,"Garnes"]
[null,null,null,null,null,null,null,null,"Årdal"]
[null,null,null,null,null,null,null,null,"Tafjord"]
[null,null,null,null,null,null,null,null,"Amin"]
[null,null,null,null,null,null,null,null,"Tonning"]
[null,null,null,null,null,null,null,null,"Storesund"]
[null,null,null,null,null,null,null,null,"Lygre"]
[null,null,null,null,null,null,null,null,"Eklund"]
[null,null,null,null,null,null,null,null,"Asheim"]
[null,null,null,null,null,null,null,null,"Slettebø"]
[null,null,null,null,null,null,null,null,"Vagle"]
[null,null,null,null,null,null,null,null,"Sømme"]
[null,null,null,null,null,null,null,null,"Fjelldal"]
[null,null,null,null,null,null,null,null,"Sandbakken"]
[null,null,null,null,null,null,null,null,"Nydal"]
[null,null,null,null,null,null,null,null,"Myhrer"]
[null,null,null,null,null,null,null,null,"Hartvigsen"]
[null,null,null,null,null,null,null,null,"Elmi"]
[null,null,null,null,null,null,null,null,"Botnen"]
[null,null,null,null,null,null,null,null,"Holvik"]
[null,null,null,null,null,null,null,null,"Stornes"]
[null,null,null,null,null,null,null,null,"Sola"]
[null,null,null,null,null,null,null,null,"Lofthus"]
[null,null,null,null,null,null,null,null,"Kielland"]
[null,null,null,null,null,null,null,null,"Bunes"]
[null,null,null,null,null,null,null,null,"Adan"]
[null,null,null,null,null,null,null,null,"Vangsnes"]
[null,null,null,null,null,null,null,null,"Urke"]
[null,null,null,null,null,null,null,null,"Torjussen"]
[null,null,null,null,null,null,null,null,"Remøy"]
[null,null,null,null,null,null,null,null,"Kleveland"]
[null,null,null,null,null,null,null,null,"Erikstad"]
[null,null,null,null,null,null,null,null,"Ekeland"]
[null,null,null,null,null,null,null,null,"Eike"]
[null,null,null,null,null,null,null,null,"Skage"]
[null,null,null,null,null,null,null,null,"Sjåstad"]
[null,null,null,null,null,null,null,null,"Rødseth"]
[null,null,null,null,null,null,null,null,"Erland"]
[null,null,null,null,null,null,null,null,"Austrheim"]
[null,null,null,null,null,null,null,null,"Winge"]
[null,null,null,null,null,null,null,null,"Skogly"]
[null,null,null,null,null,null,null,null,"Nordeide"]
[null,null,null,null,null,null,null,null,"Moss"]
[null,null,null,null,null,null,null,null,"Hellevik"]
[null,null,null,null,null,null,null,null,"Eikemo"]
[null,null,null,null,null,null,null,null,"Bolme"]
[null,null,null,null,null,null,null,null,"Venås"]
[null,null,null,null,null,null,null,null,"Svenningsen"]
[null,null,null,null,null,null,null,null,"Os"]
[null,null,null,null,null,null,null,null,"Hammersland"]
[null,null,null,null,null,null,null,null,"Halseth"]
[null,null,null,null,null,null,null,null,"Støen"]
[null,null,null,null,null,null,null,null,"Kruse"]
[null,null,null,null,null,null,null,null,"Heide"]
[null,null,null,null,null,null,null,null,"Sjøli"]
[null,null,null,null,null,null,null,null,"Leine"]
[null,null,null,null,null,null,null,null,"Kryger"]
[null,null,null,null,null,null,null,null,"Fauskanger"]
[null,null,null,null,null,null,null,null,"Axelsen"]
[null,null,null,null,null,null,null,null,"Torvund"]
[null,null,null,null,null,null,null,null,"Bjerga"]
[null,null,null,null,null,null,null,null,"Tømmerås"]
[null,null,null,null,null,null,null,null,"Smeby"]
[null,null,null,null,null,null,null,null,"Kåsa"]
[null,null,null,null,null,null,null,null,"Kvalsund"]
[null,null,null,null,null,null,null,null,"Haugnes"]
[null,null,null,null,null,null,null,null,"Espe"]
[null,null,null,null,null,null,null,null,"Ottosen"]
[null,null,null,null,null,null,null,null,"Nese"]
[null,null,null,null,null,null,null,null,"Onarheim"]
[null,null,null,null,null,null,null,null,"Hausken"]
[null,null,null,null,null,null,null,null,"Aanes"]
[null,null,null,null,null,null,null,null,"Truong"]
[null,null,null,null,null,null,null,null,"Syrstad"]
[null,null,null,null,null,null,null,null,"Røvik"]
[null,null,null,null,null,null,null,null,"Flo"]
[null,null,null,null,null,null,null,null,"Warsame"]
[null,null,null,null,null,null,null,null,"Helgerud"]
[null,null,null,null,null,null,null,null,"Engeset"]
[null,null,null,null,null,null,null,null,"Lundgren"]
[null,null,null,null,null,null,null,null,"Bui"]
[null,null,null,null,null,null,null,null,"Varhaug"]
[null,null,null,null,null,null,null,null,"Landmark"]
[null,null,null,null,null,null,null,null,"Holsen"]
[null,null,null,null,null,null,null,null,"Haugom"]
[null,null,null,null,null,null,null,null,"Granerud"]
[null,null,null,null,null,null,null,null,"Busch"]
[null,null,null,null,null,null,null,null,"Alfredsen"]
[null,null,null,null,null,null,null,null,"Stein"]
[null,null,null,null,null,null,null,null,"Fiske"]
[null,null,null,null,null,null,null,null,"Vågenes"]
[null,null,null,null,null,null,null,null,"Trones"]
[null,null,null,null,null,null,null,null,"Torstensen"]
[null,null,null,null,null,null,null,null,"Skjerven"]
[null,null,null,null,null,null,null,null,"Espeseth"]
[null,null,null,null,null,null,null,null,"Williams"]
[null,null,null,null,null,null,null,null,"Skjelstad"]
[null,null,null,null,null,null,null,null,"Mauseth"]
[null,null,null,null,null,null,null,null,"Alfsen"]
[null,null,null,null,null,null,null,null,"Zakariassen"]
[null,null,null,null,null,null,null,null,"Vea"]
[null,null,null,null,null,null,null,null,"Strømstad"]
[null,null,null,null,null,null,null,null,"Molnes"]
[null,null,null,null,null,null,null,null,"Misje"]
[null,null,null,null,null,null,null,null,"Klepp"]
[null,null,null,null,null,null,null,null,"Isachsen"]
[null,null,null,null,null,null,null,null,"Indrebø"]
[null,null,null,null,null,null,null,null,"Engebakken"]
[null,null,null,null,null,null,null,null,"Lee"]
[null,null,null,null,null,null,null,null,"Hystad"]
[null,null,null,null,null,null,null,null,"Flem"]
[null,null,null,null,null,null,null,null,"Dang"]
[null,null,null,null,null,null,null,null,"Hoang"]
[null,null,null,null,null,null,null,null,"Rolstad"]
[null,null,null,null,null,null,null,null,"Gramstad"]
[null,null,null,null,null,null,null,null,"Stigen"]
[null,null,null,null,null,null,null,null,"Mæhle"]
[null,null,null,null,null,null,null,null,"Langhelle"]
[null,null,null,null,null,null,null,null,"Berdal"]
[null,null,null,null,null,null,null,null,"Vestbø"]
[null,null,null,null,null,null,null,null,"Nyvoll"]
[null,null,null,null,null,null,null,null,"Igland"]
[null,null,null,null,null,null,null,null,"Anda"]
[null,null,null,null,null,null,null,null,"Aasebø"]
[null,null,null,null,null,null,null,null,"Stordal"]
[null,null,null,null,null,null,null,null,"Nordmo"]
[null,null,null,null,null,null,null,null,"Klemetsen"]
[null,null,null,null,null,null,null,null,"Heyerdahl"]
[null,null,null,null,null,null,null,null,"Dahlstrøm"]
[null,null,null,null,null,null,null,null,"Brandtzæg"]
[null,null,null,null,null,null,null,null,"Sagstad"]
[null,null,null,null,null,null,null,null,"Lervåg"]
[null,null,null,null,null,null,null,null,"Gill"]
[null,null,null,null,null,null,null,null,"Røssland"]
[null,null,null,null,null,null,null,null,"Linde"]
[null,null,null,null,null,null,null,null,"Kjerstad"]
[null,null,null,null,null,null,null,null,"Hegg"]
[null,null,null,null,null,null,null,null,"Hatlestad"]
[null,null,null,null,null,null,null,null,"Blakstad"]
[null,null,null,null,null,null,null,null,"Storøy"]
[null,null,null,null,null,null,null,null,"Stava"]
[null,null,null,null,null,null,null,null,"Nyhagen"]
[null,null,null,null,null,null,null,null,"Lysaker"]
[null,null,null,null,null,null,null,null,"Hjørnevik"]
[null,null,null,null,null,null,null,null,"Gram"]
[null,null,null,null,null,null,null,null,"Sørhaug"]
[null,null,null,null,null,null,null,null,"Sem"]
[null,null,null,null,null,null,null,null,"Rinde"]
[null,null,null,null,null,null,null,null,"Hatlen"]
[null,null,null,null,null,null,null,null,"Bibi"]
[null,null,null,null,null,null,null,null,"Aarø"]
[null,null,null,null,null,null,null,null,"Tunheim"]
[null,null,null,null,null,null,null,null,"Røsand"]
[null,null,null,null,null,null,null,null,"Olsvik"]
[null,null,null,null,null,null,null,null,"Engstrøm"]
[null,null,null,null,null,null,null,null,"Ege"]
[null,null,null,null,null,null,null,null,"Værnes"]
[null,null,null,null,null,null,null,null,"Vårdal"]
[null,null,null,null,null,null,null,null,"Vabø"]
[null,null,null,null,null,null,null,null,"Stølan"]
[null,null,null,null,null,null,null,null,"Nordhaug"]
[null,null,null,null,null,null,null,null,"Myhra"]
[null,null,null,null,null,null,null,null,"Gustad"]
[null,null,null,null,null,null,null,null,"Bashir"]
[null,null,null,null,null,null,null,null,"Prytz"]
[null,null,null,null,null,null,null,null,"Michalsen"]
[null,null,null,null,null,null,null,null,"Kalvik"]
[null,null,null,null,null,null,null,null,"Bjørkhaug"]
[null,null,null,null,null,null,null,null,"Sønsteby"]
[null,null,null,null,null,null,null,null,"Molland"]
[null,null,null,null,null,null,null,null,"Malmo"]
[null,null,null,null,null,null,null,null,"Fiksdal"]
[null,null,null,null,null,null,null,null,"Aanestad"]
[null,null,null,null,null,null,null,null,"Sjøvold"]
[null,null,null,null,null,null,null,null,"Myking"]
[null,null,null,null,null,null,null,null,"Jones"]
[null,null,null,null,null,null,null,null,"Jespersen"]
[null,null,null,null,null,null,null,null,"Rognlien"]
[null,null,null,null,null,null,null,null,"Løyning"]
[null,null,null,null,null,null,null,null,"Haakonsen"]
[null,null,null,null,null,null,null,null,"Dimmen"]
[null,null,null,null,null,null,null,null,"Brown"]
[null,null,null,null,null,null,null,null,"Aslam"]
[null,null,null,null,null,null,null,null,"Skei"]
[null,null,null,null,null,null,null,null,"Schøyen"]
[null,null,null,null,null,null,null,null,"Sakshaug"]
[null,null,null,null,null,null,null,null,"Jessen"]
[null,null,null,null,null,null,null,null,"Bryhn"]
[null,null,null,null,null,null,null,null,"Ausland"]
[null,null,null,null,null,null,null,null,"Østlie"]
[null,null,null,null,null,null,null,null,"Viste"]
[null,null,null,null,null,null,null,null,"Norland"]
[null,null,null,null,null,null,null,null,"Nordtveit"]
[null,null,null,null,null,null,null,null,"Myrhaug"]
[null,null,null,null,null,null,null,null,"Kilen"]
[null,null,null,null,null,null,null,null,"Grønlund"]
[null,null,null,null,null,null,null,null,"Nordskog"]
[null,null,null,null,null,null,null,null,"Dalby"]
[null,null,null,null,null,null,null,null,"Yndestad"]
[null,null,null,null,null,null,null,null,"Lundemo"]
[null,null,null,null,null,null,null,null,"Kråkenes"]
[null,null,null,null,null,null,null,null,"Gudmestad"]
[null,null,null,null,null,null,null,null,"Follestad"]
[null,null,null,null,null,null,null,null,"Zahl"]
[null,null,null,null,null,null,null,null,"Sandanger"]
[null,null,null,null,null,null,null,null,"Rosnes"]
[null,null,null,null,null,null,null,null,"Nordlie"]
[null,null,null,null,null,null,null,null,"Husa"]
[null,null,null,null,null,null,null,null,"Hagelund"]
[null,null,null,null,null,null,null,null,"Ashraf"]
[null,null,null,null,null,null,null,null,"Røberg"]
[null,null,null,null,null,null,null,null,"Rui"]
[null,null,null,null,null,null,null,null,"Harestad"]
[null,null,null,null,null,null,null,null,"Storebø"]
[null,null,null,null,null,null,null,null,"Sigurdsen"]
[null,null,null,null,null,null,null,null,"Sandaker"]
[null,null,null,null,null,null,null,null,"Mehus"]
[null,null,null,null,null,null,null,null,"Fossli"]
[null,null,null,null,null,null,null,null,"Ersland"]
[null,null,null,null,null,null,null,null,"Bjørgen"]
[null,null,null,null,null,null,null,null,"Vestvik"]
[null,null,null,null,null,null,null,null,"Tveitan"]
[null,null,null,null,null,null,null,null,"Karim"]
[null,null,null,null,null,null,null,null,"Haile"]
[null,null,null,null,null,null,null,null,"Flatebø"]
[null,null,null,null,null,null,null,null,"Elverum"]
[null,null,null,null,null,null,null,null,"Bjerkestrand"]
[null,null,null,null,null,null,null,null,"Vigre"]
[null,null,null,null,null,null,null,null,"Steiro"]
[null,null,null,null,null,null,null,null,"Stange"]
[null,null,null,null,null,null,null,null,"Samdal"]
[null,null,null,null,null,null,null,null,"Magnusson"]
[null,null,null,null,null,null,null,null,"Goa"]
[null,null,null,null,null,null,null,null,"Torbjørnsen"]
[null,null,null,null,null,null,null,null,"Reinholdtsen"]
[null,null,null,null,null,null,null,null,"Pollestad"]
[null,null,null,null,null,null,null,null,"Nysæter"]
[null,null,null,null,null,null,null,null,"Norberg"]
[null,null,null,null,null,null,null,null,"Madland"]
[null,null,null,null,null,null,null,null,"Holum"]
[null,null,null,null,null,null,null,null,"Enersen"]
[null,null,null,null,null,null,null,null,"Ulseth"]
[null,null,null,null,null,null,null,null,"Sølvberg"]
[null,null,null,null,null,null,null,null,"Rud"]
[null,null,null,null,null,null,null,null,"Rognerud"]
[null,null,null,null,null,null,null,null,"Hennum"]
[null,null,null,null,null,null,null,null,"Engedal"]
[null,null,null,null,null,null,null,null,"Bue"]
[null,null,null,null,null,null,null,null,"Tangstad"]
[null,null,null,null,null,null,null,null,"Sjo"]
[null,null,null,null,null,null,null,null,"Mykland"]
[null,null,null,null,null,null,null,null,"Ditlefsen"]
[null,null,null,null,null,null,null,null,"Kalstad"]
[null,null,null,null,null,null,null,null,"Sletta"]
[null,null,null,null,null,null,null,null,"Risvik"]
[null,null,null,null,null,null,null,null,"Daae"]
[null,null,null,null,null,null,null,null,"Brunstad"]
[null,null,null,null,null,null,null,null,"Aulie"]
[null,null,null,null,null,null,null,null,"Sørnes"]
[null,null,null,null,null,null,null,null,"Silseth"]
[null,null,null,null,null,null,null,null,"Myre"]
[null,null,null,null,null,null,null,null,"Kvernmo"]
[null,null,null,null,null,null,null,null,"Mellingen"]
[null,null,null,null,null,null,null,null,"Grøtte"]
[null,null,null,null,null,null,null,null,"Borch"]
[null,null,null,null,null,null,null,null,"Velde"]
[null,null,null,null,null,null,null,null,"Sødal"]
[null,null,null,null,null,null,null,null,"Skogland"]
[null,null,null,null,null,null,null,null,"Løkås"]
[null,null,null,null,null,null,null,null,"Landsem"]
[null,null,null,null,null,null,null,null,"Hofseth"]
[null,null,null,null,null,null,null,null,"Dyb"]
[null,null,null,null,null,null,null,null,"Bjerk"]
[null,null,null,null,null,null,null,null,"Nævdal"]
[null,null,null,null,null,null,null,null,"Marøy"]
[null,null,null,null,null,null,null,null,"Kloster"]
[null,null,null,null,null,null,null,null,"Hartmann"]
[null,null,null,null,null,null,null,null,"Arnøy"]
[null,null,null,null,null,null,null,null,"Saga"]
[null,null,null,null,null,null,null,null,"Lysø"]
[null,null,null,null,null,null,null,null,"Koch"]
[null,null,null,null,null,null,null,null,"Karlsrud"]
[null,null,null,null,null,null,null,null,"Halstensen"]
[null,null,null,null,null,null,null,null,"Anwar"]
[null,null,null,null,null,null,null,null,"Adam"]
[null,null,null,null,null,null,null,null,"Utheim"]
[null,null,null,null,null,null,null,null,"Knapstad"]
[null,null,null,null,null,null,null,null,"Bjørseth"]
[null,null,null,null,null,null,null,null,"Birkenes"]
[null,null,null,null,null,null,null,null,"Winsnes"]
[null,null,null,null,null,null,null,null,"Tjøstheim"]
[null,null,null,null,null,null,null,null,"Thomas"]
[null,null,null,null,null,null,null,null,"Skogseth"]
[null,null,null,null,null,null,null,null,"Høgseth"]
[null,null,null,null,null,null,null,null,"Dirdal"]
[null,null,null,null,null,null,null,null,"Strømberg"]
[null,null,null,null,null,null,null,null,"Kvaal"]
[null,null,null,null,null,null,null,null,"Slåen"]
[null,null,null,null,null,null,null,null,"Kronstad"]
[null,null,null,null,null,null,null,null,"Jønsson"]
[null,null,null,null,null,null,null,null,"Juvik"]
[null,null,null,null,null,null,null,null,"Elde"]
[null,null,null,null,null,null,null,null,"Sommerstad"]
[null,null,null,null,null,null,null,null,"Mellem"]
[null,null,null,null,null,null,null,null,"Marken"]
[null,null,null,null,null,null,null,null,"Hægeland"]
[null,null,null,null,null,null,null,null,"Havn"]
[null,null,null,null,null,null,null,null,"Bøhler"]
[null,null,null,null,null,null,null,null,"Mohn"]
[null,null,null,null,null,null,null,null,"Krane"]
[null,null,null,null,null,null,null,null,"Ims"]
[null,null,null,null,null,null,null,null,"Do"]
[null,null,null,null,null,null,null,null,"Bævre"]
[null,null,null,null,null,null,null,null,"Vassbotn"]
[null,null,null,null,null,null,null,null,"Soleng"]
[null,null,null,null,null,null,null,null,"Ramsvik"]
[null,null,null,null,null,null,null,null,"Liu"]
[null,null,null,null,null,null,null,null,"Flatland"]
[null,null,null,null,null,null,null,null,"Eknes"]
[null,null,null,null,null,null,null,null,"Tomter"]
[null,null,null,null,null,null,null,null,"Sandum"]
[null,null,null,null,null,null,null,null,"Ranheim"]
[null,null,null,null,null,null,null,null,"Olavesen"]
[null,null,null,null,null,null,null,null,"Lura"]
[null,null,null,null,null,null,null,null,"Fiskerstrand"]
[null,null,null,null,null,null,null,null,"Arneberg"]
[null,null,null,null,null,null,null,null,"Åsland"]
[null,null,null,null,null,null,null,null,"Rugland"]
[null,null,null,null,null,null,null,null,"Paulsrud"]
[null,null,null,null,null,null,null,null,"Muri"]
[null,null,null,null,null,null,null,null,"Mittet"]
[null,null,null,null,null,null,null,null,"Lassen"]
[null,null,null,null,null,null,null,null,"Kvalvåg"]
[null,null,null,null,null,null,null,null,"Jordet"]
[null,null,null,null,null,null,null,null,"Heia"]
[null,null,null,null,null,null,null,null,"Aaberg"]
[null,null,null,null,null,null,null,null,"Oma"]
[null,null,null,null,null,null,null,null,"Myrstad"]
[null,null,null,null,null,null,null,null,"Hammervold"]
[null,null,null,null,null,null,null,null,"Hagenes"]
[null,null,null,null,null,null,null,null,"Engevik"]
[null,null,null,null,null,null,null,null,"Bjørnevik"]
[null,null,null,null,null,null,null,null,"Seglem"]
[null,null,null,null,null,null,null,null,"Haarr"]
[null,null,null,null,null,null,null,null,"Fischer"]
[null,null,null,null,null,null,null,null,"Claussen"]
[null,null,null,null,null,null,null,null,"Østberg"]
[null,null,null,null,null,null,null,null,"Wallin"]
[null,null,null,null,null,null,null,null,"Tallaksen"]
[null,null,null,null,null,null,null,null,"Østvik"]
[null,null,null,null,null,null,null,null,"Westrum"]
[null,null,null,null,null,null,null,null,"Walderhaug"]
[null,null,null,null,null,null,null,null,"Svingen"]
[null,null,null,null,null,null,null,null,"Salamonsen"]
[null,null,null,null,null,null,null,null,"Hall"]
[null,null,null,null,null,null,null,null,"Formo"]
[null,null,null,null,null,null,null,null,"Flø"]
[null,null,null,null,null,null,null,null,"Asphaug"]
[null,null,null,null,null,null,null,null,"Tveita"]
[null,null,null,null,null,null,null,null,"Thøgersen"]
[null,null,null,null,null,null,null,null,"Reppe"]
[null,null,null,null,null,null,null,null,"Rein"]
[null,null,null,null,null,null,null,null,"Haugsdal"]
[null,null,null,null,null,null,null,null,"Skorstad"]
[null,null,null,null,null,null,null,null,"Refvik"]
[null,null,null,null,null,null,null,null,"Moldestad"]
[null,null,null,null,null,null,null,null,"Lossius"]
[null,null,null,null,null,null,null,null,"Høgset"]
[null,null,null,null,null,null,null,null,"Garvik"]
[null,null,null,null,null,null,null,null,"Friberg"]
[null,null,null,null,null,null,null,null,"Thorsrud"]
[null,null,null,null,null,null,null,null,"Sandø"]
[null,null,null,null,null,null,null,null,"Lium"]
[null,null,null,null,null,null,null,null,"Kallestad"]
[null,null,null,null,null,null,null,null,"Heggheim"]
[null,null,null,null,null,null,null,null,"Frigstad"]
[null,null,null,null,null,null,null,null,"Ferkingstad"]
[null,null,null,null,null,null,null,null,"Digernes"]
[null,null,null,null,null,null,null,null,"Vika"]
[null,null,null,null,null,null,null,null,"Strømnes"]
[null,null,null,null,null,null,null,null,"Nesbø"]
[null,null,null,null,null,null,null,null,"Kvande"]
[null,null,null,null,null,null,null,null,"Killi"]
[null,null,null,null,null,null,null,null,"Engdal"]
[null,null,null,null,null,null,null,null,"Chaudhry"]
[null,null,null,null,null,null,null,null,"Svela"]
[null,null,null,null,null,null,null,null,"Stray"]
[null,null,null,null,null,null,null,null,"Kyllingstad"]
[null,null,null,null,null,null,null,null,"Jentoft"]
[null,null,null,null,null,null,null,null,"Sirevåg"]
[null,null,null,null,null,null,null,null,"Leithe"]
[null,null,null,null,null,null,null,null,"Klokk"]
[null,null,null,null,null,null,null,null,"Haugvaldstad"]
[null,null,null,null,null,null,null,null,"Vigdal"]
[null,null,null,null,null,null,null,null,"Veum"]
[null,null,null,null,null,null,null,null,"Trøan"]
[null,null,null,null,null,null,null,null,"Klæboe"]
[null,null,null,null,null,null,null,null,"Høiseth"]
[null,null,null,null,null,null,null,null,"Halse"]
[null,null,null,null,null,null,null,null,"Risdal"]
[null,null,null,null,null,null,null,null,"Reppen"]
[null,null,null,null,null,null,null,null,"Klaussen"]
[null,null,null,null,null,null,null,null,"Hebnes"]
[null,null,null,null,null,null,null,null,"Grønstad"]
[null,null,null,null,null,null,null,null,"Berggren"]
[null,null,null,null,null,null,null,null,"Vie"]
[null,null,null,null,null,null,null,null,"Sverdrup"]
[null,null,null,null,null,null,null,null,"Lende"]
[null,null,null,null,null,null,null,null,"Hegstad"]
[null,null,null,null,null,null,null,null,"Øvretveit"]
[null,null,null,null,null,null,null,null,"Slinning"]
[null,null,null,null,null,null,null,null,"Rokstad"]
[null,null,null,null,null,null,null,null,"Raja"]
[null,null,null,null,null,null,null,null,"Magnus"]
[null,null,null,null,null,null,null,null,"Kårstad"]
[null,null,null,null,null,null,null,null,"Woll"]
[null,null,null,null,null,null,null,null,"Berstad"]
[null,null,null,null,null,null,null,null,"Austbø"]
[null,null,null,null,null,null,null,null,"Aakvik"]
[null,null,null,null,null,null,null,null,"Lilleng"]
[null,null,null,null,null,null,null,null,"Aker"]
[null,null,null,null,null,null,null,null,"Ådland"]
[null,null,null,null,null,null,null,null,"Tømte"]
[null,null,null,null,null,null,null,null,"Skjetne"]
[null,null,null,null,null,null,null,null,"Grøtting"]
[null,null,null,null,null,null,null,null,"Dyrstad"]
[null,null,null,null,null,null,null,null,"Anthonsen"]
[null,null,null,null,null,null,null,null,"Alfheim"]
[null,null,null,null,null,null,null,null,"Aagaard"]
[null,null,null,null,null,null,null,null,"With"]
[null,null,null,null,null,null,null,null,"Torheim"]
[null,null,null,null,null,null,null,null,"Teien"]
[null,null,null,null,null,null,null,null,"Sævareid"]
[null,null,null,null,null,null,null,null,"Folgerø"]
[null,null,null,null,null,null,null,null,"Bergman"]
[null,null,null,null,null,null,null,null,"Ramsland"]
[null,null,null,null,null,null,null,null,"Mannes"]
[null,null,null,null,null,null,null,null,"Mahamud"]
[null,null,null,null,null,null,null,null,"Langåker"]
[null,null,null,null,null,null,null,null,"Kolltveit"]
[null,null,null,null,null,null,null,null,"Klette"]
[null,null,null,null,null,null,null,null,"Heien"]
[null,null,null,null,null,null,null,null,"Wærnes"]
[null,null,null,null,null,null,null,null,"Forseth"]
[null,null,null,null,null,null,null,null,"Eckhoff"]
[null,null,null,null,null,null,null,null,"Ebbesen"]
[null,null,null,null,null,null,null,null,"Arnestad"]
[null,null,null,null,null,null,null,null,"Aden"]
[null,null,null,null,null,null,null,null,"Aamot"]
[null,null,null,null,null,null,null,null,"Haddeland"]
[null,null,null,null,null,null,null,null,"Frøyen"]
[null,null,null,null,null,null,null,null,"Flaa"]
[null,null,null,null,null,null,null,null,"Espenes"]
[null,null,null,null,null,null,null,null,"Betten"]
[null,null,null,null,null,null,null,null,"Aarskog"]
[null,null,null,null,null,null,null,null,"Svardal"]
[null,null,null,null,null,null,null,null,"Nystrøm"]
[null,null,null,null,null,null,null,null,"Hildre"]
[null,null,null,null,null,null,null,null,"Guddal"]
[null,null,null,null,null,null,null,null,"Sperre"]
[null,null,null,null,null,null,null,null,"Langøy"]
[null,null,null,null,null,null,null,null,"Hindenes"]
[null,null,null,null,null,null,null,null,"Helberg"]
[null,null,null,null,null,null,null,null,"Furre"]
[null,null,null,null,null,null,null,null,"Bakk"]
[null,null,null,null,null,null,null,null,"Wien"]
[null,null,null,null,null,null,null,null,"Vike"]
[null,null,null,null,null,null,null,null,"Svindland"]
[null,null,null,null,null,null,null,null,"Støylen"]
[null,null,null,null,null,null,null,null,"Augestad"]
[null,null,null,null,null,null,null,null,"Walstad"]
[null,null,null,null,null,null,null,null,"Skjærvik"]
[null,null,null,null,null,null,null,null,"Knoph"]
[null,null,null,null,null,null,null,null,"Bjørkedal"]
[null,null,null,null,null,null,null,null,"Bergem"]
[null,null,null,null,null,null,null,null,"Barth"]
[null,null,null,null,null,null,null,null,"Angeltveit"]
[null,null,null,null,null,null,null,null,"Røyset"]
[null,null,null,null,null,null,null,null,"Molstad"]
[null,null,null,null,null,null,null,null,"Kolstø"]
[null,null,null,null,null,null,null,null,"Folkvord"]
[null,null,null,null,null,null,null,null,"Bøyum"]
[null,null,null,null,null,null,null,null,"Bjørlo"]
[null,null,null,null,null,null,null,null,"Anfinsen"]
[null,null,null,null,null,null,null,null,"Utsi"]
[null,null,null,null,null,null,null,null,"Langø"]
[null,null,null,null,null,null,null,null,"Langli"]
[null,null,null,null,null,null,null,null,"Hoffmann"]
[null,null,null,null,null,null,null,null,"Glesnes"]
[null,null,null,null,null,null,null,null,"Finseth"]
[null,null,null,null,null,null,null,null,"Tornes"]
[null,null,null,null,null,null,null,null,"Storm"]
[null,null,null,null,null,null,null,null,"Reed"]
[null,null,null,null,null,null,null,null,"Kvilhaug"]
[null,null,null,null,null,null,null,null,"Karimi"]
[null,null,null,null,null,null,null,null,"Hanstad"]
[null,null,null,null,null,null,null,null,"Grønseth"]
[null,null,null,null,null,null,null,null,"Buvik"]
[null,null,null,null,null,null,null,null,"Bjerkeli"]
[null,null,null,null,null,null,null,null,"Vatn"]
[null,null,null,null,null,null,null,null,"Roth"]
[null,null,null,null,null,null,null,null,"Otterstad"]
[null,null,null,null,null,null,null,null,"Kongshaug"]
[null,null,null,null,null,null,null,null,"Eggum"]
[null,null,null,null,null,null,null,null,"Brøndbo"]
[null,null,null,null,null,null,null,null,"Astrup"]
[null,null,null,null,null,null,null,null,"Aaland"]
[null,null,null,null,null,null,null,null,"Østmo"]
[null,null,null,null,null,null,null,null,"Tjemsland"]
[null,null,null,null,null,null,null,null,"Støa"]
[null,null,null,null,null,null,null,null,"Sture"]
[null,null,null,null,null,null,null,null,"Schjetne"]
[null,null,null,null,null,null,null,null,"Misund"]
[null,null,null,null,null,null,null,null,"Lam"]
[null,null,null,null,null,null,null,null,"Høyer"]
[null,null,null,null,null,null,null,null,"Hellebust"]
[null,null,null,null,null,null,null,null,"Forbord"]
[null,null,null,null,null,null,null,null,"Dyrdal"]
[null,null,null,null,null,null,null,null,"Tande"]
[null,null,null,null,null,null,null,null,"Soldal"]
[null,null,null,null,null,null,null,null,"Olden"]
[null,null,null,null,null,null,null,null,"Mogstad"]
[null,null,null,null,null,null,null,null,"Liseth"]
[null,null,null,null,null,null,null,null,"Istad"]
[null,null,null,null,null,null,null,null,"Grønnevik"]
[null,null,null,null,null,null,null,null,"Gjendem"]
[null,null,null,null,null,null,null,null,"Fiskvik"]
[null,null,null,null,null,null,null,null,"Dalene"]
[null,null,null,null,null,null,null,null,"Tøllefsen"]
[null,null,null,null,null,null,null,null,"Sigvartsen"]
[null,null,null,null,null,null,null,null,"Sangolt"]
[null,null,null,null,null,null,null,null,"Nyrud"]
[null,null,null,null,null,null,null,null,"Nymark"]
[null,null,null,null,null,null,null,null,"Malm"]
[null,null,null,null,null,null,null,null,"Løvland"]
[null,null,null,null,null,null,null,null,"Hatland"]
[null,null,null,null,null,null,null,null,"Fjermestad"]
[null,null,null,null,null,null,null,null,"Drage"]
[null,null,null,null,null,null,null,null,"Børseth"]
[null,null,null,null,null,null,null,null,"Saur"]
[null,null,null,null,null,null,null,null,"Nybråten"]
[null,null,null,null,null,null,null,null,"Graff"]
[null,null,null,null,null,null,null,null,"Furunes"]
[null,null,null,null,null,null,null,null,"Engeseth"]
[null,null,null,null,null,null,null,null,"Bjørndalen"]
[null,null,null,null,null,null,null,null,"Torbergsen"]
[null,null,null,null,null,null,null,null,"Sheikh"]
[null,null,null,null,null,null,null,null,"Ryland"]
[null,null,null,null,null,null,null,null,"Langlo"]
[null,null,null,null,null,null,null,null,"Kolsrud"]
[null,null,null,null,null,null,null,null,"Eikås"]
[null,null,null,null,null,null,null,null,"Bjørkås"]
[null,null,null,null,null,null,null,null,"Baltzersen"]
[null,null,null,null,null,null,null,null,"Oen"]
[null,null,null,null,null,null,null,null,"Nornes"]
[null,null,null,null,null,null,null,null,"Løver"]
[null,null,null,null,null,null,null,null,"Lillestøl"]
[null,null,null,null,null,null,null,null,"Haukaas"]
[null,null,null,null,null,null,null,null,"Ekrem"]
[null,null,null,null,null,null,null,null,"Velle"]
[null,null,null,null,null,null,null,null,"Stavik"]
[null,null,null,null,null,null,null,null,"Opland"]
[null,null,null,null,null,null,null,null,"Høines"]
[null,null,null,null,null,null,null,null,"Hval"]
[null,null,null,null,null,null,null,null,"Hoddevik"]
[null,null,null,null,null,null,null,null,"Hesjedal"]
[null,null,null,null,null,null,null,null,"Forsmo"]
[null,null,null,null,null,null,null,null,"Bostad"]
[null,null,null,null,null,null,null,null,"Bjørn"]
[null,null,null,null,null,null,null,null,"Almli"]
[null,null,null,null,null,null,null,null,"Kile"]
[null,null,null,null,null,null,null,null,"Hamnes"]
[null,null,null,null,null,null,null,null,"Dyngeland"]
[null,null,null,null,null,null,null,null,"Bækken"]
[null,null,null,null,null,null,null,null,"Bjerkelund"]
[null,null,null,null,null,null,null,null,"Afzal"]
[null,null,null,null,null,null,null,null,"Voldsund"]
[null,null,null,null,null,null,null,null,"Torset"]
[null,null,null,null,null,null,null,null,"Thommesen"]
[null,null,null,null,null,null,null,null,"Sørhus"]
[null,null,null,null,null,null,null,null,"Nøkleby"]
[null,null,null,null,null,null,null,null,"Nur"]
[null,null,null,null,null,null,null,null,"Møgster"]
[null,null,null,null,null,null,null,null,"Engum"]
[null,null,null,null,null,null,null,null,"Tvete"]
[null,null,null,null,null,null,null,null,"Saltnes"]
[null,null,null,null,null,null,null,null,"Hille"]
[null,null,null,null,null,null,null,null,"Thompson"]
[null,null,null,null,null,null,null,null,"Stendal"]
[null,null,null,null,null,null,null,null,"Selmer"]
[null,null,null,null,null,null,null,null,"Moldskred"]
[null,null,null,null,null,null,null,null,"Lilleby"]
[null,null,null,null,null,null,null,null,"Kjellevold"]
[null,null,null,null,null,null,null,null,"Kiil"]
[null,null,null,null,null,null,null,null,"Jevne"]
[null,null,null,null,null,null,null,null,"Grongstad"]
[null,null,null,null,null,null,null,null,"Kinn"]
[null,null,null,null,null,null,null,null,"Habbestad"]
[null,null,null,null,null,null,null,null,"Brønstad"]
[null,null,null,null,null,null,null,null,"Bragstad"]
[null,null,null,null,null,null,null,null,"Wennberg"]
[null,null,null,null,null,null,null,null,"Vedal"]
[null,null,null,null,null,null,null,null,"Sagmo"]
[null,null,null,null,null,null,null,null,"Monstad"]
[null,null,null,null,null,null,null,null,"Mellum"]
[null,null,null,null,null,null,null,null,"Martin"]
[null,null,null,null,null,null,null,null,"Gjessing"]
[null,null,null,null,null,null,null,null,"Gjelstad"]
[null,null,null,null,null,null,null,null,"Ekerhovd"]
[null,null,null,null,null,null,null,null,"Egeli"]
[null,null,null,null,null,null,null,null,"Blomberg"]
[null,null,null,null,null,null,null,null,"Østerås"]
[null,null,null,null,null,null,null,null,"Schou"]
[null,null,null,null,null,null,null,null,"Saeed"]
[null,null,null,null,null,null,null,null,"Roos"]
[null,null,null,null,null,null,null,null,"Rahimi"]
[null,null,null,null,null,null,null,null,"Melheim"]
[null,null,null,null,null,null,null,null,"Hotvedt"]
[null,null,null,null,null,null,null,null,"Holmefjord"]
[null,null,null,null,null,null,null,null,"Hessen"]
[null,null,null,null,null,null,null,null,"Bergset"]
[null,null,null,null,null,null,null,null,"Aksdal"]
[null,null,null,null,null,null,null,null,"Vistnes"]
[null,null,null,null,null,null,null,null,"Singstad"]
[null,null,null,null,null,null,null,null,"Røine"]
[null,null,null,null,null,null,null,null,"Ravn"]
[null,null,null,null,null,null,null,null,"Prestegård"]
[null,null,null,null,null,null,null,null,"Omholt"]
[null,null,null,null,null,null,null,null,"Nodland"]
[null,null,null,null,null,null,null,null,"Midtgård"]
[null,null,null,null,null,null,null,null,"Langvik"]
[null,null,null,null,null,null,null,null,"Kavli"]
[null,null,null,null,null,null,null,null,"Frydenberg"]
[null,null,null,null,null,null,null,null,"Duong"]
[null,null,null,null,null,null,null,null,"Boye"]
[null,null,null,null,null,null,null,null,"Aarsland"]
[null,null,null,null,null,null,null,null,"Skullerud"]
[null,null,null,null,null,null,null,null,"Shala"]
[null,null,null,null,null,null,null,null,"Naustdal"]
[null,null,null,null,null,null,null,null,"Moum"]
[null,null,null,null,null,null,null,null,"Lyssand"]
[null,null,null,null,null,null,null,null,"Feragen"]
[null,null,null,null,null,null,null,null,"Ødegården"]
[null,null,null,null,null,null,null,null,"Vogt"]
[null,null,null,null,null,null,null,null,"Valvik"]
[null,null,null,null,null,null,null,null,"Skjørestad"]
[null,null,null,null,null,null,null,null,"Nysveen"]
[null,null,null,null,null,null,null,null,"Mostad"]
[null,null,null,null,null,null,null,null,"Lindhjem"]
[null,null,null,null,null,null,null,null,"Hurlen"]
[null,null,null,null,null,null,null,null,"Hjelvik"]
[null,null,null,null,null,null,null,null,"Heggøy"]
[null,null,null,null,null,null,null,null,"Gilberg"]
[null,null,null,null,null,null,null,null,"Øglænd"]
[null,null,null,null,null,null,null,null,"Lydersen"]
[null,null,null,null,null,null,null,null,"Hveding"]
[null,null,null,null,null,null,null,null,"Elvebakk"]
[null,null,null,null,null,null,null,null,"Bjørheim"]
[null,null,null,null,null,null,null,null,"Ulven"]
[null,null,null,null,null,null,null,null,"Minge"]
[null,null,null,null,null,null,null,null,"Lyngvær"]
[null,null,null,null,null,null,null,null,"Horvei"]
[null,null,null,null,null,null,null,null,"Tønder"]
[null,null,null,null,null,null,null,null,"Rosenvinge"]
[null,null,null,null,null,null,null,null,"Lyse"]
[null,null,null,null,null,null,null,null,"Laugen"]
[null,null,null,null,null,null,null,null,"Kalleberg"]
[null,null,null,null,null,null,null,null,"Fylkesnes"]
[null,null,null,null,null,null,null,null,"Dehli"]
[null,null,null,null,null,null,null,null,"Askim"]
[null,null,null,null,null,null,null,null,"Søfteland"]
[null,null,null,null,null,null,null,null,"Sirnes"]
[null,null,null,null,null,null,null,null,"Rødsjø"]
[null,null,null,null,null,null,null,null,"Ryan"]
[null,null,null,null,null,null,null,null,"Raastad"]
[null,null,null,null,null,null,null,null,"Kvernberg"]
[null,null,null,null,null,null,null,null,"Dagestad"]
[null,null,null,null,null,null,null,null,"Braseth"]
[null,null,null,null,null,null,null,null,"Bhatti"]
[null,null,null,null,null,null,null,null,"Stavrum"]
[null,null,null,null,null,null,null,null,"Refsdal"]
[null,null,null,null,null,null,null,null,"Palm"]
[null,null,null,null,null,null,null,null,"Leistad"]
[null,null,null,null,null,null,null,null,"Langmo"]
[null,null,null,null,null,null,null,null,"Huus"]
[null,null,null,null,null,null,null,null,"Fiskum"]
[null,null,null,null,null,null,null,null,"Fagernes"]
[null,null,null,null,null,null,null,null,"Aunan"]
[null,null,null,null,null,null,null,null,"Aaslund"]
[null,null,null,null,null,null,null,null,"Stensvold"]
[null,null,null,null,null,null,null,null,"Stav"]
[null,null,null,null,null,null,null,null,"Soma"]
[null,null,null,null,null,null,null,null,"Rønnestad"]
[null,null,null,null,null,null,null,null,"Haarberg"]
[null,null,null,null,null,null,null,null,"Forland"]
[null,null,null,null,null,null,null,null,"Espelid"]
[null,null,null,null,null,null,null,null,"Brynjulfsen"]
[null,null,null,null,null,null,null,null,"Baumann"]
[null,null,null,null,null,null,null,null,"Østerbø"]
[null,null,null,null,null,null,null,null,"Mentzoni"]
[null,null,null,null,null,null,null,null,"Kolås"]
[null,null,null,null,null,null,null,null,"Haraldstad"]
[null,null,null,null,null,null,null,null,"Gunnerud"]
[null,null,null,null,null,null,null,null,"Fjellanger"]
[null,null,null,null,null,null,null,null,"Brunes"]
[null,null,null,null,null,null,null,null,"Broen"]
[null,null,null,null,null,null,null,null,"Alvheim"]
[null,null,null,null,null,null,null,null,"Aarrestad"]
[null,null,null,null,null,null,null,null,"Vallestad"]
[null,null,null,null,null,null,null,null,"Skjæret"]
[null,null,null,null,null,null,null,null,"Skjong"]
[null,null,null,null,null,null,null,null,"Liknes"]
[null,null,null,null,null,null,null,null,"Kihle"]
[null,null,null,null,null,null,null,null,"Kaldestad"]
[null,null,null,null,null,null,null,null,"Haraldseid"]
[null,null,null,null,null,null,null,null,"Grøstad"]
[null,null,null,null,null,null,null,null,"Grønningsæter"]
[null,null,null,null,null,null,null,null,"Greve"]
[null,null,null,null,null,null,null,null,"Breen"]
[null,null,null,null,null,null,null,null,"Bratsberg"]
[null,null,null,null,null,null,null,null,"Bakkerud"]
[null,null,null,null,null,null,null,null,"Aspenes"]
[null,null,null,null,null,null,null,null,"Wangberg"]
[null,null,null,null,null,null,null,null,"Trønnes"]
[null,null,null,null,null,null,null,null,"Skarbø"]
[null,null,null,null,null,null,null,null,"Leonhardsen"]
[null,null,null,null,null,null,null,null,"Wroldsen"]
[null,null,null,null,null,null,null,null,"Ustad"]
[null,null,null,null,null,null,null,null,"Svendsrud"]
[null,null,null,null,null,null,null,null,"Skauen"]
[null,null,null,null,null,null,null,null,"Saue"]
[null,null,null,null,null,null,null,null,"Sandve"]
[null,null,null,null,null,null,null,null,"Reksten"]
[null,null,null,null,null,null,null,null,"Fossan"]
[null,null,null,null,null,null,null,null,"Flatås"]
[null,null,null,null,null,null,null,null,"Bruvoll"]
[null,null,null,null,null,null,null,null,"Bjørnå"]
[null,null,null,null,null,null,null,null,"Birkedal"]
[null,null,null,null,null,null,null,null,"Bakker"]
[null,null,null,null,null,null,null,null,"Aspaas"]
[null,null,null,null,null,null,null,null,"Akram"]
[null,null,null,null,null,null,null,null,"Øwre"]
[null,null,null,null,null,null,null,null,"Log"]
[null,null,null,null,null,null,null,null,"Kraft"]
[null,null,null,null,null,null,null,null,"Johanson"]
[null,null,null,null,null,null,null,null,"Farestveit"]
[null,null,null,null,null,null,null,null,"Austnes"]
[null,null,null,null,null,null,null,null,"Svensli"]
[null,null,null,null,null,null,null,null,"Sandbæk"]
[null,null,null,null,null,null,null,null,"Rognmo"]
[null,null,null,null,null,null,null,null,"Nordanger"]
[null,null,null,null,null,null,null,null,"Molund"]
[null,null,null,null,null,null,null,null,"Brattli"]
[null,null,null,null,null,null,null,null,"Utvik"]
[null,null,null,null,null,null,null,null,"Skotnes"]
[null,null,null,null,null,null,null,null,"Sekse"]
[null,null,null,null,null,null,null,null,"Høivik"]
[null,null,null,null,null,null,null,null,"Fjellvang"]
[null,null,null,null,null,null,null,null,"Drønen"]
[null,null,null,null,null,null,null,null,"Skistad"]
[null,null,null,null,null,null,null,null,"Røsvik"]
[null,null,null,null,null,null,null,null,"Hosseini"]
[null,null,null,null,null,null,null,null,"Årvik"]
[null,null,null,null,null,null,null,null,"Weiseth"]
[null,null,null,null,null,null,null,null,"Tidemann"]
[null,null,null,null,null,null,null,null,"Sletner"]
[null,null,null,null,null,null,null,null,"Seierstad"]
[null,null,null,null,null,null,null,null,"Rognli"]
[null,null,null,null,null,null,null,null,"Ringvold"]
[null,null,null,null,null,null,null,null,"Ring"]
[null,null,null,null,null,null,null,null,"Plassen"]
[null,null,null,null,null,null,null,null,"Munkvold"]
[null,null,null,null,null,null,null,null,"Malvik"]
[null,null,null,null,null,null,null,null,"Lillegård"]
[null,null,null,null,null,null,null,null,"Klingenberg"]
[null,null,null,null,null,null,null,null,"Ihle"]
[null,null,null,null,null,null,null,null,"Hemmingsen"]
[null,null,null,null,null,null,null,null,"Heltne"]
[null,null,null,null,null,null,null,null,"Drabløs"]
[null,null,null,null,null,null,null,null,"Blystad"]
[null,null,null,null,null,null,null,null,"Algrøy"]
[null,null,null,null,null,null,null,null,"Tonheim"]
[null,null,null,null,null,null,null,null,"Sporsheim"]
[null,null,null,null,null,null,null,null,"Lærum"]
[null,null,null,null,null,null,null,null,"Leikanger"]
[null,null,null,null,null,null,null,null,"Fossland"]
[null,null,null,null,null,null,null,null,"Askvik"]
[null,null,null,null,null,null,null,null,"Øvergaard"]
[null,null,null,null,null,null,null,null,"Wiborg"]
[null,null,null,null,null,null,null,null,"Tveite"]
[null,null,null,null,null,null,null,null,"Sogn"]
[null,null,null,null,null,null,null,null,"Overå"]
[null,null,null,null,null,null,null,null,"Milde"]
[null,null,null,null,null,null,null,null,"Konradsen"]
[null,null,null,null,null,null,null,null,"Hestvik"]
[null,null,null,null,null,null,null,null,"Frøseth"]
[null,null,null,null,null,null,null,null,"Fjærli"]
[null,null,null,null,null,null,null,null,"Dybdal"]
[null,null,null,null,null,null,null,null,"Bryne"]
[null,null,null,null,null,null,null,null,"Bjønnes"]
[null,null,null,null,null,null,null,null,"Berre"]
[null,null,null,null,null,null,null,null,"Worren"]
[null,null,null,null,null,null,null,null,"Vollen"]
[null,null,null,null,null,null,null,null,"Sæterdal"]
[null,null,null,null,null,null,null,null,"Sundli"]
[null,null,null,null,null,null,null,null,"Storås"]
[null,null,null,null,null,null,null,null,"Sandbakk"]
[null,null,null,null,null,null,null,null,"Nysæther"]
[null,null,null,null,null,null,null,null,"Kumar"]
[null,null,null,null,null,null,null,null,"Honningsvåg"]
[null,null,null,null,null,null,null,null,"Buljo"]
[null,null,null,null,null,null,null,null,"Øverbø"]
[null,null,null,null,null,null,null,null,"Welde"]
[null,null,null,null,null,null,null,null,"Synnes"]
[null,null,null,null,null,null,null,null,"Ose"]
[null,null,null,null,null,null,null,null,"Mikkelborg"]
[null,null,null,null,null,null,null,null,"Leikvoll"]
[null,null,null,null,null,null,null,null,"Thunes"]
[null,null,null,null,null,null,null,null,"Lauvås"]
[null,null,null,null,null,null,null,null,"Fardal"]
[null,null,null,null,null,null,null,null,"Bjerkås"]
[null,null,null,null,null,null,null,null,"Ulvund"]
[null,null,null,null,null,null,null,null,"Sakariassen"]
[null,null,null,null,null,null,null,null,"Kringstad"]
[null,null,null,null,null,null,null,null,"Horten"]
[null,null,null,null,null,null,null,null,"Hjelseth"]
[null,null,null,null,null,null,null,null,"Helstad"]
[null,null,null,null,null,null,null,null,"Hallan"]
[null,null,null,null,null,null,null,null,"Due"]
[null,null,null,null,null,null,null,null,"Byrkjeland"]
[null,null,null,null,null,null,null,null,"Tøndel"]
[null,null,null,null,null,null,null,null,"Stjern"]
[null,null,null,null,null,null,null,null,"Stadheim"]
[null,null,null,null,null,null,null,null,"Serigstad"]
[null,null,null,null,null,null,null,null,"Risberg"]
[null,null,null,null,null,null,null,null,"Nerdal"]
[null,null,null,null,null,null,null,null,"Kvalnes"]
[null,null,null,null,null,null,null,null,"Halleraker"]
[null,null,null,null,null,null,null,null,"Grue"]
[null,null,null,null,null,null,null,null,"Furseth"]
[null,null,null,null,null,null,null,null,"Østgaard"]
[null,null,null,null,null,null,null,null,"Westlie"]
[null,null,null,null,null,null,null,null,"Visnes"]
[null,null,null,null,null,null,null,null,"Thorud"]
[null,null,null,null,null,null,null,null,"Sundnes"]
[null,null,null,null,null,null,null,null,"Noor"]
[null,null,null,null,null,null,null,null,"Kolbjørnsen"]
[null,null,null,null,null,null,null,null,"Hveem"]
[null,null,null,null,null,null,null,null,"Fallet"]
[null,null,null,null,null,null,null,null,"Thygesen"]
[null,null,null,null,null,null,null,null,"Nybakken"]
[null,null,null,null,null,null,null,null,"Nordsveen"]
[null,null,null,null,null,null,null,null,"Nesvik"]
[null,null,null,null,null,null,null,null,"Lone"]
[null,null,null,null,null,null,null,null,"Kanestrøm"]
[null,null,null,null,null,null,null,null,"Hatlem"]
[null,null,null,null,null,null,null,null,"Engvik"]
[null,null,null,null,null,null,null,null,"Dalhaug"]
[null,null,null,null,null,null,null,null,"Bu"]
[null,null,null,null,null,null,null,null,"Abdulle"]
[null,null,null,null,null,null,null,null,"Rana"]
[null,null,null,null,null,null,null,null,"Hidle"]
[null,null,null,null,null,null,null,null,"Hay"]
[null,null,null,null,null,null,null,null,"Dvergsdal"]
[null,null,null,null,null,null,null,null,"Bremseth"]
[null,null,null,null,null,null,null,null,"Ytreland"]
[null,null,null,null,null,null,null,null,"Winje"]
[null,null,null,null,null,null,null,null,"Valberg"]
[null,null,null,null,null,null,null,null,"Solvoll"]
[null,null,null,null,null,null,null,null,"Skoge"]
[null,null,null,null,null,null,null,null,"Skinstad"]
[null,null,null,null,null,null,null,null,"Sandtorv"]
[null,null,null,null,null,null,null,null,"Røise"]
[null,null,null,null,null,null,null,null,"Nysted"]
[null,null,null,null,null,null,null,null,"Lyngmo"]
[null,null,null,null,null,null,null,null,"Lilletvedt"]
[null,null,null,null,null,null,null,null,"Heggernes"]
[null,null,null,null,null,null,null,null,"Børstad"]
[null,null,null,null,null,null,null,null,"Bjune"]
[null,null,null,null,null,null,null,null,"Bendixen"]
[null,null,null,null,null,null,null,null,"Stenerud"]
[null,null,null,null,null,null,null,null,"Løvlien"]
[null,null,null,null,null,null,null,null,"Kausar"]
[null,null,null,null,null,null,null,null,"Fuglerud"]
[null,null,null,null,null,null,null,null,"Framnes"]
[null,null,null,null,null,null,null,null,"Fleischer"]
[null,null,null,null,null,null,null,null,"Fjellestad"]
[null,null,null,null,null,null,null,null,"Dagsland"]
[null,null,null,null,null,null,null,null,"Silden"]
[null,null,null,null,null,null,null,null,"Saastad"]
[null,null,null,null,null,null,null,null,"Robstad"]
[null,null,null,null,null,null,null,null,"Rekstad"]
[null,null,null,null,null,null,null,null,"Nyquist"]
[null,null,null,null,null,null,null,null,"Holmvik"]
[null,null,null,null,null,null,null,null,"Hagland"]
[null,null,null,null,null,null,null,null,"Grotle"]
[null,null,null,null,null,null,null,null,"Bjerkli"]
[null,null,null,null,null,null,null,null,"Skråmestø"]
[null,null,null,null,null,null,null,null,"Naas"]
[null,null,null,null,null,null,null,null,"Lillejord"]
[null,null,null,null,null,null,null,null,"Knarvik"]
[null,null,null,null,null,null,null,null,"Helgheim"]
[null,null,null,null,null,null,null,null,"Dahir"]
[null,null,null,null,null,null,null,null,"Hegdal"]
[null,null,null,null,null,null,null,null,"Grøneng"]
[null,null,null,null,null,null,null,null,"Gausdal"]
[null,null,null,null,null,null,null,null,"Bilstad"]
[null,null,null,null,null,null,null,null,"Aarum"]
[null,null,null,null,null,null,null,null,"Vedøy"]
[null,null,null,null,null,null,null,null,"Vatle"]
[null,null,null,null,null,null,null,null,"Tetlie"]
[null,null,null,null,null,null,null,null,"Svanes"]
[null,null,null,null,null,null,null,null,"Roksvåg"]
[null,null,null,null,null,null,null,null,"Grav"]
[null,null,null,null,null,null,null,null,"Granly"]
[null,null,null,null,null,null,null,null,"Eidsvik"]
[null,null,null,null,null,null,null,null,"Brodahl"]
[null,null,null,null,null,null,null,null,"Breistein"]
[null,null,null,null,null,null,null,null,"Bredal"]
[null,null,null,null,null,null,null,null,"Backe"]
[null,null,null,null,null,null,null,null,"Wulff"]
[null,null,null,null,null,null,null,null,"Trengereid"]
[null,null,null,null,null,null,null,null,"Otnes"]
[null,null,null,null,null,null,null,null,"Meier"]
[null,null,null,null,null,null,null,null,"Khalid"]
[null,null,null,null,null,null,null,null,"Høye"]
[null,null,null,null,null,null,null,null,"Gåsland"]
[null,null,null,null,null,null,null,null,"Grønbech"]
[null,null,null,null,null,null,null,null,"Frøiland"]
[null,null,null,null,null,null,null,null,"Engeland"]
[null,null,null,null,null,null,null,null,"Bjørgo"]
[null,null,null,null,null,null,null,null,"Styve"]
[null,null,null,null,null,null,null,null,"Selvåg"]
[null,null,null,null,null,null,null,null,"Rånes"]
[null,null,null,null,null,null,null,null,"Runde"]
[null,null,null,null,null,null,null,null,"Ringnes"]
[null,null,null,null,null,null,null,null,"Nordlien"]
[null,null,null,null,null,null,null,null,"Molvær"]
[null,null,null,null,null,null,null,null,"Meek"]
[null,null,null,null,null,null,null,null,"Ludviksen"]
[null,null,null,null,null,null,null,null,"Liabø"]
[null,null,null,null,null,null,null,null,"Jøssang"]
[null,null,null,null,null,null,null,null,"Haveland"]
[null,null,null,null,null,null,null,null,"Halden"]
[null,null,null,null,null,null,null,null,"Ekroll"]
[null,null,null,null,null,null,null,null,"Ekre"]
[null,null,null,null,null,null,null,null,"Trydal"]
[null,null,null,null,null,null,null,null,"Søiland"]
[null,null,null,null,null,null,null,null,"Sæternes"]
[null,null,null,null,null,null,null,null,"Sleire"]
[null,null,null,null,null,null,null,null,"Skadberg"]
[null,null,null,null,null,null,null,null,"Sander"]
[null,null,null,null,null,null,null,null,"Rishaug"]
[null,null,null,null,null,null,null,null,"Mong"]
[null,null,null,null,null,null,null,null,"Leira"]
[null,null,null,null,null,null,null,null,"Korsvold"]
[null,null,null,null,null,null,null,null,"Husevåg"]
[null,null,null,null,null,null,null,null,"Fosshaug"]
[null,null,null,null,null,null,null,null,"Falk"]
[null,null,null,null,null,null,null,null,"Evenstad"]
[null,null,null,null,null,null,null,null,"Borgan"]
[null,null,null,null,null,null,null,null,"Willassen"]
[null,null,null,null,null,null,null,null,"Ringheim"]
[null,null,null,null,null,null,null,null,"Molde"]
[null,null,null,null,null,null,null,null,"Lysgård"]
[null,null,null,null,null,null,null,null,"Lieng"]
[null,null,null,null,null,null,null,null,"Helleren"]
[null,null,null,null,null,null,null,null,"Haugum"]
[null,null,null,null,null,null,null,null,"Grønn"]
[null,null,null,null,null,null,null,null,"Fanebust"]
[null,null,null,null,null,null,null,null,"Asp"]
[null,null,null,null,null,null,null,null,"Årseth"]
[null,null,null,null,null,null,null,null,"Årnes"]
[null,null,null,null,null,null,null,null,"Vedå"]
[null,null,null,null,null,null,null,null,"Taranger"]
[null,null,null,null,null,null,null,null,"Sparby"]
[null,null,null,null,null,null,null,null,"Sandsmark"]
[null,null,null,null,null,null,null,null,"Norli"]
[null,null,null,null,null,null,null,null,"Meisingset"]
[null,null,null,null,null,null,null,null,"Kirknes"]
[null,null,null,null,null,null,null,null,"Fonn"]
[null,null,null,null,null,null,null,null,"Vikøren"]
[null,null,null,null,null,null,null,null,"Stålesen"]
[null,null,null,null,null,null,null,null,"Sandersen"]
[null,null,null,null,null,null,null,null,"Rønne"]
[null,null,null,null,null,null,null,null,"Nistad"]
[null,null,null,null,null,null,null,null,"Kirkerud"]
[null,null,null,null,null,null,null,null,"Hatlevik"]
[null,null,null,null,null,null,null,null,"Harnes"]
[null,null,null,null,null,null,null,null,"Groth"]
[null,null,null,null,null,null,null,null,"Fidje"]
[null,null,null,null,null,null,null,null,"Fagermo"]
[null,null,null,null,null,null,null,null,"Ulleberg"]
[null,null,null,null,null,null,null,null,"Sæterbø"]
[null,null,null,null,null,null,null,null,"Skaugen"]
[null,null,null,null,null,null,null,null,"Rømo"]
[null,null,null,null,null,null,null,null,"Nevland"]
[null,null,null,null,null,null,null,null,"Moholt"]
[null,null,null,null,null,null,null,null,"Kidane"]
[null,null,null,null,null,null,null,null,"Helgestad"]
[null,null,null,null,null,null,null,null,"Figenschou"]
[null,null,null,null,null,null,null,null,"Brunvoll"]
[null,null,null,null,null,null,null,null,"Bauer"]
[null,null,null,null,null,null,null,null,"Aagesen"]
[null,null,null,null,null,null,null,null,"Øyan"]
[null,null,null,null,null,null,null,null,"Trulsen"]
[null,null,null,null,null,null,null,null,"Tjessem"]
[null,null,null,null,null,null,null,null,"Søgård"]
[null,null,null,null,null,null,null,null,"Søgaard"]
[null,null,null,null,null,null,null,null,"Sætran"]
[null,null,null,null,null,null,null,null,"Stormoen"]
[null,null,null,null,null,null,null,null,"Røysland"]
[null,null,null,null,null,null,null,null,"Repstad"]
[null,null,null,null,null,null,null,null,"Moseng"]
[null,null,null,null,null,null,null,null,"Lilleås"]
[null,null,null,null,null,null,null,null,"Kasin"]
[null,null,null,null,null,null,null,null,"Hilstad"]
[null,null,null,null,null,null,null,null,"Hashi"]
[null,null,null,null,null,null,null,null,"Aaby"]
[null,null,null,null,null,null,null,null,"Sørland"]
[null,null,null,null,null,null,null,null,"Rognes"]
[null,null,null,null,null,null,null,null,"Negård"]
[null,null,null,null,null,null,null,null,"Muren"]
[null,null,null,null,null,null,null,null,"Becker"]
[null,null,null,null,null,null,null,null,"Vorland"]
[null,null,null,null,null,null,null,null,"Valseth"]
[null,null,null,null,null,null,null,null,"Slette"]
[null,null,null,null,null,null,null,null,"Sjøgren"]
[null,null,null,null,null,null,null,null,"Sagbakken"]
[null,null,null,null,null,null,null,null,"Rafoss"]
[null,null,null,null,null,null,null,null,"Natland"]
[null,null,null,null,null,null,null,null,"Lundal"]
[null,null,null,null,null,null,null,null,"Kongsvik"]
[null,null,null,null,null,null,null,null,"Joakimsen"]
[null,null,null,null,null,null,null,null,"Hoseth"]
[null,null,null,null,null,null,null,null,"Haver"]
[null,null,null,null,null,null,null,null,"Haugsvær"]
[null,null,null,null,null,null,null,null,"Halleland"]
[null,null,null,null,null,null,null,null,"Grindhaug"]
[null,null,null,null,null,null,null,null,"Endal"]
[null,null,null,null,null,null,null,null,"Eidet"]
[null,null,null,null,null,null,null,null,"Bergo"]
[null,null,null,null,null,null,null,null,"Bell"]
[null,null,null,null,null,null,null,null,"Amiri"]
[null,null,null,null,null,null,null,null,"Øvereng"]
[null,null,null,null,null,null,null,null,"Røst"]
[null,null,null,null,null,null,null,null,"Nerhus"]
[null,null,null,null,null,null,null,null,"Moksnes"]
[null,null,null,null,null,null,null,null,"Melsom"]
[null,null,null,null,null,null,null,null,"Leren"]
[null,null,null,null,null,null,null,null,"Hølland"]
[null,null,null,null,null,null,null,null,"Devold"]
[null,null,null,null,null,null,null,null,"Brobakken"]
[null,null,null,null,null,null,null,null,"Borchgrevink"]
[null,null,null,null,null,null,null,null,"Bergquist"]
[null,null,null,null,null,null,null,null,"Smørdal"]
[null,null,null,null,null,null,null,null,"Skåre"]
[null,null,null,null,null,null,null,null,"Safi"]
[null,null,null,null,null,null,null,null,"Lindal"]
[null,null,null,null,null,null,null,null,"Landrø"]
[null,null,null,null,null,null,null,null,"Koppang"]
[null,null,null,null,null,null,null,null,"Kløvstad"]
[null,null,null,null,null,null,null,null,"Gjerdrum"]
[null,null,null,null,null,null,null,null,"Fløtre"]
[null,null,null,null,null,null,null,null,"Flønes"]
[null,null,null,null,null,null,null,null,"Fiskå"]
[null,null,null,null,null,null,null,null,"Fagervik"]
[null,null,null,null,null,null,null,null,"Dyrseth"]
[null,null,null,null,null,null,null,null,"Bjorøy"]
[null,null,null,null,null,null,null,null,"Yildiz"]
[null,null,null,null,null,null,null,null,"Wiken"]
[null,null,null,null,null,null,null,null,"Seljeseth"]
[null,null,null,null,null,null,null,null,"Ramsdal"]
[null,null,null,null,null,null,null,null,"Natvik"]
[null,null,null,null,null,null,null,null,"Kydland"]
[null,null,null,null,null,null,null,null,"Kjeldsberg"]
[null,null,null,null,null,null,null,null,"Kirkhus"]
[null,null,null,null,null,null,null,null,"Gjersøe"]
[null,null,null,null,null,null,null,null,"Fossmo"]
[null,null,null,null,null,null,null,null,"Finnerud"]
[null,null,null,null,null,null,null,null,"Dyrøy"]
[null,null,null,null,null,null,null,null,"Aglen"]
[null,null,null,null,null,null,null,null,"Skovly"]
[null,null,null,null,null,null,null,null,"Ommedal"]
[null,null,null,null,null,null,null,null,"Narum"]
[null,null,null,null,null,null,null,null,"Lomeland"]
[null,null,null,null,null,null,null,null,"Lekven"]
[null,null,null,null,null,null,null,null,"Halvorsrud"]
[null,null,null,null,null,null,null,null,"Balstad"]
[null,null,null,null,null,null,null,null,"Tysnes"]
[null,null,null,null,null,null,null,null,"Sandvoll"]
[null,null,null,null,null,null,null,null,"Ryeng"]
[null,null,null,null,null,null,null,null,"Mahmoud"]
[null,null,null,null,null,null,null,null,"Lindholm"]
[null,null,null,null,null,null,null,null,"Idsøe"]
[null,null,null,null,null,null,null,null,"Høgberg"]
[null,null,null,null,null,null,null,null,"Heggedal"]
[null,null,null,null,null,null,null,null,"Habberstad"]
[null,null,null,null,null,null,null,null,"Giæver"]
[null,null,null,null,null,null,null,null,"Fretheim"]
[null,null,null,null,null,null,null,null,"Drivenes"]
[null,null,null,null,null,null,null,null,"Bruheim"]
[null,null,null,null,null,null,null,null,"Bastiansen"]
[null,null,null,null,null,null,null,null,"Aurdal"]
[null,null,null,null,null,null,null,null,"Stokland"]
[null,null,null,null,null,null,null,null,"Norman"]
[null,null,null,null,null,null,null,null,"Neteland"]
[null,null,null,null,null,null,null,null,"Natvig"]
[null,null,null,null,null,null,null,null,"Karlson"]
[null,null,null,null,null,null,null,null,"Furset"]
[null,null,null,null,null,null,null,null,"Anti"]
[null,null,null,null,null,null,null,null,"Villanger"]
[null,null,null,null,null,null,null,null,"Tronrud"]
[null,null,null,null,null,null,null,null,"Tesfay"]
[null,null,null,null,null,null,null,null,"Strandheim"]
[null,null,null,null,null,null,null,null,"Stenvik"]
[null,null,null,null,null,null,null,null,"Staff"]
[null,null,null,null,null,null,null,null,"Neverdal"]
[null,null,null,null,null,null,null,null,"Lindquist"]
[null,null,null,null,null,null,null,null,"Kvamsdal"]
[null,null,null,null,null,null,null,null,"Kvalø"]
[null,null,null,null,null,null,null,null,"Idsø"]
[null,null,null,null,null,null,null,null,"Aasberg"]
[null,null,null,null,null,null,null,null,"Øvrelid"]
[null,null,null,null,null,null,null,null,"Vestly"]
[null,null,null,null,null,null,null,null,"Sundseth"]
[null,null,null,null,null,null,null,null,"Solstrand"]
[null,null,null,null,null,null,null,null,"Sjøen"]
[null,null,null,null,null,null,null,null,"Salberg"]
[null,null,null,null,null,null,null,null,"Rovik"]
[null,null,null,null,null,null,null,null,"Nerheim"]
[null,null,null,null,null,null,null,null,"Linge"]
[null,null,null,null,null,null,null,null,"Lindvik"]
[null,null,null,null,null,null,null,null,"Kowalczyk"]
[null,null,null,null,null,null,null,null,"Hepsø"]
[null,null,null,null,null,null,null,null,"Gjestvang"]
[null,null,null,null,null,null,null,null,"Gjengedal"]
[null,null,null,null,null,null,null,null,"Carlson"]
[null,null,null,null,null,null,null,null,"Vestrheim"]
[null,null,null,null,null,null,null,null,"Torland"]
[null,null,null,null,null,null,null,null,"Rystad"]
[null,null,null,null,null,null,null,null,"Rist"]
[null,null,null,null,null,null,null,null,"Riiser"]
[null,null,null,null,null,null,null,null,"Nordland"]
[null,null,null,null,null,null,null,null,"Maurstad"]
[null,null,null,null,null,null,null,null,"Kverneland"]
[null,null,null,null,null,null,null,null,"Høgli"]
[null,null,null,null,null,null,null,null,"Holta"]
[null,null,null,null,null,null,null,null,"Helset"]
[null,null,null,null,null,null,null,null,"Guttorm"]
[null,null,null,null,null,null,null,null,"Ekelund"]
[null,null,null,null,null,null,null,null,"Yttervik"]
[null,null,null,null,null,null,null,null,"Wiklund"]
[null,null,null,null,null,null,null,null,"Taksdal"]
[null,null,null,null,null,null,null,null,"Sørmo"]
[null,null,null,null,null,null,null,null,"Skansen"]
[null,null,null,null,null,null,null,null,"Sinnes"]
[null,null,null,null,null,null,null,null,"Nordgaard"]
[null,null,null,null,null,null,null,null,"Nordang"]
[null,null,null,null,null,null,null,null,"Mirza"]
[null,null,null,null,null,null,null,null,"Martens"]
[null,null,null,null,null,null,null,null,"Mandal"]
[null,null,null,null,null,null,null,null,"Kjelsrud"]
[null,null,null,null,null,null,null,null,"Hjelde"]
[null,null,null,null,null,null,null,null,"Hella"]
[null,null,null,null,null,null,null,null,"Hartviksen"]
[null,null,null,null,null,null,null,null,"Gunnes"]
[null,null,null,null,null,null,null,null,"Elden"]
[null,null,null,null,null,null,null,null,"Aanerud"]
[null,null,null,null,null,null,null,null,"Vist"]
[null,null,null,null,null,null,null,null,"Vevle"]
[null,null,null,null,null,null,null,null,"Tekle"]
[null,null,null,null,null,null,null,null,"Storheim"]
[null,null,null,null,null,null,null,null,"Sikveland"]
[null,null,null,null,null,null,null,null,"Salih"]
[null,null,null,null,null,null,null,null,"Røkenes"]
[null,null,null,null,null,null,null,null,"Melum"]
[null,null,null,null,null,null,null,null,"Løvlie"]
[null,null,null,null,null,null,null,null,"Lehne"]
[null,null,null,null,null,null,null,null,"Langfeldt"]
[null,null,null,null,null,null,null,null,"Hildrum"]
[null,null,null,null,null,null,null,null,"Frøystad"]
[null,null,null,null,null,null,null,null,"Skramstad"]
[null,null,null,null,null,null,null,null,"Melgård"]
[null,null,null,null,null,null,null,null,"Langaas"]
[null,null,null,null,null,null,null,null,"Kjærvik"]
[null,null,null,null,null,null,null,null,"Hegre"]
[null,null,null,null,null,null,null,null,"Gjelsten"]
[null,null,null,null,null,null,null,null,"Ernstsen"]
[null,null,null,null,null,null,null,null,"Bartnes"]
[null,null,null,null,null,null,null,null,"Wikstrøm"]
[null,null,null,null,null,null,null,null,"Tjøsvoll"]
[null,null,null,null,null,null,null,null,"Miller"]
[null,null,null,null,null,null,null,null,"Klev"]
[null,null,null,null,null,null,null,null,"Indergård"]
[null,null,null,null,null,null,null,null,"Hordvik"]
[null,null,null,null,null,null,null,null,"Gjønnes"]
[null,null,null,null,null,null,null,null,"Følstad"]
[null,null,null,null,null,null,null,null,"Aukland"]
[null,null,null,null,null,null,null,null,"Westberg"]
[null,null,null,null,null,null,null,null,"Takle"]
[null,null,null,null,null,null,null,null,"Stavland"]
[null,null,null,null,null,null,null,null,"Slyngstad"]
[null,null,null,null,null,null,null,null,"Rustand"]
[null,null,null,null,null,null,null,null,"Lindanger"]
[null,null,null,null,null,null,null,null,"Hilde"]
[null,null,null,null,null,null,null,null,"Heimstad"]
[null,null,null,null,null,null,null,null,"Garcia"]
[null,null,null,null,null,null,null,null,"Folland"]
[null,null,null,null,null,null,null,null,"Fadnes"]
[null,null,null,null,null,null,null,null,"Evju"]
[null,null,null,null,null,null,null,null,"Brattås"]
[null,null,null,null,null,null,null,null,"Søbstad"]
[null,null,null,null,null,null,null,null,"Svenkerud"]
[null,null,null,null,null,null,null,null,"Stokkan"]
[null,null,null,null,null,null,null,null,"Stavnes"]
[null,null,null,null,null,null,null,null,"Skjevik"]
[null,null,null,null,null,null,null,null,"Skarstad"]
[null,null,null,null,null,null,null,null,"Røgeberg"]
[null,null,null,null,null,null,null,null,"Ranum"]
[null,null,null,null,null,null,null,null,"Paus"]
[null,null,null,null,null,null,null,null,"Nordmark"]
[null,null,null,null,null,null,null,null,"Marstein"]
[null,null,null,null,null,null,null,null,"Kaya"]
[null,null,null,null,null,null,null,null,"Kaupang"]
[null,null,null,null,null,null,null,null,"Digre"]
[null,null,null,null,null,null,null,null,"Bøthun"]
[null,null,null,null,null,null,null,null,"Brunborg"]
[null,null,null,null,null,null,null,null,"Berhe"]
[null,null,null,null,null,null,null,null,"Øvsthus"]
[null,null,null,null,null,null,null,null,"Valland"]
[null,null,null,null,null,null,null,null,"Roen"]
[null,null,null,null,null,null,null,null,"Onstad"]
[null,null,null,null,null,null,null,null,"Nordlund"]
[null,null,null,null,null,null,null,null,"Myrene"]
[null,null,null,null,null,null,null,null,"Grebstad"]
[null,null,null,null,null,null,null,null,"Fimreite"]
[null,null,null,null,null,null,null,null,"Ballestad"]
[null,null,null,null,null,null,null,null,"Tahir"]
[null,null,null,null,null,null,null,null,"Sellæg"]
[null,null,null,null,null,null,null,null,"Scheie"]
[null,null,null,null,null,null,null,null,"Rehman"]
[null,null,null,null,null,null,null,null,"Levang"]
[null,null,null,null,null,null,null,null,"Kjølberg"]
[null,null,null,null,null,null,null,null,"Husum"]
[null,null,null,null,null,null,null,null,"Førre"]
[null,null,null,null,null,null,null,null,"Doan"]
[null,null,null,null,null,null,null,null,"Devik"]
[null,null,null,null,null,null,null,null,"Belsvik"]
[null,null,null,null,null,null,null,null,"Arshad"]
[null,null,null,null,null,null,null,null,"Ånensen"]
[null,null,null,null,null,null,null,null,"Todnem"]
[null,null,null,null,null,null,null,null,"Sønsterud"]
[null,null,null,null,null,null,null,null,"Rørtveit"]
[null,null,null,null,null,null,null,null,"Presthus"]
[null,null,null,null,null,null,null,null,"Lundquist"]
[null,null,null,null,null,null,null,null,"Hustveit"]
[null,null,null,null,null,null,null,null,"Hellstrøm"]
[null,null,null,null,null,null,null,null,"Haugo"]
[null,null,null,null,null,null,null,null,"Haji"]
[null,null,null,null,null,null,null,null,"Fagerhaug"]
[null,null,null,null,null,null,null,null,"Emblem"]
[null,null,null,null,null,null,null,null,"Brekka"]
[null,null,null,null,null,null,null,null,"Zimmermann"]
[null,null,null,null,null,null,null,null,"Skjervold"]
[null,null,null,null,null,null,null,null,"Oliversen"]
[null,null,null,null,null,null,null,null,"Mikaelsen"]
[null,null,null,null,null,null,null,null,"Lokøy"]
[null,null,null,null,null,null,null,null,"Lillemo"]
[null,null,null,null,null,null,null,null,"Justad"]
[null,null,null,null,null,null,null,null,"Djønne"]
[null,null,null,null,null,null,null,null,"Cappelen"]
[null,null,null,null,null,null,null,null,"Åkre"]
[null,null,null,null,null,null,null,null,"Tokle"]
[null,null,null,null,null,null,null,null,"Skjelvik"]
[null,null,null,null,null,null,null,null,"Rimstad"]
[null,null,null,null,null,null,null,null,"Ravnås"]
[null,null,null,null,null,null,null,null,"Raa"]
[null,null,null,null,null,null,null,null,"Nyseth"]
[null,null,null,null,null,null,null,null,"Midtskogen"]
[null,null,null,null,null,null,null,null,"Merkesdal"]
[null,null,null,null,null,null,null,null,"Hjorth"]
[null,null,null,null,null,null,null,null,"Hartveit"]
[null,null,null,null,null,null,null,null,"Hagberg"]
[null,null,null,null,null,null,null,null,"Ekeli"]
[null,null,null,null,null,null,null,null,"Buene"]
[null,null,null,null,null,null,null,null,"Buan"]
[null,null,null,null,null,null,null,null,"Bringedal"]
[null,null,null,null,null,null,null,null,"Yilmaz"]
[null,null,null,null,null,null,null,null,"Tungland"]
[null,null,null,null,null,null,null,null,"Trana"]
[null,null,null,null,null,null,null,null,"Stokstad"]
[null,null,null,null,null,null,null,null,"Smistad"]
[null,null,null,null,null,null,null,null,"Skretteberg"]
[null,null,null,null,null,null,null,null,"Lindås"]
[null,null,null,null,null,null,null,null,"Krogsæter"]
[null,null,null,null,null,null,null,null,"Høiberg"]
[null,null,null,null,null,null,null,null,"Hannisdal"]
[null,null,null,null,null,null,null,null,"Bjørnø"]
[null,null,null,null,null,null,null,null,"Aurstad"]
[null,null,null,null,null,null,null,null,"Ås"]
[null,null,null,null,null,null,null,null,"Slåtten"]
[null,null,null,null,null,null,null,null,"Reyes"]
[null,null,null,null,null,null,null,null,"Olesen"]
[null,null,null,null,null,null,null,null,"Nesland"]
[null,null,null,null,null,null,null,null,"Langedal"]
[null,null,null,null,null,null,null,null,"Høgås"]
[null,null,null,null,null,null,null,null,"Hernæs"]
[null,null,null,null,null,null,null,null,"Glad"]
[null,null,null,null,null,null,null,null,"Bergseng"]
[null,null,null,null,null,null,null,null,"Alsvik"]
[null,null,null,null,null,null,null,null,"Øvstebø"]
[null,null,null,null,null,null,null,null,"Wollan"]
[null,null,null,null,null,null,null,null,"Vonheim"]
[null,null,null,null,null,null,null,null,"Uthus"]
[null,null,null,null,null,null,null,null,"Træet"]
[null,null,null,null,null,null,null,null,"Sagstuen"]
[null,null,null,null,null,null,null,null,"Rørstad"]
[null,null,null,null,null,null,null,null,"Rue"]
[null,null,null,null,null,null,null,null,"Rossebø"]
[null,null,null,null,null,null,null,null,"Oterhals"]
[null,null,null,null,null,null,null,null,"Orre"]
[null,null,null,null,null,null,null,null,"Ohnstad"]
[null,null,null,null,null,null,null,null,"Lynum"]
[null,null,null,null,null,null,null,null,"Kvinnesland"]
[null,null,null,null,null,null,null,null,"Kowalski"]
[null,null,null,null,null,null,null,null,"Hinna"]
[null,null,null,null,null,null,null,null,"Barka"]
[null,null,null,null,null,null,null,null,"Aa"]
[null,null,null,null,null,null,null,null,"Vetrhus"]
[null,null,null,null,null,null,null,null,"Thoen"]
[null,null,null,null,null,null,null,null,"Mossige"]
[null,null,null,null,null,null,null,null,"Leirvåg"]
[null,null,null,null,null,null,null,null,"Heim"]
[null,null,null,null,null,null,null,null,"Hageland"]
[null,null,null,null,null,null,null,null,"Gunnerød"]
[null,null,null,null,null,null,null,null,"Elvenes"]
[null,null,null,null,null,null,null,null,"Ekstrøm"]
[null,null,null,null,null,null,null,null,"Dyrhaug"]
[null,null,null,null,null,null,null,null,"Bengtsson"]
[null,null,null,null,null,null,null,null,"Bakkehaug"]
[null,null,null,null,null,null,null,null,"Wibe"]
[null,null,null,null,null,null,null,null,"Vestøl"]
[null,null,null,null,null,null,null,null,"Sætren"]
[null,null,null,null,null,null,null,null,"Stordahl"]
[null,null,null,null,null,null,null,null,"Skinnes"]
[null,null,null,null,null,null,null,null,"Seppola"]
[null,null,null,null,null,null,null,null,"Parveen"]
[null,null,null,null,null,null,null,null,"Njærheim"]
[null,null,null,null,null,null,null,null,"Medhus"]
[null,null,null,null,null,null,null,null,"Kvandal"]
[null,null,null,null,null,null,null,null,"Hodneland"]
[null,null,null,null,null,null,null,null,"Hjelm"]
[null,null,null,null,null,null,null,null,"Haukenes"]
[null,null,null,null,null,null,null,null,"Grønvik"]
[null,null,null,null,null,null,null,null,"Flatøy"]
[null,null,null,null,null,null,null,null,"Wahlstrøm"]
[null,null,null,null,null,null,null,null,"Sylta"]
[null,null,null,null,null,null,null,null,"Soltveit"]
[null,null,null,null,null,null,null,null,"Løtveit"]
[null,null,null,null,null,null,null,null,"Løkkeberg"]
[null,null,null,null,null,null,null,null,"Lilleland"]
[null,null,null,null,null,null,null,null,"Leiknes"]
[null,null,null,null,null,null,null,null,"Korsvik"]
[null,null,null,null,null,null,null,null,"Hervik"]
[null,null,null,null,null,null,null,null,"Haukedal"]
[null,null,null,null,null,null,null,null,"Grøndal"]
[null,null,null,null,null,null,null,null,"Abukar"]
[null,null,null,null,null,null,null,null,"Wisløff"]
[null,null,null,null,null,null,null,null,"Todal"]
[null,null,null,null,null,null,null,null,"Sevaldsen"]
[null,null,null,null,null,null,null,null,"Oppegaard"]
[null,null,null,null,null,null,null,null,"Nordtømme"]
[null,null,null,null,null,null,null,null,"Miljeteig"]
[null,null,null,null,null,null,null,null,"Løchen"]
[null,null,null,null,null,null,null,null,"Liverød"]
[null,null,null,null,null,null,null,null,"Lehn"]
[null,null,null,null,null,null,null,null,"Krogsrud"]
[null,null,null,null,null,null,null,null,"Josdal"]
[null,null,null,null,null,null,null,null,"Høglund"]
[null,null,null,null,null,null,null,null,"Haddal"]
[null,null,null,null,null,null,null,null,"Furuheim"]
[null,null,null,null,null,null,null,null,"Elnes"]
[null,null,null,null,null,null,null,null,"Celius"]
[null,null,null,null,null,null,null,null,"Askildsen"]
[null,null,null,null,null,null,null,null,"Skogvold"]
[null,null,null,null,null,null,null,null,"Lidal"]
[null,null,null,null,null,null,null,null,"Khalil"]
[null,null,null,null,null,null,null,null,"Horntvedt"]
[null,null,null,null,null,null,null,null,"Guldberg"]
[null,null,null,null,null,null,null,null,"Grøtan"]
[null,null,null,null,null,null,null,null,"Eriksrud"]
[null,null,null,null,null,null,null,null,"Walseth"]
[null,null,null,null,null,null,null,null,"Sværen"]
[null,null,null,null,null,null,null,null,"Sneve"]
[null,null,null,null,null,null,null,null,"Remmen"]
[null,null,null,null,null,null,null,null,"Marvik"]
[null,null,null,null,null,null,null,null,"Høydahl"]
[null,null,null,null,null,null,null,null,"Hustoft"]
[null,null,null,null,null,null,null,null,"Hannestad"]
[null,null,null,null,null,null,null,null,"Hammeren"]
[null,null,null,null,null,null,null,null,"Gjøsund"]
[null,null,null,null,null,null,null,null,"Dragland"]
[null,null,null,null,null,null,null,null,"Valla"]
[null,null,null,null,null,null,null,null,"Søderholm"]
[null,null,null,null,null,null,null,null,"Pilskog"]
[null,null,null,null,null,null,null,null,"Nedregård"]
[null,null,null,null,null,null,null,null,"Morland"]
[null,null,null,null,null,null,null,null,"Midthun"]
[null,null,null,null,null,null,null,null,"Laursen"]
[null,null,null,null,null,null,null,null,"Herheim"]
[null,null,null,null,null,null,null,null,"Grønhaug"]
[null,null,null,null,null,null,null,null,"Garshol"]
[null,null,null,null,null,null,null,null,"Aabel"]
[null,null,null,null,null,null,null,null,"Øvstedal"]
[null,null,null,null,null,null,null,null,"Østerud"]
[null,null,null,null,null,null,null,null,"Wojcik"]
[null,null,null,null,null,null,null,null,"Wagner"]
[null,null,null,null,null,null,null,null,"Thrane"]
[null,null,null,null,null,null,null,null,"Svanberg"]
[null,null,null,null,null,null,null,null,"Skotte"]
[null,null,null,null,null,null,null,null,"Skjærstad"]
[null,null,null,null,null,null,null,null,"Mellemstrand"]
[null,null,null,null,null,null,null,null,"Lopez"]
[null,null,null,null,null,null,null,null,"Isdahl"]
[null,null,null,null,null,null,null,null,"Bjørkmo"]
[null,null,null,null,null,null,null,null,"Westerlund"]
[null,null,null,null,null,null,null,null,"Utgård"]
[null,null,null,null,null,null,null,null,"Størdal"]
[null,null,null,null,null,null,null,null,"Ophus"]
[null,null,null,null,null,null,null,null,"Olsrud"]
[null,null,null,null,null,null,null,null,"Leidland"]
[null,null,null,null,null,null,null,null,"Kvia"]
[null,null,null,null,null,null,null,null,"Iden"]
[null,null,null,null,null,null,null,null,"Havik"]
[null,null,null,null,null,null,null,null,"Folkedal"]
[null,null,null,null,null,null,null,null,"Fagereng"]
[null,null,null,null,null,null,null,null,"Bratvold"]
[null,null,null,null,null,null,null,null,"Ånestad"]
[null,null,null,null,null,null,null,null,"Ulvik"]
[null,null,null,null,null,null,null,null,"Tessem"]
[null,null,null,null,null,null,null,null,"Skram"]
[null,null,null,null,null,null,null,null,"Skavhaug"]
[null,null,null,null,null,null,null,null,"Sjåvik"]
[null,null,null,null,null,null,null,null,"Selstad"]
[null,null,null,null,null,null,null,null,"Sellevold"]
[null,null,null,null,null,null,null,null,"Raza"]
[null,null,null,null,null,null,null,null,"Nordrum"]
[null,null,null,null,null,null,null,null,"Kjørstad"]
[null,null,null,null,null,null,null,null,"Kjelstad"]
[null,null,null,null,null,null,null,null,"Hollund"]
[null,null,null,null,null,null,null,null,"Frøysa"]
[null,null,null,null,null,null,null,null,"Ensrud"]
[null,null,null,null,null,null,null,null,"Dybwad"]
[null,null,null,null,null,null,null,null,"Arctander"]
[null,null,null,null,null,null,null,null,"Abraham"]
[null,null,null,null,null,null,null,null,"Aam"]
[null,null,null,null,null,null,null,null,"Wisth"]
[null,null,null,null,null,null,null,null,"Westerheim"]
[null,null,null,null,null,null,null,null,"Viddal"]
[null,null,null,null,null,null,null,null,"Thorgersen"]
[null,null,null,null,null,null,null,null,"Tesdal"]
[null,null,null,null,null,null,null,null,"Suhr"]
[null,null,null,null,null,null,null,null,"Slettum"]
[null,null,null,null,null,null,null,null,"Skevik"]
[null,null,null,null,null,null,null,null,"Rahman"]
[null,null,null,null,null,null,null,null,"Oksnes"]
[null,null,null,null,null,null,null,null,"Løset"]
[null,null,null,null,null,null,null,null,"Kim"]
[null,null,null,null,null,null,null,null,"Fyhn"]
[null,null,null,null,null,null,null,null,"Fagerås"]
[null,null,null,null,null,null,null,null,"Bones"]
[null,null,null,null,null,null,null,null,"Bakkejord"]
[null,null,null,null,null,null,null,null,"Storeide"]
[null,null,null,null,null,null,null,null,"Skålevik"]
[null,null,null,null,null,null,null,null,"Rongved"]
[null,null,null,null,null,null,null,null,"Refsland"]
[null,null,null,null,null,null,null,null,"Mørkved"]
[null,null,null,null,null,null,null,null,"Kind"]
[null,null,null,null,null,null,null,null,"Grønlie"]
[null,null,null,null,null,null,null,null,"Grannes"]
[null,null,null,null,null,null,null,null,"Almaas"]
[null,null,null,null,null,null,null,null,"Ytterstad"]
[null,null,null,null,null,null,null,null,"Wright"]
[null,null,null,null,null,null,null,null,"Takvam"]
[null,null,null,null,null,null,null,null,"Stokken"]
[null,null,null,null,null,null,null,null,"Mongstad"]
[null,null,null,null,null,null,null,null,"Melvold"]
[null,null,null,null,null,null,null,null,"Mehl"]
[null,null,null,null,null,null,null,null,"Leivestad"]
[null,null,null,null,null,null,null,null,"Kleppa"]
[null,null,null,null,null,null,null,null,"Hol"]
[null,null,null,null,null,null,null,null,"Hilleren"]
[null,null,null,null,null,null,null,null,"Grønnestad"]
[null,null,null,null,null,null,null,null,"Grimsmo"]
[null,null,null,null,null,null,null,null,"Brandvik"]
[null,null,null,null,null,null,null,null,"Asghar"]
[null,null,null,null,null,null,null,null,"Yang"]
[null,null,null,null,null,null,null,null,"Wickstrøm"]
[null,null,null,null,null,null,null,null,"Wetteland"]
[null,null,null,null,null,null,null,null,"Sætra"]
[null,null,null,null,null,null,null,null,"Skogsrud"]
[null,null,null,null,null,null,null,null,"Skjønberg"]
[null,null,null,null,null,null,null,null,"Røhne"]
[null,null,null,null,null,null,null,null,"Malmedal"]
[null,null,null,null,null,null,null,null,"Klakegg"]
[null,null,null,null,null,null,null,null,"Hokstad"]
[null,null,null,null,null,null,null,null,"Hammerø"]
[null,null,null,null,null,null,null,null,"Gangstad"]
[null,null,null,null,null,null,null,null,"Fossmark"]
[null,null,null,null,null,null,null,null,"Emanuelsen"]
[null,null,null,null,null,null,null,null,"Brevig"]
[null,null,null,null,null,null,null,null,"Angvik"]
[null,null,null,null,null,null,null,null,"Øiestad"]
[null,null,null,null,null,null,null,null,"Weum"]
[null,null,null,null,null,null,null,null,"Warholm"]
[null,null,null,null,null,null,null,null,"Sviland"]
[null,null,null,null,null,null,null,null,"Skjolden"]
[null,null,null,null,null,null,null,null,"Nome"]
[null,null,null,null,null,null,null,null,"Nessa"]
[null,null,null,null,null,null,null,null,"Nerli"]
[null,null,null,null,null,null,null,null,"Mehlum"]
[null,null,null,null,null,null,null,null,"Einvik"]
[null,null,null,null,null,null,null,null,"Eggan"]
[null,null,null,null,null,null,null,null,"Bærheim"]
[null,null,null,null,null,null,null,null,"Bodin"]
[null,null,null,null,null,null,null,null,"Wille"]
[null,null,null,null,null,null,null,null,"Vassdal"]
[null,null,null,null,null,null,null,null,"Tverberg"]
[null,null,null,null,null,null,null,null,"Tjelle"]
[null,null,null,null,null,null,null,null,"Staven"]
[null,null,null,null,null,null,null,null,"Solevåg"]
[null,null,null,null,null,null,null,null,"Skårdal"]
[null,null,null,null,null,null,null,null,"Skagestad"]
[null,null,null,null,null,null,null,null,"Selle"]
[null,null,null,null,null,null,null,null,"Schanche"]
[null,null,null,null,null,null,null,null,"Røyrvik"]
[null,null,null,null,null,null,null,null,"Røyland"]
[null,null,null,null,null,null,null,null,"Robberstad"]
[null,null,null,null,null,null,null,null,"Rikstad"]
[null,null,null,null,null,null,null,null,"Oskarsen"]
[null,null,null,null,null,null,null,null,"Omer"]
[null,null,null,null,null,null,null,null,"Næs"]
[null,null,null,null,null,null,null,null,"Langset"]
[null,null,null,null,null,null,null,null,"Fossnes"]
[null,null,null,null,null,null,null,null,"Eskedal"]
[null,null,null,null,null,null,null,null,"Brænden"]
[null,null,null,null,null,null,null,null,"Broch"]
[null,null,null,null,null,null,null,null,"Aandal"]
[null,null,null,null,null,null,null,null,"Øiseth"]
[null,null,null,null,null,null,null,null,"Vestnes"]
[null,null,null,null,null,null,null,null,"Uthaug"]
[null,null,null,null,null,null,null,null,"Thorshaug"]
[null,null,null,null,null,null,null,null,"Nærø"]
[null,null,null,null,null,null,null,null,"Myrdal"]
[null,null,null,null,null,null,null,null,"Hylland"]
[null,null,null,null,null,null,null,null,"Holmstrøm"]
[null,null,null,null,null,null,null,null,"Gården"]
[null,null,null,null,null,null,null,null,"Bergtun"]
[null,null,null,null,null,null,null,null,"Aarflot"]
[null,null,null,null,null,null,null,null,"Tokerud"]
[null,null,null,null,null,null,null,null,"Throndsen"]
[null,null,null,null,null,null,null,null,"Nygren"]
[null,null,null,null,null,null,null,null,"Lyshaug"]
[null,null,null,null,null,null,null,null,"Langholm"]
[null,null,null,null,null,null,null,null,"Kyvik"]
[null,null,null,null,null,null,null,null,"Helliesen"]
[null,null,null,null,null,null,null,null,"Halsen"]
[null,null,null,null,null,null,null,null,"Gleditsch"]
[null,null,null,null,null,null,null,null,"Figenschau"]
[null,null,null,null,null,null,null,null,"Fidjeland"]
[null,null,null,null,null,null,null,null,"Evje"]
[null,null,null,null,null,null,null,null,"Englund"]
[null,null,null,null,null,null,null,null,"Alnæs"]
[null,null,null,null,null,null,null,null,"Woldseth"]
[null,null,null,null,null,null,null,null,"Tyldum"]
[null,null,null,null,null,null,null,null,"Sundstrøm"]
[null,null,null,null,null,null,null,null,"Størkersen"]
[null,null,null,null,null,null,null,null,"Starheim"]
[null,null,null,null,null,null,null,null,"Ross"]
[null,null,null,null,null,null,null,null,"Neumann"]
[null,null,null,null,null,null,null,null,"Mæle"]
[null,null,null,null,null,null,null,null,"Munthe"]
[null,null,null,null,null,null,null,null,"Hornnes"]
[null,null,null,null,null,null,null,null,"Aanstad"]
[null,null,null,null,null,null,null,null,"Yildirim"]
[null,null,null,null,null,null,null,null,"Tøsse"]
[null,null,null,null,null,null,null,null,"Systad"]
[null,null,null,null,null,null,null,null,"Olsnes"]
[null,null,null,null,null,null,null,null,"Nekstad"]
[null,null,null,null,null,null,null,null,"Løvoll"]
[null,null,null,null,null,null,null,null,"Låstad"]
[null,null,null,null,null,null,null,null,"Koren"]
[null,null,null,null,null,null,null,null,"Kommedal"]
[null,null,null,null,null,null,null,null,"Kleiveland"]
[null,null,null,null,null,null,null,null,"Juell"]
[null,null,null,null,null,null,null,null,"Herigstad"]
[null,null,null,null,null,null,null,null,"Granmo"]
[null,null,null,null,null,null,null,null,"Finnesand"]
[null,null,null,null,null,null,null,null,"Ferstad"]
[null,null,null,null,null,null,null,null,"Andvik"]
[null,null,null,null,null,null,null,null,"Østreng"]
[null,null,null,null,null,null,null,null,"Welle"]
[null,null,null,null,null,null,null,null,"Weberg"]
[null,null,null,null,null,null,null,null,"Valde"]
[null,null,null,null,null,null,null,null,"Sæverud"]
[null,null,null,null,null,null,null,null,"Sjøvoll"]
[null,null,null,null,null,null,null,null,"Schie"]
[null,null,null,null,null,null,null,null,"Opseth"]
[null,null,null,null,null,null,null,null,"Norderhaug"]
[null,null,null,null,null,null,null,null,"Myklebost"]
[null,null,null,null,null,null,null,null,"Muggerud"]
[null,null,null,null,null,null,null,null,"Mazur"]
[null,null,null,null,null,null,null,null,"Laastad"]
[null,null,null,null,null,null,null,null,"Gravem"]
[null,null,null,null,null,null,null,null,"Fosen"]
[null,null,null,null,null,null,null,null,"Edvartsen"]
[null,null,null,null,null,null,null,null,"Aabø"]
[null,null,null,null,null,null,null,null,"Volle"]
[null,null,null,null,null,null,null,null,"Teig"]
[null,null,null,null,null,null,null,null,"Sommervold"]
[null,null,null,null,null,null,null,null,"Sandland"]
[null,null,null,null,null,null,null,null,"Ophaug"]
[null,null,null,null,null,null,null,null,"Nodeland"]
[null,null,null,null,null,null,null,null,"Maudal"]
[null,null,null,null,null,null,null,null,"Lenes"]
[null,null,null,null,null,null,null,null,"Joa"]
[null,null,null,null,null,null,null,null,"Gunnestad"]
[null,null,null,null,null,null,null,null,"Gunnarsen"]
[null,null,null,null,null,null,null,null,"Winger"]
[null,null,null,null,null,null,null,null,"Våga"]
[null,null,null,null,null,null,null,null,"Ursin"]
[null,null,null,null,null,null,null,null,"Sælen"]
[null,null,null,null,null,null,null,null,"Rikardsen"]
[null,null,null,null,null,null,null,null,"Pihl"]
[null,null,null,null,null,null,null,null,"Løge"]
[null,null,null,null,null,null,null,null,"Liberg"]
[null,null,null,null,null,null,null,null,"Lade"]
[null,null,null,null,null,null,null,null,"Kvaløy"]
[null,null,null,null,null,null,null,null,"Førsund"]
[null,null,null,null,null,null,null,null,"Evanger"]
[null,null,null,null,null,null,null,null,"Emberland"]
[null,null,null,null,null,null,null,null,"Brastad"]
[null,null,null,null,null,null,null,null,"Vikanes"]
[null,null,null,null,null,null,null,null,"Veiby"]
[null,null,null,null,null,null,null,null,"Valø"]
[null,null,null,null,null,null,null,null,"Thorsø"]
[null,null,null,null,null,null,null,null,"Skøien"]
[null,null,null,null,null,null,null,null,"Seldal"]
[null,null,null,null,null,null,null,null,"Ræstad"]
[null,null,null,null,null,null,null,null,"Ottem"]
[null,null,null,null,null,null,null,null,"Moltu"]
[null,null,null,null,null,null,null,null,"Mjølhus"]
[null,null,null,null,null,null,null,null,"Grøterud"]
[null,null,null,null,null,null,null,null,"Grøndalen"]
[null,null,null,null,null,null,null,null,"Gillebo"]
[null,null,null,null,null,null,null,null,"Eltvik"]
[null,null,null,null,null,null,null,null,"Dyrkorn"]
[null,null,null,null,null,null,null,null,"Vegsund"]
[null,null,null,null,null,null,null,null,"Ulland"]
[null,null,null,null,null,null,null,null,"Toresen"]
[null,null,null,null,null,null,null,null,"Størksen"]
[null,null,null,null,null,null,null,null,"Skjølberg"]
[null,null,null,null,null,null,null,null,"Schjerven"]
[null,null,null,null,null,null,null,null,"Røv"]
[null,null,null,null,null,null,null,null,"Obrestad"]
[null,null,null,null,null,null,null,null,"Molteberg"]
[null,null,null,null,null,null,null,null,"Lindqvist"]
[null,null,null,null,null,null,null,null,"Lindgaard"]
[null,null,null,null,null,null,null,null,"Kildahl"]
[null,null,null,null,null,null,null,null,"Hvattum"]
[null,null,null,null,null,null,null,null,"Hojem"]
[null,null,null,null,null,null,null,null,"Hestenes"]
[null,null,null,null,null,null,null,null,"Gjermundsen"]
[null,null,null,null,null,null,null,null,"Frøshaug"]
[null,null,null,null,null,null,null,null,"Flesland"]
[null,null,null,null,null,null,null,null,"Bjørnøy"]
[null,null,null,null,null,null,null,null,"Aaseth"]
[null,null,null,null,null,null,null,null,"Aalvik"]
[null,null,null,null,null,null,null,null,"Wolff"]
[null,null,null,null,null,null,null,null,"Vikane"]
[null,null,null,null,null,null,null,null,"Vaksdal"]
[null,null,null,null,null,null,null,null,"Strandberg"]
[null,null,null,null,null,null,null,null,"Sandvær"]
[null,null,null,null,null,null,null,null,"Røisland"]
[null,null,null,null,null,null,null,null,"Refseth"]
[null,null,null,null,null,null,null,null,"Opgård"]
[null,null,null,null,null,null,null,null,"Narvestad"]
[null,null,null,null,null,null,null,null,"Lundh"]
[null,null,null,null,null,null,null,null,"Lundgård"]
[null,null,null,null,null,null,null,null,"Lundeby"]
[null,null,null,null,null,null,null,null,"Kvien"]
[null,null,null,null,null,null,null,null,"Kvame"]
[null,null,null,null,null,null,null,null,"Hatteland"]
[null,null,null,null,null,null,null,null,"Georgsen"]
[null,null,null,null,null,null,null,null,"Fagervold"]
[null,null,null,null,null,null,null,null,"Evertsen"]
[null,null,null,null,null,null,null,null,"Walde"]
[null,null,null,null,null,null,null,null,"Undrum"]
[null,null,null,null,null,null,null,null,"Ulset"]
[null,null,null,null,null,null,null,null,"Sundgot"]
[null,null,null,null,null,null,null,null,"Stephansen"]
[null,null,null,null,null,null,null,null,"Sekkingstad"]
[null,null,null,null,null,null,null,null,"Seeberg"]
[null,null,null,null,null,null,null,null,"Moradi"]
[null,null,null,null,null,null,null,null,"Moa"]
[null,null,null,null,null,null,null,null,"Melberg"]
[null,null,null,null,null,null,null,null,"Laland"]
[null,null,null,null,null,null,null,null,"Kleiv"]
[null,null,null,null,null,null,null,null,"Herdlevær"]
[null,null,null,null,null,null,null,null,"Hellesø"]
[null,null,null,null,null,null,null,null,"Evenrud"]
[null,null,null,null,null,null,null,null,"Estensen"]
[null,null,null,null,null,null,null,null,"Eldevik"]
[null,null,null,null,null,null,null,null,"Djuve"]
[null,null,null,null,null,null,null,null,"Amble"]
[null,null,null,null,null,null,null,null,"Åmodt"]
[null,null,null,null,null,null,null,null,"Vanvik"]
[null,null,null,null,null,null,null,null,"Tønsberg"]
[null,null,null,null,null,null,null,null,"Stavenes"]
[null,null,null,null,null,null,null,null,"Skogvoll"]
[null,null,null,null,null,null,null,null,"Skille"]
[null,null,null,null,null,null,null,null,"Schanke"]
[null,null,null,null,null,null,null,null,"Saleem"]
[null,null,null,null,null,null,null,null,"Risøy"]
[null,null,null,null,null,null,null,null,"Paasche"]
[null,null,null,null,null,null,null,null,"Orvik"]
[null,null,null,null,null,null,null,null,"Oland"]
[null,null,null,null,null,null,null,null,"Myreng"]
[null,null,null,null,null,null,null,null,"Mandelid"]
[null,null,null,null,null,null,null,null,"Lockert"]
[null,null,null,null,null,null,null,null,"Lerøy"]
[null,null,null,null,null,null,null,null,"Kofoed"]
[null,null,null,null,null,null,null,null,"Kapstad"]
[null,null,null,null,null,null,null,null,"Gjengstø"]
[null,null,null,null,null,null,null,null,"Føreland"]
[null,null,null,null,null,null,null,null,"Chan"]
[null,null,null,null,null,null,null,null,"Bonsaksen"]
[null,null,null,null,null,null,null,null,"Araya"]
[null,null,null,null,null,null,null,null,"Rodal"]
[null,null,null,null,null,null,null,null,"Rakvåg"]
[null,null,null,null,null,null,null,null,"Molden"]
[null,null,null,null,null,null,null,null,"Lilleberg"]
[null,null,null,null,null,null,null,null,"Jensrud"]
[null,null,null,null,null,null,null,null,"Gunnarsson"]
[null,null,null,null,null,null,null,null,"Gjerdingen"]
[null,null,null,null,null,null,null,null,"Gilde"]
[null,null,null,null,null,null,null,null,"Frivold"]
[null,null,null,null,null,null,null,null,"Eeg"]
[null,null,null,null,null,null,null,null,"Brudvik"]
[null,null,null,null,null,null,null,null,"Baustad"]
[null,null,null,null,null,null,null,null,"Alver"]
[null,null,null,null,null,null,null,null,"Østlund"]
[null,null,null,null,null,null,null,null,"Strømsvåg"]
[null,null,null,null,null,null,null,null,"Rykkje"]
[null,null,null,null,null,null,null,null,"Nissen"]
[null,null,null,null,null,null,null,null,"Magerøy"]
[null,null,null,null,null,null,null,null,"Kvello"]
[null,null,null,null,null,null,null,null,"Engenes"]
[null,null,null,null,null,null,null,null,"Buvarp"]
[null,null,null,null,null,null,null,null,"Yri"]
[null,null,null,null,null,null,null,null,"Unhjem"]
[null,null,null,null,null,null,null,null,"Underhaug"]
[null,null,null,null,null,null,null,null,"Thuen"]
[null,null,null,null,null,null,null,null,"Skailand"]
[null,null,null,null,null,null,null,null,"Sjøthun"]
[null,null,null,null,null,null,null,null,"Silva"]
[null,null,null,null,null,null,null,null,"Rekkedal"]
[null,null,null,null,null,null,null,null,"Oppegård"]
[null,null,null,null,null,null,null,null,"Noreng"]
[null,null,null,null,null,null,null,null,"Mostue"]
[null,null,null,null,null,null,null,null,"Lødemel"]
[null,null,null,null,null,null,null,null,"Håpnes"]
[null,null,null,null,null,null,null,null,"Holmøy"]
[null,null,null,null,null,null,null,null,"Harsvik"]
[null,null,null,null,null,null,null,null,"Fjær"]
[null,null,null,null,null,null,null,null,"Fagerbakke"]
[null,null,null,null,null,null,null,null,"Dalseth"]
[null,null,null,null,null,null,null,null,"Dahlgren"]
[null,null,null,null,null,null,null,null,"Børsheim"]
[null,null,null,null,null,null,null,null,"Andorsen"]
[null,null,null,null,null,null,null,null,"Wøien"]
[null,null,null,null,null,null,null,null,"Wie"]
[null,null,null,null,null,null,null,null,"Vevang"]
[null,null,null,null,null,null,null,null,"Stenstad"]
[null,null,null,null,null,null,null,null,"Skaare"]
[null,null,null,null,null,null,null,null,"Malde"]
[null,null,null,null,null,null,null,null,"Lilleeng"]
[null,null,null,null,null,null,null,null,"Langørgen"]
[null,null,null,null,null,null,null,null,"Kolle"]
[null,null,null,null,null,null,null,null,"Jordan"]
[null,null,null,null,null,null,null,null,"Isdal"]
[null,null,null,null,null,null,null,null,"Helvik"]
[null,null,null,null,null,null,null,null,"Heistad"]
[null,null,null,null,null,null,null,null,"Fykse"]
[null,null,null,null,null,null,null,null,"Flatmo"]
[null,null,null,null,null,null,null,null,"Bugten"]
[null,null,null,null,null,null,null,null,"Åsebø"]
[null,null,null,null,null,null,null,null,"Stormark"]
[null,null,null,null,null,null,null,null,"Rossland"]
[null,null,null,null,null,null,null,null,"Ramfjord"]
[null,null,null,null,null,null,null,null,"Nyvold"]
[null,null,null,null,null,null,null,null,"Nuur"]
[null,null,null,null,null,null,null,null,"Lauten"]
[null,null,null,null,null,null,null,null,"Jåsund"]
[null,null,null,null,null,null,null,null,"Gloppen"]
[null,null,null,null,null,null,null,null,"Gjervik"]
[null,null,null,null,null,null,null,null,"Gjersvik"]
[null,null,null,null,null,null,null,null,"Brækken"]
[null,null,null,null,null,null,null,null,"Bergsvik"]
[null,null,null,null,null,null,null,null,"Amdam"]
[null,null,null,null,null,null,null,null,"Ølberg"]
[null,null,null,null,null,null,null,null,"Wist"]
[null,null,null,null,null,null,null,null,"Tverå"]
[null,null,null,null,null,null,null,null,"Svanevik"]
[null,null,null,null,null,null,null,null,"Steindal"]
[null,null,null,null,null,null,null,null,"Skurdal"]
[null,null,null,null,null,null,null,null,"Samnøy"]
[null,null,null,null,null,null,null,null,"Oshaug"]
[null,null,null,null,null,null,null,null,"Nøttveit"]
[null,null,null,null,null,null,null,null,"Lundekvam"]
[null,null,null,null,null,null,null,null,"Karlstrøm"]
[null,null,null,null,null,null,null,null,"Hovd"]
[null,null,null,null,null,null,null,null,"Hasselberg"]
[null,null,null,null,null,null,null,null,"Gjeruldsen"]
[null,null,null,null,null,null,null,null,"Drageset"]
[null,null,null,null,null,null,null,null,"Derås"]
[null,null,null,null,null,null,null,null,"Brække"]
[null,null,null,null,null,null,null,null,"Borsheim"]
[null,null,null,null,null,null,null,null,"Benonisen"]
[null,null,null,null,null,null,null,null,"Allum"]
[null,null,null,null,null,null,null,null,"Ørbeck"]
[null,null,null,null,null,null,null,null,"Skårland"]
[null,null,null,null,null,null,null,null,"Sjøstrøm"]
[null,null,null,null,null,null,null,null,"Hestetun"]
[null,null,null,null,null,null,null,null,"Heskestad"]
[null,null,null,null,null,null,null,null,"Gulli"]
[null,null,null,null,null,null,null,null,"Fagertun"]
[null,null,null,null,null,null,null,null,"Birkeli"]
[null,null,null,null,null,null,null,null,"Bakkan"]
[null,null,null,null,null,null,null,null,"Zielinski"]
[null,null,null,null,null,null,null,null,"Vadseth"]
[null,null,null,null,null,null,null,null,"Ullestad"]
[null,null,null,null,null,null,null,null,"Tenold"]
[null,null,null,null,null,null,null,null,"Taylor"]
[null,null,null,null,null,null,null,null,"Sætermo"]
[null,null,null,null,null,null,null,null,"Sæland"]
[null,null,null,null,null,null,null,null,"Stokkenes"]
[null,null,null,null,null,null,null,null,"Somby"]
[null,null,null,null,null,null,null,null,"Sjaastad"]
[null,null,null,null,null,null,null,null,"Salbu"]
[null,null,null,null,null,null,null,null,"Omdahl"]
[null,null,null,null,null,null,null,null,"Nelson"]
[null,null,null,null,null,null,null,null,"Naalsund"]
[null,null,null,null,null,null,null,null,"Mørland"]
[null,null,null,null,null,null,null,null,"Mæhre"]
[null,null,null,null,null,null,null,null,"Ljosland"]
[null,null,null,null,null,null,null,null,"Husabø"]
[null,null,null,null,null,null,null,null,"Hauglid"]
[null,null,null,null,null,null,null,null,"Harkestad"]
[null,null,null,null,null,null,null,null,"Hamid"]
[null,null,null,null,null,null,null,null,"Gjestad"]
[null,null,null,null,null,null,null,null,"Bakkeli"]
[null,null,null,null,null,null,null,null,"Arnevik"]
[null,null,null,null,null,null,null,null,"Tang"]
[null,null,null,null,null,null,null,null,"Syed"]
[null,null,null,null,null,null,null,null,"Svee"]
[null,null,null,null,null,null,null,null,"Skarsvåg"]
[null,null,null,null,null,null,null,null,"Rokne"]
[null,null,null,null,null,null,null,null,"Rinden"]
[null,null,null,null,null,null,null,null,"Pladsen"]
[null,null,null,null,null,null,null,null,"Overvik"]
[null,null,null,null,null,null,null,null,"Leirdal"]
[null,null,null,null,null,null,null,null,"Klungtveit"]
[null,null,null,null,null,null,null,null,"Klein"]
[null,null,null,null,null,null,null,null,"Jeppesen"]
[null,null,null,null,null,null,null,null,"Farooq"]
[null,null,null,null,null,null,null,null,"Øksendal"]
[null,null,null,null,null,null,null,null,"Xu"]
[null,null,null,null,null,null,null,null,"Ulvin"]
[null,null,null,null,null,null,null,null,"Smeland"]
[null,null,null,null,null,null,null,null,"Rudolfsen"]
[null,null,null,null,null,null,null,null,"Rognan"]
[null,null,null,null,null,null,null,null,"Resell"]
[null,null,null,null,null,null,null,null,"Nyhuus"]
[null,null,null,null,null,null,null,null,"Natås"]
[null,null,null,null,null,null,null,null,"Kvistad"]
[null,null,null,null,null,null,null,null,"Ihlen"]
[null,null,null,null,null,null,null,null,"Hop"]
[null,null,null,null,null,null,null,null,"Hoftun"]
[null,null,null,null,null,null,null,null,"Hexeberg"]
[null,null,null,null,null,null,null,null,"Gussiås"]
[null,null,null,null,null,null,null,null,"Flage"]
[null,null,null,null,null,null,null,null,"Fimland"]
[null,null,null,null,null,null,null,null,"Ekker"]
[null,null,null,null,null,null,null,null,"Einan"]
[null,null,null,null,null,null,null,null,"Brudevoll"]
[null,null,null,null,null,null,null,null,"Brubakken"]
[null,null,null,null,null,null,null,null,"Bay"]
[null,null,null,null,null,null,null,null,"Bakketun"]
[null,null,null,null,null,null,null,null,"Aarsand"]
[null,null,null,null,null,null,null,null,"Sveberg"]
[null,null,null,null,null,null,null,null,"Stuen"]
[null,null,null,null,null,null,null,null,"Mjånes"]
[null,null,null,null,null,null,null,null,"Lehmann"]
[null,null,null,null,null,null,null,null,"Lauvrak"]
[null,null,null,null,null,null,null,null,"Kjelsberg"]
[null,null,null,null,null,null,null,null,"Indahl"]
[null,null,null,null,null,null,null,null,"Hasund"]
[null,null,null,null,null,null,null,null,"Gustavson"]
[null,null,null,null,null,null,null,null,"Gimse"]
[null,null,null,null,null,null,null,null,"Flataker"]
[null,null,null,null,null,null,null,null,"Finnøy"]
[null,null,null,null,null,null,null,null,"Brataas"]
[null,null,null,null,null,null,null,null,"Bjønness"]
[null,null,null,null,null,null,null,null,"Bjerkvik"]
[null,null,null,null,null,null,null,null,"Amdahl"]
[null,null,null,null,null,null,null,null,"Wiker"]
[null,null,null,null,null,null,null,null,"Wennevold"]
[null,null,null,null,null,null,null,null,"Walberg"]
[null,null,null,null,null,null,null,null,"Smedstad"]
[null,null,null,null,null,null,null,null,"Skuland"]
[null,null,null,null,null,null,null,null,"Skjerping"]
[null,null,null,null,null,null,null,null,"Schulz"]
[null,null,null,null,null,null,null,null,"Nereng"]
[null,null,null,null,null,null,null,null,"Loen"]
[null,null,null,null,null,null,null,null,"Lagesen"]
[null,null,null,null,null,null,null,null,"Kvaale"]
[null,null,null,null,null,null,null,null,"Jordalen"]
[null,null,null,null,null,null,null,null,"Heggestad"]
[null,null,null,null,null,null,null,null,"Haarstad"]
[null,null,null,null,null,null,null,null,"Egenes"]
[null,null,null,null,null,null,null,null,"Barmen"]
[null,null,null,null,null,null,null,null,"Alvær"]
[null,null,null,null,null,null,null,null,"Aae"]
[null,null,null,null,null,null,null,null,"Østenstad"]
[null,null,null,null,null,null,null,null,"Ørmen"]
[null,null,null,null,null,null,null,null,"Weber"]
[null,null,null,null,null,null,null,null,"Sviggum"]
[null,null,null,null,null,null,null,null,"Svellingen"]
[null,null,null,null,null,null,null,null,"Sjøblom"]
[null,null,null,null,null,null,null,null,"Sandli"]
[null,null,null,null,null,null,null,null,"Sandhåland"]
[null,null,null,null,null,null,null,null,"Røneid"]
[null,null,null,null,null,null,null,null,"Nørstebø"]
[null,null,null,null,null,null,null,null,"Mælen"]
[null,null,null,null,null,null,null,null,"Lona"]
[null,null,null,null,null,null,null,null,"Kvinlaug"]
[null,null,null,null,null,null,null,null,"Kulseth"]
[null,null,null,null,null,null,null,null,"Kara"]
[null,null,null,null,null,null,null,null,"Innvær"]
[null,null,null,null,null,null,null,null,"Hevrøy"]
[null,null,null,null,null,null,null,null,"Guldahl"]
[null,null,null,null,null,null,null,null,"Grinden"]
[null,null,null,null,null,null,null,null,"Gravdahl"]
[null,null,null,null,null,null,null,null,"Fonnes"]
[null,null,null,null,null,null,null,null,"Foldnes"]
[null,null,null,null,null,null,null,null,"Fløysvik"]
[null,null,null,null,null,null,null,null,"Enes"]
[null,null,null,null,null,null,null,null,"Elvik"]
[null,null,null,null,null,null,null,null,"Dinh"]
[null,null,null,null,null,null,null,null,"Daleng"]
[null,null,null,null,null,null,null,null,"Breiland"]
[null,null,null,null,null,null,null,null,"Bjørkheim"]
[null,null,null,null,null,null,null,null,"Tjørhom"]
[null,null,null,null,null,null,null,null,"Svihus"]
[null,null,null,null,null,null,null,null,"Spilde"]
[null,null,null,null,null,null,null,null,"Solbu"]
[null,null,null,null,null,null,null,null,"Romsdal"]
[null,null,null,null,null,null,null,null,"Mollestad"]
[null,null,null,null,null,null,null,null,"Lorvik"]
[null,null,null,null,null,null,null,null,"Lillehagen"]
[null,null,null,null,null,null,null,null,"Langemyr"]
[null,null,null,null,null,null,null,null,"Korslund"]
[null,null,null,null,null,null,null,null,"Hemnes"]
[null,null,null,null,null,null,null,null,"Havnen"]
[null,null,null,null,null,null,null,null,"Gjedrem"]
[null,null,null,null,null,null,null,null,"Fjæreide"]
[null,null,null,null,null,null,null,null,"Falkenberg"]
[null,null,null,null,null,null,null,null,"Engstad"]
[null,null,null,null,null,null,null,null,"Elton"]
[null,null,null,null,null,null,null,null,"Busk"]
[null,null,null,null,null,null,null,null,"Berhane"]
[null,null,null,null,null,null,null,null,"Askevold"]
[null,null,null,null,null,null,null,null,"Ahlsen"]
[null,null,null,null,null,null,null,null,"Aandahl"]
[null,null,null,null,null,null,null,null,"Vaa"]
[null,null,null,null,null,null,null,null,"Tørstad"]
[null,null,null,null,null,null,null,null,"Tennfjord"]
[null,null,null,null,null,null,null,null,"Talberg"]
[null,null,null,null,null,null,null,null,"Sønstebø"]
[null,null,null,null,null,null,null,null,"Skomedal"]
[null,null,null,null,null,null,null,null,"Skjeggestad"]
[null,null,null,null,null,null,null,null,"Schneider"]
[null,null,null,null,null,null,null,null,"Rynning"]
[null,null,null,null,null,null,null,null,"Polden"]
[null,null,null,null,null,null,null,null,"Nawaz"]
[null,null,null,null,null,null,null,null,"Lausund"]
[null,null,null,null,null,null,null,null,"Kjærland"]
[null,null,null,null,null,null,null,null,"Jordheim"]
[null,null,null,null,null,null,null,null,"Johnstad"]
[null,null,null,null,null,null,null,null,"Hjulstad"]
[null,null,null,null,null,null,null,null,"Helgøy"]
[null,null,null,null,null,null,null,null,"Eidsvåg"]
[null,null,null,null,null,null,null,null,"Dramstad"]
[null,null,null,null,null,null,null,null,"Amlie"]
[null,null,null,null,null,null,null,null,"Øynes"]
[null,null,null,null,null,null,null,null,"Ølmheim"]
[null,null,null,null,null,null,null,null,"Vilhelmsen"]
[null,null,null,null,null,null,null,null,"Tandstad"]
[null,null,null,null,null,null,null,null,"Ramadani"]
[null,null,null,null,null,null,null,null,"Qvale"]
[null,null,null,null,null,null,null,null,"Owren"]
[null,null,null,null,null,null,null,null,"Nore"]
[null,null,null,null,null,null,null,null,"Nordskag"]
[null,null,null,null,null,null,null,null,"Mogen"]
[null,null,null,null,null,null,null,null,"Løvberg"]
[null,null,null,null,null,null,null,null,"Krosby"]
[null,null,null,null,null,null,null,null,"Grønlien"]
[null,null,null,null,null,null,null,null,"Gjøen"]
[null,null,null,null,null,null,null,null,"Gjerløw"]
[null,null,null,null,null,null,null,null,"Bødtker"]
[null,null,null,null,null,null,null,null,"Bjørkum"]
[null,null,null,null,null,null,null,null,"Bakkelund"]
[null,null,null,null,null,null,null,null,"Alsos"]
[null,null,null,null,null,null,null,null,"Urstad"]
[null,null,null,null,null,null,null,null,"Tuft"]
[null,null,null,null,null,null,null,null,"Sønderland"]
[null,null,null,null,null,null,null,null,"Søndenå"]
[null,null,null,null,null,null,null,null,"Sarwar"]
[null,null,null,null,null,null,null,null,"Rønhovde"]
[null,null,null,null,null,null,null,null,"Rohde"]
[null,null,null,null,null,null,null,null,"Ramsøy"]
[null,null,null,null,null,null,null,null,"Nystrand"]
[null,null,null,null,null,null,null,null,"Mjåland"]
[null,null,null,null,null,null,null,null,"Kongsrud"]
[null,null,null,null,null,null,null,null,"Kolseth"]
[null,null,null,null,null,null,null,null,"Kjesbu"]
[null,null,null,null,null,null,null,null,"Hilmarsen"]
[null,null,null,null,null,null,null,null,"Herfindal"]
[null,null,null,null,null,null,null,null,"Hana"]
[null,null,null,null,null,null,null,null,"Gonzalez"]
[null,null,null,null,null,null,null,null,"Gjernes"]
[null,null,null,null,null,null,null,null,"Engebråten"]
[null,null,null,null,null,null,null,null,"Drevland"]
[null,null,null,null,null,null,null,null,"Østvang"]
[null,null,null,null,null,null,null,null,"Ågotnes"]
[null,null,null,null,null,null,null,null,"Wong"]
[null,null,null,null,null,null,null,null,"Wisniewski"]
[null,null,null,null,null,null,null,null,"Vikene"]
[null,null,null,null,null,null,null,null,"Utnes"]
[null,null,null,null,null,null,null,null,"Tømmervik"]
[null,null,null,null,null,null,null,null,"Tryggestad"]
[null,null,null,null,null,null,null,null,"Surdal"]
[null,null,null,null,null,null,null,null,"Sumstad"]
[null,null,null,null,null,null,null,null,"Storlien"]
[null,null,null,null,null,null,null,null,"Rosvoll"]
[null,null,null,null,null,null,null,null,"Romundstad"]
[null,null,null,null,null,null,null,null,"Nagy"]
[null,null,null,null,null,null,null,null,"Monge"]
[null,null,null,null,null,null,null,null,"Lysne"]
[null,null,null,null,null,null,null,null,"Lundestad"]
[null,null,null,null,null,null,null,null,"Lindtveit"]
[null,null,null,null,null,null,null,null,"Langen"]
[null,null,null,null,null,null,null,null,"Lamo"]
[null,null,null,null,null,null,null,null,"Kværner"]
[null,null,null,null,null,null,null,null,"Knotten"]
[null,null,null,null,null,null,null,null,"Klyve"]
[null,null,null,null,null,null,null,null,"Klavenes"]
[null,null,null,null,null,null,null,null,"Kjøde"]
[null,null,null,null,null,null,null,null,"Javed"]
[null,null,null,null,null,null,null,null,"Hatløy"]
[null,null,null,null,null,null,null,null,"Hallingstad"]
[null,null,null,null,null,null,null,null,"Hallberg"]
[null,null,null,null,null,null,null,null,"Grønberg"]
[null,null,null,null,null,null,null,null,"Fosser"]
[null,null,null,null,null,null,null,null,"Dalsbø"]
[null,null,null,null,null,null,null,null,"Bruaset"]
[null,null,null,null,null,null,null,null,"Bakstad"]
[null,null,null,null,null,null,null,null,"Aarland"]
[null,null,null,null,null,null,null,null,"Synnevåg"]
[null,null,null,null,null,null,null,null,"Richter"]
[null,null,null,null,null,null,null,null,"Rezai"]
[null,null,null,null,null,null,null,null,"Remen"]
[null,null,null,null,null,null,null,null,"Okkenhaug"]
[null,null,null,null,null,null,null,null,"Nomeland"]
[null,null,null,null,null,null,null,null,"Mardal"]
[null,null,null,null,null,null,null,null,"Lindblad"]
[null,null,null,null,null,null,null,null,"Jevnaker"]
[null,null,null,null,null,null,null,null,"Hult"]
[null,null,null,null,null,null,null,null,"Hoven"]
[null,null,null,null,null,null,null,null,"Hovdal"]
[null,null,null,null,null,null,null,null,"Hobberstad"]
[null,null,null,null,null,null,null,null,"Heggset"]
[null,null,null,null,null,null,null,null,"Dalaker"]
[null,null,null,null,null,null,null,null,"Burud"]
[null,null,null,null,null,null,null,null,"Braastad"]
[null,null,null,null,null,null,null,null,"Arif"]
[null,null,null,null,null,null,null,null,"Øvland"]
[null,null,null,null,null,null,null,null,"Titlestad"]
[null,null,null,null,null,null,null,null,"Sundfær"]
[null,null,null,null,null,null,null,null,"Storaker"]
[null,null,null,null,null,null,null,null,"Skjerdal"]
[null,null,null,null,null,null,null,null,"Ressem"]
[null,null,null,null,null,null,null,null,"Rage"]
[null,null,null,null,null,null,null,null,"Mjønes"]
[null,null,null,null,null,null,null,null,"Malnes"]
[null,null,null,null,null,null,null,null,"Lilleengen"]
[null,null,null,null,null,null,null,null,"Johanssen"]
[null,null,null,null,null,null,null,null,"Frisvold"]
[null,null,null,null,null,null,null,null,"Fiskaa"]
[null,null,null,null,null,null,null,null,"Engevold"]
[null,null,null,null,null,null,null,null,"Diesen"]
[null,null,null,null,null,null,null,null,"Demir"]
[null,null,null,null,null,null,null,null,"Brænd"]
[null,null,null,null,null,null,null,null,"Øvrevik"]
[null,null,null,null,null,null,null,null,"Wu"]
[null,null,null,null,null,null,null,null,"Wanvik"]
[null,null,null,null,null,null,null,null,"Tvenge"]
[null,null,null,null,null,null,null,null,"Tufteland"]
[null,null,null,null,null,null,null,null,"Toverud"]
[null,null,null,null,null,null,null,null,"Tonstad"]
[null,null,null,null,null,null,null,null,"Thingstad"]
[null,null,null,null,null,null,null,null,"Storsve"]
[null,null,null,null,null,null,null,null,"Sannerud"]
[null,null,null,null,null,null,null,null,"Røsten"]
[null,null,null,null,null,null,null,null,"Melbø"]
[null,null,null,null,null,null,null,null,"Lurås"]
[null,null,null,null,null,null,null,null,"Kjeilen"]
[null,null,null,null,null,null,null,null,"Kibsgaard"]
[null,null,null,null,null,null,null,null,"Isene"]
[null,null,null,null,null,null,null,null,"Hesselberg"]
[null,null,null,null,null,null,null,null,"Hermann"]
[null,null,null,null,null,null,null,null,"Harlem"]
[null,null,null,null,null,null,null,null,"Hamborg"]
[null,null,null,null,null,null,null,null,"Grønningen"]
[null,null,null,null,null,null,null,null,"Buseth"]
[null,null,null,null,null,null,null,null,"Blomvik"]

{"sheet":"Registrering","index":3,"n_rows":2,"n_cols":40,"rows_kept":2,"cut":false,"hidden":true,"merged":[]}
["TextboxDato","Listbox1","ScrollbarAW1","ScrollbarAW2","ScrollbarAW3","ScrollbarAW4","ScrollbarAW5","ScrollbarAW6","ScrollbarAW7","ScrollbarAW8","LabelAW","ScrollbarFi1","ScrollbarFi2","LabelFi","TextBoxFigur1","TextBoxFigur2","ScrollbarKr1","ScrollbarKr2","ScrollbarKr3","ScrollbarKr4","LabelKr","ScrollbarSe1","ScrollbarSe2","ScrollbarSe3","ScrollbarSe4","ScrollbarSe5","ScrollbarSe6","LabelSe","LabelSum","TextboxTillegg",null,null,null,null,null,null,null,"TextboxAwNotat","TextboxKrNotat","TextboxSeNotat"]
["Dato","Klient","Indre sone, klient","Ytre sone, klient","Mellomsone, klient","Å være oppmerksom på at du er var, klient","Indre Sone, Terapeut","Ytre Sone, Terapeut","Mellomsone, Terapeut","Å være oppmerksom på at du er var, Terapeut","Varhetssoner, sum","Grad av organisering","Grad av trygghet","Sum figurdannelse","Hva figurerer","I hvilke andre situasjoner kan klienten gjenkjenne denne figuren?","Forkontakte","Å kontakte","Endelig kontakt","Etterkontakt","Sum kreativt tilpasningsforløp","Idfunksjon klient","Idfunksjon terapeut","Personlighetsfunksjon klient","Personlighetsfunksjon terapeut","Egofunksjon klient","Egofunksjon terapeut","Sum Selvfunksjon","Sum diagnoseskjema","Tilleggskommentarer",null,null,null,null,null,null,null,"Notat Varhet","Notat Kreativ Tilpasning","Notat Selv"]

{"sheet":"AktivitetsLogg","index":4,"n_rows":2,"n_cols":5,"rows_kept":2,"cut":false,"hidden":false,"merged":[]}
["Dato","Tid","Bruker","Maskin","Domene"]
["2019-06-13T15:08:17",43629.630752314813,"Ketil","KETIL-LENOVO","KETIL-LENOVO"]

{"sheet":"Mal","index":5,"n_rows":500,"n_cols":40,"rows_kept":500,"cut":false,"hidden":true,"merged":[]}
["Dato","Klient","Indre sone, klient","Ytre sone, klient","Mellomsone, klient","Å være oppmerksom på at du er var, klient","Indre Sone, Terapeut","Ytre Sone, Terapeut","Mellomsone, Terapeut","Å være oppmerksom på at du er var, Terapeut","Varhetssoner, sum","Grad av organisering","Grad av trygghet","Sum figurdannelse","Hva figurerer","I hvilke andre situasjoner kan klienten gjenkjenne denne figuren?","Forkontakte","Å kontakte","Endelig kontakt","Etterkontakt","Sum kreativt tilpasningsforløp","Idfunksjon klient","Idfunksjon terapeut","Personlighetsfunksjon klient","Personlighetsfunksjon terapeut","Egofunksjon klient","Egofunksjon terapeut","Sum Selvfunksjon","Sum diagnoseskjema","Tilleggskommentarer","Dato","Varhet","Figurdannelse","Kreativ tilpasning","Selvfunksjon","Dato","Sum Skjema","Notat Varhet","Notat Kreativ Tilpasning","Notat Selv"]
[null,null,null,null,null,null,null,null,null,null,null,null,null,null,null,null,null,null,null,null,null,null,null,null,null,null,null,null,null,null,{"$f":"IF(YEAR(A2)=1900,\"\", TEXT(DAY(A2),\"00\") & \".\" & TEXT(MONTH(A2),\"00\") & \".\" & YEAR(A2))","v":""},{"$f":"IF(K2=0,\"\",ROUND(K2,0))","v":""},{"$f":"IF(N2=\"\",\"\",ROUND(N2,0))","v":""},{"$f":"IF(U2=\"\",\"\",ROUND(U2,0))","v":""},{"$f":"IF(AB2=\"\",\"\",ROUND(AB2,0))","v":""},{"$f":"AE2","v":""},{"$f":"IF(AC2=\"\",\"\",ROUND(AC2,0))","v":""}]
[null,null,null,null,null,null,null,null,null,null,null,null,null,null,null,null,null,null,null,null,null,null,null,null,null,null,null,null,null,null,{"$f":"IF(YEAR(A3)=1900,\"\", TEXT(DAY(A3),\"00\") & \".\" & TEXT(MONTH(A3),\"00\") & \".\" & YEAR(A3))","v":""},{"$f":"IF(K3=0,\"\",ROUND(K3,0))","v":""},{"$f":"IF(N3=\"\",\"\",ROUND(N3,0))","v":""},{"$f":"IF(U3=\"\",\"\",ROUND(U3,0))","v":""},{"$f":"IF(AB3=\"\",\"\",ROUND(AB3,0))","v":""},{"$f":"AE3","v":""},{"$f":"IF(AC3=\"\",\"\",ROUND(AC3,0))","v":""}]
[null,null,null,null,null,null,null,null,null,null,null,null,null,null,null,null,null,null,null,null,null,null,null,null,null,null,null,null,null,null,"","","","","","",""]
[null,null,null,null,null,null,null,null,null,null,null,null,null,null,null,null,null,null,null,null,null,null,null,null,null,null,null,null,null,null,"","","","","","",""]
[null,null,null,null,null,null,null,null,null,null,null,null,null,null,null,null,null,null,null,null,null,null,null,null,null,null,null,null,null,null,"","","","","","",""]
[null,null,null,null,null,null,null,null,null,null,null,null,null,null,null,null,null,null,null,null,null,null,null,null,null,null,null,null,null,null,"","","","","","",""]
[null,null,null,null,null,null,null,null,null,null,null,null,null,null,null,null,null,null,null,null,null,null,null,null,null,null,null,null,null,null,"","","","","","",""]
[null,null,null,null,null,null,null,null,null,null,null,null,null,null,null,null,null,null,null,null,null,null,null,null,null,null,null,null,null,null,"","","","","","",""]
[null,null,null,null,null,null,null,null,null,null,null,null,null,null,null,null,null,null,null,null,null,null,null,null,null,null,null,null,null,null,"","","","","","",""]
[null,null,null,null,null,null,null,null,null,null,null,null,null,null,null,null,null,null,null,null,null,null,null,null,null,null,null,null,null,null,"","","","","","",""]
[null,null,null,null,null,null,null,null,null,null,null,null,null,null,null,null,null,null,null,null,null,null,null,null,null,null,null,null,null,null,"","","","","","",""]
[null,null,null,null,null,null,null,null,null,null,null,null,null,null,null,null,null,null,null,null,null,null,null,null,null,null,null,null,null,null,"","","","","","",""]
[null,null,null,null,null,null,null,null,null,null,null,null,null,null,null,null,null,null,null,null,null,null,null,null,null,null,null,null,null,null,"","","","","","",""]
[null,null,null,null,null,null,null,null,null,null,null,null,null,null,null,null,null,null,null,null,null,null,null,null,null,null,null,null,null,null,"","","","","","",""]
[null,null,null,null,null,null,null,null,null,null,null,null,null,null,null,null,null,null,null,null,null,null,null,null,null,null,null,null,null,null,"","","","","","",""]
[null,null,null,null,null,null,null,null,null,null,null,null,null,null,null,null,null,null,null,null,null,null,null,null,null,null,null,null,null,null,"","","","","","",""]
[null,null,null,null,null,null,null,null,null,null,null,null,null,null,null,null,null,null,null,null,null,null,null,null,null,null,null,null,null,null,"","","","","","",""]
[null,null,null,null,null,null,null,null,null,null,null,null,null,null,null,null,null,null,null,null,null,null,null,null,null,null,null,null,null,null,"","","","","","",""]
[null,null,null,null,null,null,null,null,null,null,null,null,null,null,null,null,null,null,null,null,null,null,null,null,null,null,null,null,null,null,"","","","","","",""]
[null,null,null,null,null,null,null,null,null,null,null,null,null,null,null,null,null,null,null,null,null,null,null,null,null,null,null,null,null,null,"","","","","","",""]
[null,null,null,null,null,null,null,null,null,null,null,null,null,null,null,null,null,null,null,null,null,null,null,null,null,null,null,null,null,null,"","","","","","",""]
[null,null,null,null,null,null,null,null,null,null,null,null,null,null,null,null,null,null,null,null,null,null,null,null,null,null,null,null,null,null,"","","","","","",""]
[null,null,null,null,null,null,null,null,null,null,null,null,null,null,null,null,null,null,null,null,null,null,null,null,null,null,null,null,null,null,"","","","","","",""]
[null,null,null,null,null,null,null,null,null,null,null,null,null,null,null,null,null,null,null,null,null,null,null,null,null,null,null,null,null,null,"","","","","","",""]
[null,null,null,null,null,null,null,null,null,null,null,null,null,null,null,null,null,null,null,null,null,null,null,null,null,null,null,null,null,null,"","","","","","",""]
[null,null,null,null,null,null,null,null,null,null,null,null,null,null,null,null,null,null,null,null,null,null,null,null,null,null,null,null,null,null,"","","","","","",""]
[null,null,null,null,null,null,null,null,null,null,null,null,null,null,null,null,null,null,null,null,null,null,null,null,null,null,null,null,null,null,"","","","","","",""]
[null,null,null,null,null,null,null,null,null,null,null,null,null,null,null,null,null,null,null,null,null,null,null,null,null,null,null,null,null,null,"","","","","","",""]
[null,null,null,null,null,null,null,null,null,null,null,null,null,null,null,null,null,null,null,null,null,null,null,null,null,null,null,null,null,null,"","","","","","",""]
[null,null,null,null,null,null,null,null,null,null,null,null,null,null,null,null,null,null,null,null,null,null,null,null,null,null,null,null,null,null,"","","","","","",""]
[null,null,null,null,null,null,null,null,null,null,null,null,null,null,null,null,null,null,null,null,null,null,null,null,null,null,null,null,null,null,"","","","","","",""]
[null,null,null,null,null,null,null,null,null,null,null,null,null,null,null,null,null,null,null,null,null,null,null,null,null,null,null,null,null,null,"","","","","","",""]
[null,null,null,null,null,null,null,null,null,null,null,null,null,null,null,null,null,null,null,null,null,null,null,null,null,null,null,null,null,null,"","","","","","",""]
[null,null,null,null,null,null,null,null,null,null,null,null,null,null,null,null,null,null,null,null,null,null,null,null,null,null,null,null,null,null,"","","","","","",""]
[null,null,null,null,null,null,null,null,null,null,null,null,null,null,null,null,null,null,null,null,null,null,null,null,null,null,null,null,null,null,"","","","","","",""]
[null,null,null,null,null,null,null,null,null,null,null,null,null,null,null,null,null,null,null,null,null,null,null,null,null,null,null,null,null,null,"","","","","","",""]
[null,null,null,null,null,null,null,null,null,null,null,null,null,null,null,null,null,null,null,null,null,null,null,null,null,null,null,null,null,null,"","","","","","",""]
[null,null,null,null,null,null,null,null,null,null,null,null,null,null,null,null,null,null,null,null,null,null,null,null,null,null,null,null,null,null,"","","","","","",""]
[null,null,null,null,null,null,null,null,null,null,null,null,null,null,null,null,null,null,null,null,null,null,null,null,null,null,null,null,null,null,"","","","","","",""]
[null,null,null,null,null,null,null,null,null,null,null,null,null,null,null,null,null,null,null,null,null,null,null,null,null,null,null,null,null,null,"","","","","","",""]
[null,null,null,null,null,null,null,null,null,null,null,null,null,null,null,null,null,null,null,null,null,null,null,null,null,null,null,null,null,null,"","","","","","",""]
[null,null,null,null,null,null,null,null,null,null,null,null,null,null,null,null,null,null,null,null,null,null,null,null,null,null,null,null,null,null,"","","","","","",""]
[null,null,null,null,null,null,null,null,null,null,null,null,null,null,null,null,null,null,null,null,null,null,null,null,null,null,null,null,null,null,"","","","","","",""]
[null,null,null,null,null,null,null,null,null,null,null,null,null,null,null,null,null,null,null,null,null,null,null,null,null,null,null,null,null,null,"","","","","","",""]
[null,null,null,null,null,null,null,null,null,null,null,null,null,null,null,null,null,null,null,null,null,null,null,null,null,null,null,null,null,null,"","","","","","",""]
[null,null,null,null,null,null,null,null,null,null,null,null,null,null,null,null,null,null,null,null,null,null,null,null,null,null,null,null,null,null,"","","","","","",""]
[null,null,null,null,null,null,null,null,null,null,null,null,null,null,null,null,null,null,null,null,null,null,null,null,null,null,null,null,null,null,"","","","","","",""]
[null,null,null,null,null,null,null,null,null,null,null,null,null,null,null,null,null,null,null,null,null,null,null,null,null,null,null,null,null,null,"","","","","","",""]
[null,null,null,null,null,null,null,null,null,null,null,null,null,null,null,null,null,null,null,null,null,null,null,null,null,null,null,null,null,null,"","","","","","",""]
[null,null,null,null,null,null,null,null,null,null,null,null,null,null,null,null,null,null,null,null,null,null,null,null,null,null,null,null,null,null,"","","","","","",""]
[null,null,null,null,null,null,null,null,null,null,null,null,null,null,null,null,null,null,null,null,null,null,null,null,null,null,null,null,null,null,"","","","","","",""]
[null,null,null,null,null,null,null,null,null,null,null,null,null,null,null,null,null,null,null,null,null,null,null,null,null,null,null,null,null,null,"","","","","","",""]
[null,null,null,null,null,null,null,null,null,null,null,null,null,null,null,null,null,null,null,null,null,null,null,null,null,null,null,null,null,null,"","","","","","",""]
[null,null,null,null,null,null,null,null,null,null,null,null,null,null,null,null,null,null,null,null,null,null,null,null,null,null,null,null,null,null,"","","","","","",""]
[null,null,null,null,null,null,null,null,null,null,null,null,null,null,null,null,null,null,null,null,null,null,null,null,null,null,null,null,null,null,"","","","","","",""]
[null,null,null,null,null,null,null,null,null,null,null,null,null,null,null,null,null,null,null,null,null,null,null,null,null,null,null,null,null,null,"","","","","","",""]
[null,null,null,null,null,null,null,null,null,null,null,null,null,null,null,null,null,null,null,null,null,null,null,null,null,null,null,null,null,null,"","","","","","",""]
[null,null,null,null,null,null,null,null,null,null,null,null,null,null,null,null,null,null,null,null,null,null,null,null,null,null,null,null,null,null,"","","","","","",""]
[null,null,null,null,null,null,null,null,null,null,null,null,null,null,null,null,null,null,null,null,null,null,null,null,null,null,null,null,null,null,"","","","","","",""]
[null,null,null,null,null,null,null,null,null,null,null,null,null,null,null,null,null,null,null,null,null,null,null,null,null,null,null,null,null,null,"","","","","","",""]
[null,null,null,null,null,null,null,null,null,null,null,null,null,null,null,null,null,null,null,null,null,null,null,null,null,null,null,null,null,null,"","","","","","",""]
[null,null,null,null,null,null,null,null,null,null,null,null,null,null,null,null,null,null,null,null,null,null,null,null,null,null,null,null,null,null,"","","","","","",""]
[null,null,null,null,null,null,null,null,null,null,null,null,null,null,null,null,null,null,null,null,null,null,null,null,null,null,null,null,null,null,"","","","","","",""]
[null,null,null,null,null,null,null,null,null,null,null,null,null,null,null,null,null,null,null,null,null,null,null,null,null,null,null,null,null,null,"","","","","","",""]
[null,null,null,null,null,null,null,null,null,null,null,null,null,null,null,null,null,null,null,null,null,null,null,null,null,null,null,null,null,null,"","","","","","",""]
[null,null,null,null,null,null,null,null,null,null,null,null,null,null,null,null,null,null,null,null,null,null,null,null,null,null,null,null,null,null,{"$f":"IF(YEAR(A67)=1900,\"\", TEXT(DAY(A67),\"00\") & \".\" & TEXT(MONTH(A67),\"00\") & \".\" & YEAR(A67))","v":""},{"$f":"IF(K67=0,\"\",ROUND(K67,0))","v":""},{"$f":"IF(N67=\"\",\"\",ROUND(N67,0))","v":""},{"$f":"IF(U67=\"\",\"\",ROUND(U67,0))","v":""},{"$f":"IF(AB67=\"\",\"\",ROUND(AB67,0))","v":""},{"$f":"AE67","v":""},{"$f":"IF(AC67=\"\",\"\",ROUND(AC67,0))","v":""}]
[null,null,null,null,null,null,null,null,null,null,null,null,null,null,null,null,null,null,null,null,null,null,null,null,null,null,null,null,null,null,"","","","","","",""]
[null,null,null,null,null,null,null,null,null,null,null,null,null,null,null,null,null,null,null,null,null,null,null,null,null,null,null,null,null,null,"","","","","","",""]
[null,null,null,null,null,null,null,null,null,null,null,null,null,null,null,null,null,null,null,null,null,null,null,null,null,null,null,null,null,null,"","","","","","",""]
[null,null,null,null,null,null,null,null,null,null,null,null,null,null,null,null,null,null,null,null,null,null,null,null,null,null,null,null,null,null,"","","","","","",""]
[null,null,null,null,null,null,null,null,null,null,null,null,null,null,null,null,null,null,null,null,null,null,null,null,null,null,null,null,null,null,"","","","","","",""]
[null,null,null,null,null,null,null,null,null,null,null,null,null,null,null,null,null,null,null,null,null,null,null,null,null,null,null,null,null,null,"","","","","","",""]
[null,null,null,null,null,null,null,null,null,null,null,null,null,null,null,null,null,null,null,null,null,null,null,null,null,null,null,null,null,null,"","","","","","",""]
[null,null,null,null,null,null,null,null,null,null,null,null,null,null,null,null,null,null,null,null,null,null,null,null,null,null,null,null,null,null,"","","","","","",""]
[null,null,null,null,null,null,null,null,null,null,null,null,null,null,null,null,null,null,null,null,null,null,null,null,null,null,null,null,null,null,"","","","","","",""]
[null,null,null,null,null,null,null,null,null,null,null,null,null,null,null,null,null,null,null,null,null,null,null,null,null,null,null,null,null,null,"","","","","","",""]
[null,null,null,null,null,null,null,null,null,null,null,null,null,null,null,null,null,null,null,null,null,null,null,null,null,null,null,null,null,null,"","","","","","",""]
[null,null,null,null,null,null,null,null,null,null,null,null,null,null,null,null,null,null,null,null,null,null,null,null,null,null,null,null,null,null,"","","","","","",""]
[null,null,null,null,null,null,null,null,null,null,null,null,null,null,null,null,null,null,null,null,null,null,null,null,null,null,null,null,null,null,"","","","","","",""]
[null,null,null,null,null,null,null,null,null,null,null,null,null,null,null,null,null,null,null,null,null,null,null,null,null,null,null,null,null,null,"","","","","","",""]
[null,null,null,null,null,null,null,null,null,null,null,null,null,null,null,null,null,null,null,null,null,null,null,null,null,null,null,null,null,null,"","","","","","",""]
[null,null,null,null,null,null,null,null,null,null,null,null,null,null,null,null,null,null,null,null,null,null,null,null,null,null,null,null,null,null,"","","","","","",""]
[null,null,null,null,null,null,null,null,null,null,null,null,null,null,null,null,null,null,null,null,null,null,null,null,null,null,null,null,null,null,"","","","","","",""]
[null,null,null,null,null,null,null,null,null,null,null,null,null,null,null,null,null,null,null,null,null,null,null,null,null,null,null,null,null,null,"","","","","","",""]
[null,null,null,null,null,null,null,null,null,null,null,null,null,null,null,null,null,null,null,null,null,null,null,null,null,null,null,null,null,null,"","","","","","",""]
[null,null,null,null,null,null,null,null,null,null,null,null,null,null,null,null,null,null,null,null,null,null,null,null,null,null,null,null,null,null,"","","","","","",""]
[null,null,null,null,null,null,null,null,null,null,null,null,null,null,null,null,null,null,null,null,null,null,null,null,null,null,null,null,null,null,"","","","","","",""]
[null,null,null,null,null,null,null,null,null,null,null,null,null,null,null,null,null,null,null,null,null,null,null,null,null,null,null,null,null,null,"","","","","","",""]
[null,null,null,null,null,null,null,null,null,null,null,null,null,null,null,null,null,null,null,null,null,null,null,null,null,null,null,null,null,null,"","","","","","",""]
[null,null,null,null,null,null,null,null,null,null,null,null,null,null,null,null,null,null,null,null,null,null,null,null,null,null,null,null,null,null,"","","","","","",""]
[null,null,null,null,null,null,null,null,null,null,null,null,null,null,null,null,null,null,null,null,null,null,null,null,null,null,null,null,null,null,"","","","","","",""]
[null,null,null,null,null,null,null,null,null,null,null,null,null,null,null,null,null,null,null,null,null,null,null,null,null,null,null,null,null,null,"","","","","","",""]
[null,null,null,null,null,null,null,null,null,null,null,null,null,null,null,null,null,null,null,null,null,null,null,null,null,null,null,null,null,null,"","","","","","",""]
[null,null,null,null,null,null,null,null,null,null,null,null,null,null,null,null,null,null,null,null,null,null,null,null,null,null,null,null,null,null,"","","","","","",""]
[null,null,null,null,null,null,null,null,null,null,null,null,null,null,null,null,null,null,null,null,null,null,null,null,null,null,null,null,null,null,"","","","","","",""]
[null,null,null,null,null,null,null,null,null,null,null,null,null,null,null,null,null,null,null,null,null,null,null,null,null,null,null,null,null,null,"","","","","","",""]
[null,null,null,null,null,null,null,null,null,null,null,null,null,null,null,null,null,null,null,null,null,null,null,null,null,null,null,null,null,null,"","","","","","",""]
[null,null,null,null,null,null,null,null,null,null,null,null,null,null,null,null,null,null,null,null,null,null,null,null,null,null,null,null,null,null,"","","","","","",""]
[null,null,null,null,null,null,null,null,null,null,null,null,null,null,null,null,null,null,null,null,null,null,null,null,null,null,null,null,null,null,"","","","","","",""]
[null,null,null,null,null,null,null,null,null,null,null,null,null,null,null,null,null,null,null,null,null,null,null,null,null,null,null,null,null,null,"","","","","","",""]
[null,null,null,null,null,null,null,null,null,null,null,null,null,null,null,null,null,null,null,null,null,null,null,null,null,null,null,null,null,null,"","","","","","",""]
[null,null,null,null,null,null,null,null,null,null,null,null,null,null,null,null,null,null,null,null,null,null,null,null,null,null,null,null,null,null,"","","","","","",""]
[null,null,null,null,null,null,null,null,null,null,null,null,null,null,null,null,null,null,null,null,null,null,null,null,null,null,null,null,null,null,"","","","","","",""]
[null,null,null,null,null,null,null,null,null,null,null,null,null,null,null,null,null,null,null,null,null,null,null,null,null,null,null,null,null,null,"","","","","","",""]
[null,null,null,null,null,null,null,null,null,null,null,null,null,null,null,null,null,null,null,null,null,null,null,null,null,null,null,null,null,null,"","","","","","",""]
[null,null,null,null,null,null,null,null,null,null,null,null,null,null,null,null,null,null,null,null,null,null,null,null,null,null,null,null,null,null,"","","","","","",""]
[null,null,null,null,null,null,null,null,null,null,null,null,null,null,null,null,null,null,null,null,null,null,null,null,null,null,null,null,null,null,"","","","","","",""]
[null,null,null,null,null,null,null,null,null,null,null,null,null,null,null,null,null,null,null,null,null,null,null,null,null,null,null,null,null,null,"","","","","","",""]
[null,null,null,null,null,null,null,null,null,null,null,null,null,null,null,null,null,null,null,null,null,null,null,null,null,null,null,null,null,null,"","","","","","",""]
[null,null,null,null,null,null,null,null,null,null,null,null,null,null,null,null,null,null,null,null,null,null,null,null,null,null,null,null,null,null,"","","","","","",""]
[null,null,null,null,null,null,null,null,null,null,null,null,null,null,null,null,null,null,null,null,null,null,null,null,null,null,null,null,null,null,"","","","","","",""]
[null,null,null,null,null,null,null,null,null,null,null,null,null,null,null,null,null,null,null,null,null,null,null,null,null,null,null,null,null,null,"","","","","","",""]
[null,null,null,null,null,null,null,null,null,null,null,null,null,null,null,null,null,null,null,null,null,null,null,null,null,null,null,null,null,null,"","","","","","",""]
[null,null,null,null,null,null,null,null,null,null,null,null,null,null,null,null,null,null,null,null,null,null,null,null,null,null,null,null,null,null,"","","","","","",""]
[null,null,null,null,null,null,null,null,null,null,null,null,null,null,null,null,null,null,null,null,null,null,null,null,null,null,null,null,null,null,"","","","","","",""]
[null,null,null,null,null,null,null,null,null,null,null,null,null,null,null,null,null,null,null,null,null,null,null,null,null,null,null,null,null,null,"","","","","","",""]
[null,null,null,null,null,null,null,null,null,null,null,null,null,null,null,null,null,null,null,null,null,null,null,null,null,null,null,null,null,null,"","","","","","",""]
[null,null,null,null,null,null,null,null,null,null,null,null,null,null,null,null,null,null,null,null,null,null,null,null,null,null,null,null,null,null,"","","","","","",""]
[null,null,null,null,null,null,null,null,null,null,null,null,null,null,null,null,null,null,null,null,null,null,null,null,null,null,null,null,null,null,"","","","","","",""]
[null,null,null,null,null,null,null,null,null,null,null,null,null,null,null,null,null,null,null,null,null,null,null,null,null,null,null,null,null,null,"","","","","","",""]
[null,null,null,null,null,null,null,null,null,null,null,null,null,null,null,null,null,null,null,null,null,null,null,null,null,null,null,null,null,null,"","","","","","",""]
[null,null,null,null,null,null,null,null,null,null,null,null,null,null,null,null,null,null,null,null,null,null,null,null,null,null,null,null,null,null,"","","","","","",""]
[null,null,null,null,null,null,null,null,null,null,null,null,null,null,null,null,null,null,null,null,null,null,null,null,null,null,null,null,null,null,"","","","","","",""]
[null,null,null,null,null,null,null,null,null,null,null,null,null,null,null,null,null,null,null,null,null,null,null,null,null,null,null,null,null,null,"","","","","","",""]
[null,null,null,null,null,null,null,null,null,null,null,null,null,null,null,null,null,null,null,null,null,null,null,null,null,null,null,null,null,null,"","","","","","",""]
[null,null,null,null,null,null,null,null,null,null,null,null,null,null,null,null,null,null,null,null,null,null,null,null,null,null,null,null,null,null,"","","","","","",""]
[null,null,null,null,null,null,null,null,null,null,null,null,null,null,null,null,null,null,null,null,null,null,null,null,null,null,null,null,null,null,"","","","","","",""]
[null,null,null,null,null,null,null,null,null,null,null,null,null,null,null,null,null,null,null,null,null,null,null,null,null,null,null,null,null,null,"","","","","","",""]
[null,null,null,null,null,null,null,null,null,null,null,null,null,null,null,null,null,null,null,null,null,null,null,null,null,null,null,null,null,null,"","","","","","",""]
[null,null,null,null,null,null,null,null,null,null,null,null,null,null,null,null,null,null,null,null,null,null,null,null,null,null,null,null,null,null,{"$f":"IF(YEAR(A131)=1900,\"\", TEXT(DAY(A131),\"00\") & \".\" & TEXT(MONTH(A131),\"00\") & \".\" & YEAR(A131))","v":""},{"$f":"IF(K131=0,\"\",ROUND(K131,0))","v":""},{"$f":"IF(N131=\"\",\"\",ROUND(N131,0))","v":""},{"$f":"IF(U131=\"\",\"\",ROUND(U131,0))","v":""},{"$f":"IF(AB131=\"\",\"\",ROUND(AB131,0))","v":""},{"$f":"AE131","v":""},{"$f":"IF(AC131=\"\",\"\",ROUND(AC131,0))","v":""}]
[null,null,null,null,null,null,null,null,null,null,null,null,null,null,null,null,null,null,null,null,null,null,null,null,null,null,null,null,null,null,"","","","","","",""]
[null,null,null,null,null,null,null,null,null,null,null,null,null,null,null,null,null,null,null,null,null,null,null,null,null,null,null,null,null,null,"","","","","","",""]
[null,null,null,null,null,null,null,null,null,null,null,null,null,null,null,null,null,null,null,null,null,null,null,null,null,null,null,null,null,null,"","","","","","",""]
[null,null,null,null,null,null,null,null,null,null,null,null,null,null,null,null,null,null,null,null,null,null,null,null,null,null,null,null,null,null,"","","","","","",""]
[null,null,null,null,null,null,null,null,null,null,null,null,null,null,null,null,null,null,null,null,null,null,null,null,null,null,null,null,null,null,"","","","","","",""]
[null,null,null,null,null,null,null,null,null,null,null,null,null,null,null,null,null,null,null,null,null,null,null,null,null,null,null,null,null,null,"","","","","","",""]
[null,null,null,null,null,null,null,null,null,null,null,null,null,null,null,null,null,null,null,null,null,null,null,null,null,null,null,null,null,null,"","","","","","",""]
[null,null,null,null,null,null,null,null,null,null,null,null,null,null,null,null,null,null,null,null,null,null,null,null,null,null,null,null,null,null,"","","","","","",""]
[null,null,null,null,null,null,null,null,null,null,null,null,null,null,null,null,null,null,null,null,null,null,null,null,null,null,null,null,null,null,"","","","","","",""]
[null,null,null,null,null,null,null,null,null,null,null,null,null,null,null,null,null,null,null,null,null,null,null,null,null,null,null,null,null,null,"","","","","","",""]
[null,null,null,null,null,null,null,null,null,null,null,null,null,null,null,null,null,null,null,null,null,null,null,null,null,null,null,null,null,null,"","","","","","",""]
[null,null,null,null,null,null,null,null,null,null,null,null,null,null,null,null,null,null,null,null,null,null,null,null,null,null,null,null,null,null,"","","","","","",""]
[null,null,null,null,null,null,null,null,null,null,null,null,null,null,null,null,null,null,null,null,null,null,null,null,null,null,null,null,null,null,"","","","","","",""]
[null,null,null,null,null,null,null,null,null,null,null,null,null,null,null,null,null,null,null,null,null,null,null,null,null,null,null,null,null,null,"","","","","","",""]
[null,null,null,null,null,null,null,null,null,null,null,null,null,null,null,null,null,null,null,null,null,null,null,null,null,null,null,null,null,null,"","","","","","",""]
[null,null,null,null,null,null,null,null,null,null,null,null,null,null,null,null,null,null,null,null,null,null,null,null,null,null,null,null,null,null,"","","","","","",""]
[null,null,null,null,null,null,null,null,null,null,null,null,null,null,null,null,null,null,null,null,null,null,null,null,null,null,null,null,null,null,"","","","","","",""]
[null,null,null,null,null,null,null,null,null,null,null,null,null,null,null,null,null,null,null,null,null,null,null,null,null,null,null,null,null,null,"","","","","","",""]
[null,null,null,null,null,null,null,null,null,null,null,null,null,null,null,null,null,null,null,null,null,null,null,null,null,null,null,null,null,null,"","","","","","",""]
[null,null,null,null,null,null,null,null,null,null,null,null,null,null,null,null,null,null,null,null,null,null,null,null,null,null,null,null,null,null,"","","","","","",""]
[null,null,null,null,null,null,null,null,null,null,null,null,null,null,null,null,null,null,null,null,null,null,null,null,null,null,null,null,null,null,"","","","","","",""]
[null,null,null,null,null,null,null,null,null,null,null,null,null,null,null,null,null,null,null,null,null,null,null,null,null,null,null,null,null,null,"","","","","","",""]
[null,null,null,null,null,null,null,null,null,null,null,null,null,null,null,null,null,null,null,null,null,null,null,null,null,null,null,null,null,null,"","","","","","",""]
[null,null,null,null,null,null,null,null,null,null,null,null,null,null,null,null,null,null,null,null,null,null,null,null,null,null,null,null,null,null,"","","","","","",""]
[null,null,null,null,null,null,null,null,null,null,null,null,null,null,null,null,null,null,null,null,null,null,null,null,null,null,null,null,null,null,"","","","","","",""]
[null,null,null,null,null,null,null,null,null,null,null,null,null,null,null,null,null,null,null,null,null,null,null,null,null,null,null,null,null,null,"","","","","","",""]
[null,null,null,null,null,null,null,null,null,null,null,null,null,null,null,null,null,null,null,null,null,null,null,null,null,null,null,null,null,null,"","","","","","",""]
[null,null,null,null,null,null,null,null,null,null,null,null,null,null,null,null,null,null,null,null,null,null,null,null,null,null,null,null,null,null,"","","","","","",""]
[null,null,null,null,null,null,null,null,null,null,null,null,null,null,null,null,null,null,null,null,null,null,null,null,null,null,null,null,null,null,"","","","","","",""]
[null,null,null,null,null,null,null,null,null,null,null,null,null,null,null,null,null,null,null,null,null,null,null,null,null,null,null,null,null,null,"","","","","","",""]
[null,null,null,null,null,null,null,null,null,null,null,null,null,null,null,null,null,null,null,null,null,null,null,null,null,null,null,null,null,null,"","","","","","",""]
[null,null,null,null,null,null,null,null,null,null,null,null,null,null,null,null,null,null,null,null,null,null,null,null,null,null,null,null,null,null,"","","","","","",""]
[null,null,null,null,null,null,null,null,null,null,null,null,null,null,null,null,null,null,null,null,null,null,null,null,null,null,null,null,null,null,"","","","","","",""]
[null,null,null,null,null,null,null,null,null,null,null,null,null,null,null,null,null,null,null,null,null,null,null,null,null,null,null,null,null,null,"","","","","","",""]
[null,null,null,null,null,null,null,null,null,null,null,null,null,null,null,null,null,null,null,null,null,null,null,null,null,null,null,null,null,null,"","","","","","",""]
[null,null,null,null,null,null,null,null,null,null,null,null,null,null,null,null,null,null,null,null,null,null,null,null,null,null,null,null,null,null,"","","","","","",""]
[null,null,null,null,null,null,null,null,null,null,null,null,null,null,null,null,null,null,null,null,null,null,null,null,null,null,null,null,null,null,"","","","","","",""]
[null,null,null,null,null,null,null,null,null,null,null,null,null,null,null,null,null,null,null,null,null,null,null,null,null,null,null,null,null,null,"","","","","","",""]
[null,null,null,null,null,null,null,null,null,null,null,null,null,null,null,null,null,null,null,null,null,null,null,null,null,null,null,null,null,null,"","","","","","",""]
[null,null,null,null,null,null,null,null,null,null,null,null,null,null,null,null,null,null,null,null,null,null,null,null,null,null,null,null,null,null,"","","","","","",""]
[null,null,null,null,null,null,null,null,null,null,null,null,null,null,null,null,null,null,null,null,null,null,null,null,null,null,null,null,null,null,"","","","","","",""]
[null,null,null,null,null,null,null,null,null,null,null,null,null,null,null,null,null,null,null,null,null,null,null,null,null,null,null,null,null,null,"","","","","","",""]
[null,null,null,null,null,null,null,null,null,null,null,null,null,null,null,null,null,null,null,null,null,null,null,null,null,null,null,null,null,null,"","","","","","",""]
[null,null,null,null,null,null,null,null,null,null,null,null,null,null,null,null,null,null,null,null,null,null,null,null,null,null,null,null,null,null,"","","","","","",""]
[null,null,null,null,null,null,null,null,null,null,null,null,null,null,null,null,null,null,null,null,null,null,null,null,null,null,null,null,null,null,"","","","","","",""]
[null,null,null,null,null,null,null,null,null,null,null,null,null,null,null,null,null,null,null,null,null,null,null,null,null,null,null,null,null,null,"","","","","","",""]
[null,null,null,null,null,null,null,null,null,null,null,null,null,null,null,null,null,null,null,null,null,null,null,null,null,null,null,null,null,null,"","","","","","",""]
[null,null,null,null,null,null,null,null,null,null,null,null,null,null,null,null,null,null,null,null,null,null,null,null,null,null,null,null,null,null,"","","","","","",""]
[null,null,null,null,null,null,null,null,null,null,null,null,null,null,null,null,null,null,null,null,null,null,null,null,null,null,null,null,null,null,"","","","","","",""]
[null,null,null,null,null,null,null,null,null,null,null,null,null,null,null,null,null,null,null,null,null,null,null,null,null,null,null,null,null,null,"","","","","","",""]
[null,null,null,null,null,null,null,null,null,null,null,null,null,null,null,null,null,null,null,null,null,null,null,null,null,null,null,null,null,null,"","","","","","",""]
[null,null,null,null,null,null,null,null,null,null,null,null,null,null,null,null,null,null,null,null,null,null,null,null,null,null,null,null,null,null,"","","","","","",""]
[null,null,null,null,null,null,null,null,null,null,null,null,null,null,null,null,null,null,null,null,null,null,null,null,null,null,null,null,null,null,"","","","","","",""]
[null,null,null,null,null,null,null,null,null,null,null,null,null,null,null,null,null,null,null,null,null,null,null,null,null,null,null,null,null,null,"","","","","","",""]
[null,null,null,null,null,null,null,null,null,null,null,null,null,null,null,null,null,null,null,null,null,null,null,null,null,null,null,null,null,null,"","","","","","",""]
[null,null,null,null,null,null,null,null,null,null,null,null,null,null,null,null,null,null,null,null,null,null,null,null,null,null,null,null,null,null,"","","","","","",""]
[null,null,null,null,null,null,null,null,null,null,null,null,null,null,null,null,null,null,null,null,null,null,null,null,null,null,null,null,null,null,"","","","","","",""]
[null,null,null,null,null,null,null,null,null,null,null,null,null,null,null,null,null,null,null,null,null,null,null,null,null,null,null,null,null,null,"","","","","","",""]
[null,null,null,null,null,null,null,null,null,null,null,null,null,null,null,null,null,null,null,null,null,null,null,null,null,null,null,null,null,null,"","","","","","",""]
[null,null,null,null,null,null,null,null,null,null,null,null,null,null,null,null,null,null,null,null,null,null,null,null,null,null,null,null,null,null,"","","","","","",""]
[null,null,null,null,null,null,null,null,null,null,null,null,null,null,null,null,null,null,null,null,null,null,null,null,null,null,null,null,null,null,"","","","","","",""]
[null,null,null,null,null,null,null,null,null,null,null,null,null,null,null,null,null,null,null,null,null,null,null,null,null,null,null,null,null,null,"","","","","","",""]
[null,null,null,null,null,null,null,null,null,null,null,null,null,null,null,null,null,null,null,null,null,null,null,null,null,null,null,null,null,null,"","","","","","",""]
[null,null,null,null,null,null,null,null,null,null,null,null,null,null,null,null,null,null,null,null,null,null,null,null,null,null,null,null,null,null,{"$f":"IF(YEAR(A195)=1900,\"\", TEXT(DAY(A195),\"00\") & \".\" & TEXT(MONTH(A195),\"00\") & \".\" & YEAR(A195))","v":""},{"$f":"IF(K195=0,\"\",ROUND(K195,0))","v":""},{"$f":"IF(N195=\"\",\"\",ROUND(N195,0))","v":""},{"$f":"IF(U195=\"\",\"\",ROUND(U195,0))","v":""},{"$f":"IF(AB195=\"\",\"\",ROUND(AB195,0))","v":""},{"$f":"AE195","v":""},{"$f":"IF(AC195=\"\",\"\",ROUND(AC195,0))","v":""}]
[null,null,null,null,null,null,null,null,null,null,null,null,null,null,null,null,null,null,null,null,null,null,null,null,null,null,null,null,null,null,"","","","","","",""]
[null,null,null,null,null,null,null,null,null,null,null,null,null,null,null,null,null,null,null,null,null,null,null,null,null,null,null,null,null,null,"","","","","","",""]
[null,null,null,null,null,null,null,null,null,null,null,null,null,null,null,null,null,null,null,null,null,null,null,null,null,null,null,null,null,null,"","","","","","",""]
[null,null,null,null,null,null,null,null,null,null,null,null,null,null,null,null,null,null,null,null,null,null,null,null,null,null,null,null,null,null,"","","","","","",""]
[null,null,null,null,null,null,null,null,null,null,null,null,null,null,null,null,null,null,null,null,null,null,null,null,null,null,null,null,null,null,"","","","","","",""]
[null,null,null,null,null,null,null,null,null,null,null,null,null,null,null,null,null,null,null,null,null,null,null,null,null,null,null,null,null,null,"","","","","","",""]
[null,null,null,null,null,null,null,null,null,null,null,null,null,null,null,null,null,null,null,null,null,null,null,null,null,null,null,null,null,null,"","","","","","",""]
[null,null,null,null,null,null,null,null,null,null,null,null,null,null,null,null,null,null,null,null,null,null,null,null,null,null,null,null,null,null,"","","","","","",""]
[null,null,null,null,null,null,null,null,null,null,null,null,null,null,null,null,null,null,null,null,null,null,null,null,null,null,null,null,null,null,"","","","","","",""]
[null,null,null,null,null,null,null,null,null,null,null,null,null,null,null,null,null,null,null,null,null,null,null,null,null,null,null,null,null,null,"","","","","","",""]
[null,null,null,null,null,null,null,null,null,null,null,null,null,null,null,null,null,null,null,null,null,null,null,null,null,null,null,null,null,null,"","","","","","",""]
[null,null,null,null,null,null,null,null,null,null,null,null,null,null,null,null,null,null,null,null,null,null,null,null,null,null,null,null,null,null,"","","","","","",""]
[null,null,null,null,null,null,null,null,null,null,null,null,null,null,null,null,null,null,null,null,null,null,null,null,null,null,null,null,null,null,"","","","","","",""]
[null,null,null,null,null,null,null,null,null,null,null,null,null,null,null,null,null,null,null,null,null,null,null,null,null,null,null,null,null,null,"","","","","","",""]
[null,null,null,null,null,null,null,null,null,null,null,null,null,null,null,null,null,null,null,null,null,null,null,null,null,null,null,null,null,null,"","","","","","",""]
[null,null,null,null,null,null,null,null,null,null,null,null,null,null,null,null,null,null,null,null,null,null,null,null,null,null,null,null,null,null,"","","","","","",""]
[null,null,null,null,null,null,null,null,null,null,null,null,null,null,null,null,null,null,null,null,null,null,null,null,null,null,null,null,null,null,"","","","","","",""]
[null,null,null,null,null,null,null,null,null,null,null,null,null,null,null,null,null,null,null,null,null,null,null,null,null,null,null,null,null,null,"","","","","","",""]
[null,null,null,null,null,null,null,null,null,null,null,null,null,null,null,null,null,null,null,null,null,null,null,null,null,null,null,null,null,null,"","","","","","",""]
[null,null,null,null,null,null,null,null,null,null,null,null,null,null,null,null,null,null,null,null,null,null,null,null,null,null,null,null,null,null,"","","","","","",""]
[null,null,null,null,null,null,null,null,null,null,null,null,null,null,null,null,null,null,null,null,null,null,null,null,null,null,null,null,null,null,"","","","","","",""]
[null,null,null,null,null,null,null,null,null,null,null,null,null,null,null,null,null,null,null,null,null,null,null,null,null,null,null,null,null,null,"","","","","","",""]
[null,null,null,null,null,null,null,null,null,null,null,null,null,null,null,null,null,null,null,null,null,null,null,null,null,null,null,null,null,null,"","","","","","",""]
[null,null,null,null,null,null,null,null,null,null,null,null,null,null,null,null,null,null,null,null,null,null,null,null,null,null,null,null,null,null,"","","","","","",""]
[null,null,null,null,null,null,null,null,null,null,null,null,null,null,null,null,null,null,null,null,null,null,null,null,null,null,null,null,null,null,"","","","","","",""]
[null,null,null,null,null,null,null,null,null,null,null,null,null,null,null,null,null,null,null,null,null,null,null,null,null,null,null,null,null,null,"","","","","","",""]
[null,null,null,null,null,null,null,null,null,null,null,null,null,null,null,null,null,null,null,null,null,null,null,null,null,null,null,null,null,null,"","","","","","",""]
[null,null,null,null,null,null,null,null,null,null,null,null,null,null,null,null,null,null,null,null,null,null,null,null,null,null,null,null,null,null,"","","","","","",""]
[null,null,null,null,null,null,null,null,null,null,null,null,null,null,null,null,null,null,null,null,null,null,null,null,null,null,null,null,null,null,"","","","","","",""]
[null,null,null,null,null,null,null,null,null,null,null,null,null,null,null,null,null,null,null,null,null,null,null,null,null,null,null,null,null,null,"","","","","","",""]
[null,null,null,null,null,null,null,null,null,null,null,null,null,null,null,null,null,null,null,null,null,null,null,null,null,null,null,null,null,null,"","","","","","",""]
[null,null,null,null,null,null,null,null,null,null,null,null,null,null,null,null,null,null,null,null,null,null,null,null,null,null,null,null,null,null,"","","","","","",""]
[null,null,null,null,null,null,null,null,null,null,null,null,null,null,null,null,null,null,null,null,null,null,null,null,null,null,null,null,null,null,"","","","","","",""]
[null,null,null,null,null,null,null,null,null,null,null,null,null,null,null,null,null,null,null,null,null,null,null,null,null,null,null,null,null,null,"","","","","","",""]
[null,null,null,null,null,null,null,null,null,null,null,null,null,null,null,null,null,null,null,null,null,null,null,null,null,null,null,null,null,null,"","","","","","",""]
[null,null,null,null,null,null,null,null,null,null,null,null,null,null,null,null,null,null,null,null,null,null,null,null,null,null,null,null,null,null,"","","","","","",""]
[null,null,null,null,null,null,null,null,null,null,null,null,null,null,null,null,null,null,null,null,null,null,null,null,null,null,null,null,null,null,"","","","","","",""]
[null,null,null,null,null,null,null,null,null,null,null,null,null,null,null,null,null,null,null,null,null,null,null,null,null,null,null,null,null,null,"","","","","","",""]
[null,null,null,null,null,null,null,null,null,null,null,null,null,null,null,null,null,null,null,null,null,null,null,null,null,null,null,null,null,null,"","","","","","",""]
[null,null,null,null,null,null,null,null,null,null,null,null,null,null,null,null,null,null,null,null,null,null,null,null,null,null,null,null,null,null,"","","","","","",""]
[null,null,null,null,null,null,null,null,null,null,null,null,null,null,null,null,null,null,null,null,null,null,null,null,null,null,null,null,null,null,"","","","","","",""]
[null,null,null,null,null,null,null,null,null,null,null,null,null,null,null,null,null,null,null,null,null,null,null,null,null,null,null,null,null,null,"","","","","","",""]
[null,null,null,null,null,null,null,null,null,null,null,null,null,null,null,null,null,null,null,null,null,null,null,null,null,null,null,null,null,null,"","","","","","",""]
[null,null,null,null,null,null,null,null,null,null,null,null,null,null,null,null,null,null,null,null,null,null,null,null,null,null,null,null,null,null,"","","","","","",""]
[null,null,null,null,null,null,null,null,null,null,null,null,null,null,null,null,null,null,null,null,null,null,null,null,null,null,null,null,null,null,"","","","","","",""]
[null,null,null,null,null,null,null,null,null,null,null,null,null,null,null,null,null,null,null,null,null,null,null,null,null,null,null,null,null,null,"","","","","","",""]
[null,null,null,null,null,null,null,null,null,null,null,null,null,null,null,null,null,null,null,null,null,null,null,null,null,null,null,null,null,null,"","","","","","",""]
[null,null,null,null,null,null,null,null,null,null,null,null,null,null,null,null,null,null,null,null,null,null,null,null,null,null,null,null,null,null,"","","","","","",""]
[null,null,null,null,null,null,null,null,null,null,null,null,null,null,null,null,null,null,null,null,null,null,null,null,null,null,null,null,null,null,"","","","","","",""]
[null,null,null,null,null,null,null,null,null,null,null,null,null,null,null,null,null,null,null,null,null,null,null,null,null,null,null,null,null,null,"","","","","","",""]
[null,null,null,null,null,null,null,null,null,null,null,null,null,null,null,null,null,null,null,null,null,null,null,null,null,null,null,null,null,null,"","","","","","",""]
[null,null,null,null,null,null,null,null,null,null,null,null,null,null,null,null,null,null,null,null,null,null,null,null,null,null,null,null,null,null,"","","","","","",""]
[null,null,null,null,null,null,null,null,null,null,null,null,null,null,null,null,null,null,null,null,null,null,null,null,null,null,null,null,null,null,"","","","","","",""]
[null,null,null,null,null,null,null,null,null,null,null,null,null,null,null,null,null,null,null,null,null,null,null,null,null,null,null,null,null,null,"","","","","","",""]
[null,null,null,null,null,null,null,null,null,null,null,null,null,null,null,null,null,null,null,null,null,null,null,null,null,null,null,null,null,null,"","","","","","",""]
[null,null,null,null,null,null,null,null,null,null,null,null,null,null,null,null,null,null,null,null,null,null,null,null,null,null,null,null,null,null,"","","","","","",""]
[null,null,null,null,null,null,null,null,null,null,null,null,null,null,null,null,null,null,null,null,null,null,null,null,null,null,null,null,null,null,"","","","","","",""]
[null,null,null,null,null,null,null,null,null,null,null,null,null,null,null,null,null,null,null,null,null,null,null,null,null,null,null,null,null,null,"","","","","","",""]
[null,null,null,null,null,null,null,null,null,null,null,null,null,null,null,null,null,null,null,null,null,null,null,null,null,null,null,null,null,null,"","","","","","",""]
[null,null,null,null,null,null,null,null,null,null,null,null,null,null,null,null,null,null,null,null,null,null,null,null,null,null,null,null,null,null,"","","","","","",""]
[null,null,null,null,null,null,null,null,null,null,null,null,null,null,null,null,null,null,null,null,null,null,null,null,null,null,null,null,null,null,"","","","","","",""]
[null,null,null,null,null,null,null,null,null,null,null,null,null,null,null,null,null,null,null,null,null,null,null,null,null,null,null,null,null,null,"","","","","","",""]
[null,null,null,null,null,null,null,null,null,null,null,null,null,null,null,null,null,null,null,null,null,null,null,null,null,null,null,null,null,null,"","","","","","",""]
[null,null,null,null,null,null,null,null,null,null,null,null,null,null,null,null,null,null,null,null,null,null,null,null,null,null,null,null,null,null,{"$f":"IF(YEAR(A259)=1900,\"\", TEXT(DAY(A259),\"00\") & \".\" & TEXT(MONTH(A259),\"00\") & \".\" & YEAR(A259))","v":""},{"$f":"IF(K259=0,\"\",ROUND(K259,0))","v":""},{"$f":"IF(N259=\"\",\"\",ROUND(N259,0))","v":""},{"$f":"IF(U259=\"\",\"\",ROUND(U259,0))","v":""},{"$f":"IF(AB259=\"\",\"\",ROUND(AB259,0))","v":""},{"$f":"AE259","v":""},{"$f":"IF(AC259=\"\",\"\",ROUND(AC259,0))","v":""}]
[null,null,null,null,null,null,null,null,null,null,null,null,null,null,null,null,null,null,null,null,null,null,null,null,null,null,null,null,null,null,"","","","","","",""]
[null,null,null,null,null,null,null,null,null,null,null,null,null,null,null,null,null,null,null,null,null,null,null,null,null,null,null,null,null,null,"","","","","","",""]
[null,null,null,null,null,null,null,null,null,null,null,null,null,null,null,null,null,null,null,null,null,null,null,null,null,null,null,null,null,null,"","","","","","",""]
[null,null,null,null,null,null,null,null,null,null,null,null,null,null,null,null,null,null,null,null,null,null,null,null,null,null,null,null,null,null,"","","","","","",""]
[null,null,null,null,null,null,null,null,null,null,null,null,null,null,null,null,null,null,null,null,null,null,null,null,null,null,null,null,null,null,"","","","","","",""]
[null,null,null,null,null,null,null,null,null,null,null,null,null,null,null,null,null,null,null,null,null,null,null,null,null,null,null,null,null,null,"","","","","","",""]
[null,null,null,null,null,null,null,null,null,null,null,null,null,null,null,null,null,null,null,null,null,null,null,null,null,null,null,null,null,null,"","","","","","",""]
[null,null,null,null,null,null,null,null,null,null,null,null,null,null,null,null,null,null,null,null,null,null,null,null,null,null,null,null,null,null,"","","","","","",""]
[null,null,null,null,null,null,null,null,null,null,null,null,null,null,null,null,null,null,null,null,null,null,null,null,null,null,null,null,null,null,"","","","","","",""]
[null,null,null,null,null,null,null,null,null,null,null,null,null,null,null,null,null,null,null,null,null,null,null,null,null,null,null,null,null,null,"","","","","","",""]
[null,null,null,null,null,null,null,null,null,null,null,null,null,null,null,null,null,null,null,null,null,null,null,null,null,null,null,null,null,null,"","","","","","",""]
[null,null,null,null,null,null,null,null,null,null,null,null,null,null,null,null,null,null,null,null,null,null,null,null,null,null,null,null,null,null,"","","","","","",""]
[null,null,null,null,null,null,null,null,null,null,null,null,null,null,null,null,null,null,null,null,null,null,null,null,null,null,null,null,null,null,"","","","","","",""]
[null,null,null,null,null,null,null,null,null,null,null,null,null,null,null,null,null,null,null,null,null,null,null,null,null,null,null,null,null,null,"","","","","","",""]
[null,null,null,null,null,null,null,null,null,null,null,null,null,null,null,null,null,null,null,null,null,null,null,null,null,null,null,null,null,null,"","","","","","",""]
[null,null,null,null,null,null,null,null,null,null,null,null,null,null,null,null,null,null,null,null,null,null,null,null,null,null,null,null,null,null,"","","","","","",""]
[null,null,null,null,null,null,null,null,null,null,null,null,null,null,null,null,null,null,null,null,null,null,null,null,null,null,null,null,null,null,"","","","","","",""]
[null,null,null,null,null,null,null,null,null,null,null,null,null,null,null,null,null,null,null,null,null,null,null,null,null,null,null,null,null,null,"","","","","","",""]
[null,null,null,null,null,null,null,null,null,null,null,null,null,null,null,null,null,null,null,null,null,null,null,null,null,null,null,null,null,null,"","","","","","",""]
[null,null,null,null,null,null,null,null,null,null,null,null,null,null,null,null,null,null,null,null,null,null,null,null,null,null,null,null,null,null,"","","","","","",""]
[null,null,null,null,null,null,null,null,null,null,null,null,null,null,null,null,null,null,null,null,null,null,null,null,null,null,null,null,null,null,"","","","","","",""]
[null,null,null,null,null,null,null,null,null,null,null,null,null,null,null,null,null,null,null,null,null,null,null,null,null,null,null,null,null,null,"","","","","","",""]
[null,null,null,null,null,null,null,null,null,null,null,null,null,null,null,null,null,null,null,null,null,null,null,null,null,null,null,null,null,null,"","","","","","",""]
[null,null,null,null,null,null,null,null,null,null,null,null,null,null,null,null,null,null,null,null,null,null,null,null,null,null,null,null,null,null,"","","","","","",""]
[null,null,null,null,null,null,null,null,null,null,null,null,null,null,null,null,null,null,null,null,null,null,null,null,null,null,null,null,null,null,"","","","","","",""]
[null,null,null,null,null,null,null,null,null,null,null,null,null,null,null,null,null,null,null,null,null,null,null,null,null,null,null,null,null,null,"","","","","","",""]
[null,null,null,null,null,null,null,null,null,null,null,null,null,null,null,null,null,null,null,null,null,null,null,null,null,null,null,null,null,null,"","","","","","",""]
[null,null,null,null,null,null,null,null,null,null,null,null,null,null,null,null,null,null,null,null,null,null,null,null,null,null,null,null,null,null,"","","","","","",""]
[null,null,null,null,null,null,null,null,null,null,null,null,null,null,null,null,null,null,null,null,null,null,null,null,null,null,null,null,null,null,"","","","","","",""]
[null,null,null,null,null,null,null,null,null,null,null,null,null,null,null,null,null,null,null,null,null,null,null,null,null,null,null,null,null,null,"","","","","","",""]
[null,null,null,null,null,null,null,null,null,null,null,null,null,null,null,null,null,null,null,null,null,null,null,null,null,null,null,null,null,null,"","","","","","",""]
[null,null,null,null,null,null,null,null,null,null,null,null,null,null,null,null,null,null,null,null,null,null,null,null,null,null,null,null,null,null,"","","","","","",""]
[null,null,null,null,null,null,null,null,null,null,null,null,null,null,null,null,null,null,null,null,null,null,null,null,null,null,null,null,null,null,"","","","","","",""]
[null,null,null,null,null,null,null,null,null,null,null,null,null,null,null,null,null,null,null,null,null,null,null,null,null,null,null,null,null,null,"","","","","","",""]
[null,null,null,null,null,null,null,null,null,null,null,null,null,null,null,null,null,null,null,null,null,null,null,null,null,null,null,null,null,null,"","","","","","",""]
[null,null,null,null,null,null,null,null,null,null,null,null,null,null,null,null,null,null,null,null,null,null,null,null,null,null,null,null,null,null,"","","","","","",""]
[null,null,null,null,null,null,null,null,null,null,null,null,null,null,null,null,null,null,null,null,null,null,null,null,null,null,null,null,null,null,"","","","","","",""]
[null,null,null,null,null,null,null,null,null,null,null,null,null,null,null,null,null,null,null,null,null,null,null,null,null,null,null,null,null,null,"","","","","","",""]
[null,null,null,null,null,null,null,null,null,null,null,null,null,null,null,null,null,null,null,null,null,null,null,null,null,null,null,null,null,null,"","","","","","",""]
[null,null,null,null,null,null,null,null,null,null,null,null,null,null,null,null,null,null,null,null,null,null,null,null,null,null,null,null,null,null,"","","","","","",""]
[null,null,null,null,null,null,null,null,null,null,null,null,null,null,null,null,null,null,null,null,null,null,null,null,null,null,null,null,null,null,"","","","","","",""]
[null,null,null,null,null,null,null,null,null,null,null,null,null,null,null,null,null,null,null,null,null,null,null,null,null,null,null,null,null,null,"","","","","","",""]
[null,null,null,null,null,null,null,null,null,null,null,null,null,null,null,null,null,null,null,null,null,null,null,null,null,null,null,null,null,null,"","","","","","",""]
[null,null,null,null,null,null,null,null,null,null,null,null,null,null,null,null,null,null,null,null,null,null,null,null,null,null,null,null,null,null,"","","","","","",""]
[null,null,null,null,null,null,null,null,null,null,null,null,null,null,null,null,null,null,null,null,null,null,null,null,null,null,null,null,null,null,"","","","","","",""]
[null,null,null,null,null,null,null,null,null,null,null,null,null,null,null,null,null,null,null,null,null,null,null,null,null,null,null,null,null,null,"","","","","","",""]
[null,null,null,null,null,null,null,null,null,null,null,null,null,null,null,null,null,null,null,null,null,null,null,null,null,null,null,null,null,null,"","","","","","",""]
[null,null,null,null,null,null,null,null,null,null,null,null,null,null,null,null,null,null,null,null,null,null,null,null,null,null,null,null,null,null,"","","","","","",""]
[null,null,null,null,null,null,null,null,null,null,null,null,null,null,null,null,null,null,null,null,null,null,null,null,null,null,null,null,null,null,"","","","","","",""]
[null,null,null,null,null,null,null,null,null,null,null,null,null,null,null,null,null,null,null,null,null,null,null,null,null,null,null,null,null,null,"","","","","","",""]
[null,null,null,null,null,null,null,null,null,null,null,null,null,null,null,null,null,null,null,null,null,null,null,null,null,null,null,null,null,null,"","","","","","",""]
[null,null,null,null,null,null,null,null,null,null,null,null,null,null,null,null,null,null,null,null,null,null,null,null,null,null,null,null,null,null,"","","","","","",""]
[null,null,null,null,null,null,null,null,null,null,null,null,null,null,null,null,null,null,null,null,null,null,null,null,null,null,null,null,null,null,"","","","","","",""]
[null,null,null,null,null,null,null,null,null,null,null,null,null,null,null,null,null,null,null,null,null,null,null,null,null,null,null,null,null,null,"","","","","","",""]
[null,null,null,null,null,null,null,null,null,null,null,null,null,null,null,null,null,null,null,null,null,null,null,null,null,null,null,null,null,null,"","","","","","",""]
[null,null,null,null,null,null,null,null,null,null,null,null,null,null,null,null,null,null,null,null,null,null,null,null,null,null,null,null,null,null,"","","","","","",""]
[null,null,null,null,null,null,null,null,null,null,null,null,null,null,null,null,null,null,null,null,null,null,null,null,null,null,null,null,null,null,"","","","","","",""]
[null,null,null,null,null,null,null,null,null,null,null,null,null,null,null,null,null,null,null,null,null,null,null,null,null,null,null,null,null,null,"","","","","","",""]
[null,null,null,null,null,null,null,null,null,null,null,null,null,null,null,null,null,null,null,null,null,null,null,null,null,null,null,null,null,null,"","","","","","",""]
[null,null,null,null,null,null,null,null,null,null,null,null,null,null,null,null,null,null,null,null,null,null,null,null,null,null,null,null,null,null,"","","","","","",""]
[null,null,null,null,null,null,null,null,null,null,null,null,null,null,null,null,null,null,null,null,null,null,null,null,null,null,null,null,null,null,"","","","","","",""]
[null,null,null,null,null,null,null,null,null,null,null,null,null,null,null,null,null,null,null,null,null,null,null,null,null,null,null,null,null,null,"","","","","","",""]
[null,null,null,null,null,null,null,null,null,null,null,null,null,null,null,null,null,null,null,null,null,null,null,null,null,null,null,null,null,null,"","","","","","",""]
[null,null,null,null,null,null,null,null,null,null,null,null,null,null,null,null,null,null,null,null,null,null,null,null,null,null,null,null,null,null,{"$f":"IF(YEAR(A323)=1900,\"\", TEXT(DAY(A323),\"00\") & \".\" & TEXT(MONTH(A323),\"00\") & \".\" & YEAR(A323))","v":""},{"$f":"IF(K323=0,\"\",ROUND(K323,0))","v":""},{"$f":"IF(N323=\"\",\"\",ROUND(N323,0))","v":""},{"$f":"IF(U323=\"\",\"\",ROUND(U323,0))","v":""},{"$f":"IF(AB323=\"\",\"\",ROUND(AB323,0))","v":""},{"$f":"AE323","v":""},{"$f":"IF(AC323=\"\",\"\",ROUND(AC323,0))","v":""}]
[null,null,null,null,null,null,null,null,null,null,null,null,null,null,null,null,null,null,null,null,null,null,null,null,null,null,null,null,null,null,"","","","","","",""]
[null,null,null,null,null,null,null,null,null,null,null,null,null,null,null,null,null,null,null,null,null,null,null,null,null,null,null,null,null,null,"","","","","","",""]
[null,null,null,null,null,null,null,null,null,null,null,null,null,null,null,null,null,null,null,null,null,null,null,null,null,null,null,null,null,null,"","","","","","",""]
[null,null,null,null,null,null,null,null,null,null,null,null,null,null,null,null,null,null,null,null,null,null,null,null,null,null,null,null,null,null,"","","","","","",""]
[null,null,null,null,null,null,null,null,null,null,null,null,null,null,null,null,null,null,null,null,null,null,null,null,null,null,null,null,null,null,"","","","","","",""]
[null,null,null,null,null,null,null,null,null,null,null,null,null,null,null,null,null,null,null,null,null,null,null,null,null,null,null,null,null,null,"","","","","","",""]
[null,null,null,null,null,null,null,null,null,null,null,null,null,null,null,null,null,null,null,null,null,null,null,null,null,null,null,null,null,null,"","","","","","",""]
[null,null,null,null,null,null,null,null,null,null,null,null,null,null,null,null,null,null,null,null,null,null,null,null,null,null,null,null,null,null,"","","","","","",""]
[null,null,null,null,null,null,null,null,null,null,null,null,null,null,null,null,null,null,null,null,null,null,null,null,null,null,null,null,null,null,"","","","","","",""]
[null,null,null,null,null,null,null,null,null,null,null,null,null,null,null,null,null,null,null,null,null,null,null,null,null,null,null,null,null,null,"","","","","","",""]
[null,null,null,null,null,null,null,null,null,null,null,null,null,null,null,null,null,null,null,null,null,null,null,null,null,null,null,null,null,null,"","","","","","",""]
[null,null,null,null,null,null,null,null,null,null,null,null,null,null,null,null,null,null,null,null,null,null,null,null,null,null,null,null,null,null,"","","","","","",""]
[null,null,null,null,null,null,null,null,null,null,null,null,null,null,null,null,null,null,null,null,null,null,null,null,null,null,null,null,null,null,"","","","","","",""]
[null,null,null,null,null,null,null,null,null,null,null,null,null,null,null,null,null,null,null,null,null,null,null,null,null,null,null,null,null,null,"","","","","","",""]
[null,null,null,null,null,null,null,null,null,null,null,null,null,null,null,null,null,null,null,null,null,null,null,null,null,null,null,null,null,null,"","","","","","",""]
[null,null,null,null,null,null,null,null,null,null,null,null,null,null,null,null,null,null,null,null,null,null,null,null,null,null,null,null,null,null,"","","","","","",""]
[null,null,null,null,null,null,null,null,null,null,null,null,null,null,null,null,null,null,null,null,null,null,null,null,null,null,null,null,null,null,"","","","","","",""]
[null,null,null,null,null,null,null,null,null,null,null,null,null,null,null,null,null,null,null,null,null,null,null,null,null,null,null,null,null,null,"","","","","","",""]
[null,null,null,null,null,null,null,null,null,null,null,null,null,null,null,null,null,null,null,null,null,null,null,null,null,null,null,null,null,null,"","","","","","",""]
[null,null,null,null,null,null,null,null,null,null,null,null,null,null,null,null,null,null,null,null,null,null,null,null,null,null,null,null,null,null,"","","","","","",""]
[null,null,null,null,null,null,null,null,null,null,null,null,null,null,null,null,null,null,null,null,null,null,null,null,null,null,null,null,null,null,"","","","","","",""]
[null,null,null,null,null,null,null,null,null,null,null,null,null,null,null,null,null,null,null,null,null,null,null,null,null,null,null,null,null,null,"","","","","","",""]
[null,null,null,null,null,null,null,null,null,null,null,null,null,null,null,null,null,null,null,null,null,null,null,null,null,null,null,null,null,null,"","","","","","",""]
[null,null,null,null,null,null,null,null,null,null,null,null,null,null,null,null,null,null,null,null,null,null,null,null,null,null,null,null,null,null,"","","","","","",""]
[null,null,null,null,null,null,null,null,null,null,null,null,null,null,null,null,null,null,null,null,null,null,null,null,null,null,null,null,null,null,"","","","","","",""]
[null,null,null,null,null,null,null,null,null,null,null,null,null,null,null,null,null,null,null,null,null,null,null,null,null,null,null,null,null,null,"","","","","","",""]
[null,null,null,null,null,null,null,null,null,null,null,null,null,null,null,null,null,null,null,null,null,null,null,null,null,null,null,null,null,null,"","","","","","",""]
[null,null,null,null,null,null,null,null,null,null,null,null,null,null,null,null,null,null,null,null,null,null,null,null,null,null,null,null,null,null,"","","","","","",""]
[null,null,null,null,null,null,null,null,null,null,null,null,null,null,null,null,null,null,null,null,null,null,null,null,null,null,null,null,null,null,"","","","","","",""]
[null,null,null,null,null,null,null,null,null,null,null,null,null,null,null,null,null,null,null,null,null,null,null,null,null,null,null,null,null,null,"","","","","","",""]
[null,null,null,null,null,null,null,null,null,null,null,null,null,null,null,null,null,null,null,null,null,null,null,null,null,null,null,null,null,null,"","","","","","",""]
[null,null,null,null,null,null,null,null,null,null,null,null,null,null,null,null,null,null,null,null,null,null,null,null,null,null,null,null,null,null,"","","","","","",""]
[null,null,null,null,null,null,null,null,null,null,null,null,null,null,null,null,null,null,null,null,null,null,null,null,null,null,null,null,null,null,"","","","","","",""]
[null,null,null,null,null,null,null,null,null,null,null,null,null,null,null,null,null,null,null,null,null,null,null,null,null,null,null,null,null,null,"","","","","","",""]
[null,null,null,null,null,null,null,null,null,null,null,null,null,null,null,null,null,null,null,null,null,null,null,null,null,null,null,null,null,null,"","","","","","",""]
[null,null,null,null,null,null,null,null,null,null,null,null,null,null,null,null,null,null,null,null,null,null,null,null,null,null,null,null,null,null,"","","","","","",""]
[null,null,null,null,null,null,null,null,null,null,null,null,null,null,null,null,null,null,null,null,null,null,null,null,null,null,null,null,null,null,"","","","","","",""]
[null,null,null,null,null,null,null,null,null,null,null,null,null,null,null,null,null,null,null,null,null,null,null,null,null,null,null,null,null,null,"","","","","","",""]
[null,null,null,null,null,null,null,null,null,null,null,null,null,null,null,null,null,null,null,null,null,null,null,null,null,null,null,null,null,null,"","","","","","",""]
[null,null,null,null,null,null,null,null,null,null,null,null,null,null,null,null,null,null,null,null,null,null,null,null,null,null,null,null,null,null,"","","","","","",""]
[null,null,null,null,null,null,null,null,null,null,null,null,null,null,null,null,null,null,null,null,null,null,null,null,null,null,null,null,null,null,"","","","","","",""]
[null,null,null,null,null,null,null,null,null,null,null,null,null,null,null,null,null,null,null,null,null,null,null,null,null,null,null,null,null,null,"","","","","","",""]
[null,null,null,null,null,null,null,null,null,null,null,null,null,null,null,null,null,null,null,null,null,null,null,null,null,null,null,null,null,null,"","","","","","",""]
[null,null,null,null,null,null,null,null,null,null,null,null,null,null,null,null,null,null,null,null,null,null,null,null,null,null,null,null,null,null,"","","","","","",""]
[null,null,null,null,null,null,null,null,null,null,null,null,null,null,null,null,null,null,null,null,null,null,null,null,null,null,null,null,null,null,"","","","","","",""]
[null,null,null,null,null,null,null,null,null,null,null,null,null,null,null,null,null,null,null,null,null,null,null,null,null,null,null,null,null,null,"","","","","","",""]
[null,null,null,null,null,null,null,null,null,null,null,null,null,null,null,null,null,null,null,null,null,null,null,null,null,null,null,null,null,null,"","","","","","",""]
[null,null,null,null,null,null,null,null,null,null,null,null,null,null,null,null,null,null,null,null,null,null,null,null,null,null,null,null,null,null,"","","","","","",""]
[null,null,null,null,null,null,null,null,null,null,null,null,null,null,null,null,null,null,null,null,null,null,null,null,null,null,null,null,null,null,"","","","","","",""]
[null,null,null,null,null,null,null,null,null,null,null,null,null,null,null,null,null,null,null,null,null,null,null,null,null,null,null,null,null,null,"","","","","","",""]
[null,null,null,null,null,null,null,null,null,null,null,null,null,null,null,null,null,null,null,null,null,null,null,null,null,null,null,null,null,null,"","","","","","",""]
[null,null,null,null,null,null,null,null,null,null,null,null,null,null,null,null,null,null,null,null,null,null,null,null,null,null,null,null,null,null,"","","","","","",""]
[null,null,null,null,null,null,null,null,null,null,null,null,null,null,null,null,null,null,null,null,null,null,null,null,null,null,null,null,null,null,"","","","","","",""]
[null,null,null,null,null,null,null,null,null,null,null,null,null,null,null,null,null,null,null,null,null,null,null,null,null,null,null,null,null,null,"","","","","","",""]
[null,null,null,null,null,null,null,null,null,null,null,null,null,null,null,null,null,null,null,null,null,null,null,null,null,null,null,null,null,null,"","","","","","",""]
[null,null,null,null,null,null,null,null,null,null,null,null,null,null,null,null,null,null,null,null,null,null,null,null,null,null,null,null,null,null,"","","","","","",""]
[null,null,null,null,null,null,null,null,null,null,null,null,null,null,null,null,null,null,null,null,null,null,null,null,null,null,null,null,null,null,"","","","","","",""]
[null,null,null,null,null,null,null,null,null,null,null,null,null,null,null,null,null,null,null,null,null,null,null,null,null,null,null,null,null,null,"","","","","","",""]
[null,null,null,null,null,null,null,null,null,null,null,null,null,null,null,null,null,null,null,null,null,null,null,null,null,null,null,null,null,null,"","","","","","",""]
[null,null,null,null,null,null,null,null,null,null,null,null,null,null,null,null,null,null,null,null,null,null,null,null,null,null,null,null,null,null,"","","","","","",""]
[null,null,null,null,null,null,null,null,null,null,null,null,null,null,null,null,null,null,null,null,null,null,null,null,null,null,null,null,null,null,"","","","","","",""]
[null,null,null,null,null,null,null,null,null,null,null,null,null,null,null,null,null,null,null,null,null,null,null,null,null,null,null,null,null,null,"","","","","","",""]
[null,null,null,null,null,null,null,null,null,null,null,null,null,null,null,null,null,null,null,null,null,null,null,null,null,null,null,null,null,null,"","","","","","",""]
[null,null,null,null,null,null,null,null,null,null,null,null,null,null,null,null,null,null,null,null,null,null,null,null,null,null,null,null,null,null,{"$f":"IF(YEAR(A387)=1900,\"\", TEXT(DAY(A387),\"00\") & \".\" & TEXT(MONTH(A387),\"00\") & \".\" & YEAR(A387))","v":""},{"$f":"IF(K387=0,\"\",ROUND(K387,0))","v":""},{"$f":"IF(N387=\"\",\"\",ROUND(N387,0))","v":""},{"$f":"IF(U387=\"\",\"\",ROUND(U387,0))","v":""},{"$f":"IF(AB387=\"\",\"\",ROUND(AB387,0))","v":""},{"$f":"AE387","v":""},{"$f":"IF(AC387=\"\",\"\",ROUND(AC387,0))","v":""}]
[null,null,null,null,null,null,null,null,null,null,null,null,null,null,null,null,null,null,null,null,null,null,null,null,null,null,null,null,null,null,"","","","","","",""]
[null,null,null,null,null,null,null,null,null,null,null,null,null,null,null,null,null,null,null,null,null,null,null,null,null,null,null,null,null,null,"","","","","","",""]
[null,null,null,null,null,null,null,null,null,null,null,null,null,null,null,null,null,null,null,null,null,null,null,null,null,null,null,null,null,null,"","","","","","",""]
[null,null,null,null,null,null,null,null,null,null,null,null,null,null,null,null,null,null,null,null,null,null,null,null,null,null,null,null,null,null,"","","","","","",""]
[null,null,null,null,null,null,null,null,null,null,null,null,null,null,null,null,null,null,null,null,null,null,null,null,null,null,null,null,null,null,"","","","","","",""]
[null,null,null,null,null,null,null,null,null,null,null,null,null,null,null,null,null,null,null,null,null,null,null,null,null,null,null,null,null,null,"","","","","","",""]
[null,null,null,null,null,null,null,null,null,null,null,null,null,null,null,null,null,null,null,null,null,null,null,null,null,null,null,null,null,null,"","","","","","",""]
[null,null,null,null,null,null,null,null,null,null,null,null,null,null,null,null,null,null,null,null,null,null,null,null,null,null,null,null,null,null,"","","","","","",""]
[null,null,null,null,null,null,null,null,null,null,null,null,null,null,null,null,null,null,null,null,null,null,null,null,null,null,null,null,null,null,"","","","","","",""]
[null,null,null,null,null,null,null,null,null,null,null,null,null,null,null,null,null,null,null,null,null,null,null,null,null,null,null,null,null,null,"","","","","","",""]
[null,null,null,null,null,null,null,null,null,null,null,null,null,null,null,null,null,null,null,null,null,null,null,null,null,null,null,null,null,null,"","","","","","",""]
[null,null,null,null,null,null,null,null,null,null,null,null,null,null,null,null,null,null,null,null,null,null,null,null,null,null,null,null,null,null,"","","","","","",""]
[null,null,null,null,null,null,null,null,null,null,null,null,null,null,null,null,null,null,null,null,null,null,null,null,null,null,null,null,null,null,"","","","","","",""]
[null,null,null,null,null,null,null,null,null,null,null,null,null,null,null,null,null,null,null,null,null,null,null,null,null,null,null,null,null,null,"","","","","","",""]
[null,null,null,null,null,null,null,null,null,null,null,null,null,null,null,null,null,null,null,null,null,null,null,null,null,null,null,null,null,null,"","","","","","",""]
[null,null,null,null,null,null,null,null,null,null,null,null,null,null,null,null,null,null,null,null,null,null,null,null,null,null,null,null,null,null,"","","","","","",""]
[null,null,null,null,null,null,null,null,null,null,null,null,null,null,null,null,null,null,null,null,null,null,null,null,null,null,null,null,null,null,"","","","","","",""]
[null,null,null,null,null,null,null,null,null,null,null,null,null,null,null,null,null,null,null,null,null,null,null,null,null,null,null,null,null,null,"","","","","","",""]
[null,null,null,null,null,null,null,null,null,null,null,null,null,null,null,null,null,null,null,null,null,null,null,null,null,null,null,null,null,null,"","","","","","",""]
[null,null,null,null,null,null,null,null,null,null,null,null,null,null,null,null,null,null,null,null,null,null,null,null,null,null,null,null,null,null,"","","","","","",""]
[null,null,null,null,null,null,null,null,null,null,null,null,null,null,null,null,null,null,null,null,null,null,null,null,null,null,null,null,null,null,"","","","","","",""]
[null,null,null,null,null,null,null,null,null,null,null,null,null,null,null,null,null,null,null,null,null,null,null,null,null,null,null,null,null,null,"","","","","","",""]
[null,null,null,null,null,null,null,null,null,null,null,null,null,null,null,null,null,null,null,null,null,null,null,null,null,null,null,null,null,null,"","","","","","",""]
[null,null,null,null,null,null,null,null,null,null,null,null,null,null,null,null,null,null,null,null,null,null,null,null,null,null,null,null,null,null,"","","","","","",""]
[null,null,null,null,null,null,null,null,null,null,null,null,null,null,null,null,null,null,null,null,null,null,null,null,null,null,null,null,null,null,"","","","","","",""]
[null,null,null,null,null,null,null,null,null,null,null,null,null,null,null,null,null,null,null,null,null,null,null,null,null,null,null,null,null,null,"","","","","","",""]
[null,null,null,null,null,null,null,null,null,null,null,null,null,null,null,null,null,null,null,null,null,null,null,null,null,null,null,null,null,null,"","","","","","",""]
[null,null,null,null,null,null,null,null,null,null,null,null,null,null,null,null,null,null,null,null,null,null,null,null,null,null,null,null,null,null,"","","","","","",""]
[null,null,null,null,null,null,null,null,null,null,null,null,null,null,null,null,null,null,null,null,null,null,null,null,null,null,null,null,null,null,"","","","","","",""]
[null,null,null,null,null,null,null,null,null,null,null,null,null,null,null,null,null,null,null,null,null,null,null,null,null,null,null,null,null,null,"","","","","","",""]
[null,null,null,null,null,null,null,null,null,null,null,null,null,null,null,null,null,null,null,null,null,null,null,null,null,null,null,null,null,null,"","","","","","",""]
[null,null,null,null,null,null,null,null,null,null,null,null,null,null,null,null,null,null,null,null,null,null,null,null,null,null,null,null,null,null,"","","","","","",""]
[null,null,null,null,null,null,null,null,null,null,null,null,null,null,null,null,null,null,null,null,null,null,null,null,null,null,null,null,null,null,"","","","","","",""]
[null,null,null,null,null,null,null,null,null,null,null,null,null,null,null,null,null,null,null,null,null,null,null,null,null,null,null,null,null,null,"","","","","","",""]
[null,null,null,null,null,null,null,null,null,null,null,null,null,null,null,null,null,null,null,null,null,null,null,null,null,null,null,null,null,null,"","","","","","",""]
[null,null,null,null,null,null,null,null,null,null,null,null,null,null,null,null,null,null,null,null,null,null,null,null,null,null,null,null,null,null,"","","","","","",""]
[null,null,null,null,null,null,null,null,null,null,null,null,null,null,null,null,null,null,null,null,null,null,null,null,null,null,null,null,null,null,"","","","","","",""]
[null,null,null,null,null,null,null,null,null,null,null,null,null,null,null,null,null,null,null,null,null,null,null,null,null,null,null,null,null,null,"","","","","","",""]
[null,null,null,null,null,null,null,null,null,null,null,null,null,null,null,null,null,null,null,null,null,null,null,null,null,null,null,null,null,null,"","","","","","",""]
[null,null,null,null,null,null,null,null,null,null,null,null,null,null,null,null,null,null,null,null,null,null,null,null,null,null,null,null,null,null,"","","","","","",""]
[null,null,null,null,null,null,null,null,null,null,null,null,null,null,null,null,null,null,null,null,null,null,null,null,null,null,null,null,null,null,"","","","","","",""]
[null,null,null,null,null,null,null,null,null,null,null,null,null,null,null,null,null,null,null,null,null,null,null,null,null,null,null,null,null,null,"","","","","","",""]
[null,null,null,null,null,null,null,null,null,null,null,null,null,null,null,null,null,null,null,null,null,null,null,null,null,null,null,null,null,null,"","","","","","",""]
[null,null,null,null,null,null,null,null,null,null,null,null,null,null,null,null,null,null,null,null,null,null,null,null,null,null,null,null,null,null,"","","","","","",""]
[null,null,null,null,null,null,null,null,null,null,null,null,null,null,null,null,null,null,null,null,null,null,null,null,null,null,null,null,null,null,"","","","","","",""]
[null,null,null,null,null,null,null,null,null,null,null,null,null,null,null,null,null,null,null,null,null,null,null,null,null,null,null,null,null,null,"","","","","","",""]
[null,null,null,null,null,null,null,null,null,null,null,null,null,null,null,null,null,null,null,null,null,null,null,null,null,null,null,null,null,null,"","","","","","",""]
[null,null,null,null,null,null,null,null,null,null,null,null,null,null,null,null,null,null,null,null,null,null,null,null,null,null,null,null,null,null,"","","","","","",""]
[null,null,null,null,null,null,null,null,null,null,null,null,null,null,null,null,null,null,null,null,null,null,null,null,null,null,null,null,null,null,"","","","","","",""]
[null,null,null,null,null,null,null,null,null,null,null,null,null,null,null,null,null,null,null,null,null,null,null,null,null,null,null,null,null,null,"","","","","","",""]
[null,null,null,null,null,null,null,null,null,null,null,null,null,null,null,null,null,null,null,null,null,null,null,null,null,null,null,null,null,null,"","","","","","",""]
[null,null,null,null,null,null,null,null,null,null,null,null,null,null,null,null,null,null,null,null,null,null,null,null,null,null,null,null,null,null,"","","","","","",""]
[null,null,null,null,null,null,null,null,null,null,null,null,null,null,null,null,null,null,null,null,null,null,null,null,null,null,null,null,null,null,"","","","","","",""]
[null,null,null,null,null,null,null,null,null,null,null,null,null,null,null,null,null,null,null,null,null,null,null,null,null,null,null,null,null,null,"","","","","","",""]
[null,null,null,null,null,null,null,null,null,null,null,null,null,null,null,null,null,null,null,null,null,null,null,null,null,null,null,null,null,null,"","","","","","",""]
[null,null,null,null,null,null,null,null,null,null,null,null,null,null,null,null,null,null,null,null,null,null,null,null,null,null,null,null,null,null,"","","","","","",""]
[null,null,null,null,null,null,null,null,null,null,null,null,null,null,null,null,null,null,null,null,null,null,null,null,null,null,null,null,null,null,"","","","","","",""]
[null,null,null,null,null,null,null,null,null,null,null,null,null,null,null,null,null,null,null,null,null,null,null,null,null,null,null,null,null,null,"","","","","","",""]
[null,null,null,null,null,null,null,null,null,null,null,null,null,null,null,null,null,null,null,null,null,null,null,null,null,null,null,null,null,null,"","","","","","",""]
[null,null,null,null,null,null,null,null,null,null,null,null,null,null,null,null,null,null,null,null,null,null,null,null,null,null,null,null,null,null,"","","","","","",""]
[null,null,null,null,null,null,null,null,null,null,null,null,null,null,null,null,null,null,null,null,null,null,null,null,null,null,null,null,null,null,"","","","","","",""]
[null,null,null,null,null,null,null,null,null,null,null,null,null,null,null,null,null,null,null,null,null,null,null,null,null,null,null,null,null,null,"","","","","","",""]
[null,null,null,null,null,null,null,null,null,null,null,null,null,null,null,null,null,null,null,null,null,null,null,null,null,null,null,null,null,null,"","","","","","",""]
[null,null,null,null,null,null,null,null,null,null,null,null,null,null,null,null,null,null,null,null,null,null,null,null,null,null,null,null,null,null,{"$f":"IF(YEAR(A451)=1900,\"\", TEXT(DAY(A451),\"00\") & \".\" & TEXT(MONTH(A451),\"00\") & \".\" & YEAR(A451))","v":""},{"$f":"IF(K451=0,\"\",ROUND(K451,0))","v":""},{"$f":"IF(N451=\"\",\"\",ROUND(N451,0))","v":""},{"$f":"IF(U451=\"\",\"\",ROUND(U451,0))","v":""},{"$f":"IF(AB451=\"\",\"\",ROUND(AB451,0))","v":""},{"$f":"AE451","v":""},{"$f":"IF(AC451=\"\",\"\",ROUND(AC451,0))","v":""}]
[null,null,null,null,null,null,null,null,null,null,null,null,null,null,null,null,null,null,null,null,null,null,null,null,null,null,null,null,null,null,"","","","","","",""]
[null,null,null,null,null,null,null,null,null,null,null,null,null,null,null,null,null,null,null,null,null,null,null,null,null,null,null,null,null,null,"","","","","","",""]
[null,null,null,null,null,null,null,null,null,null,null,null,null,null,null,null,null,null,null,null,null,null,null,null,null,null,null,null,null,null,"","","","","","",""]
[null,null,null,null,null,null,null,null,null,null,null,null,null,null,null,null,null,null,null,null,null,null,null,null,null,null,null,null,null,null,"","","","","","",""]
[null,null,null,null,null,null,null,null,null,null,null,null,null,null,null,null,null,null,null,null,null,null,null,null,null,null,null,null,null,null,"","","","","","",""]
[null,null,null,null,null,null,null,null,null,null,null,null,null,null,null,null,null,null,null,null,null,null,null,null,null,null,null,null,null,null,"","","","","","",""]
[null,null,null,null,null,null,null,null,null,null,null,null,null,null,null,null,null,null,null,null,null,null,null,null,null,null,null,null,null,null,"","","","","","",""]
[null,null,null,null,null,null,null,null,null,null,null,null,null,null,null,null,null,null,null,null,null,null,null,null,null,null,null,null,null,null,"","","","","","",""]
[null,null,null,null,null,null,null,null,null,null,null,null,null,null,null,null,null,null,null,null,null,null,null,null,null,null,null,null,null,null,"","","","","","",""]
[null,null,null,null,null,null,null,null,null,null,null,null,null,null,null,null,null,null,null,null,null,null,null,null,null,null,null,null,null,null,"","","","","","",""]
[null,null,null,null,null,null,null,null,null,null,null,null,null,null,null,null,null,null,null,null,null,null,null,null,null,null,null,null,null,null,"","","","","","",""]
[null,null,null,null,null,null,null,null,null,null,null,null,null,null,null,null,null,null,null,null,null,null,null,null,null,null,null,null,null,null,"","","","","","",""]
[null,null,null,null,null,null,null,null,null,null,null,null,null,null,null,null,null,null,null,null,null,null,null,null,null,null,null,null,null,null,"","","","","","",""]
[null,null,null,null,null,null,null,null,null,null,null,null,null,null,null,null,null,null,null,null,null,null,null,null,null,null,null,null,null,null,"","","","","","",""]
[null,null,null,null,null,null,null,null,null,null,null,null,null,null,null,null,null,null,null,null,null,null,null,null,null,null,null,null,null,null,"","","","","","",""]
[null,null,null,null,null,null,null,null,null,null,null,null,null,null,null,null,null,null,null,null,null,null,null,null,null,null,null,null,null,null,"","","","","","",""]
[null,null,null,null,null,null,null,null,null,null,null,null,null,null,null,null,null,null,null,null,null,null,null,null,null,null,null,null,null,null,"","","","","","",""]
[null,null,null,null,null,null,null,null,null,null,null,null,null,null,null,null,null,null,null,null,null,null,null,null,null,null,null,null,null,null,"","","","","","",""]
[null,null,null,null,null,null,null,null,null,null,null,null,null,null,null,null,null,null,null,null,null,null,null,null,null,null,null,null,null,null,"","","","","","",""]
[null,null,null,null,null,null,null,null,null,null,null,null,null,null,null,null,null,null,null,null,null,null,null,null,null,null,null,null,null,null,"","","","","","",""]
[null,null,null,null,null,null,null,null,null,null,null,null,null,null,null,null,null,null,null,null,null,null,null,null,null,null,null,null,null,null,"","","","","","",""]
[null,null,null,null,null,null,null,null,null,null,null,null,null,null,null,null,null,null,null,null,null,null,null,null,null,null,null,null,null,null,"","","","","","",""]
[null,null,null,null,null,null,null,null,null,null,null,null,null,null,null,null,null,null,null,null,null,null,null,null,null,null,null,null,null,null,"","","","","","",""]
[null,null,null,null,null,null,null,null,null,null,null,null,null,null,null,null,null,null,null,null,null,null,null,null,null,null,null,null,null,null,"","","","","","",""]
[null,null,null,null,null,null,null,null,null,null,null,null,null,null,null,null,null,null,null,null,null,null,null,null,null,null,null,null,null,null,"","","","","","",""]
[null,null,null,null,null,null,null,null,null,null,null,null,null,null,null,null,null,null,null,null,null,null,null,null,null,null,null,null,null,null,"","","","","","",""]
[null,null,null,null,null,null,null,null,null,null,null,null,null,null,null,null,null,null,null,null,null,null,null,null,null,null,null,null,null,null,"","","","","","",""]
[null,null,null,null,null,null,null,null,null,null,null,null,null,null,null,null,null,null,null,null,null,null,null,null,null,null,null,null,null,null,"","","","","","",""]
[null,null,null,null,null,null,null,null,null,null,null,null,null,null,null,null,null,null,null,null,null,null,null,null,null,null,null,null,null,null,"","","","","","",""]
[null,null,null,null,null,null,null,null,null,null,null,null,null,null,null,null,null,null,null,null,null,null,null,null,null,null,null,null,null,null,"","","","","","",""]
[null,null,null,null,null,null,null,null,null,null,null,null,null,null,null,null,null,null,null,null,null,null,null,null,null,null,null,null,null,null,"","","","","","",""]
[null,null,null,null,null,null,null,null,null,null,null,null,null,null,null,null,null,null,null,null,null,null,null,null,null,null,null,null,null,null,"","","","","","",""]
[null,null,null,null,null,null,null,null,null,null,null,null,null,null,null,null,null,null,null,null,null,null,null,null,null,null,null,null,null,null,"","","","","","",""]
[null,null,null,null,null,null,null,null,null,null,null,null,null,null,null,null,null,null,null,null,null,null,null,null,null,null,null,null,null,null,"","","","","","",""]
[null,null,null,null,null,null,null,null,null,null,null,null,null,null,null,null,null,null,null,null,null,null,null,null,null,null,null,null,null,null,"","","","","","",""]
[null,null,null,null,null,null,null,null,null,null,null,null,null,null,null,null,null,null,null,null,null,null,null,null,null,null,null,null,null,null,"","","","","","",""]
[null,null,null,null,null,null,null,null,null,null,null,null,null,null,null,null,null,null,null,null,null,null,null,null,null,null,null,null,null,null,"","","","","","",""]
[null,null,null,null,null,null,null,null,null,null,null,null,null,null,null,null,null,null,null,null,null,null,null,null,null,null,null,null,null,null,"","","","","","",""]
[null,null,null,null,null,null,null,null,null,null,null,null,null,null,null,null,null,null,null,null,null,null,null,null,null,null,null,null,null,null,"","","","","","",""]
[null,null,null,null,null,null,null,null,null,null,null,null,null,null,null,null,null,null,null,null,null,null,null,null,null,null,null,null,null,null,"","","","","","",""]
[null,null,null,null,null,null,null,null,null,null,null,null,null,null,null,null,null,null,null,null,null,null,null,null,null,null,null,null,null,null,"","","","","","",""]
[null,null,null,null,null,null,null,null,null,null,null,null,null,null,null,null,null,null,null,null,null,null,null,null,null,null,null,null,null,null,"","","","","","",""]
[null,null,null,null,null,null,null,null,null,null,null,null,null,null,null,null,null,null,null,null,null,null,null,null,null,null,null,null,null,null,"","","","","","",""]
[null,null,null,null,null,null,null,null,null,null,null,null,null,null,null,null,null,null,null,null,null,null,null,null,null,null,null,null,null,null,"","","","","","",""]
[null,null,null,null,null,null,null,null,null,null,null,null,null,null,null,null,null,null,null,null,null,null,null,null,null,null,null,null,null,null,"","","","","","",""]
[null,null,null,null,null,null,null,null,null,null,null,null,null,null,null,null,null,null,null,null,null,null,null,null,null,null,null,null,null,null,"","","","","",{"$f":"AE497","v":""},""]
[null,null,null,null,null,null,null,null,null,null,null,null,null,null,null,null,null,null,null,null,null,null,null,null,null,null,null,null,null,null,"","","","","",{"$f":"AE498","v":""},""]
[null,null,null,null,null,null,null,null,null,null,null,null,null,null,null,null,null,null,null,null,null,null,null,null,null,null,null,null,null,null,"","","","","","",""]
[null,null,null,null,null,null,null,null,null,null,null,null,null,null,null,null,null,null,null,null,null,null,null,null,null,null,null,null,null,null,"","","","","","",""]

{"sheet":"DEMOAB78K","index":6,"n_rows":485,"n_cols":40,"rows_kept":485,"cut":false,"hidden":true,"merged":[]}
["Dato","Klient","Indre sone, klient","Ytre sone, klient","Mellomsone, klient","Å være oppmerksom på at du er var, klient","Indre Sone, Terapeut","Ytre Sone, Terapeut","Mellomsone, Terapeut","Å være oppmerksom på at du er var, Terapeut","Varhetssoner, sum","Grad av organisering","Grad av trygghet","Sum figurdannelse","Hva figurerer","I hvilke andre situasjoner kan klienten gjenkjenne denne figuren?","Forkontakte","Å kontakte","Endelig kontakt","Etterkontakt","Sum kreativt tilpasningsforløp","Idfunksjon klient","Idfunksjon terapeut","Personlighetsfunksjon klient","Personlighetsfunksjon terapeut","Egofunksjon klient","Egofunksjon terapeut","Sum Selvfunksjon","Sum diagnoseskjema","Tilleggskommentarer","Dato","Varhet","Figurdannelse","Kreativ tilpasning","Selvfunksjon","Dato","Sum Skjema","Notat Varhet","Notat Kreativ Tilpasning","Notat Selv"]
["2016-02-09","AB78K",2,2,3,2,7,9,9,8,14.75,8,3,11,"Dette er lagt inn for å teste","K gjenkjenner dette mange steder",2,2,2,2,4,9,8,10,10,2,5,14.666666666666666,44.416666666666664,"Første møte",{"$f":"IF(YEAR(A2)=1900,\"\", TEXT(DAY(A2),\"00\") & \".\" & TEXT(MONTH(A2),\"00\") & \".\" & YEAR(A2))","v":"09.02.2016"},{"$f":"IF(K2=0,\"\",ROUND(K2,0))","v":15},{"$f":"IF(N2=\"\",\"\",ROUND(N2,0))","v":11},{"$f":"IF(U2=\"\",\"\",ROUND(U2,0))","v":4},{"$f":"IF(AB2=\"\",\"\",ROUND(AB2,0))","v":15},{"$f":"AE2","v":"09.02.2016"},{"$f":"IF(AC2=\"\",\"\",ROUND(AC2,0))","v":44}]
["2016-02-10","AB78K",2,3,4,5,6,7,8,9,11,5,4,9,"Testdata","Dette er en ganske lang tekst, og da brytes teksten over flere linjer",5,4,3,2,7,5,5,6,6,7,7,12,39,"Mye forvirring!",{"$f":"IF(YEAR(A3)=1900,\"\", TEXT(DAY(A3),\"00\") & \".\" & TEXT(MONTH(A3),\"00\") & \".\" & YEAR(A3))","v":"10.02.2016"},11,9,7,12,{"$f":"AE3","v":"10.02.2016"},39]
["2016-02-11","AB78K",2,5,5,7,6,8,8,8,12.25,8,8,16,"Samboer er vanskelig","Partner lager trøbbel",5,4,3,2,7,5,5,6,6,7,7,12,47.25,"I dag er K sint","11.02.2016",12,16,7,12,{"$f":"AE4","v":"11.02.2016"},47]
["2016-02-12","AB78K",1,2,3,4,7,8,9,9,10.75,5,5,10,"Detter er testdata","I relasjonen til pappa",5,5,5,5,10,9,2,10,10,2,2,11.666666666666666,42.416666666666664,"K virker roligere enn ellers","12.02.2016",11,10,10,12,"12.02.2016",42]
["2016-02-13","AB78K",1,1,0,1,2,2,2,2,2.75,3,3,6,"Ikke mye","Svært mange steder",4,4,4,4,8,5,5,5,6,5,5,10.333333333333334,27.083333333333336,"Vanskelig å følge i dag","13.02.2016",3,6,8,10,"13.02.2016",27]
["14.02.2016","AB78K",2,10,10,2,9,9,9,9,15,2,2,4,"Mye skjer i livet hennes","I de fleste relasjoner",2,2,2,2,4,10,2,10,10,2,4,12.666666666666666,35.666666666666664,"K gråter mye, fortvilet. Jeg blir trist og forteller henne at jeg blir trist fordi K sliter","14.02.2016",15,4,4,13,"14.02.2016",36]
["21.02.2016","AB78K",4,6,9,8,8,7,9,8,14.75,5,5,10,"Far og den nye kjæresten","I relasjonen til kjæresten",9,3,2,8,11,9,9,10,10,2,2,14,49.75,"Forvirrende time!!","21.02.2016",15,10,11,14,"21.02.2016",50]
["2019-05-01","DEMOAB78K",5,7,4,6,7,6,8,8,12.8,8,9,17,"Far og den nye kjæresten",null,5,6,7,8,13,2,2,2,1,4,4,5,47.8,null,{"$f":"IF(YEAR(A9)=1900,\"\", TEXT(DAY(A9),\"00\") & \".\" & TEXT(MONTH(A9),\"00\") & \".\" & YEAR(A9))","v":"01.05.2019"},{"$f":"IF(K9=0,\"\",ROUND(K9,0))","v":13},{"$f":"IF(N9=\"\",\"\",ROUND(N9,0))","v":17},{"$f":"IF(U9=\"\",\"\",ROUND(U9,0))","v":13},{"$f":"IF(AB9=\"\",\"\",ROUND(AB9,0))","v":5},{"$f":"AE9","v":"01.05.2019"},{"$f":"IF(AC9=\"\",\"\",ROUND(AC9,0))","v":48},"Mine notater om K"]
["02.05.2019","DEMOAB78K",5,5,5,5,5,5,4,4,9.5,8,7,15,null,null,5,6,7,8,13,7,8,8,8,8,8,15.7,53.2,"Dette er linje 1\r\nDette er linje 2\r\n","02.05.2019",10,15,13,16,"02.05.2019",53,null,"Her holder jeg på med K"]
[null,null,null,null,null,null,null,null,null,null,null,null,null,null,null,null,null,null,null,null,null,null,null,null,null,null,null,null,null,null,"","","","","","",""]
[null,null,null,null,null,null,null,null,null,null,null,null,null,null,null,null,null,null,null,null,null,null,null,null,null,null,null,null,null,null,"","","","","","",""]
[null,null,null,null,null,null,null,null,null,null,null,null,null,null,null,null,null,null,null,null,null,null,null,null,null,null,null,null,null,null,"","","","","","",""]
[null,null,null,null,null,null,null,null,null,null,null,null,null,null,null,null,null,null,null,null,null,null,null,null,null,null,null,null,null,null,"","","","","","",""]
[null,null,null,null,null,null,null,null,null,null,null,null,null,null,null,null,null,null,null,null,null,null,null,null,null,null,null,null,null,null,"","","","","","",""]
[null,null,null,null,null,null,null,null,null,null,null,null,null,null,null,null,null,null,null,null,null,null,null,null,null,null,null,null,null,null,"","","","","","",""]
[null,null,null,null,null,null,null,null,null,null,null,null,null,null,null,null,null,null,null,null,null,null,null,null,null,null,null,null,null,null,"","","","","","",""]
[null,null,null,null,null,null,null,null,null,null,null,null,null,null,null,null,null,null,null,null,null,null,null,null,null,null,null,null,null,null,"","","","","","",""]
[null,null,null,null,null,null,null,null,null,null,null,null,null,null,null,null,null,null,null,null,null,null,null,null,null,null,null,null,null,null,"","","","","","",""]
[null,null,null,null,null,null,null,null,null,null,null,null,null,null,null,null,null,null,null,null,null,null,null,null,null,null,null,null,null,null,"","","","","","",""]
[null,null,null,null,null,null,null,null,null,null,null,null,null,null,null,null,null,null,null,null,null,null,null,null,null,null,null,null,null,null,"","","","","","",""]
[null,null,null,null,null,null,null,null,null,null,null,null,null,null,null,null,null,null,null,null,null,null,null,null,null,null,null,null,null,null,"","","","","","",""]
[null,null,null,null,null,null,null,null,null,null,null,null,null,null,null,null,null,null,null,null,null,null,null,null,null,null,null,null,null,null,"","","","","","",""]
[null,null,null,null,null,null,null,null,null,null,null,null,null,null,null,null,null,null,null,null,null,null,null,null,null,null,null,null,null,null,"","","","","","",""]
[null,null,null,null,null,null,null,null,null,null,null,null,null,null,null,null,null,null,null,null,null,null,null,null,null,null,null,null,null,null,"","","","","","",""]
[null,null,null,null,null,null,null,null,null,null,null,null,null,null,null,null,null,null,null,null,null,null,null,null,null,null,null,null,null,null,"","","","","","",""]
[null,null,null,null,null,null,null,null,null,null,null,null,null,null,null,null,null,null,null,null,null,null,null,null,null,null,null,null,null,null,"","","","","","",""]
[null,null,null,null,null,null,null,null,null,null,null,null,null,null,null,null,null,null,null,null,null,null,null,null,null,null,null,null,null,null,"","","","","","",""]
[null,null,null,null,null,null,null,null,null,null,null,null,null,null,null,null,null,null,null,null,null,null,null,null,null,null,null,null,null,null,"","","","","","",""]
[null,null,null,null,null,null,null,null,null,null,null,null,null,null,null,null,null,null,null,null,null,null,null,null,null,null,null,null,null,null,"","","","","","",""]
[null,null,null,null,null,null,null,null,null,null,null,null,null,null,null,null,null,null,null,null,null,null,null,null,null,null,null,null,null,null,"","","","","","",""]
[null,null,null,null,null,null,null,null,null,null,null,null,null,null,null,null,null,null,null,null,null,null,null,null,null,null,null,null,null,null,"","","","","","",""]
[null,null,null,null,null,null,null,null,null,null,null,null,null,null,null,null,null,null,null,null,null,null,null,null,null,null,null,null,null,null,"","","","","","",""]
[null,null,null,null,null,null,null,null,null,null,null,null,null,null,null,null,null,null,null,null,null,null,null,null,null,null,null,null,null,null,"","","","","","",""]
[null,null,null,null,null,null,null,null,null,null,null,null,null,null,null,null,null,null,null,null,null,null,null,null,null,null,null,null,null,null,"","","","","","",""]
[null,null,null,null,null,null,null,null,null,null,null,null,null,null,null,null,null,null,null,null,null,null,null,null,null,null,null,null,null,null,"","","","","","",""]
[null,null,null,null,null,null,null,null,null,null,null,null,null,null,null,null,null,null,null,null,null,null,null,null,null,null,null,null,null,null,"","","","","","",""]
[null,null,null,null,null,null,null,null,null,null,null,null,null,null,null,null,null,null,null,null,null,null,null,null,null,null,null,null,null,null,"","","","","","",""]
[null,null,null,null,null,null,null,null,null,null,null,null,null,null,null,null,null,null,null,null,null,null,null,null,null,null,null,null,null,null,"","","","","","",""]
[null,null,null,null,null,null,null,null,null,null,null,null,null,null,null,null,null,null,null,null,null,null,null,null,null,null,null,null,null,null,"","","","","","",""]
[null,null,null,null,null,null,null,null,null,null,null,null,null,null,null,null,null,null,null,null,null,null,null,null,null,null,null,null,null,null,"","","","","","",""]
[null,null,null,null,null,null,null,null,null,null,null,null,null,null,null,null,null,null,null,null,null,null,null,null,null,null,null,null,null,null,"","","","","","",""]
[null,null,null,null,null,null,null,null,null,null,null,null,null,null,null,null,null,null,null,null,null,null,null,null,null,null,null,null,null,null,"","","","","","",""]
[null,null,null,null,null,null,null,null,null,null,null,null,null,null,null,null,null,null,null,null,null,null,null,null,null,null,null,null,null,null,"","","","","","",""]
[null,null,null,null,null,null,null,null,null,null,null,null,null,null,null,null,null,null,null,null,null,null,null,null,null,null,null,null,null,null,"","","","","","",""]
[null,null,null,null,null,null,null,null,null,null,null,null,null,null,null,null,null,null,null,null,null,null,null,null,null,null,null,null,null,null,"","","","","","",""]
[null,null,null,null,null,null,null,null,null,null,null,null,null,null,null,null,null,null,null,null,null,null,null,null,null,null,null,null,null,null,"","","","","","",""]
[null,null,null,null,null,null,null,null,null,null,null,null,null,null,null,null,null,null,null,null,null,null,null,null,null,null,null,null,null,null,"","","","","","",""]
[null,null,null,null,null,null,null,null,null,null,null,null,null,null,null,null,null,null,null,null,null,null,null,null,null,null,null,null,null,null,"","","","","","",""]
[null,null,null,null,null,null,null,null,null,null,null,null,null,null,null,null,null,null,null,null,null,null,null,null,null,null,null,null,null,null,"","","","","","",""]
[null,null,null,null,null,null,null,null,null,null,null,null,null,null,null,null,null,null,null,null,null,null,null,null,null,null,null,null,null,null,"","","","","","",""]
[null,null,null,null,null,null,null,null,null,null,null,null,null,null,null,null,null,null,null,null,null,null,null,null,null,null,null,null,null,null,"",{"$f":"IF(K52=0,\"\",ROUND(K52,0))","v":""},{"$f":"IF(N52=\"\",\"\",ROUND(N52,0))","v":""},{"$f":"IF(U52=\"\",\"\",ROUND(U52,0))","v":""},{"$f":"IF(AB52=\"\",\"\",ROUND(AB52,0))","v":""},"",{"$f":"IF(AC52=\"\",\"\",ROUND(AC52,0))","v":""}]
[null,null,null,null,null,null,null,null,null,null,null,null,null,null,null,null,null,null,null,null,null,null,null,null,null,null,null,null,null,null,"","","","","","",""]
[null,null,null,null,null,null,null,null,null,null,null,null,null,null,null,null,null,null,null,null,null,null,null,null,null,null,null,null,null,null,"","","","","","",""]
[null,null,null,null,null,null,null,null,null,null,null,null,null,null,null,null,null,null,null,null,null,null,null,null,null,null,null,null,null,null,"","","","","","",""]
[null,null,null,null,null,null,null,null,null,null,null,null,null,null,null,null,null,null,null,null,null,null,null,null,null,null,null,null,null,null,"","","","","","",""]
[null,null,null,null,null,null,null,null,null,null,null,null,null,null,null,null,null,null,null,null,null,null,null,null,null,null,null,null,null,null,"","","","","",{"$f":"AE57","v":""},""]
[null,null,null,null,null,null,null,null,null,null,null,null,null,null,null,null,null,null,null,null,null,null,null,null,null,null,null,null,null,null,"","","","","","",""]
[null,null,null,null,null,null,null,null,null,null,null,null,null,null,null,null,null,null,null,null,null,null,null,null,null,null,null,null,null,null,"","","","","","",""]
[null,null,null,null,null,null,null,null,null,null,null,null,null,null,null,null,null,null,null,null,null,null,null,null,null,null,null,null,null,null,"","","","","","",""]
[null,null,null,null,null,null,null,null,null,null,null,null,null,null,null,null,null,null,null,null,null,null,null,null,null,null,null,null,null,null,"","","","","","",""]
[null,null,null,null,null,null,null,null,null,null,null,null,null,null,null,null,null,null,null,null,null,null,null,null,null,null,null,null,null,null,{"$f":"IF(YEAR(A62)=1900,\"\", TEXT(DAY(A62),\"00\") & \".\" & TEXT(MONTH(A62),\"00\") & \".\" & YEAR(A62))","v":""},"","","","","",""]
[null,null,null,null,null,null,null,null,null,null,null,null,null,null,null,null,null,null,null,null,null,null,null,null,null,null,null,null,null,null,"","","","","","",""]
[null,null,null,null,null,null,null,null,null,null,null,null,null,null,null,null,null,null,null,null,null,null,null,null,null,null,null,null,null,null,"","","","","","",""]
[null,null,null,null,null,null,null,null,null,null,null,null,null,null,null,null,null,null,null,null,null,null,null,null,null,null,null,null,null,null,"","","","","","",""]
[null,null,null,null,null,null,null,null,null,null,null,null,null,null,null,null,null,null,null,null,null,null,null,null,null,null,null,null,null,null,"","","","","","",""]
[null,null,null,null,null,null,null,null,null,null,null,null,null,null,null,null,null,null,null,null,null,null,null,null,null,null,null,null,null,null,"","","","","","",""]
[null,null,null,null,null,null,null,null,null,null,null,null,null,null,null,null,null,null,null,null,null,null,null,null,null,null,null,null,null,null,"","","","","","",""]
[null,null,null,null,null,null,null,null,null,null,null,null,null,null,null,null,null,null,null,null,null,null,null,null,null,null,null,null,null,null,"","","","","","",""]
[null,null,null,null,null,null,null,null,null,null,null,null,null,null,null,null,null,null,null,null,null,null,null,null,null,null,null,null,null,null,"","","","","","",""]
[null,null,null,null,null,null,null,null,null,null,null,null,null,null,null,null,null,null,null,null,null,null,null,null,null,null,null,null,null,null,"","","","","","",""]
[null,null,null,null,null,null,null,null,null,null,null,null,null,null,null,null,null,null,null,null,null,null,null,null,null,null,null,null,null,null,"","","","","","",""]
[null,null,null,null,null,null,null,null,null,null,null,null,null,null,null,null,null,null,null,null,null,null,null,null,null,null,null,null,null,null,"","","","","","",""]
[null,null,null,null,null,null,null,null,null,null,null,null,null,null,null,null,null,null,null,null,null,null,null,null,null,null,null,null,null,null,"","","","","","",""]
[null,null,null,null,null,null,null,null,null,null,null,null,null,null,null,null,null,null,null,null,null,null,null,null,null,null,null,null,null,null,"","","","","","",""]
[null,null,null,null,null,null,null,null,null,null,null,null,null,null,null,null,null,null,null,null,null,null,null,null,null,null,null,null,null,null,"","","","","","",""]
[null,null,null,null,null,null,null,null,null,null,null,null,null,null,null,null,null,null,null,null,null,null,null,null,null,null,null,null,null,null,"","","","","","",""]
[null,null,null,null,null,null,null,null,null,null,null,null,null,null,null,null,null,null,null,null,null,null,null,null,null,null,null,null,null,null,"","","","","","",""]
[null,null,null,null,null,null,null,null,null,null,null,null,null,null,null,null,null,null,null,null,null,null,null,null,null,null,null,null,null,null,"","","","","","",""]
[null,null,null,null,null,null,null,null,null,null,null,null,null,null,null,null,null,null,null,null,null,null,null,null,null,null,null,null,null,null,"","","","","","",""]
[null,null,null,null,null,null,null,null,null,null,null,null,null,null,null,null,null,null,null,null,null,null,null,null,null,null,null,null,null,null,"","","","","","",""]
[null,null,null,null,null,null,null,null,null,null,null,null,null,null,null,null,null,null,null,null,null,null,null,null,null,null,null,null,null,null,"","","","","","",""]
[null,null,null,null,null,null,null,null,null,null,null,null,null,null,null,null,null,null,null,null,null,null,null,null,null,null,null,null,null,null,"","","","","","",""]
[null,null,null,null,null,null,null,null,null,null,null,null,null,null,null,null,null,null,null,null,null,null,null,null,null,null,null,null,null,null,"","","","","","",""]
[null,null,null,null,null,null,null,null,null,null,null,null,null,null,null,null,null,null,null,null,null,null,null,null,null,null,null,null,null,null,"","","","","","",""]
[null,null,null,null,null,null,null,null,null,null,null,null,null,null,null,null,null,null,null,null,null,null,null,null,null,null,null,null,null,null,"","","","","","",""]
[null,null,null,null,null,null,null,null,null,null,null,null,null,null,null,null,null,null,null,null,null,null,null,null,null,null,null,null,null,null,"","","","","","",""]
[null,null,null,null,null,null,null,null,null,null,null,null,null,null,null,null,null,null,null,null,null,null,null,null,null,null,null,null,null,null,"","","","","","",""]
[null,null,null,null,null,null,null,null,null,null,null,null,null,null,null,null,null,null,null,null,null,null,null,null,null,null,null,null,null,null,"","","","","","",""]
[null,null,null,null,null,null,null,null,null,null,null,null,null,null,null,null,null,null,null,null,null,null,null,null,null,null,null,null,null,null,"","","","","","",""]
[null,null,null,null,null,null,null,null,null,null,null,null,null,null,null,null,null,null,null,null,null,null,null,null,null,null,null,null,null,null,"","","","","","",""]
[null,null,null,null,null,null,null,null,null,null,null,null,null,null,null,null,null,null,null,null,null,null,null,null,null,null,null,null,null,null,"","","","","","",""]
[null,null,null,null,null,null,null,null,null,null,null,null,null,null,null,null,null,null,null,null,null,null,null,null,null,null,null,null,null,null,"","","","","","",""]
[null,null,null,null,null,null,null,null,null,null,null,null,null,null,null,null,null,null,null,null,null,null,null,null,null,null,null,null,null,null,"","","","","","",""]
[null,null,null,null,null,null,null,null,null,null,null,null,null,null,null,null,null,null,null,null,null,null,null,null,null,null,null,null,null,null,"","","","","","",""]
[null,null,null,null,null,null,null,null,null,null,null,null,null,null,null,null,null,null,null,null,null,null,null,null,null,null,null,null,null,null,"","","","","","",""]
[null,null,null,null,null,null,null,null,null,null,null,null,null,null,null,null,null,null,null,null,null,null,null,null,null,null,null,null,null,null,"","","","","","",""]
[null,null,null,null,null,null,null,null,null,null,null,null,null,null,null,null,null,null,null,null,null,null,null,null,null,null,null,null,null,null,"","","","","","",""]
[null,null,null,null,null,null,null,null,null,null,null,null,null,null,null,null,null,null,null,null,null,null,null,null,null,null,null,null,null,null,"","","","","","",""]
[null,null,null,null,null,null,null,null,null,null,null,null,null,null,null,null,null,null,null,null,null,null,null,null,null,null,null,null,null,null,"","","","","","",""]
[null,null,null,null,null,null,null,null,null,null,null,null,null,null,null,null,null,null,null,null,null,null,null,null,null,null,null,null,null,null,"","","","","","",""]
[null,null,null,null,null,null,null,null,null,null,null,null,null,null,null,null,null,null,null,null,null,null,null,null,null,null,null,null,null,null,"","","","","","",""]
[null,null,null,null,null,null,null,null,null,null,null,null,null,null,null,null,null,null,null,null,null,null,null,null,null,null,null,null,null,null,"","","","","","",""]
[null,null,null,null,null,null,null,null,null,null,null,null,null,null,null,null,null,null,null,null,null,null,null,null,null,null,null,null,null,null,"","","","","","",""]
[null,null,null,null,null,null,null,null,null,null,null,null,null,null,null,null,null,null,null,null,null,null,null,null,null,null,null,null,null,null,"","","","","","",""]
[null,null,null,null,null,null,null,null,null,null,null,null,null,null,null,null,null,null,null,null,null,null,null,null,null,null,null,null,null,null,"","","","","","",""]
[null,null,null,null,null,null,null,null,null,null,null,null,null,null,null,null,null,null,null,null,null,null,null,null,null,null,null,null,null,null,"","","","","","",""]
[null,null,null,null,null,null,null,null,null,null,null,null,null,null,null,null,null,null,null,null,null,null,null,null,null,null,null,null,null,null,"","","","","","",""]
[null,null,null,null,null,null,null,null,null,null,null,null,null,null,null,null,null,null,null,null,null,null,null,null,null,null,null,null,null,null,"","","","","","",""]
[null,null,null,null,null,null,null,null,null,null,null,null,null,null,null,null,null,null,null,null,null,null,null,null,null,null,null,null,null,null,"","","","","","",""]
[null,null,null,null,null,null,null,null,null,null,null,null,null,null,null,null,null,null,null,null,null,null,null,null,null,null,null,null,null,null,"","","","","","",""]
[null,null,null,null,null,null,null,null,null,null,null,null,null,null,null,null,null,null,null,null,null,null,null,null,null,null,null,null,null,null,"","","","","","",""]
[null,null,null,null,null,null,null,null,null,null,null,null,null,null,null,null,null,null,null,null,null,null,null,null,null,null,null,null,null,null,"","","","","","",""]
[null,null,null,null,null,null,null,null,null,null,null,null,null,null,null,null,null,null,null,null,null,null,null,null,null,null,null,null,null,null,"","","","","","",""]
[null,null,null,null,null,null,null,null,null,null,null,null,null,null,null,null,null,null,null,null,null,null,null,null,null,null,null,null,null,null,"","","","","","",""]
[null,null,null,null,null,null,null,null,null,null,null,null,null,null,null,null,null,null,null,null,null,null,null,null,null,null,null,null,null,null,"",{"$f":"IF(K116=0,\"\",ROUND(K116,0))","v":""},{"$f":"IF(N116=\"\",\"\",ROUND(N116,0))","v":""},{"$f":"IF(U116=\"\",\"\",ROUND(U116,0))","v":""},{"$f":"IF(AB116=\"\",\"\",ROUND(AB116,0))","v":""},"",{"$f":"IF(AC116=\"\",\"\",ROUND(AC116,0))","v":""}]
[null,null,null,null,null,null,null,null,null,null,null,null,null,null,null,null,null,null,null,null,null,null,null,null,null,null,null,null,null,null,"","","","","","",""]
[null,null,null,null,null,null,null,null,null,null,null,null,null,null,null,null,null,null,null,null,null,null,null,null,null,null,null,null,null,null,"","","","","","",""]
[null,null,null,null,null,null,null,null,null,null,null,null,null,null,null,null,null,null,null,null,null,null,null,null,null,null,null,null,null,null,"","","","","","",""]
[null,null,null,null,null,null,null,null,null,null,null,null,null,null,null,null,null,null,null,null,null,null,null,null,null,null,null,null,null,null,"","","","","","",""]
[null,null,null,null,null,null,null,null,null,null,null,null,null,null,null,null,null,null,null,null,null,null,null,null,null,null,null,null,null,null,"","","","","",{"$f":"AE121","v":""},""]
[null,null,null,null,null,null,null,null,null,null,null,null,null,null,null,null,null,null,null,null,null,null,null,null,null,null,null,null,null,null,"","","","","","",""]
[null,null,null,null,null,null,null,null,null,null,null,null,null,null,null,null,null,null,null,null,null,null,null,null,null,null,null,null,null,null,"","","","","","",""]
[null,null,null,null,null,null,null,null,null,null,null,null,null,null,null,null,null,null,null,null,null,null,null,null,null,null,null,null,null,null,"","","","","","",""]
[null,null,null,null,null,null,null,null,null,null,null,null,null,null,null,null,null,null,null,null,null,null,null,null,null,null,null,null,null,null,"","","","","","",""]
[null,null,null,null,null,null,null,null,null,null,null,null,null,null,null,null,null,null,null,null,null,null,null,null,null,null,null,null,null,null,{"$f":"IF(YEAR(A126)=1900,\"\", TEXT(DAY(A126),\"00\") & \".\" & TEXT(MONTH(A126),\"00\") & \".\" & YEAR(A126))","v":""},"","","","","",""]
[null,null,null,null,null,null,null,null,null,null,null,null,null,null,null,null,null,null,null,null,null,null,null,null,null,null,null,null,null,null,"","","","","","",""]
[null,null,null,null,null,null,null,null,null,null,null,null,null,null,null,null,null,null,null,null,null,null,null,null,null,null,null,null,null,null,"","","","","","",""]
[null,null,null,null,null,null,null,null,null,null,null,null,null,null,null,null,null,null,null,null,null,null,null,null,null,null,null,null,null,null,"","","","","","",""]
[null,null,null,null,null,null,null,null,null,null,null,null,null,null,null,null,null,null,null,null,null,null,null,null,null,null,null,null,null,null,"","","","","","",""]
[null,null,null,null,null,null,null,null,null,null,null,null,null,null,null,null,null,null,null,null,null,null,null,null,null,null,null,null,null,null,"","","","","","",""]
[null,null,null,null,null,null,null,null,null,null,null,null,null,null,null,null,null,null,null,null,null,null,null,null,null,null,null,null,null,null,"","","","","","",""]
[null,null,null,null,null,null,null,null,null,null,null,null,null,null,null,null,null,null,null,null,null,null,null,null,null,null,null,null,null,null,"","","","","","",""]
[null,null,null,null,null,null,null,null,null,null,null,null,null,null,null,null,null,null,null,null,null,null,null,null,null,null,null,null,null,null,"","","","","","",""]
[null,null,null,null,null,null,null,null,null,null,null,null,null,null,null,null,null,null,null,null,null,null,null,null,null,null,null,null,null,null,"","","","","","",""]
[null,null,null,null,null,null,null,null,null,null,null,null,null,null,null,null,null,null,null,null,null,null,null,null,null,null,null,null,null,null,"","","","","","",""]
[null,null,null,null,null,null,null,null,null,null,null,null,null,null,null,null,null,null,null,null,null,null,null,null,null,null,null,null,null,null,"","","","","","",""]
[null,null,null,null,null,null,null,null,null,null,null,null,null,null,null,null,null,null,null,null,null,null,null,null,null,null,null,null,null,null,"","","","","","",""]
[null,null,null,null,null,null,null,null,null,null,null,null,null,null,null,null,null,null,null,null,null,null,null,null,null,null,null,null,null,null,"","","","","","",""]
[null,null,null,null,null,null,null,null,null,null,null,null,null,null,null,null,null,null,null,null,null,null,null,null,null,null,null,null,null,null,"","","","","","",""]
[null,null,null,null,null,null,null,null,null,null,null,null,null,null,null,null,null,null,null,null,null,null,null,null,null,null,null,null,null,null,"","","","","","",""]
[null,null,null,null,null,null,null,null,null,null,null,null,null,null,null,null,null,null,null,null,null,null,null,null,null,null,null,null,null,null,"","","","","","",""]
[null,null,null,null,null,null,null,null,null,null,null,null,null,null,null,null,null,null,null,null,null,null,null,null,null,null,null,null,null,null,"","","","","","",""]
[null,null,null,null,null,null,null,null,null,null,null,null,null,null,null,null,null,null,null,null,null,null,null,null,null,null,null,null,null,null,"","","","","","",""]
[null,null,null,null,null,null,null,null,null,null,null,null,null,null,null,null,null,null,null,null,null,null,null,null,null,null,null,null,null,null,"","","","","","",""]
[null,null,null,null,null,null,null,null,null,null,null,null,null,null,null,null,null,null,null,null,null,null,null,null,null,null,null,null,null,null,"","","","","","",""]
[null,null,null,null,null,null,null,null,null,null,null,null,null,null,null,null,null,null,null,null,null,null,null,null,null,null,null,null,null,null,"","","","","","",""]
[null,null,null,null,null,null,null,null,null,null,null,null,null,null,null,null,null,null,null,null,null,null,null,null,null,null,null,null,null,null,"","","","","","",""]
[null,null,null,null,null,null,null,null,null,null,null,null,null,null,null,null,null,null,null,null,null,null,null,null,null,null,null,null,null,null,"","","","","","",""]
[null,null,null,null,null,null,null,null,null,null,null,null,null,null,null,null,null,null,null,null,null,null,null,null,null,null,null,null,null,null,"","","","","","",""]
[null,null,null,null,null,null,null,null,null,null,null,null,null,null,null,null,null,null,null,null,null,null,null,null,null,null,null,null,null,null,"","","","","","",""]
[null,null,null,null,null,null,null,null,null,null,null,null,null,null,null,null,null,null,null,null,null,null,null,null,null,null,null,null,null,null,"","","","","","",""]
[null,null,null,null,null,null,null,null,null,null,null,null,null,null,null,null,null,null,null,null,null,null,null,null,null,null,null,null,null,null,"","","","","","",""]
[null,null,null,null,null,null,null,null,null,null,null,null,null,null,null,null,null,null,null,null,null,null,null,null,null,null,null,null,null,null,"","","","","","",""]
[null,null,null,null,null,null,null,null,null,null,null,null,null,null,null,null,null,null,null,null,null,null,null,null,null,null,null,null,null,null,"","","","","","",""]
[null,null,null,null,null,null,null,null,null,null,null,null,null,null,null,null,null,null,null,null,null,null,null,null,null,null,null,null,null,null,"","","","","","",""]
[null,null,null,null,null,null,null,null,null,null,null,null,null,null,null,null,null,null,null,null,null,null,null,null,null,null,null,null,null,null,"","","","","","",""]
[null,null,null,null,null,null,null,null,null,null,null,null,null,null,null,null,null,null,null,null,null,null,null,null,null,null,null,null,null,null,"","","","","","",""]
[null,null,null,null,null,null,null,null,null,null,null,null,null,null,null,null,null,null,null,null,null,null,null,null,null,null,null,null,null,null,"","","","","","",""]
[null,null,null,null,null,null,null,null,null,null,null,null,null,null,null,null,null,null,null,null,null,null,null,null,null,null,null,null,null,null,"","","","","","",""]
[null,null,null,null,null,null,null,null,null,null,null,null,null,null,null,null,null,null,null,null,null,null,null,null,null,null,null,null,null,null,"","","","","","",""]
[null,null,null,null,null,null,null,null,null,null,null,null,null,null,null,null,null,null,null,null,null,null,null,null,null,null,null,null,null,null,"","","","","","",""]
[null,null,null,null,null,null,null,null,null,null,null,null,null,null,null,null,null,null,null,null,null,null,null,null,null,null,null,null,null,null,"","","","","","",""]
[null,null,null,null,null,null,null,null,null,null,null,null,null,null,null,null,null,null,null,null,null,null,null,null,null,null,null,null,null,null,"","","","","","",""]
[null,null,null,null,null,null,null,null,null,null,null,null,null,null,null,null,null,null,null,null,null,null,null,null,null,null,null,null,null,null,"","","","","","",""]
[null,null,null,null,null,null,null,null,null,null,null,null,null,null,null,null,null,null,null,null,null,null,null,null,null,null,null,null,null,null,"","","","","","",""]
[null,null,null,null,null,null,null,null,null,null,null,null,null,null,null,null,null,null,null,null,null,null,null,null,null,null,null,null,null,null,"","","","","","",""]
[null,null,null,null,null,null,null,null,null,null,null,null,null,null,null,null,null,null,null,null,null,null,null,null,null,null,null,null,null,null,"","","","","","",""]
[null,null,null,null,null,null,null,null,null,null,null,null,null,null,null,null,null,null,null,null,null,null,null,null,null,null,null,null,null,null,"","","","","","",""]
[null,null,null,null,null,null,null,null,null,null,null,null,null,null,null,null,null,null,null,null,null,null,null,null,null,null,null,null,null,null,"","","","","","",""]
[null,null,null,null,null,null,null,null,null,null,null,null,null,null,null,null,null,null,null,null,null,null,null,null,null,null,null,null,null,null,"","","","","","",""]
[null,null,null,null,null,null,null,null,null,null,null,null,null,null,null,null,null,null,null,null,null,null,null,null,null,null,null,null,null,null,"","","","","","",""]
[null,null,null,null,null,null,null,null,null,null,null,null,null,null,null,null,null,null,null,null,null,null,null,null,null,null,null,null,null,null,"","","","","","",""]
[null,null,null,null,null,null,null,null,null,null,null,null,null,null,null,null,null,null,null,null,null,null,null,null,null,null,null,null,null,null,"","","","","","",""]
[null,null,null,null,null,null,null,null,null,null,null,null,null,null,null,null,null,null,null,null,null,null,null,null,null,null,null,null,null,null,"","","","","","",""]
[null,null,null,null,null,null,null,null,null,null,null,null,null,null,null,null,null,null,null,null,null,null,null,null,null,null,null,null,null,null,"","","","","","",""]
[null,null,null,null,null,null,null,null,null,null,null,null,null,null,null,null,null,null,null,null,null,null,null,null,null,null,null,null,null,null,"","","","","","",""]
[null,null,null,null,null,null,null,null,null,null,null,null,null,null,null,null,null,null,null,null,null,null,null,null,null,null,null,null,null,null,"","","","","","",""]
[null,null,null,null,null,null,null,null,null,null,null,null,null,null,null,null,null,null,null,null,null,null,null,null,null,null,null,null,null,null,"","","","","","",""]
[null,null,null,null,null,null,null,null,null,null,null,null,null,null,null,null,null,null,null,null,null,null,null,null,null,null,null,null,null,null,"",{"$f":"IF(K180=0,\"\",ROUND(K180,0))","v":""},{"$f":"IF(N180=\"\",\"\",ROUND(N180,0))","v":""},{"$f":"IF(U180=\"\",\"\",ROUND(U180,0))","v":""},{"$f":"IF(AB180=\"\",\"\",ROUND(AB180,0))","v":""},"",{"$f":"IF(AC180=\"\",\"\",ROUND(AC180,0))","v":""}]
[null,null,null,null,null,null,null,null,null,null,null,null,null,null,null,null,null,null,null,null,null,null,null,null,null,null,null,null,null,null,"","","","","","",""]
[null,null,null,null,null,null,null,null,null,null,null,null,null,null,null,null,null,null,null,null,null,null,null,null,null,null,null,null,null,null,"","","","","","",""]
[null,null,null,null,null,null,null,null,null,null,null,null,null,null,null,null,null,null,null,null,null,null,null,null,null,null,null,null,null,null,"","","","","","",""]
[null,null,null,null,null,null,null,null,null,null,null,null,null,null,null,null,null,null,null,null,null,null,null,null,null,null,null,null,null,null,"","","","","","",""]
[null,null,null,null,null,null,null,null,null,null,null,null,null,null,null,null,null,null,null,null,null,null,null,null,null,null,null,null,null,null,"","","","","",{"$f":"AE185","v":""},""]
[null,null,null,null,null,null,null,null,null,null,null,null,null,null,null,null,null,null,null,null,null,null,null,null,null,null,null,null,null,null,"","","","","","",""]
[null,null,null,null,null,null,null,null,null,null,null,null,null,null,null,null,null,null,null,null,null,null,null,null,null,null,null,null,null,null,"","","","","","",""]
[null,null,null,null,null,null,null,null,null,null,null,null,null,null,null,null,null,null,null,null,null,null,null,null,null,null,null,null,null,null,"","","","","","",""]
[null,null,null,null,null,null,null,null,null,null,null,null,null,null,null,null,null,null,null,null,null,null,null,null,null,null,null,null,null,null,"","","","","","",""]
[null,null,null,null,null,null,null,null,null,null,null,null,null,null,null,null,null,null,null,null,null,null,null,null,null,null,null,null,null,null,{"$f":"IF(YEAR(A190)=1900,\"\", TEXT(DAY(A190),\"00\") & \".\" & TEXT(MONTH(A190),\"00\") & \".\" & YEAR(A190))","v":""},"","","","","",""]
[null,null,null,null,null,null,null,null,null,null,null,null,null,null,null,null,null,null,null,null,null,null,null,null,null,null,null,null,null,null,"","","","","","",""]
[null,null,null,null,null,null,null,null,null,null,null,null,null,null,null,null,null,null,null,null,null,null,null,null,null,null,null,null,null,null,"","","","","","",""]
[null,null,null,null,null,null,null,null,null,null,null,null,null,null,null,null,null,null,null,null,null,null,null,null,null,null,null,null,null,null,"","","","","","",""]
[null,null,null,null,null,null,null,null,null,null,null,null,null,null,null,null,null,null,null,null,null,null,null,null,null,null,null,null,null,null,"","","","","","",""]
[null,null,null,null,null,null,null,null,null,null,null,null,null,null,null,null,null,null,null,null,null,null,null,null,null,null,null,null,null,null,"","","","","","",""]
[null,null,null,null,null,null,null,null,null,null,null,null,null,null,null,null,null,null,null,null,null,null,null,null,null,null,null,null,null,null,"","","","","","",""]
[null,null,null,null,null,null,null,null,null,null,null,null,null,null,null,null,null,null,null,null,null,null,null,null,null,null,null,null,null,null,"","","","","","",""]
[null,null,null,null,null,null,null,null,null,null,null,null,null,null,null,null,null,null,null,null,null,null,null,null,null,null,null,null,null,null,"","","","","","",""]
[null,null,null,null,null,null,null,null,null,null,null,null,null,null,null,null,null,null,null,null,null,null,null,null,null,null,null,null,null,null,"","","","","","",""]
[null,null,null,null,null,null,null,null,null,null,null,null,null,null,null,null,null,null,null,null,null,null,null,null,null,null,null,null,null,null,"","","","","","",""]
[null,null,null,null,null,null,null,null,null,null,null,null,null,null,null,null,null,null,null,null,null,null,null,null,null,null,null,null,null,null,"","","","","","",""]
[null,null,null,null,null,null,null,null,null,null,null,null,null,null,null,null,null,null,null,null,null,null,null,null,null,null,null,null,null,null,"","","","","","",""]
[null,null,null,null,null,null,null,null,null,null,null,null,null,null,null,null,null,null,null,null,null,null,null,null,null,null,null,null,null,null,"","","","","","",""]
[null,null,null,null,null,null,null,null,null,null,null,null,null,null,null,null,null,null,null,null,null,null,null,null,null,null,null,null,null,null,"","","","","","",""]
[null,null,null,null,null,null,null,null,null,null,null,null,null,null,null,null,null,null,null,null,null,null,null,null,null,null,null,null,null,null,"","","","","","",""]
[null,null,null,null,null,null,null,null,null,null,null,null,null,null,null,null,null,null,null,null,null,null,null,null,null,null,null,null,null,null,"","","","","","",""]
[null,null,null,null,null,null,null,null,null,null,null,null,null,null,null,null,null,null,null,null,null,null,null,null,null,null,null,null,null,null,"","","","","","",""]
[null,null,null,null,null,null,null,null,null,null,null,null,null,null,null,null,null,null,null,null,null,null,null,null,null,null,null,null,null,null,"","","","","","",""]
[null,null,null,null,null,null,null,null,null,null,null,null,null,null,null,null,null,null,null,null,null,null,null,null,null,null,null,null,null,null,"","","","","","",""]
[null,null,null,null,null,null,null,null,null,null,null,null,null,null,null,null,null,null,null,null,null,null,null,null,null,null,null,null,null,null,"","","","","","",""]
[null,null,null,null,null,null,null,null,null,null,null,null,null,null,null,null,null,null,null,null,null,null,null,null,null,null,null,null,null,null,"","","","","","",""]
[null,null,null,null,null,null,null,null,null,null,null,null,null,null,null,null,null,null,null,null,null,null,null,null,null,null,null,null,null,null,"","","","","","",""]
[null,null,null,null,null,null,null,null,null,null,null,null,null,null,null,null,null,null,null,null,null,null,null,null,null,null,null,null,null,null,"","","","","","",""]
[null,null,null,null,null,null,null,null,null,null,null,null,null,null,null,null,null,null,null,null,null,null,null,null,null,null,null,null,null,null,"","","","","","",""]
[null,null,null,null,null,null,null,null,null,null,null,null,null,null,null,null,null,null,null,null,null,null,null,null,null,null,null,null,null,null,"","","","","","",""]
[null,null,null,null,null,null,null,null,null,null,null,null,null,null,null,null,null,null,null,null,null,null,null,null,null,null,null,null,null,null,"","","","","","",""]
[null,null,null,null,null,null,null,null,null,null,null,null,null,null,null,null,null,null,null,null,null,null,null,null,null,null,null,null,null,null,"","","","","","",""]
[null,null,null,null,null,null,null,null,null,null,null,null,null,null,null,null,null,null,null,null,null,null,null,null,null,null,null,null,null,null,"","","","","","",""]
[null,null,null,null,null,null,null,null,null,null,null,null,null,null,null,null,null,null,null,null,null,null,null,null,null,null,null,null,null,null,"","","","","","",""]
[null,null,null,null,null,null,null,null,null,null,null,null,null,null,null,null,null,null,null,null,null,null,null,null,null,null,null,null,null,null,"","","","","","",""]
[null,null,null,null,null,null,null,null,null,null,null,null,null,null,null,null,null,null,null,null,null,null,null,null,null,null,null,null,null,null,"","","","","","",""]
[null,null,null,null,null,null,null,null,null,null,null,null,null,null,null,null,null,null,null,null,null,null,null,null,null,null,null,null,null,null,"","","","","","",""]
[null,null,null,null,null,null,null,null,null,null,null,null,null,null,null,null,null,null,null,null,null,null,null,null,null,null,null,null,null,null,"","","","","","",""]
[null,null,null,null,null,null,null,null,null,null,null,null,null,null,null,null,null,null,null,null,null,null,null,null,null,null,null,null,null,null,"","","","","","",""]
[null,null,null,null,null,null,null,null,null,null,null,null,null,null,null,null,null,null,null,null,null,null,null,null,null,null,null,null,null,null,"","","","","","",""]
[null,null,null,null,null,null,null,null,null,null,null,null,null,null,null,null,null,null,null,null,null,null,null,null,null,null,null,null,null,null,"","","","","","",""]
[null,null,null,null,null,null,null,null,null,null,null,null,null,null,null,null,null,null,null,null,null,null,null,null,null,null,null,null,null,null,"","","","","","",""]
[null,null,null,null,null,null,null,null,null,null,null,null,null,null,null,null,null,null,null,null,null,null,null,null,null,null,null,null,null,null,"","","","","","",""]
[null,null,null,null,null,null,null,null,null,null,null,null,null,null,null,null,null,null,null,null,null,null,null,null,null,null,null,null,null,null,"","","","","","",""]
[null,null,null,null,null,null,null,null,null,null,null,null,null,null,null,null,null,null,null,null,null,null,null,null,null,null,null,null,null,null,"","","","","","",""]
[null,null,null,null,null,null,null,null,null,null,null,null,null,null,null,null,null,null,null,null,null,null,null,null,null,null,null,null,null,null,"","","","","","",""]
[null,null,null,null,null,null,null,null,null,null,null,null,null,null,null,null,null,null,null,null,null,null,null,null,null,null,null,null,null,null,"","","","","","",""]
[null,null,null,null,null,null,null,null,null,null,null,null,null,null,null,null,null,null,null,null,null,null,null,null,null,null,null,null,null,null,"","","","","","",""]
[null,null,null,null,null,null,null,null,null,null,null,null,null,null,null,null,null,null,null,null,null,null,null,null,null,null,null,null,null,null,"","","","","","",""]
[null,null,null,null,null,null,null,null,null,null,null,null,null,null,null,null,null,null,null,null,null,null,null,null,null,null,null,null,null,null,"","","","","","",""]
[null,null,null,null,null,null,null,null,null,null,null,null,null,null,null,null,null,null,null,null,null,null,null,null,null,null,null,null,null,null,"","","","","","",""]
[null,null,null,null,null,null,null,null,null,null,null,null,null,null,null,null,null,null,null,null,null,null,null,null,null,null,null,null,null,null,"","","","","","",""]
[null,null,null,null,null,null,null,null,null,null,null,null,null,null,null,null,null,null,null,null,null,null,null,null,null,null,null,null,null,null,"","","","","","",""]
[null,null,null,null,null,null,null,null,null,null,null,null,null,null,null,null,null,null,null,null,null,null,null,null,null,null,null,null,null,null,"","","","","","",""]
[null,null,null,null,null,null,null,null,null,null,null,null,null,null,null,null,null,null,null,null,null,null,null,null,null,null,null,null,null,null,"","","","","","",""]
[null,null,null,null,null,null,null,null,null,null,null,null,null,null,null,null,null,null,null,null,null,null,null,null,null,null,null,null,null,null,"","","","","","",""]
[null,null,null,null,null,null,null,null,null,null,null,null,null,null,null,null,null,null,null,null,null,null,null,null,null,null,null,null,null,null,"","","","","","",""]
[null,null,null,null,null,null,null,null,null,null,null,null,null,null,null,null,null,null,null,null,null,null,null,null,null,null,null,null,null,null,"","","","","","",""]
[null,null,null,null,null,null,null,null,null,null,null,null,null,null,null,null,null,null,null,null,null,null,null,null,null,null,null,null,null,null,"",{"$f":"IF(K244=0,\"\",ROUND(K244,0))","v":""},{"$f":"IF(N244=\"\",\"\",ROUND(N244,0))","v":""},{"$f":"IF(U244=\"\",\"\",ROUND(U244,0))","v":""},{"$f":"IF(AB244=\"\",\"\",ROUND(AB244,0))","v":""},"",{"$f":"IF(AC244=\"\",\"\",ROUND(AC244,0))","v":""}]
[null,null,null,null,null,null,null,null,null,null,null,null,null,null,null,null,null,null,null,null,null,null,null,null,null,null,null,null,null,null,"","","","","","",""]
[null,null,null,null,null,null,null,null,null,null,null,null,null,null,null,null,null,null,null,null,null,null,null,null,null,null,null,null,null,null,"","","","","","",""]
[null,null,null,null,null,null,null,null,null,null,null,null,null,null,null,null,null,null,null,null,null,null,null,null,null,null,null,null,null,null,"","","","","","",""]
[null,null,null,null,null,null,null,null,null,null,null,null,null,null,null,null,null,null,null,null,null,null,null,null,null,null,null,null,null,null,"","","","","","",""]
[null,null,null,null,null,null,null,null,null,null,null,null,null,null,null,null,null,null,null,null,null,null,null,null,null,null,null,null,null,null,"","","","","",{"$f":"AE249","v":""},""]
[null,null,null,null,null,null,null,null,null,null,null,null,null,null,null,null,null,null,null,null,null,null,null,null,null,null,null,null,null,null,"","","","","","",""]
[null,null,null,null,null,null,null,null,null,null,null,null,null,null,null,null,null,null,null,null,null,null,null,null,null,null,null,null,null,null,"","","","","","",""]
[null,null,null,null,null,null,null,null,null,null,null,null,null,null,null,null,null,null,null,null,null,null,null,null,null,null,null,null,null,null,"","","","","","",""]
[null,null,null,null,null,null,null,null,null,null,null,null,null,null,null,null,null,null,null,null,null,null,null,null,null,null,null,null,null,null,"","","","","","",""]
[null,null,null,null,null,null,null,null,null,null,null,null,null,null,null,null,null,null,null,null,null,null,null,null,null,null,null,null,null,null,{"$f":"IF(YEAR(A254)=1900,\"\", TEXT(DAY(A254),\"00\") & \".\" & TEXT(MONTH(A254),\"00\") & \".\" & YEAR(A254))","v":""},"","","","","",""]
[null,null,null,null,null,null,null,null,null,null,null,null,null,null,null,null,null,null,null,null,null,null,null,null,null,null,null,null,null,null,"","","","","","",""]
[null,null,null,null,null,null,null,null,null,null,null,null,null,null,null,null,null,null,null,null,null,null,null,null,null,null,null,null,null,null,"","","","","","",""]
[null,null,null,null,null,null,null,null,null,null,null,null,null,null,null,null,null,null,null,null,null,null,null,null,null,null,null,null,null,null,"","","","","","",""]
[null,null,null,null,null,null,null,null,null,null,null,null,null,null,null,null,null,null,null,null,null,null,null,null,null,null,null,null,null,null,"","","","","","",""]
[null,null,null,null,null,null,null,null,null,null,null,null,null,null,null,null,null,null,null,null,null,null,null,null,null,null,null,null,null,null,"","","","","","",""]
[null,null,null,null,null,null,null,null,null,null,null,null,null,null,null,null,null,null,null,null,null,null,null,null,null,null,null,null,null,null,"","","","","","",""]
[null,null,null,null,null,null,null,null,null,null,null,null,null,null,null,null,null,null,null,null,null,null,null,null,null,null,null,null,null,null,"","","","","","",""]
[null,null,null,null,null,null,null,null,null,null,null,null,null,null,null,null,null,null,null,null,null,null,null,null,null,null,null,null,null,null,"","","","","","",""]
[null,null,null,null,null,null,null,null,null,null,null,null,null,null,null,null,null,null,null,null,null,null,null,null,null,null,null,null,null,null,"","","","","","",""]
[null,null,null,null,null,null,null,null,null,null,null,null,null,null,null,null,null,null,null,null,null,null,null,null,null,null,null,null,null,null,"","","","","","",""]
[null,null,null,null,null,null,null,null,null,null,null,null,null,null,null,null,null,null,null,null,null,null,null,null,null,null,null,null,null,null,"","","","","","",""]
[null,null,null,null,null,null,null,null,null,null,null,null,null,null,null,null,null,null,null,null,null,null,null,null,null,null,null,null,null,null,"","","","","","",""]
[null,null,null,null,null,null,null,null,null,null,null,null,null,null,null,null,null,null,null,null,null,null,null,null,null,null,null,null,null,null,"","","","","","",""]
[null,null,null,null,null,null,null,null,null,null,null,null,null,null,null,null,null,null,null,null,null,null,null,null,null,null,null,null,null,null,"","","","","","",""]
[null,null,null,null,null,null,null,null,null,null,null,null,null,null,null,null,null,null,null,null,null,null,null,null,null,null,null,null,null,null,"","","","","","",""]
[null,null,null,null,null,null,null,null,null,null,null,null,null,null,null,null,null,null,null,null,null,null,null,null,null,null,null,null,null,null,"","","","","","",""]
[null,null,null,null,null,null,null,null,null,null,null,null,null,null,null,null,null,null,null,null,null,null,null,null,null,null,null,null,null,null,"","","","","","",""]
[null,null,null,null,null,null,null,null,null,null,null,null,null,null,null,null,null,null,null,null,null,null,null,null,null,null,null,null,null,null,"","","","","","",""]
[null,null,null,null,null,null,null,null,null,null,null,null,null,null,null,null,null,null,null,null,null,null,null,null,null,null,null,null,null,null,"","","","","","",""]
[null,null,null,null,null,null,null,null,null,null,null,null,null,null,null,null,null,null,null,null,null,null,null,null,null,null,null,null,null,null,"","","","","","",""]
[null,null,null,null,null,null,null,null,null,null,null,null,null,null,null,null,null,null,null,null,null,null,null,null,null,null,null,null,null,null,"","","","","","",""]
[null,null,null,null,null,null,null,null,null,null,null,null,null,null,null,null,null,null,null,null,null,null,null,null,null,null,null,null,null,null,"","","","","","",""]
[null,null,null,null,null,null,null,null,null,null,null,null,null,null,null,null,null,null,null,null,null,null,null,null,null,null,null,null,null,null,"","","","","","",""]
[null,null,null,null,null,null,null,null,null,null,null,null,null,null,null,null,null,null,null,null,null,null,null,null,null,null,null,null,null,null,"","","","","","",""]
[null,null,null,null,null,null,null,null,null,null,null,null,null,null,null,null,null,null,null,null,null,null,null,null,null,null,null,null,null,null,"","","","","","",""]
[null,null,null,null,null,null,null,null,null,null,null,null,null,null,null,null,null,null,null,null,null,null,null,null,null,null,null,null,null,null,"","","","","","",""]
[null,null,null,null,null,null,null,null,null,null,null,null,null,null,null,null,null,null,null,null,null,null,null,null,null,null,null,null,null,null,"","","","","","",""]
[null,null,null,null,null,null,null,null,null,null,null,null,null,null,null,null,null,null,null,null,null,null,null,null,null,null,null,null,null,null,"","","","","","",""]
[null,null,null,null,null,null,null,null,null,null,null,null,null,null,null,null,null,null,null,null,null,null,null,null,null,null,null,null,null,null,"","","","","","",""]
[null,null,null,null,null,null,null,null,null,null,null,null,null,null,null,null,null,null,null,null,null,null,null,null,null,null,null,null,null,null,"","","","","","",""]
[null,null,null,null,null,null,null,null,null,null,null,null,null,null,null,null,null,null,null,null,null,null,null,null,null,null,null,null,null,null,"","","","","","",""]
[null,null,null,null,null,null,null,null,null,null,null,null,null,null,null,null,null,null,null,null,null,null,null,null,null,null,null,null,null,null,"","","","","","",""]
[null,null,null,null,null,null,null,null,null,null,null,null,null,null,null,null,null,null,null,null,null,null,null,null,null,null,null,null,null,null,"","","","","","",""]
[null,null,null,null,null,null,null,null,null,null,null,null,null,null,null,null,null,null,null,null,null,null,null,null,null,null,null,null,null,null,"","","","","","",""]
[null,null,null,null,null,null,null,null,null,null,null,null,null,null,null,null,null,null,null,null,null,null,null,null,null,null,null,null,null,null,"","","","","","",""]
[null,null,null,null,null,null,null,null,null,null,null,null,null,null,null,null,null,null,null,null,null,null,null,null,null,null,null,null,null,null,"","","","","","",""]
[null,null,null,null,null,null,null,null,null,null,null,null,null,null,null,null,null,null,null,null,null,null,null,null,null,null,null,null,null,null,"","","","","","",""]
[null,null,null,null,null,null,null,null,null,null,null,null,null,null,null,null,null,null,null,null,null,null,null,null,null,null,null,null,null,null,"","","","","","",""]
[null,null,null,null,null,null,null,null,null,null,null,null,null,null,null,null,null,null,null,null,null,null,null,null,null,null,null,null,null,null,"","","","","","",""]
[null,null,null,null,null,null,null,null,null,null,null,null,null,null,null,null,null,null,null,null,null,null,null,null,null,null,null,null,null,null,"","","","","","",""]
[null,null,null,null,null,null,null,null,null,null,null,null,null,null,null,null,null,null,null,null,null,null,null,null,null,null,null,null,null,null,"","","","","","",""]
[null,null,null,null,null,null,null,null,null,null,null,null,null,null,null,null,null,null,null,null,null,null,null,null,null,null,null,null,null,null,"","","","","","",""]
[null,null,null,null,null,null,null,null,null,null,null,null,null,null,null,null,null,null,null,null,null,null,null,null,null,null,null,null,null,null,"","","","","","",""]
[null,null,null,null,null,null,null,null,null,null,null,null,null,null,null,null,null,null,null,null,null,null,null,null,null,null,null,null,null,null,"","","","","","",""]
[null,null,null,null,null,null,null,null,null,null,null,null,null,null,null,null,null,null,null,null,null,null,null,null,null,null,null,null,null,null,"","","","","","",""]
[null,null,null,null,null,null,null,null,null,null,null,null,null,null,null,null,null,null,null,null,null,null,null,null,null,null,null,null,null,null,"","","","","","",""]
[null,null,null,null,null,null,null,null,null,null,null,null,null,null,null,null,null,null,null,null,null,null,null,null,null,null,null,null,null,null,"","","","","","",""]
[null,null,null,null,null,null,null,null,null,null,null,null,null,null,null,null,null,null,null,null,null,null,null,null,null,null,null,null,null,null,"","","","","","",""]
[null,null,null,null,null,null,null,null,null,null,null,null,null,null,null,null,null,null,null,null,null,null,null,null,null,null,null,null,null,null,"","","","","","",""]
[null,null,null,null,null,null,null,null,null,null,null,null,null,null,null,null,null,null,null,null,null,null,null,null,null,null,null,null,null,null,"","","","","","",""]
[null,null,null,null,null,null,null,null,null,null,null,null,null,null,null,null,null,null,null,null,null,null,null,null,null,null,null,null,null,null,"","","","","","",""]
[null,null,null,null,null,null,null,null,null,null,null,null,null,null,null,null,null,null,null,null,null,null,null,null,null,null,null,null,null,null,"","","","","","",""]
[null,null,null,null,null,null,null,null,null,null,null,null,null,null,null,null,null,null,null,null,null,null,null,null,null,null,null,null,null,null,"","","","","","",""]
[null,null,null,null,null,null,null,null,null,null,null,null,null,null,null,null,null,null,null,null,null,null,null,null,null,null,null,null,null,null,"",{"$f":"IF(K308=0,\"\",ROUND(K308,0))","v":""},{"$f":"IF(N308=\"\",\"\",ROUND(N308,0))","v":""},{"$f":"IF(U308=\"\",\"\",ROUND(U308,0))","v":""},{"$f":"IF(AB308=\"\",\"\",ROUND(AB308,0))","v":""},"",{"$f":"IF(AC308=\"\",\"\",ROUND(AC308,0))","v":""}]
[null,null,null,null,null,null,null,null,null,null,null,null,null,null,null,null,null,null,null,null,null,null,null,null,null,null,null,null,null,null,"","","","","","",""]
[null,null,null,null,null,null,null,null,null,null,null,null,null,null,null,null,null,null,null,null,null,null,null,null,null,null,null,null,null,null,"","","","","","",""]
[null,null,null,null,null,null,null,null,null,null,null,null,null,null,null,null,null,null,null,null,null,null,null,null,null,null,null,null,null,null,"","","","","","",""]
[null,null,null,null,null,null,null,null,null,null,null,null,null,null,null,null,null,null,null,null,null,null,null,null,null,null,null,null,null,null,"","","","","","",""]
[null,null,null,null,null,null,null,null,null,null,null,null,null,null,null,null,null,null,null,null,null,null,null,null,null,null,null,null,null,null,"","","","","",{"$f":"AE313","v":""},""]
[null,null,null,null,null,null,null,null,null,null,null,null,null,null,null,null,null,null,null,null,null,null,null,null,null,null,null,null,null,null,"","","","","","",""]
[null,null,null,null,null,null,null,null,null,null,null,null,null,null,null,null,null,null,null,null,null,null,null,null,null,null,null,null,null,null,"","","","","","",""]
[null,null,null,null,null,null,null,null,null,null,null,null,null,null,null,null,null,null,null,null,null,null,null,null,null,null,null,null,null,null,"","","","","","",""]
[null,null,null,null,null,null,null,null,null,null,null,null,null,null,null,null,null,null,null,null,null,null,null,null,null,null,null,null,null,null,"","","","","","",""]
[null,null,null,null,null,null,null,null,null,null,null,null,null,null,null,null,null,null,null,null,null,null,null,null,null,null,null,null,null,null,{"$f":"IF(YEAR(A318)=1900,\"\", TEXT(DAY(A318),\"00\") & \".\" & TEXT(MONTH(A318),\"00\") & \".\" & YEAR(A318))","v":""},"","","","","",""]
[null,null,null,null,null,null,null,null,null,null,null,null,null,null,null,null,null,null,null,null,null,null,null,null,null,null,null,null,null,null,"","","","","","",""]
[null,null,null,null,null,null,null,null,null,null,null,null,null,null,null,null,null,null,null,null,null,null,null,null,null,null,null,null,null,null,"","","","","","",""]
[null,null,null,null,null,null,null,null,null,null,null,null,null,null,null,null,null,null,null,null,null,null,null,null,null,null,null,null,null,null,"","","","","","",""]
[null,null,null,null,null,null,null,null,null,null,null,null,null,null,null,null,null,null,null,null,null,null,null,null,null,null,null,null,null,null,"","","","","","",""]
[null,null,null,null,null,null,null,null,null,null,null,null,null,null,null,null,null,null,null,null,null,null,null,null,null,null,null,null,null,null,"","","","","","",""]
[null,null,null,null,null,null,null,null,null,null,null,null,null,null,null,null,null,null,null,null,null,null,null,null,null,null,null,null,null,null,"","","","","","",""]
[null,null,null,null,null,null,null,null,null,null,null,null,null,null,null,null,null,null,null,null,null,null,null,null,null,null,null,null,null,null,"","","","","","",""]
[null,null,null,null,null,null,null,null,null,null,null,null,null,null,null,null,null,null,null,null,null,null,null,null,null,null,null,null,null,null,"","","","","","",""]
[null,null,null,null,null,null,null,null,null,null,null,null,null,null,null,null,null,null,null,null,null,null,null,null,null,null,null,null,null,null,"","","","","","",""]
[null,null,null,null,null,null,null,null,null,null,null,null,null,null,null,null,null,null,null,null,null,null,null,null,null,null,null,null,null,null,"","","","","","",""]
[null,null,null,null,null,null,null,null,null,null,null,null,null,null,null,null,null,null,null,null,null,null,null,null,null,null,null,null,null,null,"","","","","","",""]
[null,null,null,null,null,null,null,null,null,null,null,null,null,null,null,null,null,null,null,null,null,null,null,null,null,null,null,null,null,null,"","","","","","",""]
[null,null,null,null,null,null,null,null,null,null,null,null,null,null,null,null,null,null,null,null,null,null,null,null,null,null,null,null,null,null,"","","","","","",""]
[null,null,null,null,null,null,null,null,null,null,null,null,null,null,null,null,null,null,null,null,null,null,null,null,null,null,null,null,null,null,"","","","","","",""]
[null,null,null,null,null,null,null,null,null,null,null,null,null,null,null,null,null,null,null,null,null,null,null,null,null,null,null,null,null,null,"","","","","","",""]
[null,null,null,null,null,null,null,null,null,null,null,null,null,null,null,null,null,null,null,null,null,null,null,null,null,null,null,null,null,null,"","","","","","",""]
[null,null,null,null,null,null,null,null,null,null,null,null,null,null,null,null,null,null,null,null,null,null,null,null,null,null,null,null,null,null,"","","","","","",""]
[null,null,null,null,null,null,null,null,null,null,null,null,null,null,null,null,null,null,null,null,null,null,null,null,null,null,null,null,null,null,"","","","","","",""]
[null,null,null,null,null,null,null,null,null,null,null,null,null,null,null,null,null,null,null,null,null,null,null,null,null,null,null,null,null,null,"","","","","","",""]
[null,null,null,null,null,null,null,null,null,null,null,null,null,null,null,null,null,null,null,null,null,null,null,null,null,null,null,null,null,null,"","","","","","",""]
[null,null,null,null,null,null,null,null,null,null,null,null,null,null,null,null,null,null,null,null,null,null,null,null,null,null,null,null,null,null,"","","","","","",""]
[null,null,null,null,null,null,null,null,null,null,null,null,null,null,null,null,null,null,null,null,null,null,null,null,null,null,null,null,null,null,"","","","","","",""]
[null,null,null,null,null,null,null,null,null,null,null,null,null,null,null,null,null,null,null,null,null,null,null,null,null,null,null,null,null,null,"","","","","","",""]
[null,null,null,null,null,null,null,null,null,null,null,null,null,null,null,null,null,null,null,null,null,null,null,null,null,null,null,null,null,null,"","","","","","",""]
[null,null,null,null,null,null,null,null,null,null,null,null,null,null,null,null,null,null,null,null,null,null,null,null,null,null,null,null,null,null,"","","","","","",""]
[null,null,null,null,null,null,null,null,null,null,null,null,null,null,null,null,null,null,null,null,null,null,null,null,null,null,null,null,null,null,"","","","","","",""]
[null,null,null,null,null,null,null,null,null,null,null,null,null,null,null,null,null,null,null,null,null,null,null,null,null,null,null,null,null,null,"","","","","","",""]
[null,null,null,null,null,null,null,null,null,null,null,null,null,null,null,null,null,null,null,null,null,null,null,null,null,null,null,null,null,null,"","","","","","",""]
[null,null,null,null,null,null,null,null,null,null,null,null,null,null,null,null,null,null,null,null,null,null,null,null,null,null,null,null,null,null,"","","","","","",""]
[null,null,null,null,null,null,null,null,null,null,null,null,null,null,null,null,null,null,null,null,null,null,null,null,null,null,null,null,null,null,"","","","","","",""]
[null,null,null,null,null,null,null,null,null,null,null,null,null,null,null,null,null,null,null,null,null,null,null,null,null,null,null,null,null,null,"","","","","","",""]
[null,null,null,null,null,null,null,null,null,null,null,null,null,null,null,null,null,null,null,null,null,null,null,null,null,null,null,null,null,null,"","","","","","",""]
[null,null,null,null,null,null,null,null,null,null,null,null,null,null,null,null,null,null,null,null,null,null,null,null,null,null,null,null,null,null,"","","","","","",""]
[null,null,null,null,null,null,null,null,null,null,null,null,null,null,null,null,null,null,null,null,null,null,null,null,null,null,null,null,null,null,"","","","","","",""]
[null,null,null,null,null,null,null,null,null,null,null,null,null,null,null,null,null,null,null,null,null,null,null,null,null,null,null,null,null,null,"","","","","","",""]
[null,null,null,null,null,null,null,null,null,null,null,null,null,null,null,null,null,null,null,null,null,null,null,null,null,null,null,null,null,null,"","","","","","",""]
[null,null,null,null,null,null,null,null,null,null,null,null,null,null,null,null,null,null,null,null,null,null,null,null,null,null,null,null,null,null,"","","","","","",""]
[null,null,null,null,null,null,null,null,null,null,null,null,null,null,null,null,null,null,null,null,null,null,null,null,null,null,null,null,null,null,"","","","","","",""]
[null,null,null,null,null,null,null,null,null,null,null,null,null,null,null,null,null,null,null,null,null,null,null,null,null,null,null,null,null,null,"","","","","","",""]
[null,null,null,null,null,null,null,null,null,null,null,null,null,null,null,null,null,null,null,null,null,null,null,null,null,null,null,null,null,null,"","","","","","",""]
[null,null,null,null,null,null,null,null,null,null,null,null,null,null,null,null,null,null,null,null,null,null,null,null,null,null,null,null,null,null,"","","","","","",""]
[null,null,null,null,null,null,null,null,null,null,null,null,null,null,null,null,null,null,null,null,null,null,null,null,null,null,null,null,null,null,"","","","","","",""]
[null,null,null,null,null,null,null,null,null,null,null,null,null,null,null,null,null,null,null,null,null,null,null,null,null,null,null,null,null,null,"","","","","","",""]
[null,null,null,null,null,null,null,null,null,null,null,null,null,null,null,null,null,null,null,null,null,null,null,null,null,null,null,null,null,null,"","","","","","",""]
[null,null,null,null,null,null,null,null,null,null,null,null,null,null,null,null,null,null,null,null,null,null,null,null,null,null,null,null,null,null,"","","","","","",""]
[null,null,null,null,null,null,null,null,null,null,null,null,null,null,null,null,null,null,null,null,null,null,null,null,null,null,null,null,null,null,"","","","","","",""]
[null,null,null,null,null,null,null,null,null,null,null,null,null,null,null,null,null,null,null,null,null,null,null,null,null,null,null,null,null,null,"","","","","","",""]
[null,null,null,null,null,null,null,null,null,null,null,null,null,null,null,null,null,null,null,null,null,null,null,null,null,null,null,null,null,null,"","","","","","",""]
[null,null,null,null,null,null,null,null,null,null,null,null,null,null,null,null,null,null,null,null,null,null,null,null,null,null,null,null,null,null,"","","","","","",""]
[null,null,null,null,null,null,null,null,null,null,null,null,null,null,null,null,null,null,null,null,null,null,null,null,null,null,null,null,null,null,"","","","","","",""]
[null,null,null,null,null,null,null,null,null,null,null,null,null,null,null,null,null,null,null,null,null,null,null,null,null,null,null,null,null,null,"","","","","","",""]
[null,null,null,null,null,null,null,null,null,null,null,null,null,null,null,null,null,null,null,null,null,null,null,null,null,null,null,null,null,null,"","","","","","",""]
[null,null,null,null,null,null,null,null,null,null,null,null,null,null,null,null,null,null,null,null,null,null,null,null,null,null,null,null,null,null,"","","","","","",""]
[null,null,null,null,null,null,null,null,null,null,null,null,null,null,null,null,null,null,null,null,null,null,null,null,null,null,null,null,null,null,"",{"$f":"IF(K372=0,\"\",ROUND(K372,0))","v":""},{"$f":"IF(N372=\"\",\"\",ROUND(N372,0))","v":""},{"$f":"IF(U372=\"\",\"\",ROUND(U372,0))","v":""},{"$f":"IF(AB372=\"\",\"\",ROUND(AB372,0))","v":""},"",{"$f":"IF(AC372=\"\",\"\",ROUND(AC372,0))","v":""}]
[null,null,null,null,null,null,null,null,null,null,null,null,null,null,null,null,null,null,null,null,null,null,null,null,null,null,null,null,null,null,"","","","","","",""]
[null,null,null,null,null,null,null,null,null,null,null,null,null,null,null,null,null,null,null,null,null,null,null,null,null,null,null,null,null,null,"","","","","","",""]
[null,null,null,null,null,null,null,null,null,null,null,null,null,null,null,null,null,null,null,null,null,null,null,null,null,null,null,null,null,null,"","","","","","",""]
[null,null,null,null,null,null,null,null,null,null,null,null,null,null,null,null,null,null,null,null,null,null,null,null,null,null,null,null,null,null,"","","","","","",""]
[null,null,null,null,null,null,null,null,null,null,null,null,null,null,null,null,null,null,null,null,null,null,null,null,null,null,null,null,null,null,"","","","","",{"$f":"AE377","v":""},""]
[null,null,null,null,null,null,null,null,null,null,null,null,null,null,null,null,null,null,null,null,null,null,null,null,null,null,null,null,null,null,"","","","","","",""]
[null,null,null,null,null,null,null,null,null,null,null,null,null,null,null,null,null,null,null,null,null,null,null,null,null,null,null,null,null,null,"","","","","","",""]
[null,null,null,null,null,null,null,null,null,null,null,null,null,null,null,null,null,null,null,null,null,null,null,null,null,null,null,null,null,null,"","","","","","",""]
[null,null,null,null,null,null,null,null,null,null,null,null,null,null,null,null,null,null,null,null,null,null,null,null,null,null,null,null,null,null,"","","","","","",""]
[null,null,null,null,null,null,null,null,null,null,null,null,null,null,null,null,null,null,null,null,null,null,null,null,null,null,null,null,null,null,{"$f":"IF(YEAR(A382)=1900,\"\", TEXT(DAY(A382),\"00\") & \".\" & TEXT(MONTH(A382),\"00\") & \".\" & YEAR(A382))","v":""},"","","","","",""]
[null,null,null,null,null,null,null,null,null,null,null,null,null,null,null,null,null,null,null,null,null,null,null,null,null,null,null,null,null,null,"","","","","","",""]
[null,null,null,null,null,null,null,null,null,null,null,null,null,null,null,null,null,null,null,null,null,null,null,null,null,null,null,null,null,null,"","","","","","",""]
[null,null,null,null,null,null,null,null,null,null,null,null,null,null,null,null,null,null,null,null,null,null,null,null,null,null,null,null,null,null,"","","","","","",""]
[null,null,null,null,null,null,null,null,null,null,null,null,null,null,null,null,null,null,null,null,null,null,null,null,null,null,null,null,null,null,"","","","","","",""]
[null,null,null,null,null,null,null,null,null,null,null,null,null,null,null,null,null,null,null,null,null,null,null,null,null,null,null,null,null,null,"","","","","","",""]
[null,null,null,null,null,null,null,null,null,null,null,null,null,null,null,null,null,null,null,null,null,null,null,null,null,null,null,null,null,null,"","","","","","",""]
[null,null,null,null,null,null,null,null,null,null,null,null,null,null,null,null,null,null,null,null,null,null,null,null,null,null,null,null,null,null,"","","","","","",""]
[null,null,null,null,null,null,null,null,null,null,null,null,null,null,null,null,null,null,null,null,null,null,null,null,null,null,null,null,null,null,"","","","","","",""]
[null,null,null,null,null,null,null,null,null,null,null,null,null,null,null,null,null,null,null,null,null,null,null,null,null,null,null,null,null,null,"","","","","","",""]
[null,null,null,null,null,null,null,null,null,null,null,null,null,null,null,null,null,null,null,null,null,null,null,null,null,null,null,null,null,null,"","","","","","",""]
[null,null,null,null,null,null,null,null,null,null,null,null,null,null,null,null,null,null,null,null,null,null,null,null,null,null,null,null,null,null,"","","","","","",""]
[null,null,null,null,null,null,null,null,null,null,null,null,null,null,null,null,null,null,null,null,null,null,null,null,null,null,null,null,null,null,"","","","","","",""]
[null,null,null,null,null,null,null,null,null,null,null,null,null,null,null,null,null,null,null,null,null,null,null,null,null,null,null,null,null,null,"","","","","","",""]
[null,null,null,null,null,null,null,null,null,null,null,null,null,null,null,null,null,null,null,null,null,null,null,null,null,null,null,null,null,null,"","","","","","",""]
[null,null,null,null,null,null,null,null,null,null,null,null,null,null,null,null,null,null,null,null,null,null,null,null,null,null,null,null,null,null,"","","","","","",""]
[null,null,null,null,null,null,null,null,null,null,null,null,null,null,null,null,null,null,null,null,null,null,null,null,null,null,null,null,null,null,"","","","","","",""]
[null,null,null,null,null,null,null,null,null,null,null,null,null,null,null,null,null,null,null,null,null,null,null,null,null,null,null,null,null,null,"","","","","","",""]
[null,null,null,null,null,null,null,null,null,null,null,null,null,null,null,null,null,null,null,null,null,null,null,null,null,null,null,null,null,null,"","","","","","",""]
[null,null,null,null,null,null,null,null,null,null,null,null,null,null,null,null,null,null,null,null,null,null,null,null,null,null,null,null,null,null,"","","","","","",""]
[null,null,null,null,null,null,null,null,null,null,null,null,null,null,null,null,null,null,null,null,null,null,null,null,null,null,null,null,null,null,"","","","","","",""]
[null,null,null,null,null,null,null,null,null,null,null,null,null,null,null,null,null,null,null,null,null,null,null,null,null,null,null,null,null,null,"","","","","","",""]
[null,null,null,null,null,null,null,null,null,null,null,null,null,null,null,null,null,null,null,null,null,null,null,null,null,null,null,null,null,null,"","","","","","",""]
[null,null,null,null,null,null,null,null,null,null,null,null,null,null,null,null,null,null,null,null,null,null,null,null,null,null,null,null,null,null,"","","","","","",""]
[null,null,null,null,null,null,null,null,null,null,null,null,null,null,null,null,null,null,null,null,null,null,null,null,null,null,null,null,null,null,"","","","","","",""]
[null,null,null,null,null,null,null,null,null,null,null,null,null,null,null,null,null,null,null,null,null,null,null,null,null,null,null,null,null,null,"","","","","","",""]
[null,null,null,null,null,null,null,null,null,null,null,null,null,null,null,null,null,null,null,null,null,null,null,null,null,null,null,null,null,null,"","","","","","",""]
[null,null,null,null,null,null,null,null,null,null,null,null,null,null,null,null,null,null,null,null,null,null,null,null,null,null,null,null,null,null,"","","","","","",""]
[null,null,null,null,null,null,null,null,null,null,null,null,null,null,null,null,null,null,null,null,null,null,null,null,null,null,null,null,null,null,"","","","","","",""]
[null,null,null,null,null,null,null,null,null,null,null,null,null,null,null,null,null,null,null,null,null,null,null,null,null,null,null,null,null,null,"","","","","","",""]
[null,null,null,null,null,null,null,null,null,null,null,null,null,null,null,null,null,null,null,null,null,null,null,null,null,null,null,null,null,null,"","","","","","",""]
[null,null,null,null,null,null,null,null,null,null,null,null,null,null,null,null,null,null,null,null,null,null,null,null,null,null,null,null,null,null,"","","","","","",""]
[null,null,null,null,null,null,null,null,null,null,null,null,null,null,null,null,null,null,null,null,null,null,null,null,null,null,null,null,null,null,"","","","","","",""]
[null,null,null,null,null,null,null,null,null,null,null,null,null,null,null,null,null,null,null,null,null,null,null,null,null,null,null,null,null,null,"","","","","","",""]
[null,null,null,null,null,null,null,null,null,null,null,null,null,null,null,null,null,null,null,null,null,null,null,null,null,null,null,null,null,null,"","","","","","",""]
[null,null,null,null,null,null,null,null,null,null,null,null,null,null,null,null,null,null,null,null,null,null,null,null,null,null,null,null,null,null,"","","","","","",""]
[null,null,null,null,null,null,null,null,null,null,null,null,null,null,null,null,null,null,null,null,null,null,null,null,null,null,null,null,null,null,"","","","","","",""]
[null,null,null,null,null,null,null,null,null,null,null,null,null,null,null,null,null,null,null,null,null,null,null,null,null,null,null,null,null,null,"","","","","","",""]
[null,null,null,null,null,null,null,null,null,null,null,null,null,null,null,null,null,null,null,null,null,null,null,null,null,null,null,null,null,null,"","","","","","",""]
[null,null,null,null,null,null,null,null,null,null,null,null,null,null,null,null,null,null,null,null,null,null,null,null,null,null,null,null,null,null,"","","","","","",""]
[null,null,null,null,null,null,null,null,null,null,null,null,null,null,null,null,null,null,null,null,null,null,null,null,null,null,null,null,null,null,"","","","","","",""]
[null,null,null,null,null,null,null,null,null,null,null,null,null,null,null,null,null,null,null,null,null,null,null,null,null,null,null,null,null,null,"","","","","","",""]
[null,null,null,null,null,null,null,null,null,null,null,null,null,null,null,null,null,null,null,null,null,null,null,null,null,null,null,null,null,null,"","","","","","",""]
[null,null,null,null,null,null,null,null,null,null,null,null,null,null,null,null,null,null,null,null,null,null,null,null,null,null,null,null,null,null,"","","","","","",""]
[null,null,null,null,null,null,null,null,null,null,null,null,null,null,null,null,null,null,null,null,null,null,null,null,null,null,null,null,null,null,"","","","","","",""]
[null,null,null,null,null,null,null,null,null,null,null,null,null,null,null,null,null,null,null,null,null,null,null,null,null,null,null,null,null,null,"","","","","","",""]
[null,null,null,null,null,null,null,null,null,null,null,null,null,null,null,null,null,null,null,null,null,null,null,null,null,null,null,null,null,null,"","","","","","",""]
[null,null,null,null,null,null,null,null,null,null,null,null,null,null,null,null,null,null,null,null,null,null,null,null,null,null,null,null,null,null,"","","","","","",""]
[null,null,null,null,null,null,null,null,null,null,null,null,null,null,null,null,null,null,null,null,null,null,null,null,null,null,null,null,null,null,"","","","","","",""]
[null,null,null,null,null,null,null,null,null,null,null,null,null,null,null,null,null,null,null,null,null,null,null,null,null,null,null,null,null,null,"","","","","","",""]
[null,null,null,null,null,null,null,null,null,null,null,null,null,null,null,null,null,null,null,null,null,null,null,null,null,null,null,null,null,null,"","","","","","",""]
[null,null,null,null,null,null,null,null,null,null,null,null,null,null,null,null,null,null,null,null,null,null,null,null,null,null,null,null,null,null,"","","","","","",""]
[null,null,null,null,null,null,null,null,null,null,null,null,null,null,null,null,null,null,null,null,null,null,null,null,null,null,null,null,null,null,"","","","","","",""]
[null,null,null,null,null,null,null,null,null,null,null,null,null,null,null,null,null,null,null,null,null,null,null,null,null,null,null,null,null,null,"","","","","","",""]
[null,null,null,null,null,null,null,null,null,null,null,null,null,null,null,null,null,null,null,null,null,null,null,null,null,null,null,null,null,null,"",{"$f":"IF(K436=0,\"\",ROUND(K436,0))","v":""},{"$f":"IF(N436=\"\",\"\",ROUND(N436,0))","v":""},{"$f":"IF(U436=\"\",\"\",ROUND(U436,0))","v":""},{"$f":"IF(AB436=\"\",\"\",ROUND(AB436,0))","v":""},"",{"$f":"IF(AC436=\"\",\"\",ROUND(AC436,0))","v":""}]
[null,null,null,null,null,null,null,null,null,null,null,null,null,null,null,null,null,null,null,null,null,null,null,null,null,null,null,null,null,null,"","","","","","",""]
[null,null,null,null,null,null,null,null,null,null,null,null,null,null,null,null,null,null,null,null,null,null,null,null,null,null,null,null,null,null,"","","","","","",""]
[null,null,null,null,null,null,null,null,null,null,null,null,null,null,null,null,null,null,null,null,null,null,null,null,null,null,null,null,null,null,"","","","","","",""]
[null,null,null,null,null,null,null,null,null,null,null,null,null,null,null,null,null,null,null,null,null,null,null,null,null,null,null,null,null,null,"","","","","","",""]
[null,null,null,null,null,null,null,null,null,null,null,null,null,null,null,null,null,null,null,null,null,null,null,null,null,null,null,null,null,null,"","","","","",{"$f":"AE441","v":""},""]
[null,null,null,null,null,null,null,null,null,null,null,null,null,null,null,null,null,null,null,null,null,null,null,null,null,null,null,null,null,null,"","","","","","",""]
[null,null,null,null,null,null,null,null,null,null,null,null,null,null,null,null,null,null,null,null,null,null,null,null,null,null,null,null,null,null,"","","","","","",""]
[null,null,null,null,null,null,null,null,null,null,null,null,null,null,null,null,null,null,null,null,null,null,null,null,null,null,null,null,null,null,"","","","","","",""]
[null,null,null,null,null,null,null,null,null,null,null,null,null,null,null,null,null,null,null,null,null,null,null,null,null,null,null,null,null,null,"","","","","","",""]
[null,null,null,null,null,null,null,null,null,null,null,null,null,null,null,null,null,null,null,null,null,null,null,null,null,null,null,null,null,null,{"$f":"IF(YEAR(A446)=1900,\"\", TEXT(DAY(A446),\"00\") & \".\" & TEXT(MONTH(A446),\"00\") & \".\" & YEAR(A446))","v":""},"","","","","",""]
[null,null,null,null,null,null,null,null,null,null,null,null,null,null,null,null,null,null,null,null,null,null,null,null,null,null,null,null,null,null,"","","","","","",""]
[null,null,null,null,null,null,null,null,null,null,null,null,null,null,null,null,null,null,null,null,null,null,null,null,null,null,null,null,null,null,"","","","","","",""]
[null,null,null,null,null,null,null,null,null,null,null,null,null,null,null,null,null,null,null,null,null,null,null,null,null,null,null,null,null,null,"","","","","","",""]
[null,null,null,null,null,null,null,null,null,null,null,null,null,null,null,null,null,null,null,null,null,null,null,null,null,null,null,null,null,null,"","","","","","",""]
[null,null,null,null,null,null,null,null,null,null,null,null,null,null,null,null,null,null,null,null,null,null,null,null,null,null,null,null,null,null,"","","","","","",""]
[null,null,null,null,null,null,null,null,null,null,null,null,null,null,null,null,null,null,null,null,null,null,null,null,null,null,null,null,null,null,"","","","","","",""]
[null,null,null,null,null,null,null,null,null,null,null,null,null,null,null,null,null,null,null,null,null,null,null,null,null,null,null,null,null,null,"","","","","","",""]
[null,null,null,null,null,null,null,null,null,null,null,null,null,null,null,null,null,null,null,null,null,null,null,null,null,null,null,null,null,null,"","","","","","",""]
[null,null,null,null,null,null,null,null,null,null,null,null,null,null,null,null,null,null,null,null,null,null,null,null,null,null,null,null,null,null,"","","","","","",""]
[null,null,null,null,null,null,null,null,null,null,null,null,null,null,null,null,null,null,null,null,null,null,null,null,null,null,null,null,null,null,"","","","","","",""]
[null,null,null,null,null,null,null,null,null,null,null,null,null,null,null,null,null,null,null,null,null,null,null,null,null,null,null,null,null,null,"","","","","","",""]
[null,null,null,null,null,null,null,null,null,null,null,null,null,null,null,null,null,null,null,null,null,null,null,null,null,null,null,null,null,null,"","","","","","",""]
[null,null,null,null,null,null,null,null,null,null,null,null,null,null,null,null,null,null,null,null,null,null,null,null,null,null,null,null,null,null,"","","","","","",""]
[null,null,null,null,null,null,null,null,null,null,null,null,null,null,null,null,null,null,null,null,null,null,null,null,null,null,null,null,null,null,"","","","","","",""]
[null,null,null,null,null,null,null,null,null,null,null,null,null,null,null,null,null,null,null,null,null,null,null,null,null,null,null,null,null,null,"","","","","","",""]
[null,null,null,null,null,null,null,null,null,null,null,null,null,null,null,null,null,null,null,null,null,null,null,null,null,null,null,null,null,null,"","","","","","",""]
[null,null,null,null,null,null,null,null,null,null,null,null,null,null,null,null,null,null,null,null,null,null,null,null,null,null,null,null,null,null,"","","","","","",""]
[null,null,null,null,null,null,null,null,null,null,null,null,null,null,null,null,null,null,null,null,null,null,null,null,null,null,null,null,null,null,"","","","","","",""]
[null,null,null,null,null,null,null,null,null,null,null,null,null,null,null,null,null,null,null,null,null,null,null,null,null,null,null,null,null,null,"","","","","","",""]
[null,null,null,null,null,null,null,null,null,null,null,null,null,null,null,null,null,null,null,null,null,null,null,null,null,null,null,null,null,null,"","","","","","",""]
[null,null,null,null,null,null,null,null,null,null,null,null,null,null,null,null,null,null,null,null,null,null,null,null,null,null,null,null,null,null,"","","","","","",""]
[null,null,null,null,null,null,null,null,null,null,null,null,null,null,null,null,null,null,null,null,null,null,null,null,null,null,null,null,null,null,"","","","","","",""]
[null,null,null,null,null,null,null,null,null,null,null,null,null,null,null,null,null,null,null,null,null,null,null,null,null,null,null,null,null,null,"","","","","","",""]
[null,null,null,null,null,null,null,null,null,null,null,null,null,null,null,null,null,null,null,null,null,null,null,null,null,null,null,null,null,null,"","","","","","",""]
[null,null,null,null,null,null,null,null,null,null,null,null,null,null,null,null,null,null,null,null,null,null,null,null,null,null,null,null,null,null,"","","","","","",""]
[null,null,null,null,null,null,null,null,null,null,null,null,null,null,null,null,null,null,null,null,null,null,null,null,null,null,null,null,null,null,"","","","","","",""]
[null,null,null,null,null,null,null,null,null,null,null,null,null,null,null,null,null,null,null,null,null,null,null,null,null,null,null,null,null,null,"","","","","","",""]
[null,null,null,null,null,null,null,null,null,null,null,null,null,null,null,null,null,null,null,null,null,null,null,null,null,null,null,null,null,null,"","","","","","",""]
[null,null,null,null,null,null,null,null,null,null,null,null,null,null,null,null,null,null,null,null,null,null,null,null,null,null,null,null,null,null,"","","","","","",""]
[null,null,null,null,null,null,null,null,null,null,null,null,null,null,null,null,null,null,null,null,null,null,null,null,null,null,null,null,null,null,"","","","","","",""]
[null,null,null,null,null,null,null,null,null,null,null,null,null,null,null,null,null,null,null,null,null,null,null,null,null,null,null,null,null,null,"","","","","","",""]
[null,null,null,null,null,null,null,null,null,null,null,null,null,null,null,null,null,null,null,null,null,null,null,null,null,null,null,null,null,null,"","","","","","",""]
[null,null,null,null,null,null,null,null,null,null,null,null,null,null,null,null,null,null,null,null,null,null,null,null,null,null,null,null,null,null,"","","","","","",""]
[null,null,null,null,null,null,null,null,null,null,null,null,null,null,null,null,null,null,null,null,null,null,null,null,null,null,null,null,null,null,"","","","","","",""]
[null,null,null,null,null,null,null,null,null,null,null,null,null,null,null,null,null,null,null,null,null,null,null,null,null,null,null,null,null,null,"","","","","","",""]
[null,null,null,null,null,null,null,null,null,null,null,null,null,null,null,null,null,null,null,null,null,null,null,null,null,null,null,null,null,null,"","","","","","",""]
[null,null,null,null,null,null,null,null,null,null,null,null,null,null,null,null,null,null,null,null,null,null,null,null,null,null,null,null,null,null,"","","","","","",""]
[null,null,null,null,null,null,null,null,null,null,null,null,null,null,null,null,null,null,null,null,null,null,null,null,null,null,null,null,null,null,"","","","","","",""]
[null,null,null,null,null,null,null,null,null,null,null,null,null,null,null,null,null,null,null,null,null,null,null,null,null,null,null,null,null,null,"","","","","","",""]